Workbook

Sheet PI vs x
A1: Measurement | B1: Hall
A2: Type | B2: Off-axis
A4: Project | B4: ='10 y=-0.2'!B5 -> 504314
A5: PS serial no | B5: ='10 y=-0.2'!B7 -> 2410104
A7: Measurement date | B7: =LEFT('10 y=-0.2'!B4,10) -> 27-09-2024
C11: Nominal gap [mm] | D11: Encoder [counts] | E11: Encoder [mm] | F11: PI [T^2mm^3] | G11: y [mm] | H11: Encoder value at 10 mm gap:
B12: ='PI vs x'!$C$12 & "mm gap" -> 10mm gap | C12: ='10 y=-0.2'!B48 -> 10 | D12: ='10 y=-0.2'!$B$50 -> 19.8945 | E12: =D12-$H$12+10 -> 9.99995 | F12: ='10 y=-0.2'!$K$3 -> 10502.42151 | G12: -0.2 | H12: 19.89455
C13: =C12 -> 10 | D13: ='10 y=-0.1'!$B$50 -> 19.8945 | E13: =D13-$H$12+10 -> 9.99995 | F13: ='10 y=-0.1'!$K$3 -> 10502.12238 | G13: -0.1
C14: =C13 -> 10 | D14: ='10 y=0'!$B$50 -> 19.8945 | E14: 9.99995 | F14: ='10 y=0'!$K$3 -> 10496.9643 | G14: 0
C15: 10 | D15: ='10 y=0.1'!$B$50 -> 19.8945 | E15: 9.99995 | F15: ='10 y=0.1'!$K$3 -> 10497.52929 | G15: 0.1
C16: 10 | D16: ='10 y=0.2'!$B$50 -> 19.8945 | E16: 9.99995 | F16: ='10 y=0.2'!$K$3 -> 10502.78489 | G16: 0.2
B17: ='PI vs x'!$C$17 & "mm gap" -> mm gap

Sheet 10 y=-0.2
A1: =IF('DF raw data'!A1="","",'DF raw data'!A1) -> Number of header lines | B1: =IF('DF raw data'!B1="","",'DF raw data'!B1) -> 54 | C1: =IF('DF raw data'!C1="","",'DF raw data'!C1) ->  | D1: =IF('DF raw data'!D1="","",'DF raw data'!D1) ->  | F1: T_coeff | G1: -0.001 | H1: /degC | J1: IBy total | K1: =J1262*1000 -> -15.54979969 | L1: muTm | M1: =L1262*1000 -> 13.53501008 | R1: DF ref | S1: 1
A2: =IF('DF raw data'!A2="","",'DF raw data'!A2) -> Measured by | B2: =IF('DF raw data'!B2="","",'DF raw data'!B2) -> Danfysik | C2: =IF('DF raw data'!C2="","",'DF raw data'!C2) ->  | D2: =IF('DF raw data'!D2="","",'DF raw data'!D2) ->  | F2: Tcorr | G2: 20 | H2: degC | J2: JBy total | K2: =K1262 -> -9.826620751 | L2: muTm^2 | M2: =M1262 -> 9.468305016
A3: =IF('DF raw data'!A3="","",'DF raw data'!A3) -> Operator | B3: =IF('DF raw data'!B3="","",'DF raw data'!B3) -> PMHA | C3: =IF('DF raw data'!C3="","",'DF raw data'!C3) ->  | D3: =IF('DF raw data'!D3="","",'DF raw data'!D3) ->  | F3: Step | G3: =A63-A62 -> 0.5 | H3: mm | J3: PI total | K3: =N1262 -> 10502.42151 | L3: T^2mm^3
A4: =IF('DF raw data'!A4="","",'DF raw data'!A4) -> Data-time | B4: =IF('DF raw data'!B4="","",'DF raw data'!B4) -> 27-09-2024, 14:16:10 | C4: =IF('DF raw data'!C4="","",'DF raw data'!C4) ->  | D4: =IF('DF raw data'!D4="","",'DF raw data'!D4) -> 
A5: =IF('DF raw data'!A5="","",'DF raw data'!A5) -> Project | B5: =IF('DF raw data'!B5="","",'DF raw data'!B5) -> 504314 | C5: =IF('DF raw data'!C5="","",'DF raw data'!C5) ->  | D5: =IF('DF raw data'!D5="","",'DF raw data'!D5) -> 
A6: =IF('DF raw data'!A6="","",'DF raw data'!A6) -> Magnet type | B6: =IF('DF raw data'!B6="","",'DF raw data'!B6) -> Dipole | C6: =IF('DF raw data'!C6="","",'DF raw data'!C6) ->  | D6: =IF('DF raw data'!D6="","",'DF raw data'!D6) -> 
A7: =IF('DF raw data'!A7="","",'DF raw data'!A7) -> Magnet nr. | B7: =IF('DF raw data'!B7="","",'DF raw data'!B7) -> 2410104 | C7: =IF('DF raw data'!C7="","",'DF raw data'!C7) ->  | D7: =IF('DF raw data'!D7="","",'DF raw data'!D7) -> 
A8: =IF('DF raw data'!A8="","",'DF raw data'!A8) -> Meas. number | B8: =IF('DF raw data'!B8="","",'DF raw data'!B8) -> 774 | C8: =IF('DF raw data'!C8="","",'DF raw data'!C8) ->  | D8: =IF('DF raw data'!D8="","",'DF raw data'!D8) -> 
A9: =IF('DF raw data'!A9="","",'DF raw data'!A9) -> Add. info | B9: =IF('DF raw data'!B9="","",'DF raw data'!B9) -> Y-alignment scan 1) | C9: =IF('DF raw data'!C9="","",'DF raw data'!C9) ->  | D9: =IF('DF raw data'!D9="","",'DF raw data'!D9) -> 
A10: =IF('DF raw data'!A10="","",'DF raw data'!A10) -> Device | B10: =IF('DF raw data'!B10="","",'DF raw data'!B10) -> (HAL) HALL-PROBE | C10: =IF('DF raw data'!C10="","",'DF raw data'!C10) ->  | D10: =IF('DF raw data'!D10="","",'DF raw data'!D10) -> 
A11: =IF('DF raw data'!A11="","",'DF raw data'!A11) -> Goal | B11: =IF('DF raw data'!B11="","",'DF raw data'!B11) -> (AXI) AXis Integral (Line, EFB) | C11: =IF('DF raw data'!C11="","",'DF raw data'!C11) ->  | D11: =IF('DF raw data'!D11="","",'DF raw data'!D11) -> 
A12: =IF('DF raw data'!A12="","",'DF raw data'!A12) -> Power supply mode | B12: =IF('DF raw data'!B12="","",'DF raw data'!B12) -> (PM) Permanent Magnet (no MPS in use) | C12: =IF('DF raw data'!C12="","",'DF raw data'!C12) ->  | D12: =IF('DF raw data'!D12="","",'DF raw data'!D12) -> 
A13: =IF('DF raw data'!A13="","",'DF raw data'!A13) -> Data format | B13: =IF('DF raw data'!B13="","",'DF raw data'!B13) -> Raw data text file | C13: =IF('DF raw data'!C13="","",'DF raw data'!C13) ->  | D13: =IF('DF raw data'!D13="","",'DF raw data'!D13) -> 
A14: =IF('DF raw data'!A14="","",'DF raw data'!A14) -> Direction of the pos. x-axis | B14: =IF('DF raw data'!B14="","",'DF raw data'!B14) -> See test program | C14: =IF('DF raw data'!C14="","",'DF raw data'!C14) ->  | D14: =IF('DF raw data'!D14="","",'DF raw data'!D14) -> 
A15: =IF('DF raw data'!A15="","",'DF raw data'!A15) -> Direction of the pos. y-axis | B15: =IF('DF raw data'!B15="","",'DF raw data'!B15) -> Vertical up | C15: =IF('DF raw data'!C15="","",'DF raw data'!C15) ->  | D15: =IF('DF raw data'!D15="","",'DF raw data'!D15) -> 
A16: =IF('DF raw data'!A16="","",'DF raw data'!A16) -> Direction of the pos. z-axis | B16: =IF('DF raw data'!B16="","",'DF raw data'!B16) -> See test program | C16: =IF('DF raw data'!C16="","",'DF raw data'!C16) ->  | D16: =IF('DF raw data'!D16="","",'DF raw data'!D16) -> 
A17: =IF('DF raw data'!A17="","",'DF raw data'!A17) -> Mapper type | B17: =IF('DF raw data'!B17="","",'DF raw data'!B17) -> Precision Hall Mapper | C17: =IF('DF raw data'!C17="","",'DF raw data'!C17) ->  | D17: =IF('DF raw data'!D17="","",'DF raw data'!D17) -> 
A18: =IF('DF raw data'!A18="","",'DF raw data'!A18) -> Mapper Danfysik Reg. Number | B18: =IF('DF raw data'!B18="","",'DF raw data'!B18) -> 2033-D (mapper 1) | C18: =IF('DF raw data'!C18="","",'DF raw data'!C18) ->  | D18: =IF('DF raw data'!D18="","",'DF raw data'!D18) -> 
A19: =IF('DF raw data'!A19="","",'DF raw data'!A19) -> Measurement consept | B19: =IF('DF raw data'!B19="","",'DF raw data'!B19) -> Square line grid | C19: =IF('DF raw data'!C19="","",'DF raw data'!C19) ->  | D19: =IF('DF raw data'!D19="","",'DF raw data'!D19) -> 
A20: =IF('DF raw data'!A20="","",'DF raw data'!A20) -> Mode | B20: =IF('DF raw data'!B20="","",'DF raw data'!B20) -> On-the-fly measurement | C20: =IF('DF raw data'!C20="","",'DF raw data'!C20) ->  | D20: =IF('DF raw data'!D20="","",'DF raw data'!D20) -> 
A21: =IF('DF raw data'!A21="","",'DF raw data'!A21) ->  | B21: =IF('DF raw data'!B21="","",'DF raw data'!B21) ->  | C21: =IF('DF raw data'!C21="","",'DF raw data'!C21) ->  | D21: =IF('DF raw data'!D21="","",'DF raw data'!D21) -> 
A22: =IF('DF raw data'!A22="","",'DF raw data'!A22) -> Probe Name | B22: =IF('DF raw data'!B22="","",'DF raw data'!B22) -> ID12_By | C22: =IF('DF raw data'!C22="","",'DF raw data'!C22) ->  | D22: =IF('DF raw data'!D22="","",'DF raw data'!D22) -> 
A23: =IF('DF raw data'!A23="","",'DF raw data'!A23) -> Probe Type | B23: =IF('DF raw data'!B23="","",'DF raw data'!B23) -> DF_ID_3D_Bxyz | C23: =IF('DF raw data'!C23="","",'DF raw data'!C23) ->  | D23: =IF('DF raw data'!D23="","",'DF raw data'!D23) -> 
A24: =IF('DF raw data'!A24="","",'DF raw data'!A24) -> Probe Danfysik Reg. Number | B24: =IF('DF raw data'!B24="","",'DF raw data'!B24) -> 2277 | C24: =IF('DF raw data'!C24="","",'DF raw data'!C24) ->  | D24: =IF('DF raw data'!D24="","",'DF raw data'!D24) -> 
A25: =IF('DF raw data'!A25="","",'DF raw data'!A25) -> Probe Axis | B25: =IF('DF raw data'!B25="","",'DF raw data'!B25) -> By | C25: =IF('DF raw data'!C25="","",'DF raw data'!C25) ->  | D25: =IF('DF raw data'!D25="","",'DF raw data'!D25) -> 
A26: =IF('DF raw data'!A26="","",'DF raw data'!A26) -> Probe Current Supply | B26: =IF('DF raw data'!B26="","",'DF raw data'!B26) -> 1825-D | C26: =IF('DF raw data'!C26="","",'DF raw data'!C26) ->  | D26: =IF('DF raw data'!D26="","",'DF raw data'!D26) -> 
A27: =IF('DF raw data'!A27="","",'DF raw data'!A27) -> Probe Gain Correction | B27: =IF('DF raw data'!B27="","",'DF raw data'!B27) -> 0.99606 | C27: =IF('DF raw data'!C27="","",'DF raw data'!C27) ->  | D27: =IF('DF raw data'!D27="","",'DF raw data'!D27) -> 
A28: =IF('DF raw data'!A28="","",'DF raw data'!A28) -> Probe Offset Correction | B28: =IF('DF raw data'!B28="","",'DF raw data'!B28) -> 0.0027746 | C28: =IF('DF raw data'!C28="","",'DF raw data'!C28) ->  | D28: =IF('DF raw data'!D28="","",'DF raw data'!D28) -> 
A29: =IF('DF raw data'!A29="","",'DF raw data'!A29) -> DVM Number | B29: =IF('DF raw data'!B29="","",'DF raw data'!B29) -> 2 | C29: =IF('DF raw data'!C29="","",'DF raw data'!C29) ->  | D29: =IF('DF raw data'!D29="","",'DF raw data'!D29) -> 
A30: =IF('DF raw data'!A30="","",'DF raw data'!A30) -> DVM Type | B30: =IF('DF raw data'!B30="","",'DF raw data'!B30) -> K2701 | C30: =IF('DF raw data'!C30="","",'DF raw data'!C30) ->  | D30: =IF('DF raw data'!D30="","",'DF raw data'!D30) -> 
A31: =IF('DF raw data'!A31="","",'DF raw data'!A31) -> DVM Danfysik Reg. Number | B31: =IF('DF raw data'!B31="","",'DF raw data'!B31) -> 1743-D | C31: =IF('DF raw data'!C31="","",'DF raw data'!C31) ->  | D31: =IF('DF raw data'!D31="","",'DF raw data'!D31) -> 
A32: =IF('DF raw data'!A32="","",'DF raw data'!A32) -> Probe Name | B32: =IF('DF raw data'!B32="","",'DF raw data'!B32) -> ID12_Bx | C32: =IF('DF raw data'!C32="","",'DF raw data'!C32) ->  | D32: =IF('DF raw data'!D32="","",'DF raw data'!D32) -> 
A33: =IF('DF raw data'!A33="","",'DF raw data'!A33) -> Probe Type | B33: =IF('DF raw data'!B33="","",'DF raw data'!B33) -> DF_ID_3D_Bxyz | C33: =IF('DF raw data'!C33="","",'DF raw data'!C33) ->  | D33: =IF('DF raw data'!D33="","",'DF raw data'!D33) -> 
A34: =IF('DF raw data'!A34="","",'DF raw data'!A34) -> Probe Danfysik Reg. Number | B34: =IF('DF raw data'!B34="","",'DF raw data'!B34) -> 2277 | C34: =IF('DF raw data'!C34="","",'DF raw data'!C34) ->  | D34: =IF('DF raw data'!D34="","",'DF raw data'!D34) -> 
A35: =IF('DF raw data'!A35="","",'DF raw data'!A35) -> Probe Axis | B35: =IF('DF raw data'!B35="","",'DF raw data'!B35) -> Bx | C35: =IF('DF raw data'!C35="","",'DF raw data'!C35) ->  | D35: =IF('DF raw data'!D35="","",'DF raw data'!D35) -> 
A36: =IF('DF raw data'!A36="","",'DF raw data'!A36) -> Probe Current Supply | B36: =IF('DF raw data'!B36="","",'DF raw data'!B36) -> 1825-D | C36: =IF('DF raw data'!C36="","",'DF raw data'!C36) ->  | D36: =IF('DF raw data'!D36="","",'DF raw data'!D36) -> 
A37: =IF('DF raw data'!A37="","",'DF raw data'!A37) -> Probe Gain Correction | B37: =IF('DF raw data'!B37="","",'DF raw data'!B37) -> 1 | C37: =IF('DF raw data'!C37="","",'DF raw data'!C37) ->  | D37: =IF('DF raw data'!D37="","",'DF raw data'!D37) -> 
A38: =IF('DF raw data'!A38="","",'DF raw data'!A38) -> Probe Offset Correction | B38: =IF('DF raw data'!B38="","",'DF raw data'!B38) -> -0.1754 | C38: =IF('DF raw data'!C38="","",'DF raw data'!C38) ->  | D38: =IF('DF raw data'!D38="","",'DF raw data'!D38) -> 
A39: =IF('DF raw data'!A39="","",'DF raw data'!A39) -> DVM Number | B39: =IF('DF raw data'!B39="","",'DF raw data'!B39) -> 3 | C39: =IF('DF raw data'!C39="","",'DF raw data'!C39) ->  | D39: =IF('DF raw data'!D39="","",'DF raw data'!D39) -> 
A40: =IF('DF raw data'!A40="","",'DF raw data'!A40) -> DVM Type | B40: =IF('DF raw data'!B40="","",'DF raw data'!B40) -> K2701 | C40: =IF('DF raw data'!C40="","",'DF raw data'!C40) ->  | D40: =IF('DF raw data'!D40="","",'DF raw data'!D40) -> 
A41: =IF('DF raw data'!A41="","",'DF raw data'!A41) -> DVM Danfysik Reg. Number | B41: =IF('DF raw data'!B41="","",'DF raw data'!B41) -> 1744-D | C41: =IF('DF raw data'!C41="","",'DF raw data'!C41) ->  | D41: =IF('DF raw data'!D41="","",'DF raw data'!D41) -> 
A42: =IF('DF raw data'!A42="","",'DF raw data'!A42) -> Probe Name | B42: =IF('DF raw data'!B42="","",'DF raw data'!B42) -> ID12_Bz | C42: =IF('DF raw data'!C42="","",'DF raw data'!C42) ->  | D42: =IF('DF raw data'!D42="","",'DF raw data'!D42) -> 
A43: =IF('DF raw data'!A43="","",'DF raw data'!A43) -> Probe Type | B43: =IF('DF raw data'!B43="","",'DF raw data'!B43) -> DF_ID_3D_Bxyz | C43: =IF('DF raw data'!C43="","",'DF raw data'!C43) ->  | D43: =IF('DF raw data'!D43="","",'DF raw data'!D43) -> 
A44: =IF('DF raw data'!A44="","",'DF raw data'!A44) -> Probe Danfysik Reg. Number | B44: =IF('DF raw data'!B44="","",'DF raw data'!B44) -> 2277 | C44: =IF('DF raw data'!C44="","",'DF raw data'!C44) ->  | D44: =IF('DF raw data'!D44="","",'DF raw data'!D44) -> 
A45: =IF('DF raw data'!A45="","",'DF raw data'!A45) -> Probe Axis | B45: =IF('DF raw data'!B45="","",'DF raw data'!B45) -> Bz | C45: =IF('DF raw data'!C45="","",'DF raw data'!C45) ->  | D45: =IF('DF raw data'!D45="","",'DF raw data'!D45) -> 
A46: =IF('DF raw data'!A46="","",'DF raw data'!A46) -> Probe Current Supply | B46: =IF('DF raw data'!B46="","",'DF raw data'!B46) -> 1825-D | C46: =IF('DF raw data'!C46="","",'DF raw data'!C46) ->  | D46: =IF('DF raw data'!D46="","",'DF raw data'!D46) -> 
A47: =IF('DF raw data'!A47="","",'DF raw data'!A47) -> Probe Gain Correction | B47: =IF('DF raw data'!B47="","",'DF raw data'!B47) -> 1 | C47: =IF('DF raw data'!C47="","",'DF raw data'!C47) ->  | D47: =IF('DF raw data'!D47="","",'DF raw data'!D47) -> 
A48: =IF('DF raw data'!A53="","",'DF raw data'!A53) -> PS-Gap: | B48: =IF('DF raw data'!B53="","",'DF raw data'!B53) -> 10 | C48: =IF('DF raw data'!C53="","",'DF raw data'!C53) ->  | D48: =IF('DF raw data'!D53="","",'DF raw data'!D53) -> 
A49: =IF('DF raw data'!A54="","",'DF raw data'!A54) -> PS-Temperature: | B49: =IF('DF raw data'!B54="","",'DF raw data'!B54) -> 24.4 | C49: =IF('DF raw data'!C54="","",'DF raw data'!C54) ->  | D49: =IF('DF raw data'!D54="","",'DF raw data'!D54) -> 
A50: =IF('DF raw data'!A55="","",'DF raw data'!A55) -> PS-Encoder: | B50: =IF('DF raw data'!B55="","",'DF raw data'!B55) -> 19.8945 | C50: =IF('DF raw data'!C55="","",'DF raw data'!C55) ->  | D50: =IF('DF raw data'!D55="","",'DF raw data'!D55) -> 
A51: =IF('DF raw data'!A56="","",'DF raw data'!A56) ->  | B51: =IF('DF raw data'!B56="","",'DF raw data'!B56) ->  | C51: =IF('DF raw data'!C56="","",'DF raw data'!C56) ->  | D51: =IF('DF raw data'!D56="","",'DF raw data'!D56) -> 
A52: =IF('DF raw data'!A57="","",'DF raw data'!A57) -> Monitor-Index | B52: =IF('DF raw data'!B57="","",'DF raw data'!B57) -> [1,1,4] | C52: =IF('DF raw data'!C57="","",'DF raw data'!C57) ->  | D52: =IF('DF raw data'!D57="","",'DF raw data'!D57) -> 
A53: =IF('DF raw data'!A58="","",'DF raw data'!A58) ->  | B53: =IF('DF raw data'!B58="","",'DF raw data'!B58) ->  | C53: =IF('DF raw data'!C58="","",'DF raw data'!C58) ->  | D53: =IF('DF raw data'!D58="","",'DF raw data'!D58) -> 
A54: =IF('DF raw data'!A59="","",'DF raw data'!A59) -> Time [s] | B54: =IF('DF raw data'!B59="","",'DF raw data'!B59) -> Y [mm] | C54: =IF('DF raw data'!C59="","",'DF raw data'!C59) -> X [mm] | D54: =IF('DF raw data'!D59="","",'DF raw data'!D59) -> Nominal current [A]
A55: =IF('DF raw data'!A60="","",'DF raw data'!A60) ->  | B55: =IF('DF raw data'!B60="","",'DF raw data'!B60) ->  | C55: =IF('DF raw data'!C60="","",'DF raw data'!C60) ->  | D55: =IF('DF raw data'!D60="","",'DF raw data'!D60) -> 
A56: =IF('DF raw data'!A61="","",'DF raw data'!A61) -> 211.9 | B56: =IF('DF raw data'!B61="","",'DF raw data'!B61) -> 31.53 | C56: =IF('DF raw data'!C61="","",'DF raw data'!C61) -> 302.3 | D56: =IF('DF raw data'!D61="","",'DF raw data'!D61) -> 0
A57: =IF('DF raw data'!A62="","",'DF raw data'!A62) ->  | B57: =IF('DF raw data'!B62="","",'DF raw data'!B62) ->  | C57: =IF('DF raw data'!C62="","",'DF raw data'!C62) ->  | D57: =IF('DF raw data'!D62="","",'DF raw data'!D62) -> 
A58: =IF('DF raw data'!A63="","",'DF raw data'!A63) -> Measurement-Index | B58: =IF('DF raw data'!B63="","",'DF raw data'!B63) -> [1,1,1201,2] | C58: =IF('DF raw data'!C63="","",'DF raw data'!C63) ->  | D58: =IF('DF raw data'!D63="","",'DF raw data'!D63) -> 
A59: =IF('DF raw data'!A64="","",'DF raw data'!A64) ->  | B59: =IF('DF raw data'!B64="","",'DF raw data'!B64) ->  | C59: =IF('DF raw data'!C64="","",'DF raw data'!C64) ->  | D59: =IF('DF raw data'!D64="","",'DF raw data'!D64) -> 
A60: =IF('DF raw data'!A65="","",'DF raw data'!A65) -> Z [mm] | B60: =IF('DF raw data'!B65="","",'DF raw data'!B65) -> By [T] | C60: =IF('DF raw data'!C65="","",'DF raw data'!C65) -> Bx [T] | D60: =IF('DF raw data'!D65="","",'DF raw data'!D65) -> Bz [T] | F60: By_corr | G60: Bx_corr | H60: Bz_corr | J60: Iy | K60: Jy | L60: Ix | M60: Jx | N60: PI
A62: =IF('DF raw data'!A67="","",'DF raw data'!A67) -> -300 | B62: =IF('DF raw data'!B67="","",'DF raw data'!B67) -> -3.99731e-05 | C62: =IF('DF raw data'!C67="","",'DF raw data'!C67) -> 0.000120362 | D62: =IF('DF raw data'!D67="","",'DF raw data'!D67) -> -2.10897e-05 | F62: =(1-$G$1*($B$49))*B62 -> -4.094844364e-05 | G62: =(1-$G$1*($B$49-$G$2))*C62 -> 0.0001208915928 | H62: =(1-$G$1*($B$49-$G$2))*D62 -> -2.118249468e-05 | J62: =F62*$G$3 -> -2.047422182e-05 | K62: =J62*$G$3 -> -1.023711091e-05 | L62: =G62*$G$3 -> 6.04457964e-05 | M62: =L62*$G$3 -> 3.02228982e-05 | N62: =(J62^2+L62^2)*$G$3 -> 2.036444031e-09
A63: =IF('DF raw data'!A68="","",'DF raw data'!A68) -> -299.5 | B63: =IF('DF raw data'!B68="","",'DF raw data'!B68) -> -2.37662e-05 | C63: =IF('DF raw data'!C68="","",'DF raw data'!C68) -> 0.000127302 | D63: =IF('DF raw data'!D68="","",'DF raw data'!D68) -> -2.19207e-05 | F63: =(1-$G$1*($B$49-$G$2))*B63 -> -2.387077128e-05 | G63: =(1-$G$1*($B$49-$G$2))*C63 -> 0.0001278621288 | H63: -2.201715108e-05 | J63: =F63*$G$3+J62 -> -3.240960746e-05 | K63: =J63*$G$3+K62 -> -2.644191464e-05 | L63: =G63*$G$3+L62 -> 0.0001243768608 | M63: =L63*$G$3+M62 -> 9.24113286e-05 | N63: =(J63^2+L63^2)*$G$3+N62 -> 1.029643711e-08
A64: =IF('DF raw data'!A69="","",'DF raw data'!A69) -> -299 | B64: =IF('DF raw data'!B69="","",'DF raw data'!B69) -> -2.84419e-05 | C64: =IF('DF raw data'!C69="","",'DF raw data'!C69) -> 0.000124767 | D64: =IF('DF raw data'!D69="","",'DF raw data'!D69) -> -2.34205e-05 | F64: =(1-$G$1*($B$49-$G$2))*B64 -> -2.856704436e-05 | G64: 0.0001253159748 | H64: -2.35235502e-05 | J64: =F64*$G$3+J63 -> -4.669312964e-05 | K64: =J64*$G$3+K63 -> -4.978847946e-05 | L64: =G64*$G$3+L63 -> 0.0001870348482 | M64: =L64*$G$3+M63 -> 0.0001859287527 | N64: =(J64^2+L64^2)*$G$3+N63 -> 2.887757851e-08
A65: =IF('DF raw data'!A70="","",'DF raw data'!A70) -> -298.5 | B65: =IF('DF raw data'!B70="","",'DF raw data'!B70) -> -2.19706e-05 | C65: =IF('DF raw data'!C70="","",'DF raw data'!C70) -> 0.000120432 | D65: =IF('DF raw data'!D70="","",'DF raw data'!D70) -> -2.44157e-05 | F65: -2.206727064e-05 | G65: 0.0001209619008 | H65: -2.452312908e-05 | J65: -5.772676496e-05 | K65: -7.865186194e-05 | L65: 0.0002475157986 | M65: 0.000309686652 | N65: 6.117580348e-08
A66: =IF('DF raw data'!A71="","",'DF raw data'!A71) -> -298 | B66: =IF('DF raw data'!B71="","",'DF raw data'!B71) -> -3.3246e-05 | C66: =IF('DF raw data'!C71="","",'DF raw data'!C71) -> 0.00011851 | D66: =IF('DF raw data'!D71="","",'DF raw data'!D71) -> -2.44399e-05 | F66: -3.33922824e-05 | G66: 0.000119031444 | H66: -2.454743556e-05 | J66: -7.442290616e-05 | K66: -0.000115863315 | L66: 0.0003070315206 | M66: 0.0004632024123 | N66: 1.110793653e-07
A67: =IF('DF raw data'!A72="","",'DF raw data'!A72) -> -297.5 | B67: =IF('DF raw data'!B72="","",'DF raw data'!B72) -> -2.98503e-05 | C67: =IF('DF raw data'!C72="","",'DF raw data'!C72) -> 0.000115616 | D67: =IF('DF raw data'!D72="","",'DF raw data'!D72) -> -2.40986e-05 | F67: -2.998164132e-05 | G67: 0.0001161247104 | H67: -2.420463384e-05 | J67: -8.941372682e-05 | K67: -0.0001605701784 | L67: 0.0003650938758 | M67: 0.0006457493502 | N67: 1.817235416e-07
A68: =IF('DF raw data'!A73="","",'DF raw data'!A73) -> -297 | B68: =IF('DF raw data'!B73="","",'DF raw data'!B73) -> -2.63275e-05 | C68: =IF('DF raw data'!C73="","",'DF raw data'!C73) -> 0.000111907 | D68: =IF('DF raw data'!D73="","",'DF raw data'!D73) -> -2.3902e-05 | F68: -2.6443341e-05 | G68: 0.0001123993908 | H68: -2.40071688e-05 | J68: -0.0001026353973 | K68: -0.0002118878771 | L68: 0.0004212935712 | M68: 0.0008563961358 | N68: 2.757346906e-07
A69: =IF('DF raw data'!A74="","",'DF raw data'!A74) -> -296.5 | B69: =IF('DF raw data'!B74="","",'DF raw data'!B74) -> -3.34379e-05 | C69: =IF('DF raw data'!C74="","",'DF raw data'!C74) -> 0.00011691 | D69: =IF('DF raw data'!D74="","",'DF raw data'!D74) -> -2.39224e-05 | F69: -3.358502676e-05 | G69: 0.000117424404 | H69: -2.402765856e-05 | J69: -0.0001194279107 | K69: -0.0002716018324 | L69: 0.0004800057732 | M69: 0.001096399022 | N69: 3.980689747e-07
A70: =IF('DF raw data'!A75="","",'DF raw data'!A75) -> -296 | B70: =IF('DF raw data'!B75="","",'DF raw data'!B75) -> -2.2804e-05 | C70: =IF('DF raw data'!C75="","",'DF raw data'!C75) -> 0.000114897 | D70: =IF('DF raw data'!D75="","",'DF raw data'!D75) -> -2.43519e-05 | F70: -2.29043376e-05 | G70: 0.0001154025468 | H70: -2.445904836e-05 | J70: -0.0001308800795 | K70: -0.0003370418722 | L70: 0.0005377070466 | M70: 0.001365252546 | N70: 5.511982063e-07
A71: =IF('DF raw data'!A76="","",'DF raw data'!A76) -> -295.5 | B71: =IF('DF raw data'!B76="","",'DF raw data'!B76) -> -3.08108e-05 | C71: =IF('DF raw data'!C76="","",'DF raw data'!C76) -> 0.000116113 | D71: =IF('DF raw data'!D76="","",'DF raw data'!D76) -> -2.47452e-05 | F71: -3.094636752e-05 | G71: 0.0001166238972 | H71: -2.485407888e-05 | J71: -0.0001463532633 | K71: -0.0004102185038 | L71: 0.0005960189952 | M71: 0.001663262043 | N71: 7.395271664e-07
A72: =IF('DF raw data'!A77="","",'DF raw data'!A77) -> -295 | B72: =IF('DF raw data'!B77="","",'DF raw data'!B77) -> -3.62571e-05 | C72: =IF('DF raw data'!C77="","",'DF raw data'!C77) -> 0.000117418 | D72: =IF('DF raw data'!D77="","",'DF raw data'!D77) -> -2.45394e-05 | F72: -3.641663124e-05 | G72: 0.0001179346392 | H72: -2.464737336e-05 | J72: -0.0001645615789 | K72: -0.0004924992933 | L72: 0.0006549863148 | M72: 0.001990755201 | N72: 9.675709593e-07
A73: =IF('DF raw data'!A78="","",'DF raw data'!A78) -> -294.5 | B73: =IF('DF raw data'!B78="","",'DF raw data'!B78) -> -3.19e-05 | C73: =IF('DF raw data'!C78="","",'DF raw data'!C78) -> 0.000108686 | D73: =IF('DF raw data'!D78="","",'DF raw data'!D78) -> -2.40007e-05 | F73: -3.204036e-05 | G73: 0.0001091642184 | H73: -2.410630308e-05 | J73: -0.0001805817589 | K73: -0.0005827901727 | L73: 0.000709568424 | M73: 0.002345539413 | N73: 1.235619519e-06
A74: =IF('DF raw data'!A79="","",'DF raw data'!A79) -> -294 | B74: =IF('DF raw data'!B79="","",'DF raw data'!B79) -> -3.54248e-05 | C74: =IF('DF raw data'!C79="","",'DF raw data'!C79) -> 0.00010995 | D74: =IF('DF raw data'!D79="","",'DF raw data'!D79) -> -2.37248e-05 | F74: -3.558066912e-05 | G74: 0.00011043378 | H74: -2.382918912e-05 | J74: -0.0001983720934 | K74: -0.0006819762194 | L74: 0.000764785314 | M74: 0.00272793207 | N74: 1.547743551e-06
A75: =IF('DF raw data'!A80="","",'DF raw data'!A80) -> -293.5 | B75: =IF('DF raw data'!B80="","",'DF raw data'!B80) -> -2.89534e-05 | C75: =IF('DF raw data'!C80="","",'DF raw data'!C80) -> 0.000112407 | D75: =IF('DF raw data'!D80="","",'DF raw data'!D80) -> -2.39873e-05 | F75: -2.908079496e-05 | G75: 0.0001129015908 | H75: -2.409284412e-05 | J75: -0.0002129124909 | K75: -0.0007884324649 | L75: 0.0008212361094 | M75: 0.003138550124 | N75: 1.907623789e-06
A76: =IF('DF raw data'!A81="","",'DF raw data'!A81) -> -293 | B76: =IF('DF raw data'!B81="","",'DF raw data'!B81) -> -3.09402e-05 | C76: =IF('DF raw data'!C81="","",'DF raw data'!C81) -> 0.00012037 | D76: =IF('DF raw data'!D81="","",'DF raw data'!D81) -> -2.43156e-05 | F76: -3.107633688e-05 | G76: 0.000120899628 | H76: -2.442258864e-05 | J76: -0.0002284506594 | K76: -0.0009026577946 | L76: 0.0008816859234 | M76: 0.003579393086 | N76: 2.322403675e-06
A77: =IF('DF raw data'!A82="","",'DF raw data'!A82) -> -292.5 | B77: =IF('DF raw data'!B82="","",'DF raw data'!B82) -> -3.70247e-05 | C77: =IF('DF raw data'!C82="","",'DF raw data'!C82) -> 0.00012774 | D77: =IF('DF raw data'!D82="","",'DF raw data'!D82) -> -2.41638e-05 | F77: -3.718760868e-05 | G77: 0.000128302056 | H77: -2.427012072e-05 | J77: -0.0002470444637 | K77: -0.001026180026 | L77: 0.0009458369514 | M77: 0.004052311562 | N77: 2.800222928e-06
A78: =IF('DF raw data'!A83="","",'DF raw data'!A83) -> -292 | B78: =IF('DF raw data'!B83="","",'DF raw data'!B83) -> -3.2478e-05 | C78: =IF('DF raw data'!C83="","",'DF raw data'!C83) -> 0.000117358 | D78: =IF('DF raw data'!D83="","",'DF raw data'!D83) -> -2.38532e-05 | F78: -3.26209032e-05 | G78: 0.0001178743752 | H78: -2.395815408e-05 | J78: -0.0002633549153 | K78: -0.001157857484 | L78: 0.001004774139 | M78: 0.004554698631 | N78: 3.339686369e-06
A79: =IF('DF raw data'!A84="","",'DF raw data'!A84) -> -291.5 | B79: =IF('DF raw data'!B84="","",'DF raw data'!B84) -> -3.08777e-05 | C79: =IF('DF raw data'!C84="","",'DF raw data'!C84) -> 9.92243e-05 | D79: =IF('DF raw data'!D84="","",'DF raw data'!D84) -> -1.99703e-05 | F79: -3.101356188e-05 | G79: 9.966088692e-05 | H79: -2.005816932e-05 | J79: -0.0002788616962 | K79: -0.001297288332 | L79: 0.001054604582 | M79: 0.005082000923 | N79: 3.934663704e-06
A80: =IF('DF raw data'!A85="","",'DF raw data'!A85) -> -291 | B80: =IF('DF raw data'!B85="","",'DF raw data'!B85) -> -3.44067e-05 | C80: =IF('DF raw data'!C85="","",'DF raw data'!C85) -> 0.000102504 | D80: =IF('DF raw data'!D85="","",'DF raw data'!D85) -> -1.31676e-05 | F80: -3.455808948e-05 | G80: 0.0001029550176 | H80: -1.322553744e-05 | J80: -0.000296140741 | K80: -0.001445358703 | L80: 0.001106082091 | M80: 0.005635041968 | N80: 4.59022217e-06
A81: =IF('DF raw data'!A86="","",'DF raw data'!A86) -> -290.5 | B81: =IF('DF raw data'!B86="","",'DF raw data'!B86) -> -2.79355e-05 | C81: =IF('DF raw data'!C86="","",'DF raw data'!C86) -> 0.000107448 | D81: =IF('DF raw data'!D86="","",'DF raw data'!D86) -> -1.3102e-05 | F81: -2.80584162e-05 | G81: 0.0001079207712 | H81: -1.31596488e-05 | J81: -0.0003101699491 | K81: -0.001600443677 | L81: 0.001160042477 | M81: 0.006215063207 | N81: 5.311174143e-06
A82: =IF('DF raw data'!A87="","",'DF raw data'!A87) -> -290 | B82: =IF('DF raw data'!B87="","",'DF raw data'!B87) -> -2.47277e-05 | C82: =IF('DF raw data'!C87="","",'DF raw data'!C87) -> 0.000105297 | D82: =IF('DF raw data'!D87="","",'DF raw data'!D87) -> -2.166e-05 | F82: -2.483650188e-05 | G82: 0.0001057603068 | H82: -2.1755304e-05 | J82: -0.0003225882 | K82: -0.001761737777 | L82: 0.00121292263 | M82: 0.006821524522 | N82: 6.098796369e-06
A83: =IF('DF raw data'!A88="","",'DF raw data'!A88) -> -289.5 | B83: =IF('DF raw data'!B88="","",'DF raw data'!B88) -> -2.11444e-05 | C83: =IF('DF raw data'!C88="","",'DF raw data'!C88) -> 0.000100258 | D83: =IF('DF raw data'!D88="","",'DF raw data'!D88) -> -1.37517e-05 | F83: -2.123743536e-05 | G83: 0.0001006991352 | H83: -1.381220748e-05 | J83: -0.0003332069177 | K83: -0.001928341236 | L83: 0.001263272198 | M83: 0.007453160621 | N83: 6.952238117e-06
A84: =IF('DF raw data'!A89="","",'DF raw data'!A89) -> -289 | B84: =IF('DF raw data'!B89="","",'DF raw data'!B89) -> -2.82519e-05 | C84: =IF('DF raw data'!C89="","",'DF raw data'!C89) -> 0.000107269 | D84: =IF('DF raw data'!D89="","",'DF raw data'!D89) -> -2.0601e-05 | F84: -2.837620836e-05 | G84: 0.0001077409836 | H84: -2.06916444e-05 | J84: -0.0003473950219 | K84: -0.002102038747 | L84: 0.00131714269 | M84: 0.008111731965 | N84: 7.8800122e-06
A85: =IF('DF raw data'!A90="","",'DF raw data'!A90) -> -288.5 | B85: =IF('DF raw data'!B90="","",'DF raw data'!B90) -> -2.47935e-05 | C85: =IF('DF raw data'!C90="","",'DF raw data'!C90) -> 0.000115124 | D85: =IF('DF raw data'!D90="","",'DF raw data'!D90) -> -1.76342e-05 | F85: -2.49025914e-05 | G85: 0.0001156305456 | H85: -1.771179048e-05 | J85: -0.0003598463176 | K85: -0.002281961906 | L85: 0.001374957962 | M85: 0.008799210947 | N85: 8.890011586e-06
A86: =IF('DF raw data'!A91="","",'DF raw data'!A91) -> -288 | B86: =IF('DF raw data'!B91="","",'DF raw data'!B91) -> -2.70392e-05 | C86: =IF('DF raw data'!C91="","",'DF raw data'!C91) -> 0.000109312 | D86: =IF('DF raw data'!D91="","",'DF raw data'!D91) -> -1.36062e-05 | F86: -2.715817248e-05 | G86: 0.0001097929728 | H86: -1.366606728e-05 | J86: -0.0003734254038 | K86: -0.002468674608 | L86: 0.001429854449 | M86: 0.009514138171 | N86: 9.981976724e-06
A87: =IF('DF raw data'!A92="","",'DF raw data'!A92) -> -287.5 | B87: =IF('DF raw data'!B92="","",'DF raw data'!B92) -> -1.74928e-05 | C87: =IF('DF raw data'!C92="","",'DF raw data'!C92) -> 0.000108526 | D87: =IF('DF raw data'!D92="","",'DF raw data'!D92) -> -1.39613e-05 | F87: -1.756976832e-05 | G87: 0.0001090035144 | H87: -1.402272972e-05 | J87: -0.000382210288 | K87: -0.002659779752 | L87: 0.001484356206 | M87: 0.01025631627 | N87: 1.115667575e-05
A88: =IF('DF raw data'!A93="","",'DF raw data'!A93) -> -287 | B88: =IF('DF raw data'!B93="","",'DF raw data'!B93) -> -3.03618e-05 | C88: =IF('DF raw data'!C93="","",'DF raw data'!C93) -> 0.000111937 | D88: =IF('DF raw data'!D93="","",'DF raw data'!D93) -> -2.71927e-05 | F88: -3.049539192e-05 | G88: 0.0001124295228 | H88: -2.731234788e-05 | J88: -0.0003974579839 | K88: -0.002858508744 | L88: 0.001540570967 | M88: 0.01102660176 | N88: 1.242234163e-05
A89: =IF('DF raw data'!A94="","",'DF raw data'!A94) -> -286.5 | B89: =IF('DF raw data'!B94="","",'DF raw data'!B94) -> -1.56974e-05 | C89: =IF('DF raw data'!C94="","",'DF raw data'!C94) -> 0.000110762 | D89: =IF('DF raw data'!D94="","",'DF raw data'!D94) -> -1.67493e-05 | F89: -1.576646856e-05 | G89: 0.0001112493528 | H89: -1.682299692e-05 | J89: -0.0004053412182 | K89: -0.003061179353 | L89: 0.001596195644 | M89: 0.01182469958 | N89: 1.377841265e-05
A90: =IF('DF raw data'!A95="","",'DF raw data'!A95) -> -286 | B90: =IF('DF raw data'!B95="","",'DF raw data'!B95) -> -1.92206e-05 | C90: =IF('DF raw data'!C95="","",'DF raw data'!C95) -> 0.000114434 | D90: =IF('DF raw data'!D95="","",'DF raw data'!D95) -> -1.82658e-05 | F90: -1.930517064e-05 | G90: 0.0001149375096 | H90: -1.834616952e-05 | J90: -0.0004149938035 | K90: -0.003268676255 | L90: 0.001653664399 | M90: 0.01265153178 | N90: 1.523182555e-05
A91: =IF('DF raw data'!A96="","",'DF raw data'!A96) -> -285.5 | B91: =IF('DF raw data'!B96="","",'DF raw data'!B96) -> -1.6845e-05 | C91: =IF('DF raw data'!C96="","",'DF raw data'!C96) -> 0.000125535 | D91: =IF('DF raw data'!D96="","",'DF raw data'!D96) -> -2.49276e-05 | F91: -1.6919118e-05 | G91: 0.000126087354 | H91: -2.503728144e-05 | J91: -0.0004234533625 | K91: -0.003480402936 | L91: 0.001716708076 | M91: 0.01350988582 | N91: 1.679502523e-05
A92: =IF('DF raw data'!A97="","",'DF raw data'!A97) -> -285 | B92: =IF('DF raw data'!B97="","",'DF raw data'!B97) -> -2.934e-05 | C92: =IF('DF raw data'!C97="","",'DF raw data'!C97) -> 0.000117602 | D92: =IF('DF raw data'!D97="","",'DF raw data'!D97) -> -2.24888e-05 | F92: -2.9469096e-05 | G92: 0.0001181194488 | H92: -2.258775072e-05 | J92: -0.0004381879105 | K92: -0.003699496891 | L92: 0.0017757678 | M92: 0.01439776972 | N92: 1.846770519e-05
A93: =IF('DF raw data'!A98="","",'DF raw data'!A98) -> -284.5 | B93: =IF('DF raw data'!B98="","",'DF raw data'!B98) -> -3.77312e-05 | C93: =IF('DF raw data'!C98="","",'DF raw data'!C98) -> 0.000113226 | D93: =IF('DF raw data'!D98="","",'DF raw data'!D98) -> -2.10477e-05 | F93: -3.789721728e-05 | G93: 0.0001137241944 | H93: -2.114030988e-05 | J93: -0.0004571365192 | K93: -0.003928065151 | L93: 0.001832629897 | M93: 0.01531408467 | N93: 2.025145826e-05
A94: =IF('DF raw data'!A99="","",'DF raw data'!A99) -> -284 | B94: =IF('DF raw data'!B99="","",'DF raw data'!B99) -> -3.06911e-05 | C94: =IF('DF raw data'!C99="","",'DF raw data'!C99) -> 0.000113564 | D94: =IF('DF raw data'!D99="","",'DF raw data'!D99) -> -1.39494e-05 | F94: -3.082614084e-05 | G94: 0.0001140636816 | H94: -1.401077736e-05 | J94: -0.0004725495896 | K94: -0.004164339945 | L94: 0.001889661738 | M94: 0.01625891553 | N94: 2.214852056e-05
A95: =IF('DF raw data'!A100="","",'DF raw data'!A100) -> -283.5 | B95: =IF('DF raw data'!B100="","",'DF raw data'!B100) -> -1.96065e-05 | C95: =IF('DF raw data'!C100="","",'DF raw data'!C100) -> 0.00011065 | D95: =IF('DF raw data'!D100="","",'DF raw data'!D100) -> -1.41862e-05 | F95: -1.96927686e-05 | G95: 0.00011113686 | H95: -1.424861928e-05 | J95: -0.0004823959739 | K95: -0.004405537932 | L95: 0.001945230168 | M95: 0.01723153062 | N95: 2.41568337e-05
A96: =IF('DF raw data'!A101="","",'DF raw data'!A101) -> -283 | B96: =IF('DF raw data'!B101="","",'DF raw data'!B101) -> -4.07416e-05 | C96: =IF('DF raw data'!C101="","",'DF raw data'!C101) -> 0.000107715 | D96: =IF('DF raw data'!D101="","",'DF raw data'!D101) -> -2.55069e-05 | F96: -4.092086304e-05 | G96: 0.000108188946 | H96: -2.561913036e-05 | J96: -0.0005028564054 | K96: -0.004656966135 | L96: 0.001999324641 | M96: 0.01823119294 | N96: 2.628191549e-05
A97: =IF('DF raw data'!A102="","",'DF raw data'!A102) -> -282.5 | B97: =IF('DF raw data'!B102="","",'DF raw data'!B102) -> -3.21612e-05 | C97: =IF('DF raw data'!C102="","",'DF raw data'!C102) -> 0.000111288 | D97: =IF('DF raw data'!D102="","",'DF raw data'!D102) -> -1.57218e-05 | F97: -3.230270928e-05 | G97: 0.0001117776672 | H97: -1.579097592e-05 | J97: -0.0005190077601 | K97: -0.004916470015 | L97: 0.002055213475 | M97: 0.01925879968 | N97: 2.852855123e-05
A98: =IF('DF raw data'!A103="","",'DF raw data'!A103) -> -282 | B98: =IF('DF raw data'!B103="","",'DF raw data'!B103) -> -3.54288e-05 | C98: =IF('DF raw data'!C103="","",'DF raw data'!C103) -> 0.00012285 | D98: =IF('DF raw data'!D103="","",'DF raw data'!D103) -> -1.83377e-05 | F98: -3.558468672e-05 | G98: 0.00012339054 | H98: -1.841838588e-05 | J98: -0.0005368001034 | K98: -0.005184870067 | L98: 0.002116908745 | M98: 0.02031725405 | N98: 3.091327973e-05
A99: =IF('DF raw data'!A104="","",'DF raw data'!A104) -> -281.5 | B99: =IF('DF raw data'!B104="","",'DF raw data'!B104) -> -3.06883e-05 | C99: =IF('DF raw data'!C104="","",'DF raw data'!C104) -> 0.000126151 | D99: =IF('DF raw data'!D104="","",'DF raw data'!D104) -> -1.54542e-05 | F99: -3.082332852e-05 | G99: 0.0001267060644 | H99: -1.552219848e-05 | J99: -0.0005522117677 | K99: -0.005460975951 | L99: 0.002180261777 | M99: 0.02140738494 | N99: 3.344251935e-05
A100: =IF('DF raw data'!A105="","",'DF raw data'!A105) -> -281 | B100: =IF('DF raw data'!B105="","",'DF raw data'!B105) -> -4.19015e-05 | C100: =IF('DF raw data'!C105="","",'DF raw data'!C105) -> 0.000118677 | D100: =IF('DF raw data'!D105="","",'DF raw data'!D105) -> -1.50056e-05 | F100: -4.20858666e-05 | G100: 0.0001191991788 | H100: -1.507162464e-05 | J100: -0.000573254701 | K100: -0.005747603301 | L100: 0.002239861366 | M100: 0.02252731562 | N100: 3.61153193e-05
A101: =IF('DF raw data'!A106="","",'DF raw data'!A106) -> -280.5 | B101: =IF('DF raw data'!B106="","",'DF raw data'!B106) -> -4.43337e-05 | C101: =IF('DF raw data'!C106="","",'DF raw data'!C106) -> 0.000120116 | D101: =IF('DF raw data'!D106="","",'DF raw data'!D106) -> -1.46105e-05 | F101: -4.452876828e-05 | G101: 0.0001206445104 | H101: -1.46747862e-05 | J101: -0.0005955190851 | K101: -0.006045362844 | L101: 0.002300183621 | M101: 0.02367740743 | N101: 3.893806313e-05
A102: =IF('DF raw data'!A107="","",'DF raw data'!A107) -> -280 | B102: =IF('DF raw data'!B107="","",'DF raw data'!B107) -> -3.62663e-05 | C102: =IF('DF raw data'!C107="","",'DF raw data'!C107) -> 0.000124158 | D102: =IF('DF raw data'!D107="","",'DF raw data'!D107) -> -1.11511e-05 | F102: -3.642587172e-05 | G102: 0.0001247042952 | H102: -1.120016484e-05 | J102: -0.000613732021 | K102: -0.006352228854 | L102: 0.002362535769 | M102: 0.02485867532 | N102: 4.191718426e-05
A103: =IF('DF raw data'!A108="","",'DF raw data'!A108) -> -279.5 | B103: =IF('DF raw data'!B108="","",'DF raw data'!B108) -> -3.26135e-05 | C103: =IF('DF raw data'!C108="","",'DF raw data'!C108) -> 0.000120731 | D103: =IF('DF raw data'!D108="","",'DF raw data'!D108) -> -1.02335e-05 | F103: -3.27569994e-05 | G103: 0.0001212622164 | H103: -1.02785274e-05 | J103: -0.0006301105207 | K103: -0.006667284115 | L103: 0.002423166877 | M103: 0.02607025875 | N103: 4.505157275e-05
A104: =IF('DF raw data'!A109="","",'DF raw data'!A109) -> -279 | B104: =IF('DF raw data'!B109="","",'DF raw data'!B109) -> -3.22295e-05 | C104: =IF('DF raw data'!C109="","",'DF raw data'!C109) -> 0.00012405 | D104: =IF('DF raw data'!D109="","",'DF raw data'!D109) -> -1.23995e-05 | F104: -3.23713098e-05 | G104: 0.00012459582 | H104: -1.24540578e-05 | J104: -0.0006462961756 | K104: -0.006990432202 | L104: 0.002485464787 | M104: 0.02731299115 | N104: 4.834918973e-05
A105: =IF('DF raw data'!A110="","",'DF raw data'!A110) -> -278.5 | B105: =IF('DF raw data'!B110="","",'DF raw data'!B110) -> -3.83066e-05 | C105: =IF('DF raw data'!C110="","",'DF raw data'!C110) -> 0.000119559 | D105: =IF('DF raw data'!D110="","",'DF raw data'!D110) -> -2.25692e-05 | F105: -3.847514904e-05 | G105: 0.0001200850596 | H105: -2.266850448e-05 | J105: -0.0006655337501 | K105: -0.007323199077 | L105: 0.002545507317 | M105: 0.02858574481 | N105: 5.181046107e-05
A106: =IF('DF raw data'!A111="","",'DF raw data'!A111) -> -278 | B106: =IF('DF raw data'!B111="","",'DF raw data'!B111) -> -2.81287e-05 | C106: =IF('DF raw data'!C111="","",'DF raw data'!C111) -> 0.000109069 | D106: =IF('DF raw data'!D111="","",'DF raw data'!D111) -> -1.32678e-05 | F106: -2.825246628e-05 | G106: 0.0001095489036 | H106: -1.332617832e-05 | J106: -0.0006796599832 | K106: -0.007663029069 | L106: 0.002600281769 | M106: 0.02988588569 | N106: 5.542216255e-05
A107: =IF('DF raw data'!A112="","",'DF raw data'!A112) -> -277.5 | B107: =IF('DF raw data'!B112="","",'DF raw data'!B112) -> -3.26684e-05 | C107: =IF('DF raw data'!C112="","",'DF raw data'!C112) -> 0.000104618 | D107: =IF('DF raw data'!D112="","",'DF raw data'!D112) -> -2.40967e-05 | F107: -3.281214096e-05 | G107: 0.0001050783192 | H107: -2.420272548e-05 | J107: -0.0006960660537 | K107: -0.008011062096 | L107: 0.002652820928 | M107: 0.03121229616 | N107: 5.918314597e-05
A108: =IF('DF raw data'!A113="","",'DF raw data'!A113) -> -277 | B108: =IF('DF raw data'!B113="","",'DF raw data'!B113) -> -2.55669e-05 | C108: =IF('DF raw data'!C113="","",'DF raw data'!C113) -> 0.000109922 | D108: =IF('DF raw data'!D113="","",'DF raw data'!D113) -> -1.24292e-05 | F108: -2.567939436e-05 | G108: 0.0001104056568 | H108: -1.248388848e-05 | J108: -0.0007089057509 | K108: -0.008365514971 | L108: 0.002708023757 | M108: 0.03256630803 | N108: 6.310111598e-05
A109: =IF('DF raw data'!A114="","",'DF raw data'!A114) -> -276.5 | B109: =IF('DF raw data'!B114="","",'DF raw data'!B114) -> -3.44101e-05 | C109: =IF('DF raw data'!C114="","",'DF raw data'!C114) -> 0.000108633 | D109: =IF('DF raw data'!D114="","",'DF raw data'!D114) -> -5.69055e-06 | F109: -3.456150444e-05 | G109: 0.0001091109852 | H109: -5.71558842e-06 | J109: -0.0007261865031 | K109: -0.008728608223 | L109: 0.002762579249 | M109: 0.03394759766 | N109: 6.718071146e-05
A110: =IF('DF raw data'!A115="","",'DF raw data'!A115) -> -276 | B110: =IF('DF raw data'!B115="","",'DF raw data'!B115) -> -3.19755e-05 | C110: =IF('DF raw data'!C115="","",'DF raw data'!C115) -> 0.000106835 | D110: =IF('DF raw data'!D115="","",'DF raw data'!D115) -> -8.70142e-06 | F110: -3.21161922e-05 | G110: 0.000107305074 | H110: -8.739706248e-06 | J110: -0.0007422445992 | K110: -0.009099730523 | L110: 0.002816231786 | M110: 0.03535571355 | N110: 7.142175572e-05
A111: =IF('DF raw data'!A116="","",'DF raw data'!A116) -> -275.5 | B111: =IF('DF raw data'!B116="","",'DF raw data'!B116) -> -2.96573e-05 | C111: =IF('DF raw data'!C116="","",'DF raw data'!C116) -> 0.000112129 | D111: =IF('DF raw data'!D116="","",'DF raw data'!D116) -> -2.47224e-05 | F111: -2.978779212e-05 | G111: 0.0001126223676 | H111: -2.483117856e-05 | J111: -0.0007571384953 | K111: -0.00947829977 | L111: 0.00287254297 | M111: 0.03679198504 | N111: 7.583413663e-05
A112: =IF('DF raw data'!A117="","",'DF raw data'!A117) -> -275 | B112: =IF('DF raw data'!B117="","",'DF raw data'!B117) -> -1.30096e-05 | C112: =IF('DF raw data'!C117="","",'DF raw data'!C117) -> 0.000111506 | D112: =IF('DF raw data'!D117="","",'DF raw data'!D117) -> -1.33828e-05 | F112: -1.306684224e-05 | G112: 0.0001119966264 | H112: -1.344168432e-05 | J112: -0.0007636719164 | K112: -0.009860135728 | L112: 0.002928541283 | M112: 0.03825625568 | N112: 8.041391105e-05
A113: =IF('DF raw data'!A118="","",'DF raw data'!A118) -> -274.5 | B113: =IF('DF raw data'!B118="","",'DF raw data'!B118) -> -3.09466e-05 | C113: =IF('DF raw data'!C118="","",'DF raw data'!C118) -> 0.000107792 | D113: =IF('DF raw data'!D118="","",'DF raw data'!D118) -> -1.24804e-05 | F113: -3.108276504e-05 | G113: 0.0001082662848 | H113: -1.253531376e-05 | J113: -0.0007792132989 | K113: -0.01024974238 | L113: 0.002982674426 | M113: 0.03974759289 | N113: 8.51656711e-05
A114: =IF('DF raw data'!A119="","",'DF raw data'!A119) -> -274 | B114: =IF('DF raw data'!B119="","",'DF raw data'!B119) -> -2.56883e-05 | C114: =IF('DF raw data'!C119="","",'DF raw data'!C119) -> 0.000111797 | D114: =IF('DF raw data'!D119="","",'DF raw data'!D119) -> -2.27483e-05 | F114: -2.580132852e-05 | G114: 0.0001122889068 | H114: -2.284839252e-05 | J114: -0.0007921139632 | K114: -0.01064579936 | L114: 0.003038818879 | M114: 0.04126700233 | N114: 9.009660345e-05
A115: =IF('DF raw data'!A120="","",'DF raw data'!A120) -> -273.5 | B115: =IF('DF raw data'!B120="","",'DF raw data'!B120) -> -2.64013e-05 | C115: =IF('DF raw data'!C120="","",'DF raw data'!C120) -> 0.000111059 | D115: =IF('DF raw data'!D120="","",'DF raw data'!D120) -> -7.57166e-06 | F115: -2.651746572e-05 | G115: 0.0001115476596 | H115: -7.604975304e-06 | J115: -0.000805372696 | K115: -0.01104848571 | L115: 0.003094592709 | M115: 0.04281429869 | N115: 9.520916806e-05
A116: =IF('DF raw data'!A121="","",'DF raw data'!A121) -> -273 | B116: =IF('DF raw data'!B121="","",'DF raw data'!B121) -> -3.09453e-05 | C116: =IF('DF raw data'!C121="","",'DF raw data'!C121) -> 0.00010995 | D116: =IF('DF raw data'!D121="","",'DF raw data'!D121) -> -1.69439e-05 | F116: -3.108145932e-05 | G116: 0.00011043378 | H116: -1.701845316e-05 | J116: -0.0008209134257 | K116: -0.01145894242 | L116: 0.003149809599 | M116: 0.04438920349 | N116: 0.0001005067677
A117: =IF('DF raw data'!A122="","",'DF raw data'!A122) -> -272.5 | B117: =IF('DF raw data'!B122="","",'DF raw data'!B122) -> -2.63292e-05 | C117: =IF('DF raw data'!C122="","",'DF raw data'!C122) -> 0.000107775 | D117: =IF('DF raw data'!D122="","",'DF raw data'!D122) -> -1.99433e-05 | F117: -2.644504848e-05 | G117: 0.00010824921 | H117: -2.003105052e-05 | J117: -0.0008341359499 | K117: -0.0118760104 | L117: 0.003203934204 | M117: 0.04599117059 | N117: 0.0001059872563
A118: =IF('DF raw data'!A123="","",'DF raw data'!A123) -> -272 | B118: =IF('DF raw data'!B123="","",'DF raw data'!B123) -> -3.37024e-05 | C118: =IF('DF raw data'!C123="","",'DF raw data'!C123) -> 9.80509e-05 | D118: =IF('DF raw data'!D123="","",'DF raw data'!D123) -> -1.34889e-05 | F118: -3.385069056e-05 | G118: 9.848232396e-05 | H118: -1.354825116e-05 | J118: -0.0008510612952 | K118: -0.01230154104 | L118: 0.003253175366 | M118: 0.04761775827 | N118: 0.000111640984
A119: =IF('DF raw data'!A124="","",'DF raw data'!A124) -> -271.5 | B119: =IF('DF raw data'!B124="","",'DF raw data'!B124) -> -3.42749e-05 | C119: =IF('DF raw data'!C124="","",'DF raw data'!C124) -> 9.72961e-05 | D119: =IF('DF raw data'!D124="","",'DF raw data'!D124) -> -1.62655e-05 | F119: -3.442570956e-05 | G119: 9.772420284e-05 | H119: -1.63370682e-05 | J119: -0.00086827415 | K119: -0.01273567812 | L119: 0.003302037467 | M119: 0.049268777 | N119: 0.0001174696597
A120: =IF('DF raw data'!A125="","",'DF raw data'!A125) -> -271 | B120: =IF('DF raw data'!B125="","",'DF raw data'!B125) -> -2.68433e-05 | C120: =IF('DF raw data'!C125="","",'DF raw data'!C125) -> 9.15883e-05 | D120: =IF('DF raw data'!D125="","",'DF raw data'!D125) -> -1.99949e-05 | F120: -2.696141052e-05 | G120: 9.199128852e-05 | H120: -2.008287756e-05 | J120: -0.0008817548553 | K120: -0.01317655555 | L120: 0.003348033112 | M120: 0.05094279356 | N120: 0.0001234630684
A121: =IF('DF raw data'!A126="","",'DF raw data'!A126) -> -270.5 | B121: =IF('DF raw data'!B126="","",'DF raw data'!B126) -> -3.39518e-05 | C121: =IF('DF raw data'!C126="","",'DF raw data'!C126) -> 9.6865e-05 | D121: =IF('DF raw data'!D126="","",'DF raw data'!D126) -> -2.07062e-05 | F121: -3.410118792e-05 | G121: 9.7291206e-05 | H121: -2.079730728e-05 | J121: -0.0008988054492 | K121: -0.01362595827 | L121: 0.003396678715 | M121: 0.05264113292 | N121: 0.0001296357071
A122: =IF('DF raw data'!A127="","",'DF raw data'!A127) -> -270 | B122: =IF('DF raw data'!B127="","",'DF raw data'!B127) -> -3.72249e-05 | C122: =IF('DF raw data'!C127="","",'DF raw data'!C127) -> 0.000101023 | D122: =IF('DF raw data'!D127="","",'DF raw data'!D127) -> -1.53286e-05 | F122: -3.738868956e-05 | G122: 0.0001014675012 | H122: -1.539604584e-05 | J122: -0.000917499794 | K122: -0.01408470817 | L122: 0.003447412465 | M122: 0.05436483915 | N122: 0.0001359989364
A123: =IF('DF raw data'!A128="","",'DF raw data'!A128) -> -269.5 | B123: =IF('DF raw data'!B128="","",'DF raw data'!B128) -> -2.42185e-05 | C123: =IF('DF raw data'!C128="","",'DF raw data'!C128) -> 0.000107311 | D123: =IF('DF raw data'!D128="","",'DF raw data'!D128) -> -1.46578e-05 | F123: -2.43250614e-05 | G123: 0.0001077831684 | H123: -1.472229432e-05 | J123: -0.0009296623247 | K123: -0.01454953933 | L123: 0.00350130405 | M123: 0.05611549117 | N123: 0.0001425606375
A124: =IF('DF raw data'!A129="","",'DF raw data'!A129) -> -269 | B124: =IF('DF raw data'!B129="","",'DF raw data'!B129) -> -3.01665e-05 | C124: =IF('DF raw data'!C129="","",'DF raw data'!C129) -> 0.000118296 | D124: =IF('DF raw data'!D129="","",'DF raw data'!D129) -> -3.28351e-05 | F124: -3.02992326e-05 | G124: 0.0001188165024 | H124: -3.297957444e-05 | J124: -0.000944811941 | K124: -0.0150219453 | L124: 0.003560712301 | M124: 0.05789584732 | N124: 0.0001493463083
A125: =IF('DF raw data'!A130="","",'DF raw data'!A130) -> -268.5 | B125: =IF('DF raw data'!B130="","",'DF raw data'!B130) -> -4.55409e-05 | C125: =IF('DF raw data'!C130="","",'DF raw data'!C130) -> 0.000105388 | D125: =IF('DF raw data'!D130="","",'DF raw data'!D130) -> -2.9327e-05 | F125: -4.574127996e-05 | G125: 0.0001058517072 | H125: -2.94560388e-05 | J125: -0.000967682581 | K125: -0.01550578659 | L125: 0.003613638154 | M125: 0.0597026664 | N125: 0.0001563437034
A126: =IF('DF raw data'!A131="","",'DF raw data'!A131) -> -268 | B126: =IF('DF raw data'!B131="","",'DF raw data'!B131) -> -4.25369e-05 | C126: =IF('DF raw data'!C131="","",'DF raw data'!C131) -> 0.000105363 | D126: =IF('DF raw data'!D131="","",'DF raw data'!D131) -> -2.34798e-05 | F126: -4.272406236e-05 | G126: 0.0001058265972 | H126: -2.358311112e-05 | J126: -0.0009890446122 | K126: -0.0160003089 | L126: 0.003666551453 | M126: 0.06153594213 | N126: 0.0001635546078
A127: =IF('DF raw data'!A132="","",'DF raw data'!A132) -> -267.5 | B127: =IF('DF raw data'!B132="","",'DF raw data'!B132) -> -2.35168e-05 | C127: =IF('DF raw data'!C132="","",'DF raw data'!C132) -> 0.000116276 | D127: =IF('DF raw data'!D132="","",'DF raw data'!D132) -> -9.90924e-06 | F127: -2.362027392e-05 | G127: 0.0001167876144 | H127: -9.952840656e-06 | J127: -0.001000854749 | K127: -0.01650073627 | L127: 0.00372494526 | M127: 0.06339841476 | N127: 0.0001709930716
A128: =IF('DF raw data'!A133="","",'DF raw data'!A133) -> -267 | B128: =IF('DF raw data'!B133="","",'DF raw data'!B133) -> -3.45292e-05 | C128: =IF('DF raw data'!C133="","",'DF raw data'!C133) -> 0.000120994 | D128: =IF('DF raw data'!D133="","",'DF raw data'!D133) -> -2.29447e-05 | F128: =(1-$G$1*($B$49-$G$2))*B128 -> -3.468112848e-05 | G128: 0.0001215263736 | H128: -2.304565668e-05 | J128: =F128*$G$3+J127 -> -0.001018195313 | K128: =J128*$G$3+K127 -> -0.01700983393 | L128: =G128*$G$3+L127 -> 0.003785708447 | M128: =L128*$G$3+M127 -> 0.06529126898 | N128: =(J128^2+L128^2)*$G$3+N127 -> 0.0001786772266
A129: =IF('DF raw data'!A134="","",'DF raw data'!A134) -> -266.5 | B129: =IF('DF raw data'!B134="","",'DF raw data'!B134) -> -2.47273e-05 | C129: =IF('DF raw data'!C134="","",'DF raw data'!C134) -> 0.000112374 | D129: =IF('DF raw data'!D134="","",'DF raw data'!D134) -> -2.04505e-05 | F129: -2.483610012e-05 | G129: 0.0001128684456 | H129: -2.05404822e-05 | J129: -0.001030613363 | K129: -0.01752514061 | L129: 0.00384214267 | M129: 0.06721234032 | N129: 0.0001865893387
A130: =IF('DF raw data'!A135="","",'DF raw data'!A135) -> -266 | B130: =IF('DF raw data'!B135="","",'DF raw data'!B135) -> -2.86346e-05 | C130: =IF('DF raw data'!C135="","",'DF raw data'!C135) -> 0.000112957 | D130: =IF('DF raw data'!D135="","",'DF raw data'!D135) -> -2.38189e-05 | F130: -2.876059224e-05 | G130: 0.0001134540108 | H130: -2.392370316e-05 | J130: -0.00104499366 | K130: -0.01804763744 | L130: 0.003898869675 | M130: 0.06916177515 | N130: 0.000194735937
A131: =IF('DF raw data'!A136="","",'DF raw data'!A136) -> -265.5 | B131: =IF('DF raw data'!B136="","",'DF raw data'!B136) -> -3.43992e-05 | C131: =IF('DF raw data'!C136="","",'DF raw data'!C136) -> 0.000112208 | D131: =IF('DF raw data'!D136="","",'DF raw data'!D136) -> -2.1992e-05 | F131: -3.455055648e-05 | G131: 0.0001127017152 | H131: -2.20887648e-05 | J131: -0.001062268938 | K131: -0.01857877191 | L131: 0.003955220533 | M131: 0.07113938542 | N131: 0.0002031220293
A132: =IF('DF raw data'!A137="","",'DF raw data'!A137) -> -265 | B132: =IF('DF raw data'!B137="","",'DF raw data'!B137) -> -3.27354e-05 | C132: =IF('DF raw data'!C137="","",'DF raw data'!C137) -> 0.000108572 | D132: =IF('DF raw data'!D137="","",'DF raw data'!D137) -> -2.28602e-05 | F132: -3.287943576e-05 | G132: 0.0001090497168 | H132: -2.296078488e-05 | J132: -0.001078708656 | K132: -0.01911812624 | L132: 0.004009745391 | M132: 0.07314425812 | N132: 0.0002117428646
A133: =IF('DF raw data'!A138="","",'DF raw data'!A138) -> -264.5 | B133: =IF('DF raw data'!B138="","",'DF raw data'!B138) -> -3.10726e-05 | C133: =IF('DF raw data'!C138="","",'DF raw data'!C138) -> 0.000106937 | D133: =IF('DF raw data'!D138="","",'DF raw data'!D138) -> -1.53399e-05 | F133: -3.120931944e-05 | G133: 0.0001074075228 | H133: -1.540739556e-05 | J133: -0.001094313315 | K133: -0.01966528289 | L133: 0.004063449153 | M133: 0.07517598269 | N133: 0.0002205974349
A134: =IF('DF raw data'!A139="","",'DF raw data'!A139) -> -264 | B134: =IF('DF raw data'!B139="","",'DF raw data'!B139) -> -2.74265e-05 | C134: =IF('DF raw data'!C139="","",'DF raw data'!C139) -> 0.000102121 | D134: =IF('DF raw data'!D139="","",'DF raw data'!D139) -> -1.00834e-05 | F134: -2.75471766e-05 | G134: 0.0001025703324 | H134: -1.012776696e-05 | J134: -0.001108086904 | K134: -0.02021932635 | L134: 0.004114734319 | M134: 0.07723334985 | N134: 0.0002296768825
A135: =IF('DF raw data'!A140="","",'DF raw data'!A140) -> -263.5 | B135: =IF('DF raw data'!B140="","",'DF raw data'!B140) -> -4.45268e-05 | C135: =IF('DF raw data'!C140="","",'DF raw data'!C140) -> 9.75119e-05 | D135: =IF('DF raw data'!D140="","",'DF raw data'!D140) -> -1.29789e-05 | F135: -4.472271792e-05 | G135: 9.794095236e-05 | H135: -1.303600716e-05 | J135: -0.001130448263 | K135: -0.02078455048 | L135: 0.004163704795 | M135: 0.07931520225 | N135: 0.0002389840579
A136: =IF('DF raw data'!A141="","",'DF raw data'!A141) -> -263 | B136: =IF('DF raw data'!B141="","",'DF raw data'!B141) -> -2.74895e-05 | C136: =IF('DF raw data'!C141="","",'DF raw data'!C141) -> 9.23784e-05 | D136: =IF('DF raw data'!D141="","",'DF raw data'!D141) -> -1.13621e-05 | F136: -2.76104538e-05 | G136: 9.278486496e-05 | H136: -1.141209324e-05 | J136: -0.00114425349 | K136: -0.02135667722 | L136: 0.004210097227 | M136: 0.08142025086 | N136: 0.0002485011753
A137: =IF('DF raw data'!A142="","",'DF raw data'!A142) -> -262.5 | B137: =IF('DF raw data'!B142="","",'DF raw data'!B142) -> -2.9155e-05 | C137: =IF('DF raw data'!C142="","",'DF raw data'!C142) -> 8.78559e-05 | D137: =IF('DF raw data'!D142="","",'DF raw data'!D142) -> -8.75983e-06 | F137: -2.9283282e-05 | G137: 8.824246596e-05 | H137: -8.798373252e-06 | J137: -0.001158895131 | K137: -0.02193612479 | L137: 0.00425421846 | M137: 0.08354736009 | N137: 0.0002582218816
A138: =IF('DF raw data'!A143="","",'DF raw data'!A143) -> -262 | B138: =IF('DF raw data'!B143="","",'DF raw data'!B143) -> -3.69655e-05 | C138: =IF('DF raw data'!C143="","",'DF raw data'!C143) -> 8.60428e-05 | D138: =IF('DF raw data'!D143="","",'DF raw data'!D143) -> -2.00188e-05 | F138: -3.71281482e-05 | G138: 8.642138832e-05 | H138: -2.010688272e-05 | J138: -0.001177459205 | K138: -0.02252485439 | L138: 0.004297429155 | M138: 0.08569607467 | N138: 0.0002681490353
A139: =IF('DF raw data'!A144="","",'DF raw data'!A144) -> -261.5 | B139: =IF('DF raw data'!B144="","",'DF raw data'!B144) -> -3.18412e-05 | C139: =IF('DF raw data'!C144="","",'DF raw data'!C144) -> 8.21085e-05 | D139: =IF('DF raw data'!D144="","",'DF raw data'!D144) -> -1.56868e-05 | F139: -3.198130128e-05 | G139: 8.24697774e-05 | H139: -1.575582192e-05 | J139: -0.001193449855 | K139: -0.02312157932 | L139: 0.004338664043 | M139: 0.08786540669 | N139: 0.0002782731995
A140: =IF('DF raw data'!A145="","",'DF raw data'!A145) -> -261 | B140: =IF('DF raw data'!B145="","",'DF raw data'!B145) -> -2.40945e-05 | C140: =IF('DF raw data'!C145="","",'DF raw data'!C145) -> 8.40584e-05 | D140: =IF('DF raw data'!D145="","",'DF raw data'!D145) -> -1.07064e-05 | F140: -2.42005158e-05 | G140: 8.442825696e-05 | H140: -1.075350816e-05 | J140: -0.001205550113 | K140: -0.02372435437 | L140: 0.004380878172 | M140: 0.09005584578 | N140: 0.0002885959218
A141: =IF('DF raw data'!A146="","",'DF raw data'!A146) -> -260.5 | B141: =IF('DF raw data'!B146="","",'DF raw data'!B146) -> -3.50433e-05 | C141: =IF('DF raw data'!C146="","",'DF raw data'!C146) -> 9.15922e-05 | D141: =IF('DF raw data'!D146="","",'DF raw data'!D146) -> -1.68494e-05 | F141: -3.519749052e-05 | G141: 9.199520568e-05 | H141: -1.692353736e-05 | J141: -0.001223148858 | K141: -0.0243359288 | L141: 0.004426875775 | M141: 0.09226928367 | N141: 0.0002991425829
A142: =IF('DF raw data'!A147="","",'DF raw data'!A147) -> -260 | B142: =IF('DF raw data'!B147="","",'DF raw data'!B147) -> -2.44084e-05 | C142: =IF('DF raw data'!C147="","",'DF raw data'!C147) -> 9.1877e-05 | D142: =IF('DF raw data'!D147="","",'DF raw data'!D147) -> -2.09551e-05 | F142: -2.451579696e-05 | G142: 9.22812588e-05 | H142: -2.104730244e-05 | J142: -0.001235406757 | K142: -0.02495363218 | L142: 0.004473016404 | M142: 0.09450579187 | N142: 0.0003099096357
A143: =IF('DF raw data'!A148="","",'DF raw data'!A148) -> -259.5 | B143: =IF('DF raw data'!B148="","",'DF raw data'!B148) -> -3.04337e-05 | C143: =IF('DF raw data'!C148="","",'DF raw data'!C148) -> 9.43152e-05 | D143: =IF('DF raw data'!D148="","",'DF raw data'!D148) -> -1.30156e-05 | F143: -3.056760828e-05 | G143: 9.473018688e-05 | H143: -1.307286864e-05 | J143: -0.001250690561 | K143: -0.02557897746 | L143: 0.004520381497 | M143: 0.09676598262 | N143: 0.0003209086736
A144: =IF('DF raw data'!A149="","",'DF raw data'!A149) -> -259 | B144: =IF('DF raw data'!B149="","",'DF raw data'!B149) -> -2.20471e-05 | C144: =IF('DF raw data'!C149="","",'DF raw data'!C149) -> 0.000103 | D144: =IF('DF raw data'!D149="","",'DF raw data'!D149) -> -6.87685e-06 | F144: -2.214410724e-05 | G144: 0.0001034532 | H144: -6.90710814e-06 | J144: -0.001261762615 | K144: -0.02620985877 | L144: 0.004572108097 | M144: 0.09905203666 | N144: 0.0003321567823
A145: =IF('DF raw data'!A150="","",'DF raw data'!A150) -> -258.5 | B145: =IF('DF raw data'!B150="","",'DF raw data'!B150) -> -3.40858e-05 | C145: =IF('DF raw data'!C150="","",'DF raw data'!C150) -> 8.86768e-05 | D145: =IF('DF raw data'!D150="","",'DF raw data'!D150) -> -1.17967e-05 | F145: -3.423577752e-05 | G145: 8.906697792e-05 | H145: -1.184860548e-05 | J145: -0.001278880503 | K145: -0.02684929902 | L145: 0.004616641586 | M145: 0.1013603575 | N145: 0.0003436312397
A146: =IF('DF raw data'!A151="","",'DF raw data'!A151) -> -258 | B146: =IF('DF raw data'!B151="","",'DF raw data'!B151) -> -2.23622e-05 | C146: =IF('DF raw data'!C151="","",'DF raw data'!C151) -> 9.59475e-05 | D146: =IF('DF raw data'!D151="","",'DF raw data'!D151) -> -1.48682e-05 | F146: -2.246059368e-05 | G146: 9.6369669e-05 | H146: -1.493362008e-05 | J146: -0.0012901108 | K146: -0.02749435442 | L146: 0.004664826421 | M146: 0.1036927707 | N146: 0.0003553437354
A147: =IF('DF raw data'!A152="","",'DF raw data'!A152) -> -257.5 | B147: =IF('DF raw data'!B152="","",'DF raw data'!B152) -> -3.15149e-05 | C147: =IF('DF raw data'!C152="","",'DF raw data'!C152) -> 9.01508e-05 | D147: =IF('DF raw data'!D152="","",'DF raw data'!D152) -> -2.47127e-05 | F147: -3.165356556e-05 | G147: 9.054746352e-05 | H147: -2.482143588e-05 | J147: -0.001305937583 | K147: -0.02814732321 | L147: 0.004710100153 | M147: 0.1060478207 | N147: 0.0003672889936
A148: =IF('DF raw data'!A153="","",'DF raw data'!A153) -> -257 | B148: =IF('DF raw data'!B153="","",'DF raw data'!B153) -> -2.9281e-05 | C148: =IF('DF raw data'!C153="","",'DF raw data'!C153) -> 8.82451e-05 | D148: =IF('DF raw data'!D153="","",'DF raw data'!D153) -> -1.51713e-05 | F148: -2.94098364e-05 | G148: 8.863337844e-05 | H148: -1.523805372e-05 | J148: -0.001320642501 | K148: -0.02880764446 | L148: 0.004754416842 | M148: 0.1084250292 | N148: 0.0003794632817
A149: =IF('DF raw data'!A154="","",'DF raw data'!A154) -> -256.5 | B149: =IF('DF raw data'!B154="","",'DF raw data'!B154) -> -2.94064e-05 | C149: =IF('DF raw data'!C154="","",'DF raw data'!C154) -> 9.62585e-05 | D149: =IF('DF raw data'!D154="","",'DF raw data'!D154) -> -1.59084e-05 | F149: -2.953578816e-05 | G149: 9.66820374e-05 | H149: -1.597839696e-05 | J149: -0.001335410395 | K149: -0.02947534966 | L149: 0.004802757861 | M149: 0.1108264081 | N149: 0.0003918881837
A150: =IF('DF raw data'!A155="","",'DF raw data'!A155) -> -256 | B150: =IF('DF raw data'!B155="","",'DF raw data'!B155) -> -2.72267e-05 | C150: =IF('DF raw data'!C155="","",'DF raw data'!C155) -> 9.99847e-05 | D150: =IF('DF raw data'!D155="","",'DF raw data'!D155) -> -2.19393e-05 | F150: -2.734649748e-05 | G150: 0.0001004246327 | H150: -2.203583292e-05 | J150: -0.001349083644 | K150: -0.03014989148 | L150: 0.004852970177 | M150: 0.1132528932 | N150: 0.0004045738568
A151: =IF('DF raw data'!A156="","",'DF raw data'!A156) -> -255.5 | B151: =IF('DF raw data'!B156="","",'DF raw data'!B156) -> -2.98512e-05 | C151: =IF('DF raw data'!C156="","",'DF raw data'!C156) -> 0.000100658 | D151: =IF('DF raw data'!D156="","",'DF raw data'!D156) -> -2.16074e-05 | F151: -2.998254528e-05 | G151: 0.0001011008952 | H151: -2.170247256e-05 | J151: -0.001364074917 | K151: -0.03083192894 | L151: 0.004903520624 | M151: 0.1157046535 | N151: 0.0004175264642
A152: =IF('DF raw data'!A157="","",'DF raw data'!A157) -> -255 | B152: =IF('DF raw data'!B157="","",'DF raw data'!B157) -> -2.30656e-05 | C152: =IF('DF raw data'!C157="","",'DF raw data'!C157) -> 9.57442e-05 | D152: =IF('DF raw data'!D157="","",'DF raw data'!D157) -> -1.7309e-05 | F152: -2.316708864e-05 | G152: 9.616547448e-05 | H152: -1.73851596e-05 | J152: -0.001375658461 | K152: -0.03151975817 | L152: 0.004951603362 | M152: 0.1181804552 | N152: 0.0004307318702
A153: =IF('DF raw data'!A158="","",'DF raw data'!A158) -> -254.5 | B153: =IF('DF raw data'!B158="","",'DF raw data'!B158) -> -3.35019e-05 | C153: =IF('DF raw data'!C158="","",'DF raw data'!C158) -> 9.51854e-05 | D153: =IF('DF raw data'!D158="","",'DF raw data'!D158) -> -2.25699e-05 | F153: -3.364930836e-05 | G153: 9.560421576e-05 | H153: -2.266920756e-05 | J153: -0.001392483115 | K153: -0.03221599973 | L153: 0.00499940547 | M153: 0.1206801579 | N153: 0.0004441984024
A154: =IF('DF raw data'!A159="","",'DF raw data'!A159) -> -254 | B154: =IF('DF raw data'!B159="","",'DF raw data'!B159) -> -3.33747e-05 | C154: =IF('DF raw data'!C159="","",'DF raw data'!C159) -> 9.69934e-05 | D154: =IF('DF raw data'!D159="","",'DF raw data'!D159) -> -2.54235e-05 | F154: -3.352154868e-05 | G154: 9.742017096e-05 | H154: -2.55353634e-05 | J154: -0.00140924389 | K154: -0.03292062167 | L154: 0.005048115555 | M154: 0.1232042157 | N154: 0.0004579331219
A155: =IF('DF raw data'!A160="","",'DF raw data'!A160) -> -253.5 | B155: =IF('DF raw data'!B160="","",'DF raw data'!B160) -> -3.32486e-05 | C155: =IF('DF raw data'!C160="","",'DF raw data'!C160) -> 9.62292e-05 | D155: =IF('DF raw data'!D160="","",'DF raw data'!D160) -> -1.79473e-05 | F155: -3.339489384e-05 | G155: 9.665260848e-05 | H155: -1.802626812e-05 | J155: -0.001425941336 | K155: -0.03363359234 | L155: 0.005096441859 | M155: 0.1257524366 | N155: 0.000471936636
A156: =IF('DF raw data'!A161="","",'DF raw data'!A161) -> -253 | B156: =IF('DF raw data'!B161="","",'DF raw data'!B161) -> -2.74209e-05 | C156: =IF('DF raw data'!C161="","",'DF raw data'!C161) -> 0.000102697 | D156: =IF('DF raw data'!D161="","",'DF raw data'!D161) -> -1.90527e-05 | F156: -2.754155196e-05 | G156: 0.0001031488668 | H156: -1.913653188e-05 | J156: -0.001439712112 | K156: -0.0343534484 | L156: 0.005148016293 | M156: 0.1283264448 | N156: 0.0004862240574
A157: =IF('DF raw data'!A162="","",'DF raw data'!A162) -> -252.5 | B157: =IF('DF raw data'!B162="","",'DF raw data'!B162) -> -3.54229e-05 | C157: =IF('DF raw data'!C162="","",'DF raw data'!C162) -> 9.87059e-05 | D157: =IF('DF raw data'!D162="","",'DF raw data'!D162) -> -2.35072e-05 | F157: -3.557876076e-05 | G157: 9.914020596e-05 | H157: -2.361063168e-05 | J157: -0.001457501493 | K157: -0.03508219914 | L157: 0.005197586396 | M157: 0.130925238 | N157: 0.0005007936649
A158: =IF('DF raw data'!A163="","",'DF raw data'!A163) -> -252 | B158: =IF('DF raw data'!B163="","",'DF raw data'!B163) -> -2.37025e-05 | C158: =IF('DF raw data'!C163="","",'DF raw data'!C163) -> 8.7314e-05 | D158: =IF('DF raw data'!D163="","",'DF raw data'!D163) -> -2.3186e-05 | F158: -2.3806791e-05 | G158: 8.76981816e-05 | H158: -2.32880184e-05 | J158: -0.001469404888 | K158: -0.03581690159 | L158: 0.005241435486 | M158: 0.1335459557 | N158: 0.0005156095632
A159: =IF('DF raw data'!A164="","",'DF raw data'!A164) -> -251.5 | B159: =IF('DF raw data'!B164="","",'DF raw data'!B164) -> -2.87026e-05 | C159: =IF('DF raw data'!C164="","",'DF raw data'!C164) -> 9.07311e-05 | D159: =IF('DF raw data'!D164="","",'DF raw data'!D164) -> -1.46999e-05 | F159: -2.882889144e-05 | G159: 9.113031684e-05 | H159: -1.476457956e-05 | J159: -0.001483819334 | K159: -0.03655881126 | L159: 0.005287000645 | M159: 0.136189456 | N159: 0.000530686611
A160: =IF('DF raw data'!A165="","",'DF raw data'!A165) -> -251 | B160: =IF('DF raw data'!B165="","",'DF raw data'!B165) -> -2.44716e-05 | C160: =IF('DF raw data'!C165="","",'DF raw data'!C165) -> 9.22583e-05 | D160: =IF('DF raw data'!D165="","",'DF raw data'!D165) -> -2.25158e-05 | F160: -2.457927504e-05 | G160: 9.266423652e-05 | H160: -2.261486952e-05 | J160: -0.001496108972 | K160: -0.03730686574 | L160: 0.005333332763 | M160: 0.1388561224 | N160: 0.0005460280012
A161: =IF('DF raw data'!A166="","",'DF raw data'!A166) -> -250.5 | B161: =IF('DF raw data'!B166="","",'DF raw data'!B166) -> -1.89603e-05 | C161: =IF('DF raw data'!C166="","",'DF raw data'!C166) -> 9.32292e-05 | D161: =IF('DF raw data'!D166="","",'DF raw data'!D166) -> -2.27818e-05 | F161: -1.904372532e-05 | G161: 9.363940848e-05 | H161: -2.288203992e-05 | J161: -0.001505630834 | K161: -0.03805968116 | L161: 0.005380152467 | M161: 0.1415461986 | N161: 0.0005616344836
A162: =IF('DF raw data'!A167="","",'DF raw data'!A167) -> -250 | B162: =IF('DF raw data'!B167="","",'DF raw data'!B167) -> -3.30498e-05 | C162: =IF('DF raw data'!C167="","",'DF raw data'!C167) -> 9.40385e-05 | D162: =IF('DF raw data'!D167="","",'DF raw data'!D167) -> -3.26655e-05 | F162: -3.319521912e-05 | G162: 9.44522694e-05 | H162: -3.28092282e-05 | J162: -0.001522228444 | K162: -0.03882079538 | L162: 0.005427378602 | M162: 0.1442598879 | N162: 0.0005775212926
A163: =IF('DF raw data'!A168="","",'DF raw data'!A168) -> -249.5 | B163: =IF('DF raw data'!B168="","",'DF raw data'!B168) -> -2.23518e-05 | C163: =IF('DF raw data'!C168="","",'DF raw data'!C168) -> 9.72207e-05 | D163: =IF('DF raw data'!D168="","",'DF raw data'!D168) -> -2.83183e-05 | F163: -2.245014792e-05 | G163: 9.764847108e-05 | H163: -2.844290052e-05 | J163: -0.001533453518 | K163: -0.03958752214 | L163: 0.005476202838 | M163: 0.1469979894 | N163: 0.0005936914312
A164: =IF('DF raw data'!A169="","",'DF raw data'!A169) -> -249 | B164: =IF('DF raw data'!B169="","",'DF raw data'!B169) -> -3.31823e-05 | C164: =IF('DF raw data'!C169="","",'DF raw data'!C169) -> 9.74244e-05 | D164: =IF('DF raw data'!D169="","",'DF raw data'!D169) -> -2.60283e-05 | F164: -3.332830212e-05 | G164: 9.785306736e-05 | H164: -2.614282452e-05 | J164: -0.001550117669 | K164: -0.04036258097 | L164: 0.005525129371 | M164: 0.149760554 | N164: 0.0006101563909
A165: =IF('DF raw data'!A170="","",'DF raw data'!A170) -> -248.5 | B165: =IF('DF raw data'!B170="","",'DF raw data'!B170) -> -2.67791e-05 | C165: =IF('DF raw data'!C170="","",'DF raw data'!C170) -> 0.000100514 | D165: =IF('DF raw data'!D170="","",'DF raw data'!D170) -> -1.7184e-05 | F165: -2.689692804e-05 | G165: 0.0001009562616 | H165: -1.72596096e-05 | J165: -0.001563566133 | K165: -0.04114436404 | L165: 0.005575607502 | M165: 0.1525483578 | N165: 0.0006269224599
A166: =IF('DF raw data'!A171="","",'DF raw data'!A171) -> -248 | B166: =IF('DF raw data'!B171="","",'DF raw data'!B171) -> -3.43407e-05 | C166: =IF('DF raw data'!C171="","",'DF raw data'!C171) -> 0.000102665 | D166: =IF('DF raw data'!D171="","",'DF raw data'!D171) -> -1.76757e-05 | F166: -3.449179908e-05 | G166: 0.000103116726 | H166: -1.775347308e-05 | J166: -0.001580812032 | K166: -0.04193477006 | L166: 0.005627165865 | M166: 0.1553619407 | N166: 0.0006440044411
A167: =IF('DF raw data'!A172="","",'DF raw data'!A172) -> -247.5 | B167: =IF('DF raw data'!B172="","",'DF raw data'!B172) -> -4.01639e-05 | C167: =IF('DF raw data'!C172="","",'DF raw data'!C172) -> 9.70617e-05 | D167: =IF('DF raw data'!D172="","",'DF raw data'!D172) -> -2.32319e-05 | F167: -4.034062116e-05 | G167: 9.748877148e-05 | H167: -2.333412036e-05 | J167: -0.001600982343 | K167: -0.04273526123 | L167: 0.005675910251 | M167: 0.1581998959 | N167: 0.0006613939919
A168: =IF('DF raw data'!A173="","",'DF raw data'!A173) -> -247 | B168: =IF('DF raw data'!B173="","",'DF raw data'!B173) -> -2.50518e-05 | C168: =IF('DF raw data'!C173="","",'DF raw data'!C173) -> 9.96677e-05 | D168: =IF('DF raw data'!D173="","",'DF raw data'!D173) -> -1.67989e-05 | F168: -2.516202792e-05 | G168: 0.0001001062379 | H168: -1.687281516e-05 | J168: -0.001613563357 | K168: -0.04354204291 | L168: 0.00572596337 | M168: 0.1610628775 | N168: 0.0006790891135
A169: =IF('DF raw data'!A174="","",'DF raw data'!A174) -> -246.5 | B169: =IF('DF raw data'!B174="","",'DF raw data'!B174) -> -2.9468e-05 | C169: =IF('DF raw data'!C174="","",'DF raw data'!C174) -> 9.40447e-05 | D169: =IF('DF raw data'!D174="","",'DF raw data'!D174) -> -2.01055e-05 | F169: -2.95976592e-05 | G169: 9.445849668e-05 | H169: -2.01939642e-05 | J169: -0.001628362187 | K169: -0.044356224 | L169: 0.005773192618 | M169: 0.1639494739 | N169: 0.0006970797717
A170: =IF('DF raw data'!A175="","",'DF raw data'!A175) -> -246 | B170: =IF('DF raw data'!B175="","",'DF raw data'!B175) -> -3.40198e-05 | C170: =IF('DF raw data'!C175="","",'DF raw data'!C175) -> 8.85855e-05 | D170: =IF('DF raw data'!D175="","",'DF raw data'!D175) -> -1.82828e-05 | F170: -3.416948712e-05 | G170: 8.89752762e-05 | H170: -1.836324432e-05 | J170: -0.00164544693 | K170: -0.04517894747 | L170: 0.005817680256 | M170: 0.166858314 | N170: 0.0007153562213
A171: =IF('DF raw data'!A176="","",'DF raw data'!A176) -> -245.5 | B171: =IF('DF raw data'!B176="","",'DF raw data'!B176) -> -5.06626e-05 | C171: =IF('DF raw data'!C176="","",'DF raw data'!C176) -> 8.62707e-05 | D171: =IF('DF raw data'!D176="","",'DF raw data'!D176) -> -3.40896e-05 | F171: -5.088551544e-05 | G171: 8.665029108e-05 | H171: -3.423959424e-05 | J171: -0.001670889688 | K171: -0.04601439231 | L171: 0.005861005402 | M171: 0.1697888167 | N171: 0.0007339278496
A172: =IF('DF raw data'!A177="","",'DF raw data'!A177) -> -245 | B172: =IF('DF raw data'!B177="","",'DF raw data'!B177) -> -3.28017e-05 | C172: =IF('DF raw data'!C177="","",'DF raw data'!C177) -> 8.73285e-05 | D172: =IF('DF raw data'!D177="","",'DF raw data'!D177) -> -1.98371e-05 | F172: -3.294602748e-05 | G172: 8.77127454e-05 | H172: -1.992438324e-05 | J172: -0.001687362702 | K172: -0.04685807366 | L172: 0.005904861774 | M172: 0.1727412476 | N172: 0.0007527851424
A173: =IF('DF raw data'!A178="","",'DF raw data'!A178) -> -244.5 | B173: =IF('DF raw data'!B178="","",'DF raw data'!B178) -> -4.02917e-05 | C173: =IF('DF raw data'!C178="","",'DF raw data'!C178) -> 8.80414e-05 | D173: =IF('DF raw data'!D178="","",'DF raw data'!D178) -> -2.35067e-05 | F173: -4.046898348e-05 | G173: 8.842878216e-05 | H173: -2.361012948e-05 | J173: -0.001707597193 | K173: -0.04771187226 | L173: 0.005949076166 | M173: 0.1757157857 | N173: 0.0007719388401
A174: =IF('DF raw data'!A179="","",'DF raw data'!A179) -> -244 | B174: =IF('DF raw data'!B179="","",'DF raw data'!B179) -> -4.11876e-05 | C174: =IF('DF raw data'!C179="","",'DF raw data'!C179) -> 8.90686e-05 | D174: =IF('DF raw data'!D179="","",'DF raw data'!D179) -> -2.97187e-05 | F174: -4.136882544e-05 | G174: 8.946050184e-05 | H174: -2.984946228e-05 | J174: -0.001728281606 | K174: -0.04857601306 | L174: 0.005993806416 | M174: 0.1787126889 | N174: 0.0007913951764
A175: =IF('DF raw data'!A180="","",'DF raw data'!A180) -> -243.5 | B175: =IF('DF raw data'!B180="","",'DF raw data'!B180) -> -3.73546e-05 | C175: =IF('DF raw data'!C180="","",'DF raw data'!C180) -> 8.75651e-05 | D175: =IF('DF raw data'!D180="","",'DF raw data'!D180) -> -8.55321e-06 | F175: -3.751896024e-05 | G175: 8.795038644e-05 | H175: -8.590844124e-06 | J175: -0.001747041086 | K175: -0.0494495336 | L175: 0.00603778161 | M175: 0.1817315797 | N175: 0.0008111486561
A176: =IF('DF raw data'!A181="","",'DF raw data'!A181) -> -243 | B176: =IF('DF raw data'!B181="","",'DF raw data'!B181) -> -3.91417e-05 | C176: =IF('DF raw data'!C181="","",'DF raw data'!C181) -> 8.48006e-05 | D176: =IF('DF raw data'!D181="","",'DF raw data'!D181) -> -2.37513e-05 | F176: -3.931392348e-05 | G176: 8.517372264e-05 | H176: -2.385580572e-05 | J176: -0.001766698048 | K176: -0.05033288263 | L176: 0.006080368471 | M176: 0.1847717639 | N176: 0.0008311947074
A177: =IF('DF raw data'!A182="","",'DF raw data'!A182) -> -242.5 | B177: =IF('DF raw data'!B182="","",'DF raw data'!B182) -> -3.38197e-05 | C177: =IF('DF raw data'!C182="","",'DF raw data'!C182) -> 7.65044e-05 | D177: =IF('DF raw data'!D182="","",'DF raw data'!D182) -> -2.67663e-05 | F177: -3.396850668e-05 | G177: 7.684101936e-05 | H177: -2.688407172e-05 | J177: -0.001783682301 | K177: -0.05122472378 | L177: 0.006118788981 | M177: 0.1878311584 | N177: 0.000851505258
A178: =IF('DF raw data'!A183="","",'DF raw data'!A183) -> -242 | B178: =IF('DF raw data'!B183="","",'DF raw data'!B183) -> -3.62583e-05 | C178: =IF('DF raw data'!C183="","",'DF raw data'!C183) -> 8.52273e-05 | D178: =IF('DF raw data'!D183="","",'DF raw data'!D183) -> -2.4588e-05 | F178: -3.641783652e-05 | G178: 8.560230012e-05 | H178: -2.46961872e-05 | J178: -0.001801891219 | K178: -0.05212566939 | L178: 0.006161590131 | M178: 0.1909119535 | N178: 0.0008721112605
A179: =IF('DF raw data'!A184="","",'DF raw data'!A184) -> -241.5 | B179: =IF('DF raw data'!B184="","",'DF raw data'!B184) -> -1.77417e-05 | C179: =IF('DF raw data'!C184="","",'DF raw data'!C184) -> 0.000102444 | D179: =IF('DF raw data'!D184="","",'DF raw data'!D184) -> -2.47572e-05 | F179: -1.781976348e-05 | G179: 0.0001028947536 | H179: -2.486613168e-05 | J179: -0.001810801101 | K179: -0.05303106994 | L179: 0.006213037508 | M179: 0.1940184722 | N179: 0.0008930516783
A180: =IF('DF raw data'!A185="","",'DF raw data'!A185) -> -241 | B180: =IF('DF raw data'!B185="","",'DF raw data'!B185) -> -2.50415e-05 | C180: =IF('DF raw data'!C185="","",'DF raw data'!C185) -> 0.000103706 | D180: =IF('DF raw data'!D185="","",'DF raw data'!D185) -> -3.32413e-05 | F180: -2.51516826e-05 | G180: 0.0001041623064 | H180: -3.338756172e-05 | J180: -0.001823376942 | K180: -0.05394275841 | L180: 0.006265118661 | M180: 0.1971510315 | N180: 0.000914339886
A181: =IF('DF raw data'!A186="","",'DF raw data'!A186) -> -240.5 | B181: =IF('DF raw data'!B186="","",'DF raw data'!B186) -> -4.22727e-05 | C181: =IF('DF raw data'!C186="","",'DF raw data'!C186) -> 9.98107e-05 | D181: =IF('DF raw data'!D186="","",'DF raw data'!D186) -> -3.06558e-05 | F181: -4.245869988e-05 | G181: 0.0001002498671 | H181: -3.079068552e-05 | J181: -0.001844606292 | K181: -0.05486506155 | L181: 0.006315243594 | M181: 0.2003086533 | N181: 0.000935982323
A182: =IF('DF raw data'!A187="","",'DF raw data'!A187) -> -240 | B182: =IF('DF raw data'!B187="","",'DF raw data'!B187) -> -3.05517e-05 | C182: =IF('DF raw data'!C187="","",'DF raw data'!C187) -> 9.55273e-05 | D182: =IF('DF raw data'!D187="","",'DF raw data'!D187) -> -3.23633e-05 | F182: -3.068612748e-05 | G182: 9.594762012e-05 | H182: -3.250569852e-05 | J182: -0.001859949356 | K182: -0.05579503623 | L182: 0.006363217404 | M182: 0.203490262 | N182: 0.0009579572966
A183: =IF('DF raw data'!A188="","",'DF raw data'!A188) -> -239.5 | B183: =IF('DF raw data'!B188="","",'DF raw data'!B188) -> -2.81168e-05 | C183: =IF('DF raw data'!C188="","",'DF raw data'!C188) -> 9.83179e-05 | D183: =IF('DF raw data'!D188="","",'DF raw data'!D188) -> -2.85082e-05 | F183: -2.824051392e-05 | G183: 9.875049876e-05 | H183: -2.863363608e-05 | J183: -0.001874069613 | K183: -0.05673207104 | L183: 0.006412592654 | M183: 0.2066965584 | N183: 0.0009802740374
A184: =IF('DF raw data'!A189="","",'DF raw data'!A189) -> -239 | B184: =IF('DF raw data'!B189="","",'DF raw data'!B189) -> -3.89523e-05 | C184: =IF('DF raw data'!C189="","",'DF raw data'!C189) -> 9.46007e-05 | D184: =IF('DF raw data'!D189="","",'DF raw data'!D189) -> -2.00608e-05 | F184: -3.912369012e-05 | G184: 9.501694308e-05 | H184: -2.014906752e-05 | J184: -0.001893631458 | K184: -0.05767888677 | L184: 0.006460101125 | M184: 0.2099266089 | N184: 0.001002933411
A185: =IF('DF raw data'!A190="","",'DF raw data'!A190) -> -238.5 | B185: =IF('DF raw data'!B190="","",'DF raw data'!B190) -> -4.00383e-05 | C185: =IF('DF raw data'!C190="","",'DF raw data'!C190) -> 0.000102887 | D185: =IF('DF raw data'!D190="","",'DF raw data'!D190) -> -1.83838e-05 | F185: -4.021446852e-05 | G185: 0.0001033397028 | H185: -1.846468872e-05 | J185: -0.001913738692 | K185: -0.05863575611 | L185: 0.006511770977 | M185: 0.2131824944 | N185: 0.001025966189
A186: =IF('DF raw data'!A191="","",'DF raw data'!A191) -> -238 | B186: =IF('DF raw data'!B191="","",'DF raw data'!B191) -> -3.94643e-05 | C186: =IF('DF raw data'!C191="","",'DF raw data'!C191) -> 9.72372e-05 | D186: =IF('DF raw data'!D191="","",'DF raw data'!D191) -> -2.08942e-05 | F186: -3.963794292e-05 | G186: 9.766504368e-05 | H186: -2.098613448e-05 | J186: -0.001933557664 | K186: -0.05960253495 | L186: 0.006560603499 | M186: 0.2164627962 | N186: 0.001049356271
A187: =IF('DF raw data'!A192="","",'DF raw data'!A192) -> -237.5 | B187: =IF('DF raw data'!B192="","",'DF raw data'!B192) -> -2.97873e-05 | C187: =IF('DF raw data'!C192="","",'DF raw data'!C192) -> 0.000104345 | D187: =IF('DF raw data'!D192="","",'DF raw data'!D192) -> -2.07515e-05 | F187: -2.991836412e-05 | G187: 0.000104804118 | H187: -2.08428066e-05 | J187: -0.001948516846 | K187: -0.06057679337 | L187: 0.006613005558 | M187: 0.2197692989 | N187: 0.001073120551
A188: =IF('DF raw data'!A193="","",'DF raw data'!A193) -> -237 | B188: =IF('DF raw data'!B193="","",'DF raw data'!B193) -> -3.60043e-05 | C188: =IF('DF raw data'!C193="","",'DF raw data'!C193) -> 9.84138e-05 | D188: =IF('DF raw data'!D193="","",'DF raw data'!D193) -> -2.14514e-05 | F188: -3.616271892e-05 | G188: 9.884682072e-05 | H188: -2.154578616e-05 | J188: -0.001966598205 | K188: -0.06156009247 | L188: 0.006662428968 | M188: 0.2231005134 | N188: 0.001097248285
A189: =IF('DF raw data'!A194="","",'DF raw data'!A194) -> -236.5 | B189: =IF('DF raw data'!B194="","",'DF raw data'!B194) -> -2.69667e-05 | C189: =IF('DF raw data'!C194="","",'DF raw data'!C194) -> 9.08289e-05 | D189: =IF('DF raw data'!D194="","",'DF raw data'!D194) -> -2.40539e-05 | F189: -2.708535348e-05 | G189: 9.122854716e-05 | H189: -2.415973716e-05 | J189: -0.001980140882 | K189: -0.06255016291 | L189: 0.006708043241 | M189: 0.2264545351 | N189: 0.001121707686
A190: =IF('DF raw data'!A195="","",'DF raw data'!A195) -> -236 | B190: =IF('DF raw data'!B195="","",'DF raw data'!B195) -> -2.78661e-05 | C190: =IF('DF raw data'!C195="","",'DF raw data'!C195) -> 9.14958e-05 | D190: =IF('DF raw data'!D195="","",'DF raw data'!D195) -> -2.40696e-05 | F190: -2.798871084e-05 | G190: 9.189838152e-05 | H190: -2.417550624e-05 | J190: -0.001994135238 | K190: -0.06354723053 | L190: 0.006753992432 | M190: 0.2298315313 | N190: 0.001146504181
A191: =IF('DF raw data'!A196="","",'DF raw data'!A196) -> -235.5 | B191: =IF('DF raw data'!B196="","",'DF raw data'!B196) -> -3.4785e-05 | C191: =IF('DF raw data'!C196="","",'DF raw data'!C196) -> 9.24077e-05 | D191: =IF('DF raw data'!D196="","",'DF raw data'!D196) -> -1.91879e-05 | F191: -3.4938054e-05 | G191: 9.281429388e-05 | H191: -1.927232676e-05 | J191: -0.002011604265 | K191: -0.06455303266 | L191: 0.006800399579 | M191: 0.2332317311 | N191: 0.001171650174
A192: =IF('DF raw data'!A197="","",'DF raw data'!A197) -> -235 | B192: =IF('DF raw data'!B197="","",'DF raw data'!B197) -> -3.75462e-05 | C192: =IF('DF raw data'!C197="","",'DF raw data'!C197) -> 9.11486e-05 | D192: =IF('DF raw data'!D197="","",'DF raw data'!D197) -> -1.44989e-05 | F192: =(1-$G$1*($B$49-$G$2))*B192 -> -3.771140328e-05 | G192: 9.154965384e-05 | H192: -1.456269516e-05 | J192: =F192*$G$3+J191 -> -0.002030459966 | K192: =J192*$G$3+K191 -> -0.06556826265 | L192: =G192*$G$3+L191 -> 0.006846174406 | M192: =L192*$G$3+M191 -> 0.2366548183 | N192: =(J192^2+L192^2)*$G$3+N191 -> 0.00119714661
A193: =IF('DF raw data'!A198="","",'DF raw data'!A198) -> -234.5 | B193: =IF('DF raw data'!B198="","",'DF raw data'!B198) -> -3.63842e-05 | C193: =IF('DF raw data'!C198="","",'DF raw data'!C198) -> 9.64862e-05 | D193: =IF('DF raw data'!D198="","",'DF raw data'!D198) -> -2.30165e-05 | F193: -3.654429048e-05 | G193: 9.691073928e-05 | H193: -2.31177726e-05 | J193: -0.002048732111 | K193: -0.0665926287 | L193: 0.006894629776 | M193: 0.2401021331 | N193: 0.001223013221
A194: =IF('DF raw data'!A199="","",'DF raw data'!A199) -> -234 | B194: =IF('DF raw data'!B199="","",'DF raw data'!B199) -> -2.97903e-05 | C194: =IF('DF raw data'!C199="","",'DF raw data'!C199) -> 9.28123e-05 | D194: =IF('DF raw data'!D199="","",'DF raw data'!D199) -> -2.04987e-05 | F194: -2.992137732e-05 | G194: 9.322067412e-05 | H194: -2.058889428e-05 | J194: -0.0020636928 | K194: -0.0676244751 | L194: 0.006941240113 | M194: 0.2435727532 | N194: 0.001249233042
A195: =IF('DF raw data'!A200="","",'DF raw data'!A200) -> -233.5 | B195: =IF('DF raw data'!B200="","",'DF raw data'!B200) -> -2.0109e-05 | C195: =IF('DF raw data'!C200="","",'DF raw data'!C200) -> 0.000100438 | D195: =IF('DF raw data'!D200="","",'DF raw data'!D200) -> -2.92827e-05 | F195: -2.01974796e-05 | G195: 0.0001008799272 | H195: -2.941154388e-05 | J195: -0.00207379154 | K195: -0.06866137087 | L195: 0.006991680076 | M195: 0.2470685932 | N195: 0.001275825143
A196: =IF('DF raw data'!A201="","",'DF raw data'!A201) -> -233 | B196: =IF('DF raw data'!B201="","",'DF raw data'!B201) -> -2.42806e-05 | C196: =IF('DF raw data'!C201="","",'DF raw data'!C201) -> 0.00010305 | D196: =IF('DF raw data'!D201="","",'DF raw data'!D201) -> -2.0519e-05 | F196: -2.438743464e-05 | G196: 0.00010350342 | H196: -2.06092836e-05 | J196: -0.002085985257 | K196: -0.0697043635 | L196: 0.007043431786 | M196: 0.2505903091 | N196: 0.001302805776
A197: =IF('DF raw data'!A202="","",'DF raw data'!A202) -> -232.5 | B197: =IF('DF raw data'!B202="","",'DF raw data'!B202) -> -2.13945e-05 | C197: =IF('DF raw data'!C202="","",'DF raw data'!C202) -> 9.14523e-05 | D197: =IF('DF raw data'!D202="","",'DF raw data'!D202) -> -2.25747e-05 | F197: -2.14886358e-05 | G197: 9.185469012e-05 | H197: -2.267402868e-05 | J197: -0.002096729575 | K197: -0.07075272829 | L197: 0.007089359131 | M197: 0.2541349887 | N197: 0.00133013342
A198: =IF('DF raw data'!A203="","",'DF raw data'!A203) -> -232 | B198: =IF('DF raw data'!B203="","",'DF raw data'!B203) -> -4.2028e-05 | C198: =IF('DF raw data'!C203="","",'DF raw data'!C203) -> 9.00565e-05 | D198: =IF('DF raw data'!D203="","",'DF raw data'!D203) -> -1.87066e-05 | F198: -4.22129232e-05 | G198: 9.04527486e-05 | H198: -1.878890904e-05 | J198: -0.002117836037 | K198: -0.07181164631 | L198: 0.007134585506 | M198: 0.2577022815 | N198: 0.00135782719
A199: =IF('DF raw data'!A204="","",'DF raw data'!A204) -> -231.5 | B199: =IF('DF raw data'!B204="","",'DF raw data'!B204) -> -3.38147e-05 | C199: =IF('DF raw data'!C204="","",'DF raw data'!C204) -> 8.56542e-05 | D199: =IF('DF raw data'!D204="","",'DF raw data'!D204) -> -3.41569e-05 | F199: -3.396348468e-05 | G199: 8.603107848e-05 | H199: -3.430719036e-05 | J199: -0.002134817779 | K199: -0.0728790552 | L199: 0.007177601045 | M199: 0.261291082 | N199: 0.001385864892
A200: =IF('DF raw data'!A205="","",'DF raw data'!A205) -> -231 | B200: =IF('DF raw data'!B205="","",'DF raw data'!B205) -> -3.52926e-05 | C200: =IF('DF raw data'!C205="","",'DF raw data'!C205) -> 9.32396e-05 | D200: =IF('DF raw data'!D205="","",'DF raw data'!D205) -> -3.1847e-05 | F200: -3.544788744e-05 | G200: 9.364985424e-05 | H200: -3.19871268e-05 | J200: -0.002152541723 | K200: -0.07395532606 | L200: 0.007224425972 | M200: 0.264903295 | N200: 0.001414277775
A201: =IF('DF raw data'!A206="","",'DF raw data'!A206) -> -230.5 | B201: =IF('DF raw data'!B206="","",'DF raw data'!B206) -> -3.81159e-05 | C201: =IF('DF raw data'!C206="","",'DF raw data'!C206) -> 8.86097e-05 | D201: =IF('DF raw data'!D206="","",'DF raw data'!D206) -> -1.97903e-05 | F201: -3.828360996e-05 | G201: 8.899958268e-05 | H201: -1.987737732e-05 | J201: -0.002171683528 | K201: -0.07504116782 | L201: 0.007268925763 | M201: 0.2685377578 | N201: 0.001443054521
... 1061 more rows

Sheet 10 y=-0.1
A1: =IF('DF raw data'!E1="","",'DF raw data'!E1) -> Number of header lines | B1: =IF('DF raw data'!F1="","",'DF raw data'!F1) -> 54 | C1: =IF('DF raw data'!G1="","",'DF raw data'!G1) ->  | D1: =IF('DF raw data'!H1="","",'DF raw data'!H1) ->  | F1: T_coeff | G1: -0.001 | H1: /degC | J1: IBy total | K1: =J1262*1000 -> -14.23966344 | L1: muTm | M1: =L1262*1000 -> 32.55413269 | R1: DF ref | S1: ='10 y=-0.2'!S1 -> 1
A2: =IF('DF raw data'!E2="","",'DF raw data'!E2) -> Measured by | B2: =IF('DF raw data'!F2="","",'DF raw data'!F2) -> Danfysik | C2: =IF('DF raw data'!G2="","",'DF raw data'!G2) ->  | D2: =IF('DF raw data'!H2="","",'DF raw data'!H2) ->  | F2: Tcorr | G2: 20 | H2: degC | J2: JBy total | K2: =K1262 -> -9.763614321 | L2: muTm^2 | M2: =M1262 -> 14.79184836
A3: =IF('DF raw data'!E3="","",'DF raw data'!E3) -> Operator | B3: =IF('DF raw data'!F3="","",'DF raw data'!F3) -> PMHA | C3: =IF('DF raw data'!G3="","",'DF raw data'!G3) ->  | D3: =IF('DF raw data'!H3="","",'DF raw data'!H3) ->  | F3: Step | G3: =A63-A62 -> 0.5 | H3: mm | J3: PI total | K3: =N1262 -> 10502.12238 | L3: T^2mm^3
A4: =IF('DF raw data'!E4="","",'DF raw data'!E4) -> Data-time | B4: =IF('DF raw data'!F4="","",'DF raw data'!F4) -> 27-09-2024, 14:19:41 | C4: =IF('DF raw data'!G4="","",'DF raw data'!G4) ->  | D4: =IF('DF raw data'!H4="","",'DF raw data'!H4) -> 
A5: =IF('DF raw data'!E5="","",'DF raw data'!E5) -> Project | B5: =IF('DF raw data'!F5="","",'DF raw data'!F5) -> 504314 | C5: =IF('DF raw data'!G5="","",'DF raw data'!G5) ->  | D5: =IF('DF raw data'!H5="","",'DF raw data'!H5) -> 
A6: =IF('DF raw data'!E6="","",'DF raw data'!E6) -> Magnet type | B6: =IF('DF raw data'!F6="","",'DF raw data'!F6) -> Dipole | C6: =IF('DF raw data'!G6="","",'DF raw data'!G6) ->  | D6: =IF('DF raw data'!H6="","",'DF raw data'!H6) -> 
A7: =IF('DF raw data'!E7="","",'DF raw data'!E7) -> Magnet nr. | B7: =IF('DF raw data'!F7="","",'DF raw data'!F7) -> 2410104 | C7: =IF('DF raw data'!G7="","",'DF raw data'!G7) ->  | D7: =IF('DF raw data'!H7="","",'DF raw data'!H7) -> 
A8: =IF('DF raw data'!E8="","",'DF raw data'!E8) -> Meas. number | B8: =IF('DF raw data'!F8="","",'DF raw data'!F8) -> 775 | C8: =IF('DF raw data'!G8="","",'DF raw data'!G8) ->  | D8: =IF('DF raw data'!H8="","",'DF raw data'!H8) -> 
A9: =IF('DF raw data'!E9="","",'DF raw data'!E9) -> Add. info | B9: =IF('DF raw data'!F9="","",'DF raw data'!F9) -> Y-alignment scan 2) | C9: =IF('DF raw data'!G9="","",'DF raw data'!G9) ->  | D9: =IF('DF raw data'!H9="","",'DF raw data'!H9) -> 
A10: =IF('DF raw data'!E10="","",'DF raw data'!E10) -> Device | B10: =IF('DF raw data'!F10="","",'DF raw data'!F10) -> (HAL) HALL-PROBE | C10: =IF('DF raw data'!G10="","",'DF raw data'!G10) ->  | D10: =IF('DF raw data'!H10="","",'DF raw data'!H10) -> 
A11: =IF('DF raw data'!E11="","",'DF raw data'!E11) -> Goal | B11: =IF('DF raw data'!F11="","",'DF raw data'!F11) -> (AXI) AXis Integral (Line, EFB) | C11: =IF('DF raw data'!G11="","",'DF raw data'!G11) ->  | D11: =IF('DF raw data'!H11="","",'DF raw data'!H11) -> 
A12: =IF('DF raw data'!E12="","",'DF raw data'!E12) -> Power supply mode | B12: =IF('DF raw data'!F12="","",'DF raw data'!F12) -> (PM) Permanent Magnet (no MPS in use) | C12: =IF('DF raw data'!G12="","",'DF raw data'!G12) ->  | D12: =IF('DF raw data'!H12="","",'DF raw data'!H12) -> 
A13: =IF('DF raw data'!E13="","",'DF raw data'!E13) -> Data format | B13: =IF('DF raw data'!F13="","",'DF raw data'!F13) -> Raw data text file | C13: =IF('DF raw data'!G13="","",'DF raw data'!G13) ->  | D13: =IF('DF raw data'!H13="","",'DF raw data'!H13) -> 
A14: =IF('DF raw data'!E14="","",'DF raw data'!E14) -> Direction of the pos. x-axis | B14: =IF('DF raw data'!F14="","",'DF raw data'!F14) -> See test program | C14: =IF('DF raw data'!G14="","",'DF raw data'!G14) ->  | D14: =IF('DF raw data'!H14="","",'DF raw data'!H14) -> 
A15: =IF('DF raw data'!E15="","",'DF raw data'!E15) -> Direction of the pos. y-axis | B15: =IF('DF raw data'!F15="","",'DF raw data'!F15) -> Vertical up | C15: =IF('DF raw data'!G15="","",'DF raw data'!G15) ->  | D15: =IF('DF raw data'!H15="","",'DF raw data'!H15) -> 
A16: =IF('DF raw data'!E16="","",'DF raw data'!E16) -> Direction of the pos. z-axis | B16: =IF('DF raw data'!F16="","",'DF raw data'!F16) -> See test program | C16: =IF('DF raw data'!G16="","",'DF raw data'!G16) ->  | D16: =IF('DF raw data'!H16="","",'DF raw data'!H16) -> 
A17: =IF('DF raw data'!E17="","",'DF raw data'!E17) -> Mapper type | B17: =IF('DF raw data'!F17="","",'DF raw data'!F17) -> Precision Hall Mapper | C17: =IF('DF raw data'!G17="","",'DF raw data'!G17) ->  | D17: =IF('DF raw data'!H17="","",'DF raw data'!H17) -> 
A18: =IF('DF raw data'!E18="","",'DF raw data'!E18) -> Mapper Danfysik Reg. Number | B18: =IF('DF raw data'!F18="","",'DF raw data'!F18) -> 2033-D (mapper 1) | C18: =IF('DF raw data'!G18="","",'DF raw data'!G18) ->  | D18: =IF('DF raw data'!H18="","",'DF raw data'!H18) -> 
A19: =IF('DF raw data'!E19="","",'DF raw data'!E19) -> Measurement consept | B19: =IF('DF raw data'!F19="","",'DF raw data'!F19) -> Square line grid | C19: =IF('DF raw data'!G19="","",'DF raw data'!G19) ->  | D19: =IF('DF raw data'!H19="","",'DF raw data'!H19) -> 
A20: =IF('DF raw data'!E20="","",'DF raw data'!E20) -> Mode | B20: =IF('DF raw data'!F20="","",'DF raw data'!F20) -> On-the-fly measurement | C20: =IF('DF raw data'!G20="","",'DF raw data'!G20) ->  | D20: =IF('DF raw data'!H20="","",'DF raw data'!H20) -> 
A21: =IF('DF raw data'!E21="","",'DF raw data'!E21) ->  | B21: =IF('DF raw data'!F21="","",'DF raw data'!F21) ->  | C21: =IF('DF raw data'!G21="","",'DF raw data'!G21) ->  | D21: =IF('DF raw data'!H21="","",'DF raw data'!H21) -> 
A22: =IF('DF raw data'!E22="","",'DF raw data'!E22) -> Probe Name | B22: =IF('DF raw data'!F22="","",'DF raw data'!F22) -> ID12_By | C22: =IF('DF raw data'!G22="","",'DF raw data'!G22) ->  | D22: =IF('DF raw data'!H22="","",'DF raw data'!H22) -> 
A23: =IF('DF raw data'!E23="","",'DF raw data'!E23) -> Probe Type | B23: =IF('DF raw data'!F23="","",'DF raw data'!F23) -> DF_ID_3D_Bxyz | C23: =IF('DF raw data'!G23="","",'DF raw data'!G23) ->  | D23: =IF('DF raw data'!H23="","",'DF raw data'!H23) -> 
A24: =IF('DF raw data'!E24="","",'DF raw data'!E24) -> Probe Danfysik Reg. Number | B24: =IF('DF raw data'!F24="","",'DF raw data'!F24) -> 2277 | C24: =IF('DF raw data'!G24="","",'DF raw data'!G24) ->  | D24: =IF('DF raw data'!H24="","",'DF raw data'!H24) -> 
A25: =IF('DF raw data'!E25="","",'DF raw data'!E25) -> Probe Axis | B25: =IF('DF raw data'!F25="","",'DF raw data'!F25) -> By | C25: =IF('DF raw data'!G25="","",'DF raw data'!G25) ->  | D25: =IF('DF raw data'!H25="","",'DF raw data'!H25) -> 
A26: =IF('DF raw data'!E26="","",'DF raw data'!E26) -> Probe Current Supply | B26: =IF('DF raw data'!F26="","",'DF raw data'!F26) -> 1825-D | C26: =IF('DF raw data'!G26="","",'DF raw data'!G26) ->  | D26: =IF('DF raw data'!H26="","",'DF raw data'!H26) -> 
A27: =IF('DF raw data'!E27="","",'DF raw data'!E27) -> Probe Gain Correction | B27: =IF('DF raw data'!F27="","",'DF raw data'!F27) -> 0.99606 | C27: =IF('DF raw data'!G27="","",'DF raw data'!G27) ->  | D27: =IF('DF raw data'!H27="","",'DF raw data'!H27) -> 
A28: =IF('DF raw data'!E28="","",'DF raw data'!E28) -> Probe Offset Correction | B28: =IF('DF raw data'!F28="","",'DF raw data'!F28) -> 0.0027746 | C28: =IF('DF raw data'!G28="","",'DF raw data'!G28) ->  | D28: =IF('DF raw data'!H28="","",'DF raw data'!H28) -> 
A29: =IF('DF raw data'!E29="","",'DF raw data'!E29) -> DVM Number | B29: =IF('DF raw data'!F29="","",'DF raw data'!F29) -> 2 | C29: =IF('DF raw data'!G29="","",'DF raw data'!G29) ->  | D29: =IF('DF raw data'!H29="","",'DF raw data'!H29) -> 
A30: =IF('DF raw data'!E30="","",'DF raw data'!E30) -> DVM Type | B30: =IF('DF raw data'!F30="","",'DF raw data'!F30) -> K2701 | C30: =IF('DF raw data'!G30="","",'DF raw data'!G30) ->  | D30: =IF('DF raw data'!H30="","",'DF raw data'!H30) -> 
A31: =IF('DF raw data'!E31="","",'DF raw data'!E31) -> DVM Danfysik Reg. Number | B31: =IF('DF raw data'!F31="","",'DF raw data'!F31) -> 1743-D | C31: =IF('DF raw data'!G31="","",'DF raw data'!G31) ->  | D31: =IF('DF raw data'!H31="","",'DF raw data'!H31) -> 
A32: =IF('DF raw data'!E32="","",'DF raw data'!E32) -> Probe Name | B32: =IF('DF raw data'!F32="","",'DF raw data'!F32) -> ID12_Bx | C32: =IF('DF raw data'!G32="","",'DF raw data'!G32) ->  | D32: =IF('DF raw data'!H32="","",'DF raw data'!H32) -> 
A33: =IF('DF raw data'!E33="","",'DF raw data'!E33) -> Probe Type | B33: =IF('DF raw data'!F33="","",'DF raw data'!F33) -> DF_ID_3D_Bxyz | C33: =IF('DF raw data'!G33="","",'DF raw data'!G33) ->  | D33: =IF('DF raw data'!H33="","",'DF raw data'!H33) -> 
A34: =IF('DF raw data'!E34="","",'DF raw data'!E34) -> Probe Danfysik Reg. Number | B34: =IF('DF raw data'!F34="","",'DF raw data'!F34) -> 2277 | C34: =IF('DF raw data'!G34="","",'DF raw data'!G34) ->  | D34: =IF('DF raw data'!H34="","",'DF raw data'!H34) -> 
A35: =IF('DF raw data'!E35="","",'DF raw data'!E35) -> Probe Axis | B35: =IF('DF raw data'!F35="","",'DF raw data'!F35) -> Bx | C35: =IF('DF raw data'!G35="","",'DF raw data'!G35) ->  | D35: =IF('DF raw data'!H35="","",'DF raw data'!H35) -> 
A36: =IF('DF raw data'!E36="","",'DF raw data'!E36) -> Probe Current Supply | B36: =IF('DF raw data'!F36="","",'DF raw data'!F36) -> 1825-D | C36: =IF('DF raw data'!G36="","",'DF raw data'!G36) ->  | D36: =IF('DF raw data'!H36="","",'DF raw data'!H36) -> 
A37: =IF('DF raw data'!E37="","",'DF raw data'!E37) -> Probe Gain Correction | B37: =IF('DF raw data'!F37="","",'DF raw data'!F37) -> 1 | C37: =IF('DF raw data'!G37="","",'DF raw data'!G37) ->  | D37: =IF('DF raw data'!H37="","",'DF raw data'!H37) -> 
A38: =IF('DF raw data'!E38="","",'DF raw data'!E38) -> Probe Offset Correction | B38: =IF('DF raw data'!F38="","",'DF raw data'!F38) -> -0.1754 | C38: =IF('DF raw data'!G38="","",'DF raw data'!G38) ->  | D38: =IF('DF raw data'!H38="","",'DF raw data'!H38) -> 
A39: =IF('DF raw data'!E39="","",'DF raw data'!E39) -> DVM Number | B39: =IF('DF raw data'!F39="","",'DF raw data'!F39) -> 3 | C39: =IF('DF raw data'!G39="","",'DF raw data'!G39) ->  | D39: =IF('DF raw data'!H39="","",'DF raw data'!H39) -> 
A40: =IF('DF raw data'!E40="","",'DF raw data'!E40) -> DVM Type | B40: =IF('DF raw data'!F40="","",'DF raw data'!F40) -> K2701 | C40: =IF('DF raw data'!G40="","",'DF raw data'!G40) ->  | D40: =IF('DF raw data'!H40="","",'DF raw data'!H40) -> 
A41: =IF('DF raw data'!E41="","",'DF raw data'!E41) -> DVM Danfysik Reg. Number | B41: =IF('DF raw data'!F41="","",'DF raw data'!F41) -> 1744-D | C41: =IF('DF raw data'!G41="","",'DF raw data'!G41) ->  | D41: =IF('DF raw data'!H41="","",'DF raw data'!H41) -> 
A42: =IF('DF raw data'!E42="","",'DF raw data'!E42) -> Probe Name | B42: =IF('DF raw data'!F42="","",'DF raw data'!F42) -> ID12_Bz | C42: =IF('DF raw data'!G42="","",'DF raw data'!G42) ->  | D42: =IF('DF raw data'!H42="","",'DF raw data'!H42) -> 
A43: =IF('DF raw data'!E43="","",'DF raw data'!E43) -> Probe Type | B43: =IF('DF raw data'!F43="","",'DF raw data'!F43) -> DF_ID_3D_Bxyz | C43: =IF('DF raw data'!G43="","",'DF raw data'!G43) ->  | D43: =IF('DF raw data'!H43="","",'DF raw data'!H43) -> 
A44: =IF('DF raw data'!E44="","",'DF raw data'!E44) -> Probe Danfysik Reg. Number | B44: =IF('DF raw data'!F44="","",'DF raw data'!F44) -> 2277 | C44: =IF('DF raw data'!G44="","",'DF raw data'!G44) ->  | D44: =IF('DF raw data'!H44="","",'DF raw data'!H44) -> 
A45: =IF('DF raw data'!E45="","",'DF raw data'!E45) -> Probe Axis | B45: =IF('DF raw data'!F45="","",'DF raw data'!F45) -> Bz | C45: =IF('DF raw data'!G45="","",'DF raw data'!G45) ->  | D45: =IF('DF raw data'!H45="","",'DF raw data'!H45) -> 
A46: =IF('DF raw data'!E46="","",'DF raw data'!E46) -> Probe Current Supply | B46: =IF('DF raw data'!F46="","",'DF raw data'!F46) -> 1825-D | C46: =IF('DF raw data'!G46="","",'DF raw data'!G46) ->  | D46: =IF('DF raw data'!H46="","",'DF raw data'!H46) -> 
A47: =IF('DF raw data'!E47="","",'DF raw data'!E47) -> Probe Gain Correction | B47: =IF('DF raw data'!F47="","",'DF raw data'!F47) -> 1 | C47: =IF('DF raw data'!G47="","",'DF raw data'!G47) ->  | D47: =IF('DF raw data'!H47="","",'DF raw data'!H47) -> 
A48: =IF('DF raw data'!E53="","",'DF raw data'!E53) -> PS-Gap: | B48: =IF('DF raw data'!F53="","",'DF raw data'!F53) -> 10 | C48: =IF('DF raw data'!G53="","",'DF raw data'!G53) ->  | D48: =IF('DF raw data'!H53="","",'DF raw data'!H53) -> 
A49: =IF('DF raw data'!E54="","",'DF raw data'!E54) -> PS-Temperature: | B49: =IF('DF raw data'!F54="","",'DF raw data'!F54) -> 24.4 | C49: =IF('DF raw data'!G54="","",'DF raw data'!G54) ->  | D49: =IF('DF raw data'!H54="","",'DF raw data'!H54) -> 
A50: =IF('DF raw data'!E55="","",'DF raw data'!E55) -> PS-Encoder: | B50: =IF('DF raw data'!F55="","",'DF raw data'!F55) -> 19.8945 | C50: =IF('DF raw data'!G55="","",'DF raw data'!G55) ->  | D50: =IF('DF raw data'!H55="","",'DF raw data'!H55) -> 
A51: =IF('DF raw data'!E56="","",'DF raw data'!E56) ->  | B51: =IF('DF raw data'!F56="","",'DF raw data'!F56) ->  | C51: =IF('DF raw data'!G56="","",'DF raw data'!G56) ->  | D51: =IF('DF raw data'!H56="","",'DF raw data'!H56) -> 
A52: =IF('DF raw data'!E57="","",'DF raw data'!E57) -> Monitor-Index | B52: =IF('DF raw data'!F57="","",'DF raw data'!F57) -> [1,1,4] | C52: =IF('DF raw data'!G57="","",'DF raw data'!G57) ->  | D52: =IF('DF raw data'!H57="","",'DF raw data'!H57) -> 
A53: =IF('DF raw data'!E58="","",'DF raw data'!E58) ->  | B53: =IF('DF raw data'!F58="","",'DF raw data'!F58) ->  | C53: =IF('DF raw data'!G58="","",'DF raw data'!G58) ->  | D53: =IF('DF raw data'!H58="","",'DF raw data'!H58) -> 
A54: =IF('DF raw data'!E59="","",'DF raw data'!E59) -> Time [s] | B54: =IF('DF raw data'!F59="","",'DF raw data'!F59) -> Y [mm] | C54: =IF('DF raw data'!G59="","",'DF raw data'!G59) -> X [mm] | D54: =IF('DF raw data'!H59="","",'DF raw data'!H59) -> Nominal current [A]
A55: =IF('DF raw data'!E60="","",'DF raw data'!E60) ->  | B55: =IF('DF raw data'!F60="","",'DF raw data'!F60) ->  | C55: =IF('DF raw data'!G60="","",'DF raw data'!G60) ->  | D55: =IF('DF raw data'!H60="","",'DF raw data'!H60) -> 
A56: =IF('DF raw data'!E61="","",'DF raw data'!E61) -> 210.3 | B56: =IF('DF raw data'!F61="","",'DF raw data'!F61) -> 31.63 | C56: =IF('DF raw data'!G61="","",'DF raw data'!G61) -> 302.3 | D56: =IF('DF raw data'!H61="","",'DF raw data'!H61) -> 0
A57: =IF('DF raw data'!E62="","",'DF raw data'!E62) ->  | B57: =IF('DF raw data'!F62="","",'DF raw data'!F62) ->  | C57: =IF('DF raw data'!G62="","",'DF raw data'!G62) ->  | D57: =IF('DF raw data'!H62="","",'DF raw data'!H62) -> 
A58: =IF('DF raw data'!E63="","",'DF raw data'!E63) -> Measurement-Index | B58: =IF('DF raw data'!F63="","",'DF raw data'!F63) -> [1,1,1201,2] | C58: =IF('DF raw data'!G63="","",'DF raw data'!G63) ->  | D58: =IF('DF raw data'!H63="","",'DF raw data'!H63) -> 
A59: =IF('DF raw data'!E64="","",'DF raw data'!E64) ->  | B59: =IF('DF raw data'!F64="","",'DF raw data'!F64) ->  | C59: =IF('DF raw data'!G64="","",'DF raw data'!G64) ->  | D59: =IF('DF raw data'!H64="","",'DF raw data'!H64) -> 
A60: =IF('DF raw data'!E65="","",'DF raw data'!E65) -> Z [mm] | B60: By [T] | C60: Bx [T] | D60: Bz [T] | F60: By_corr | G60: Bx_corr | H60: Bz_corr | J60: Iy | K60: Jy | L60: Ix | M60: Jx | N60: PI
A62: =IF('DF raw data'!E67="","",'DF raw data'!E67) -> -300 | B62: =IF('DF raw data'!F67="","",'DF raw data'!F67) -> -3.97924e-05 | C62: =IF('DF raw data'!G67="","",'DF raw data'!G67) -> 6.87928e-05 | D62: =IF('DF raw data'!H67="","",'DF raw data'!H67) -> -3.16144e-05 | F62: =(1-$G$1*($B$49))*B62 -> -4.076333456e-05 | G62: =(1-$G$1*($B$49-$G$2))*C62 -> 6.909548832e-05 | H62: =(1-$G$1*($B$49-$G$2))*D62 -> -3.175350336e-05 | J62: =F62*$G$3 -> -2.038166728e-05 | K62: =J62*$G$3 -> -1.019083364e-05 | L62: =G62*$G$3 -> 3.454774416e-05 | M62: =L62*$G$3 -> 1.727387208e-05 | N62: =(J62^2+L62^2)*$G$3 -> 8.044794938e-10
A63: =IF('DF raw data'!E68="","",'DF raw data'!E68) -> -299.5 | B63: =IF('DF raw data'!F68="","",'DF raw data'!F68) -> -2.93512e-05 | C63: =IF('DF raw data'!G68="","",'DF raw data'!G68) -> 7.65543e-05 | D63: =IF('DF raw data'!H68="","",'DF raw data'!H68) -> -3.1777e-05 | F63: =(1-$G$1*($B$49-$G$2))*B63 -> -2.948034528e-05 | G63: =(1-$G$1*($B$49-$G$2))*C63 -> 7.689113892e-05 | H63: -3.19168188e-05 | J63: =F63*$G$3+J62 -> -3.512183992e-05 | K63: =J63*$G$3+K62 -> -2.77517536e-05 | L63: =G63*$G$3+L62 -> 7.299331362e-05 | M63: =L63*$G$3+M62 -> 5.377052889e-05 | N63: =(J63^2+L63^2)*$G$3+N62 -> 4.08526323e-09
A64: =IF('DF raw data'!E69="","",'DF raw data'!E69) -> -299 | B64: =IF('DF raw data'!F69="","",'DF raw data'!F69) -> -4.64581e-05 | C64: =IF('DF raw data'!G69="","",'DF raw data'!G69) -> 7.84826e-05 | D64: =IF('DF raw data'!H69="","",'DF raw data'!H69) -> -3.15068e-05 | F64: =(1-$G$1*($B$49-$G$2))*B64 -> -4.666251564e-05 | G64: 7.882792344e-05 | H64: -3.164542992e-05 | J64: =F64*$G$3+J63 -> -5.845309774e-05 | K64: =J64*$G$3+K63 -> -5.697830247e-05 | L64: =G64*$G$3+L63 -> 0.0001124072753 | M64: =L64*$G$3+M63 -> 0.0001099741666 | N64: =(J64^2+L64^2)*$G$3+N63 -> 1.211134332e-08
A65: =IF('DF raw data'!E70="","",'DF raw data'!E70) -> -298.5 | B65: =IF('DF raw data'!F70="","",'DF raw data'!F70) -> -3.01818e-05 | C65: =IF('DF raw data'!G70="","",'DF raw data'!G70) -> 8.12246e-05 | D65: =IF('DF raw data'!H70="","",'DF raw data'!H70) -> -3.13686e-05 | F65: -3.031459992e-05 | G65: 8.158198824e-05 | H65: -3.150662184e-05 | J65: -7.36103977e-05 | K65: -9.378350132e-05 | L65: 0.0001531982695 | M65: 0.0001865733013 | N65: 2.655544353e-08
A66: =IF('DF raw data'!E71="","",'DF raw data'!E71) -> -298 | B66: =IF('DF raw data'!F71="","",'DF raw data'!F71) -> -2.26234e-05 | C66: =IF('DF raw data'!G71="","",'DF raw data'!G71) -> 8.47634e-05 | D66: =IF('DF raw data'!H71="","",'DF raw data'!H71) -> -3.23139e-05 | F66: -2.272294296e-05 | G66: 8.513635896e-05 | H66: -3.245608116e-05 | J66: -8.497186918e-05 | K66: -0.0001362694359 | L66: 0.0001957664489 | M66: 0.0002844565258 | N66: 4.932780407e-08
A67: =IF('DF raw data'!E72="","",'DF raw data'!E72) -> -297.5 | B67: =IF('DF raw data'!F72="","",'DF raw data'!F72) -> -3.58183e-05 | C67: =IF('DF raw data'!G72="","",'DF raw data'!G72) -> 7.64424e-05 | D67: =IF('DF raw data'!H72="","",'DF raw data'!H72) -> -3.32712e-05 | F67: -3.597590052e-05 | G67: 7.677874656e-05 | H67: -3.341759328e-05 | J67: -0.0001029598194 | K67: -0.0001877493456 | L67: 0.0002341558222 | M67: 0.0004015344369 | N67: 8.204264082e-08
A68: =IF('DF raw data'!E73="","",'DF raw data'!E73) -> -297 | B68: =IF('DF raw data'!F73="","",'DF raw data'!F73) -> -3.5373e-05 | C68: =IF('DF raw data'!G73="","",'DF raw data'!G73) -> 7.96658e-05 | D68: =IF('DF raw data'!H73="","",'DF raw data'!H73) -> -3.31682e-05 | F68: -3.55286412e-05 | G68: 8.001632952e-05 | H68: -3.331414008e-05 | J68: -0.00012072414 | K68: -0.0002481114156 | L68: 0.000274163987 | M68: 0.0005386164304 | N68: 1.269127457e-07
A69: =IF('DF raw data'!E74="","",'DF raw data'!E74) -> -296.5 | B69: =IF('DF raw data'!F74="","",'DF raw data'!F74) -> -3.94062e-05 | C69: =IF('DF raw data'!G74="","",'DF raw data'!G74) -> 8.91595e-05 | D69: =IF('DF raw data'!H74="","",'DF raw data'!H74) -> -3.24048e-05 | F69: -3.957958728e-05 | G69: 8.95518018e-05 | H69: -3.254738112e-05 | J69: -0.0001405139337 | K69: -0.0003183683825 | L69: 0.0003189398879 | M69: 0.0006980863743 | N69: 1.876461545e-07
A70: =IF('DF raw data'!E75="","",'DF raw data'!E75) -> -296 | B70: =IF('DF raw data'!F75="","",'DF raw data'!F75) -> -3.89615e-05 | C70: =IF('DF raw data'!G75="","",'DF raw data'!G75) -> 8.22266e-05 | D70: =IF('DF raw data'!H75="","",'DF raw data'!H75) -> -3.19073e-05 | F70: -3.91329306e-05 | G70: 8.258839704e-05 | H70: -3.204769212e-05 | J70: -0.000160080399 | K70: -0.000398408582 | L70: 0.0003602340864 | M70: 0.0008782034175 | N70: 2.653433201e-07
A71: =IF('DF raw data'!E76="","",'DF raw data'!E76) -> -295.5 | B71: =IF('DF raw data'!F76="","",'DF raw data'!F76) -> -2.96691e-05 | C71: =IF('DF raw data'!G76="","",'DF raw data'!G76) -> 7.53172e-05 | D71: =IF('DF raw data'!H76="","",'DF raw data'!H76) -> -3.20529e-05 | F71: -2.979964404e-05 | G71: 7.564859568e-05 | H71: -3.219393276e-05 | J71: -0.000174980221 | K71: -0.0004858986925 | L71: 0.0003980583842 | M71: 0.00107723261 | N71: 3.598775976e-07
A72: =IF('DF raw data'!E77="","",'DF raw data'!E77) -> -295 | B72: =IF('DF raw data'!F77="","",'DF raw data'!F77) -> -3.74233e-05 | C72: =IF('DF raw data'!G77="","",'DF raw data'!G77) -> 8.14069e-05 | D72: =IF('DF raw data'!H77="","",'DF raw data'!H77) -> -3.22607e-05 | F72: -3.758796252e-05 | G72: 8.176509036e-05 | H72: -3.240264708e-05 | J72: -0.0001937742023 | K72: -0.0005827857936 | L72: 0.0004389409294 | M72: 0.001296703074 | N72: 4.749863881e-07
A73: =IF('DF raw data'!E78="","",'DF raw data'!E78) -> -294.5 | B73: =IF('DF raw data'!F78="","",'DF raw data'!F78) -> -3.48583e-05 | C73: =IF('DF raw data'!G78="","",'DF raw data'!G78) -> 8.29344e-05 | D73: =IF('DF raw data'!H78="","",'DF raw data'!H78) -> -3.22139e-05 | F73: -3.501167652e-05 | G73: 8.329931136e-05 | H73: -3.235564116e-05 | J73: -0.0002112800405 | K73: -0.0006884258139 | L73: 0.0004805905851 | M73: 0.001536998367 | N73: 6.127896711e-07
A74: =IF('DF raw data'!E79="","",'DF raw data'!E79) -> -294 | B74: =IF('DF raw data'!F79="","",'DF raw data'!F79) -> -3.14008e-05 | C74: =IF('DF raw data'!G79="","",'DF raw data'!G79) -> 9.12837e-05 | D74: =IF('DF raw data'!H79="","",'DF raw data'!H79) -> -3.20668e-05 | F74: -3.153896352e-05 | G74: 9.168534828e-05 | H74: -3.220789392e-05 | J74: -0.0002270495223 | K74: -0.000801950575 | L74: 0.0005264332592 | M74: 0.001800214996 | N74: 7.771314021e-07
A75: =IF('DF raw data'!E80="","",'DF raw data'!E80) -> -293.5 | B75: =IF('DF raw data'!F80="","",'DF raw data'!F80) -> -3.69085e-05 | C75: =IF('DF raw data'!G80="","",'DF raw data'!G80) -> 9.64336e-05 | D75: =IF('DF raw data'!H80="","",'DF raw data'!H80) -> -3.18827e-05 | F75: -3.70708974e-05 | G75: 9.685790784e-05 | H75: -3.202298388e-05 | J75: -0.000245584971 | K75: -0.0009247430605 | L75: 0.0005748622132 | M75: 0.002087646103 | N75: 9.725206731e-07
A76: =IF('DF raw data'!E81="","",'DF raw data'!E81) -> -293 | B76: =IF('DF raw data'!F81="","",'DF raw data'!F81) -> -2.78771e-05 | C76: =IF('DF raw data'!G81="","",'DF raw data'!G81) -> 8.92055e-05 | D76: =IF('DF raw data'!H81="","",'DF raw data'!H81) -> -3.19244e-05 | F76: -2.799975924e-05 | G76: 8.95980042e-05 | H76: -3.206486736e-05 | J76: -0.0002595848506 | K76: -0.001054535486 | L76: 0.0006196612153 | M76: 0.002397476711 | N76: 1.198202831e-06
A77: =IF('DF raw data'!E82="","",'DF raw data'!E82) -> -292.5 | B77: =IF('DF raw data'!F82="","",'DF raw data'!F82) -> -2.96691e-05 | C77: =IF('DF raw data'!G82="","",'DF raw data'!G82) -> 7.61366e-05 | D77: =IF('DF raw data'!H82="","",'DF raw data'!H82) -> -3.22231e-05 | F77: -2.979964404e-05 | G77: 7.647160104e-05 | H77: -3.236488164e-05 | J77: -0.0002744846726 | K77: -0.001191777822 | L77: 0.0006578970158 | M77: 0.002726425219 | N77: 1.452287991e-06
A78: =IF('DF raw data'!E83="","",'DF raw data'!E83) -> -292 | B78: =IF('DF raw data'!F83="","",'DF raw data'!F83) -> -3.12723e-05 | C78: =IF('DF raw data'!G83="","",'DF raw data'!G83) -> 7.87772e-05 | D78: =IF('DF raw data'!H83="","",'DF raw data'!H83) -> -3.27015e-05 | F78: -3.140989812e-05 | G78: 7.912381968e-05 | H78: -3.28453866e-05 | J78: -0.0002901896217 | K78: -0.001336872633 | L78: 0.0006974589256 | M78: 0.003075154681 | N78: 1.737617475e-06
A79: =IF('DF raw data'!E84="","",'DF raw data'!E84) -> -291.5 | B79: =IF('DF raw data'!F84="","",'DF raw data'!F84) -> -2.83942e-05 | C79: =IF('DF raw data'!G84="","",'DF raw data'!G84) -> 7.96647e-05 | D79: =IF('DF raw data'!H84="","",'DF raw data'!H84) -> -2.2004e-05 | F79: -2.851913448e-05 | G79: 8.001522468e-05 | H79: -2.21008176e-05 | J79: -0.0003044491889 | K79: -0.001489097227 | L79: 0.000737466538 | M79: 0.00344388795 | N79: 2.055890577e-06
A80: =IF('DF raw data'!E85="","",'DF raw data'!E85) -> -291 | B80: =IF('DF raw data'!F85="","",'DF raw data'!F85) -> -3.55713e-05 | C80: =IF('DF raw data'!G85="","",'DF raw data'!G85) -> 8.62942e-05 | D80: =IF('DF raw data'!H85="","",'DF raw data'!H85) -> -2.3295e-05 | F80: -3.572781372e-05 | G80: 8.667389448e-05 | H80: -2.3397498e-05 | J80: -0.0003223130958 | K80: -0.001650253775 | L80: 0.0007808034852 | M80: 0.003834289693 | N80: 2.412660484e-06
A81: =IF('DF raw data'!E86="","",'DF raw data'!E86) -> -290.5 | B81: =IF('DF raw data'!F86="","",'DF raw data'!F86) -> -4.7675e-05 | C81: =IF('DF raw data'!G86="","",'DF raw data'!G86) -> 8.88756e-05 | D81: =IF('DF raw data'!H86="","",'DF raw data'!H86) -> -2.61722e-05 | F81: -4.788477e-05 | G81: 8.926665264e-05 | H81: -2.628735768e-05 | J81: -0.0003462554808 | K81: -0.001823381516 | L81: 0.0008254368115 | M81: 0.004247008099 | N81: 2.813279878e-06
A82: =IF('DF raw data'!E87="","",'DF raw data'!E87) -> -290 | B82: =IF('DF raw data'!F87="","",'DF raw data'!F87) -> -4.87074e-05 | C82: =IF('DF raw data'!G87="","",'DF raw data'!G87) -> 8.21986e-05 | D82: =IF('DF raw data'!H87="","",'DF raw data'!H87) -> -2.00611e-05 | F82: -4.892171256e-05 | G82: 8.256027384e-05 | H82: -2.014936884e-05 | J82: -0.0003707163371 | K82: -0.002008739684 | L82: 0.0008667169484 | M82: 0.004680366573 | N82: 3.257594314e-06
A83: =IF('DF raw data'!E88="","",'DF raw data'!E88) -> -289.5 | B83: =IF('DF raw data'!F88="","",'DF raw data'!F88) -> -2.9873e-05 | C83: =IF('DF raw data'!G88="","",'DF raw data'!G88) -> 7.82505e-05 | D83: =IF('DF raw data'!H88="","",'DF raw data'!H88) -> -1.38828e-05 | F83: -3.00044412e-05 | G83: 7.85948022e-05 | H83: -1.394388432e-05 | J83: -0.0003857185577 | K83: -0.002201598963 | L83: 0.0009060143495 | M83: 0.005133373748 | N83: 3.742414717e-06
A84: =IF('DF raw data'!E89="","",'DF raw data'!E89) -> -289 | B84: =IF('DF raw data'!F89="","",'DF raw data'!F89) -> -3.95516e-05 | C84: =IF('DF raw data'!G89="","",'DF raw data'!G89) -> 7.57804e-05 | D84: =IF('DF raw data'!H89="","",'DF raw data'!H89) -> -1.06076e-05 | F84: -3.972562704e-05 | G84: 7.611383376e-05 | H84: -1.065427344e-05 | J84: -0.0004055813712 | K84: -0.002404389649 | L84: 0.0009440712664 | M84: 0.005605409381 | N84: 4.27029812e-06
A85: =IF('DF raw data'!E90="","",'DF raw data'!E90) -> -288.5 | B85: =IF('DF raw data'!F90="","",'DF raw data'!F90) -> -5.40778e-05 | C85: =IF('DF raw data'!G90="","",'DF raw data'!G90) -> 7.82976e-05 | D85: =IF('DF raw data'!H90="","",'DF raw data'!H90) -> -3.204e-05 | F85: -5.431574232e-05 | G85: 7.864210944e-05 | H85: -3.2180976e-05 | J85: -0.0004327392423 | K85: -0.00262075927 | L85: 0.0009833923211 | M85: 0.006097105542 | N85: 4.847459974e-06
A86: =IF('DF raw data'!E91="","",'DF raw data'!E91) -> -288 | B86: =IF('DF raw data'!F91="","",'DF raw data'!F91) -> -2.66597e-05 | C86: =IF('DF raw data'!G91="","",'DF raw data'!G91) -> 7.71009e-05 | D86: =IF('DF raw data'!H91="","",'DF raw data'!H91) -> -3.22965e-05 | F86: -2.677700268e-05 | G86: 7.744014396e-05 | H86: -3.24386046e-05 | J86: -0.0004461277437 | K86: -0.002843823142 | L86: 0.001022112393 | M86: 0.006608161738 | N86: 5.469331828e-06
A87: =IF('DF raw data'!E92="","",'DF raw data'!E92) -> -287.5 | B87: =IF('DF raw data'!F92="","",'DF raw data'!F92) -> -2.35853e-05 | C87: =IF('DF raw data'!G92="","",'DF raw data'!G92) -> 7.65356e-05 | D87: =IF('DF raw data'!H92="","",'DF raw data'!H92) -> -2.84183e-05 | F87: -2.368907532e-05 | G87: 7.687235664e-05 | H87: -2.854334052e-05 | J87: -0.0004579722813 | K87: -0.003072809282 | L87: 0.001060548571 | M87: 0.007138436024 | N87: 6.13658277e-06
A88: =IF('DF raw data'!E93="","",'DF raw data'!E93) -> -287 | B88: =IF('DF raw data'!F93="","",'DF raw data'!F93) -> -2.84415e-05 | C88: =IF('DF raw data'!G93="","",'DF raw data'!G93) -> 8.1123e-05 | D88: =IF('DF raw data'!H93="","",'DF raw data'!H93) -> -5.085e-05 | F88: -2.85666426e-05 | G88: 8.14799412e-05 | H88: -5.107374e-05 | J88: -0.0004722556026 | K88: -0.003308937084 | L88: 0.001101288542 | M88: 0.007689080295 | N88: 6.854513673e-06
A89: =IF('DF raw data'!E94="","",'DF raw data'!E94) -> -286.5 | B89: =IF('DF raw data'!F94="","",'DF raw data'!F94) -> -4.19658e-05 | C89: =IF('DF raw data'!G94="","",'DF raw data'!G94) -> 8.2584e-05 | D89: =IF('DF raw data'!H94="","",'DF raw data'!H94) -> -3.81432e-05 | F89: -4.215044952e-05 | G89: 8.29473696e-05 | H89: -3.831103008e-05 | J89: -0.0004933308274 | K89: -0.003555602497 | L89: 0.001142762227 | M89: 0.008260461408 | N89: 7.629154079e-06
A90: =IF('DF raw data'!E95="","",'DF raw data'!E95) -> -286 | B90: =IF('DF raw data'!F95="","",'DF raw data'!F95) -> -4.06342e-05 | C90: =IF('DF raw data'!G95="","",'DF raw data'!G95) -> 7.48296e-05 | D90: =IF('DF raw data'!H95="","",'DF raw data'!H95) -> -2.04994e-05 | F90: -4.081299048e-05 | G90: 7.515885024e-05 | H90: -2.058959736e-05 | J90: -0.0005137373226 | K90: -0.003812471159 | L90: 0.001180341652 | M90: 0.008850632234 | N90: 8.457720305e-06
A91: =IF('DF raw data'!E96="","",'DF raw data'!E96) -> -285.5 | B91: =IF('DF raw data'!F96="","",'DF raw data'!F96) -> -3.94781e-05 | C91: =IF('DF raw data'!G96="","",'DF raw data'!G96) -> 8.50517e-05 | D91: =IF('DF raw data'!H96="","",'DF raw data'!H96) -> -2.17105e-05 | F91: -3.965180364e-05 | G91: 8.542592748e-05 | H91: -2.18060262e-05 | J91: -0.0005335632245 | K91: -0.004079252771 | L91: 0.001223054616 | M91: 0.009462159542 | N91: 9.347996459e-06
A92: =IF('DF raw data'!E97="","",'DF raw data'!E97) -> -285 | B92: =IF('DF raw data'!F97="","",'DF raw data'!F97) -> -4.992e-05 | C92: =IF('DF raw data'!G97="","",'DF raw data'!G97) -> 9.38882e-05 | D92: =IF('DF raw data'!H97="","",'DF raw data'!H97) -> -2.6885e-05 | F92: -5.0139648e-05 | G92: 9.430130808e-05 | H92: -2.7003294e-05 | J92: -0.0005586330485 | K92: -0.004358569295 | L92: 0.00127020527 | M92: 0.01009726218 | N92: 1.031074261e-05
A93: =IF('DF raw data'!E98="","",'DF raw data'!E98) -> -284.5 | B93: =IF('DF raw data'!F98="","",'DF raw data'!F98) -> -4.24897e-05 | C93: =IF('DF raw data'!G98="","",'DF raw data'!G98) -> 8.65192e-05 | D93: =IF('DF raw data'!H98="","",'DF raw data'!H98) -> -2.07195e-05 | F93: -4.267665468e-05 | G93: 8.689988448e-05 | H93: -2.08106658e-05 | J93: -0.0005799713758 | K93: -0.004648554983 | L93: 0.001313655212 | M93: 0.01075408978 | N93: 1.134177102e-05
A94: =IF('DF raw data'!E99="","",'DF raw data'!E99) -> -284 | B94: =IF('DF raw data'!F99="","",'DF raw data'!F99) -> -4.06922e-05 | C94: =IF('DF raw data'!G99="","",'DF raw data'!G99) -> 9.03133e-05 | D94: =IF('DF raw data'!H99="","",'DF raw data'!H99) -> -2.97426e-05 | F94: -4.087124568e-05 | G94: 9.071067852e-05 | H94: -2.987346744e-05 | J94: -0.0006004069986 | K94: -0.004948758482 | L94: 0.001359010551 | M94: 0.01143359506 | N94: 1.244547014e-05
A95: =IF('DF raw data'!E100="","",'DF raw data'!E100) -> -283.5 | B95: =IF('DF raw data'!F100="","",'DF raw data'!F100) -> -3.54999e-05 | C95: =IF('DF raw data'!G100="","",'DF raw data'!G100) -> 8.95995e-05 | D95: =IF('DF raw data'!H100="","",'DF raw data'!H100) -> -3.09924e-05 | F95: -3.565609956e-05 | G95: 8.99937378e-05 | H95: -3.112876656e-05 | J95: -0.0006182350484 | K95: -0.005257876007 | L95: 0.00140400742 | M95: 0.01213559877 | N95: 1.362219585e-05
A96: =IF('DF raw data'!E101="","",'DF raw data'!E101) -> -283 | B96: =IF('DF raw data'!F101="","",'DF raw data'!F101) -> -3.34528e-05 | C96: =IF('DF raw data'!G101="","",'DF raw data'!G101) -> 8.10408e-05 | D96: =IF('DF raw data'!H101="","",'DF raw data'!H101) -> -2.91378e-05 | F96: -3.359999232e-05 | G96: 8.139737952e-05 | H96: -2.926600632e-05 | J96: -0.0006350350446 | K96: -0.005575393529 | L96: 0.00144470611 | M96: 0.01285795182 | N96: 1.486741847e-05
A97: =IF('DF raw data'!E102="","",'DF raw data'!E102) -> -282.5 | B97: =IF('DF raw data'!F102="","",'DF raw data'!F102) -> -3.71702e-05 | C97: =IF('DF raw data'!G102="","",'DF raw data'!G102) -> 8.68525e-05 | D97: =IF('DF raw data'!H102="","",'DF raw data'!H102) -> -2.3805e-05 | F97: -3.733374888e-05 | G97: 8.7234651e-05 | H97: -2.3909742e-05 | J97: -0.000653701919 | K97: -0.005902244488 | L97: 0.001488323435 | M97: 0.01360211354 | N97: 1.61886349e-05
A98: =IF('DF raw data'!E103="","",'DF raw data'!E103) -> -282 | B98: =IF('DF raw data'!F103="","",'DF raw data'!F103) -> -3.76208e-05 | C98: =IF('DF raw data'!G103="","",'DF raw data'!G103) -> 9.14345e-05 | D98: =IF('DF raw data'!H103="","",'DF raw data'!H103) -> -2.37842e-05 | F98: -3.778633152e-05 | G98: 9.18368118e-05 | H98: -2.388885048e-05 | J98: -0.0006725950848 | K98: -0.006238542031 | L98: 0.001534241841 | M98: 0.01436923446 | N98: 1.759177598e-05
A99: =IF('DF raw data'!E104="","",'DF raw data'!E104) -> -281.5 | B99: =IF('DF raw data'!F104="","",'DF raw data'!F104) -> -3.95333e-05 | C99: =IF('DF raw data'!G104="","",'DF raw data'!G104) -> 8.59696e-05 | D99: =IF('DF raw data'!H104="","",'DF raw data'!H104) -> -3.49482e-05 | F99: -3.970724652e-05 | G99: 8.634786624e-05 | H99: -3.510197208e-05 | J99: -0.000692448708 | K99: -0.006584766385 | L99: 0.001577415774 | M99: 0.01515794235 | N99: 1.907563885e-05
A100: =IF('DF raw data'!E105="","",'DF raw data'!E105) -> -281 | B100: =IF('DF raw data'!F105="","",'DF raw data'!F105) -> -3.65372e-05 | C100: =IF('DF raw data'!G105="","",'DF raw data'!G105) -> 8.10944e-05 | D100: =IF('DF raw data'!H105="","",'DF raw data'!H105) -> -1.51407e-05 | F100: -3.669796368e-05 | G100: 8.145121536e-05 | H100: -1.520731908e-05 | J100: -0.0007107976899 | K100: -0.00694016523 | L100: 0.001618141382 | M100: 0.01596701304 | N100: 2.06374463e-05
A101: =IF('DF raw data'!E106="","",'DF raw data'!E106) -> -280.5 | B101: =IF('DF raw data'!F106="","",'DF raw data'!F106) -> -2.75715e-05 | C101: =IF('DF raw data'!G106="","",'DF raw data'!G106) -> 8.09229e-05 | D101: =IF('DF raw data'!H106="","",'DF raw data'!H106) -> -6.78203e-06 | F101: -2.76928146e-05 | G101: 8.127896076e-05 | H101: -6.811870932e-06 | J101: -0.0007246440972 | K101: -0.007302487278 | L101: 0.001658780862 | M101: 0.01679640347 | N101: 2.227577781e-05
A102: =IF('DF raw data'!E107="","",'DF raw data'!E107) -> -280 | B102: =IF('DF raw data'!F107="","",'DF raw data'!F107) -> -3.37127e-05 | C102: =IF('DF raw data'!G107="","",'DF raw data'!G107) -> 8.04995e-05 | D102: =IF('DF raw data'!H107="","",'DF raw data'!H107) -> -2.38911e-05 | F102: -3.386103588e-05 | G102: 8.08536978e-05 | H102: -2.399622084e-05 | J102: -0.0007415746151 | K102: -0.007673274586 | L102: 0.001699207711 | M102: 0.01764600733 | N102: 2.399439768e-05
A103: =IF('DF raw data'!E108="","",'DF raw data'!E108) -> -279.5 | B103: =IF('DF raw data'!F108="","",'DF raw data'!F108) -> -3.3587e-05 | C103: =IF('DF raw data'!G108="","",'DF raw data'!G108) -> 8.09427e-05 | D103: =IF('DF raw data'!H108="","",'DF raw data'!H108) -> -1.68206e-05 | F103: -3.37347828e-05 | G103: 8.129884788e-05 | H103: -1.689461064e-05 | J103: -0.0007584420065 | K103: -0.008052495589 | L103: 0.001739857135 | M103: 0.01851593589 | N103: 2.579556625e-05
A104: =IF('DF raw data'!E109="","",'DF raw data'!E109) -> -279 | B104: =IF('DF raw data'!F109="","",'DF raw data'!F109) -> -2.61523e-05 | C104: =IF('DF raw data'!G109="","",'DF raw data'!G109) -> 8.68794e-05 | D104: =IF('DF raw data'!H109="","",'DF raw data'!H109) -> -2.44681e-05 | F104: -2.626737012e-05 | G104: 8.726166936e-05 | H104: -2.457575964e-05 | J104: -0.0007715756916 | K104: -0.008438283435 | L104: 0.00178348797 | M104: 0.01940767988 | N104: 2.768364544e-05
A105: =IF('DF raw data'!E110="","",'DF raw data'!E110) -> -278.5 | B105: =IF('DF raw data'!F110="","",'DF raw data'!F110) -> -2.9618e-05 | C105: =IF('DF raw data'!G110="","",'DF raw data'!G110) -> 9.50397e-05 | D105: =IF('DF raw data'!H110="","",'DF raw data'!H110) -> -1.20111e-05 | F105: -2.97483192e-05 | G105: 9.545787468e-05 | H105: -1.206394884e-05 | J105: -0.0007864498512 | K105: -0.00883150836 | L105: 0.001831216907 | M105: 0.02032328833 | N105: 2.966957481e-05
A106: =IF('DF raw data'!E111="","",'DF raw data'!E111) -> -278 | B106: =IF('DF raw data'!F111="","",'DF raw data'!F111) -> -2.52582e-05 | C106: =IF('DF raw data'!G111="","",'DF raw data'!G111) -> 8.96322e-05 | D106: =IF('DF raw data'!H111="","",'DF raw data'!H111) -> -1.97288e-05 | F106: -2.536933608e-05 | G106: 9.002658168e-05 | H106: -1.981560672e-05 | J106: -0.0007991345192 | K106: -0.00923107562 | L106: 0.001876230198 | M106: 0.02126140343 | N106: 3.174900268e-05
A107: =IF('DF raw data'!E112="","",'DF raw data'!E112) -> -277.5 | B107: =IF('DF raw data'!F112="","",'DF raw data'!F112) -> -3.44129e-05 | C107: =IF('DF raw data'!G112="","",'DF raw data'!G112) -> 8.53635e-05 | D107: =IF('DF raw data'!H112="","",'DF raw data'!H112) -> -2.72422e-05 | F107: -3.456431676e-05 | G107: 8.57390994e-05 | H107: -2.736206568e-05 | J107: -0.0008164166776 | K107: -0.009639283959 | L107: 0.001919099748 | M107: 0.02222095331 | N107: 3.392374269e-05
A108: =IF('DF raw data'!E113="","",'DF raw data'!E113) -> -277 | B108: =IF('DF raw data'!F113="","",'DF raw data'!F113) -> -3.58885e-05 | C108: =IF('DF raw data'!G113="","",'DF raw data'!G113) -> 8.13822e-05 | D108: =IF('DF raw data'!H113="","",'DF raw data'!H113) -> -2.78878e-05 | F108: -3.60464094e-05 | G108: 8.174028168e-05 | H108: -2.801050632e-05 | J108: -0.0008344398823 | K108: -0.0100565039 | L108: 0.001959969889 | M108: 0.02320093825 | N108: 3.619262863e-05
A109: =IF('DF raw data'!E114="","",'DF raw data'!E114) -> -276.5 | B109: =IF('DF raw data'!F114="","",'DF raw data'!F114) -> -2.80049e-05 | C109: =IF('DF raw data'!G114="","",'DF raw data'!G114) -> 8.10187e-05 | D109: =IF('DF raw data'!H114="","",'DF raw data'!H114) -> -2.94419e-05 | F109: -2.812812156e-05 | G109: 8.137518228e-05 | H109: -2.957144436e-05 | J109: -0.0008485039431 | K109: -0.01048075587 | L109: 0.00200065748 | M109: 0.02420126699 | N109: 3.855392328e-05
A110: =IF('DF raw data'!E115="","",'DF raw data'!E115) -> -276 | B110: =IF('DF raw data'!F115="","",'DF raw data'!F115) -> -3.51878e-05 | C110: =IF('DF raw data'!G115="","",'DF raw data'!G115) -> 8.13756e-05 | D110: =IF('DF raw data'!H115="","",'DF raw data'!H115) -> -2.19332e-05 | F110: -3.534262632e-05 | G110: 8.173365264e-05 | H110: -2.202970608e-05 | J110: -0.0008661752562 | K110: -0.0109138435 | L110: 0.002041524306 | M110: 0.02522202914 | N110: 4.101296381e-05
A111: =IF('DF raw data'!E116="","",'DF raw data'!E116) -> -275.5 | B111: =IF('DF raw data'!F116="","",'DF raw data'!F116) -> -3.07583e-05 | C111: =IF('DF raw data'!G116="","",'DF raw data'!G116) -> 7.75539e-05 | D111: =IF('DF raw data'!H116="","",'DF raw data'!H116) -> -3.17146e-05 | F111: -3.089363652e-05 | G111: 7.789513716e-05 | H111: -3.185414424e-05 | J111: -0.0008816220745 | K111: -0.01135465454 | L111: 0.002080471875 | M111: 0.02626226508 | N111: 4.356577417e-05
A112: =IF('DF raw data'!E117="","",'DF raw data'!E117) -> -275 | B112: =IF('DF raw data'!F117="","",'DF raw data'!F117) -> -3.74938e-05 | C112: =IF('DF raw data'!G117="","",'DF raw data'!G117) -> 9.11456e-05 | D112: =IF('DF raw data'!H117="","",'DF raw data'!H117) -> -2.23795e-05 | F112: -3.765877272e-05 | G112: 9.154664064e-05 | H112: -2.24779698e-05 | J112: -0.0009004514609 | K112: -0.01180488027 | L112: 0.002126245195 | M112: 0.02732538768 | N112: 4.62316399e-05
A113: =IF('DF raw data'!E118="","",'DF raw data'!E118) -> -274.5 | B113: =IF('DF raw data'!F118="","",'DF raw data'!F118) -> -4.2414e-05 | C113: =IF('DF raw data'!G118="","",'DF raw data'!G118) -> 0.000104074 | D113: =IF('DF raw data'!H118="","",'DF raw data'!H118) -> -3.80013e-05 | F113: -4.26006216e-05 | G113: 0.0001045319256 | H113: -3.816850572e-05 | J113: -0.0009217517717 | K113: -0.01226575615 | L113: 0.002178511158 | M113: 0.02841464326 | N113: 4.902940849e-05
A114: =IF('DF raw data'!E119="","",'DF raw data'!E119) -> -274 | B114: =IF('DF raw data'!F119="","",'DF raw data'!F119) -> -2.73055e-05 | C114: =IF('DF raw data'!G119="","",'DF raw data'!G119) -> 9.20391e-05 | D114: =IF('DF raw data'!H119="","",'DF raw data'!H119) -> -2.44567e-05 | F114: -2.74256442e-05 | G114: 9.244407204e-05 | H114: -2.456430948e-05 | J114: -0.0009354645938 | K114: -0.01273348845 | L114: 0.002224733194 | M114: 0.02952700985 | N114: 5.194167439e-05
A115: =IF('DF raw data'!E120="","",'DF raw data'!E120) -> -273.5 | B115: =IF('DF raw data'!F120="","",'DF raw data'!F120) -> -3.15867e-05 | C115: =IF('DF raw data'!G120="","",'DF raw data'!G120) -> 7.97308e-05 | D115: =IF('DF raw data'!H120="","",'DF raw data'!H120) -> -3.87225e-05 | F115: -3.172568148e-05 | G115: 8.008161552e-05 | H115: -3.8892879e-05 | J115: -0.0009513274345 | K115: -0.01320915217 | L115: 0.002264774002 | M115: 0.03065939686 | N115: 5.495878697e-05
A116: =IF('DF raw data'!E121="","",'DF raw data'!E121) -> -273 | B116: =IF('DF raw data'!F121="","",'DF raw data'!F121) -> -3.85107e-05 | C116: =IF('DF raw data'!G121="","",'DF raw data'!G121) -> 7.99096e-05 | D116: =IF('DF raw data'!H121="","",'DF raw data'!H121) -> -3.49891e-05 | F116: -3.868014708e-05 | G116: 8.026120224e-05 | H116: -3.514305204e-05 | J116: -0.000970667508 | K116: -0.01369448592 | L116: 0.002304904603 | M116: 0.03181184916 | N116: 5.808617729e-05
A117: =IF('DF raw data'!E122="","",'DF raw data'!E122) -> -272.5 | B117: =IF('DF raw data'!F122="","",'DF raw data'!F122) -> -2.64626e-05 | C117: =IF('DF raw data'!G122="","",'DF raw data'!G122) -> 8.93888e-05 | D117: =IF('DF raw data'!H122="","",'DF raw data'!H122) -> -3.71917e-05 | F117: -2.657903544e-05 | G117: 8.978211072e-05 | H117: -3.735534348e-05 | J117: -0.0009839570258 | K117: -0.01418646443 | L117: 0.002349795658 | M117: 0.03298674699 | N117: 6.133103282e-05
A118: =IF('DF raw data'!E123="","",'DF raw data'!E123) -> -272 | B118: =IF('DF raw data'!F123="","",'DF raw data'!F123) -> -3.56358e-05 | C118: =IF('DF raw data'!G123="","",'DF raw data'!G123) -> 8.53384e-05 | D118: =IF('DF raw data'!H123="","",'DF raw data'!H123) -> -2.21297e-05 | F118: -3.579259752e-05 | G118: 8.571388896e-05 | H118: -2.222707068e-05 | J118: -0.001001853325 | K118: -0.0146873911 | L118: 0.002392652603 | M118: 0.03418307329 | N118: 6.46952811e-05
A119: =IF('DF raw data'!E124="","",'DF raw data'!E124) -> -271.5 | B119: =IF('DF raw data'!F124="","",'DF raw data'!F124) -> -3.11463e-05 | C119: =IF('DF raw data'!G124="","",'DF raw data'!G124) -> 8.9475e-05 | D119: =IF('DF raw data'!H124="","",'DF raw data'!H124) -> -2.6414e-05 | F119: -3.128334372e-05 | G119: 8.986869e-05 | H119: -2.65302216e-05 | J119: -0.001017494996 | K119: -0.01519613859 | L119: 0.002437586948 | M119: 0.03540186676 | N119: 6.81838442e-05
A120: =IF('DF raw data'!E125="","",'DF raw data'!E125) -> -271 | B120: =IF('DF raw data'!F125="","",'DF raw data'!F125) -> -3.82573e-05 | C120: =IF('DF raw data'!G125="","",'DF raw data'!G125) -> 9.38538e-05 | D120: =IF('DF raw data'!H125="","",'DF raw data'!H125) -> -3.0334e-05 | F120: -3.842563212e-05 | G120: 9.426675672e-05 | H120: -3.04674696e-05 | J120: -0.001036707812 | K120: -0.0157144925 | L120: 0.002484720326 | M120: 0.03664422692 | N120: 7.180814329e-05
A121: =IF('DF raw data'!E126="","",'DF raw data'!E126) -> -270.5 | B121: =IF('DF raw data'!F126="","",'DF raw data'!F126) -> -3.06961e-05 | C121: =IF('DF raw data'!G126="","",'DF raw data'!G126) -> 9.46901e-05 | D121: =IF('DF raw data'!H126="","",'DF raw data'!H126) -> -2.92196e-05 | F121: -3.083116284e-05 | G121: 9.510673644e-05 | H121: -2.934816624e-05 | J121: -0.001052123394 | K121: -0.0162405542 | L121: 0.002532273694 | M121: 0.03791036377 | N121: 7.556783014e-05
A122: =IF('DF raw data'!E127="","",'DF raw data'!E127) -> -270 | B122: =IF('DF raw data'!F127="","",'DF raw data'!F127) -> -3.72954e-05 | C122: =IF('DF raw data'!G127="","",'DF raw data'!G127) -> 8.59915e-05 | D122: =IF('DF raw data'!H127="","",'DF raw data'!H127) -> -3.13621e-05 | F122: -3.745949976e-05 | G122: 8.63698626e-05 | H122: -3.150009324e-05 | J122: -0.001070853144 | K122: -0.01677598077 | L122: 0.002575458625 | M122: 0.03919809308 | N122: 7.945768694e-05
A123: =IF('DF raw data'!E128="","",'DF raw data'!E128) -> -269.5 | B123: =IF('DF raw data'!F128="","",'DF raw data'!F128) -> -4.11426e-05 | C123: =IF('DF raw data'!G128="","",'DF raw data'!G128) -> 9.26945e-05 | D123: =IF('DF raw data'!H128="","",'DF raw data'!H128) -> -2.31805e-05 | F123: -4.132362744e-05 | G123: 9.31023558e-05 | H123: -2.32824942e-05 | J123: -0.001091514957 | K123: -0.01732173825 | L123: 0.002622009803 | M123: 0.04050909799 | N123: 8.349085709e-05
A124: =IF('DF raw data'!E129="","",'DF raw data'!E129) -> -269 | B124: =IF('DF raw data'!F129="","",'DF raw data'!F129) -> -2.67295e-05 | C124: =IF('DF raw data'!G129="","",'DF raw data'!G129) -> 0.000105719 | D124: =IF('DF raw data'!H129="","",'DF raw data'!H129) -> -2.3099e-05 | F124: -2.68471098e-05 | G124: 0.0001061841636 | H124: -2.32006356e-05 | J124: -0.001104938512 | K124: -0.0178742075 | L124: 0.002675101885 | M124: 0.04184664893 | N124: 8.76793867e-05
A125: =IF('DF raw data'!E130="","",'DF raw data'!E130) -> -268.5 | B125: =IF('DF raw data'!F130="","",'DF raw data'!F130) -> -3.23014e-05 | C125: =IF('DF raw data'!G130="","",'DF raw data'!G130) -> 0.000100191 | D125: =IF('DF raw data'!H130="","",'DF raw data'!H130) -> -2.36208e-05 | F125: -3.244352616e-05 | G125: 0.0001006318404 | H125: -2.372473152e-05 | J125: -0.001121160275 | K125: -0.01843478764 | L125: 0.002725417805 | M125: 0.04320935783 | N125: 9.202183799e-05
A126: =IF('DF raw data'!E131="","",'DF raw data'!E131) -> -268 | B126: =IF('DF raw data'!F131="","",'DF raw data'!F131) -> -3.53816e-05 | C126: =IF('DF raw data'!G131="","",'DF raw data'!G131) -> 0.000102708 | D126: =IF('DF raw data'!H131="","",'DF raw data'!H131) -> -1.84574e-05 | F126: -3.553727904e-05 | G126: 0.0001031599152 | H126: -1.853861256e-05 | J126: -0.001138928915 | K126: -0.0190042521 | L126: 0.002776997763 | M126: 0.04459785671 | N126: 9.652627581e-05
A127: =IF('DF raw data'!E132="","",'DF raw data'!E132) -> -267.5 | B127: =IF('DF raw data'!F132="","",'DF raw data'!F132) -> -2.6921e-05 | C127: =IF('DF raw data'!G132="","",'DF raw data'!G132) -> 0.000108741 | D127: =IF('DF raw data'!H132="","",'DF raw data'!H132) -> -2.21633e-05 | F127: -2.70394524e-05 | G127: 0.0001092194604 | H127: -2.226081852e-05 | J127: -0.001152448641 | K127: -0.01958047642 | L127: 0.002831607493 | M127: 0.04601366046 | N127: 0.0001011993452
A128: =IF('DF raw data'!E133="","",'DF raw data'!E133) -> -267 | B128: =IF('DF raw data'!F133="","",'DF raw data'!F133) -> -3.42211e-05 | C128: =IF('DF raw data'!G133="","",'DF raw data'!G133) -> 0.000103571 | D128: =IF('DF raw data'!H133="","",'DF raw data'!H133) -> -2.97633e-05 | F128: =(1-$G$1*($B$49-$G$2))*B128 -> -3.437167284e-05 | G128: 0.0001040267124 | H128: -2.989425852e-05 | J128: =F128*$G$3+J127 -> -0.001169634478 | K128: =J128*$G$3+K127 -> -0.02016529366 | L128: =G128*$G$3+L127 -> 0.002883620849 | M128: =L128*$G$3+M127 -> 0.04745547088 | N128: =(J128^2+L128^2)*$G$3+N127 -> 0.0001060410023
A129: =IF('DF raw data'!E134="","",'DF raw data'!E134) -> -266.5 | B129: =IF('DF raw data'!F134="","",'DF raw data'!F134) -> -2.47401e-05 | C129: =IF('DF raw data'!G134="","",'DF raw data'!G134) -> 9.44371e-05 | D129: =IF('DF raw data'!H134="","",'DF raw data'!H134) -> -2.60222e-05 | F129: -2.484895644e-05 | G129: 9.485262324e-05 | H129: -2.613669768e-05 | J129: -0.001182058956 | K129: -0.02075632314 | L129: 0.002931047161 | M129: 0.04892099446 | N129: 0.0001110351527
A130: =IF('DF raw data'!E135="","",'DF raw data'!E135) -> -266 | B130: =IF('DF raw data'!F135="","",'DF raw data'!F135) -> -3.84541e-05 | C130: =IF('DF raw data'!G135="","",'DF raw data'!G135) -> 0.000104215 | D130: =IF('DF raw data'!H135="","",'DF raw data'!H135) -> -2.34334e-05 | F130: -3.862329804e-05 | G130: 0.000104673546 | H130: -2.353650696e-05 | J130: -0.001201370605 | K130: -0.02135700844 | L130: 0.002983383934 | M130: 0.05041268643 | N130: 0.0001162070882
A131: =IF('DF raw data'!E136="","",'DF raw data'!E136) -> -265.5 | B131: =IF('DF raw data'!F136="","",'DF raw data'!F136) -> -2.78046e-05 | C131: =IF('DF raw data'!G136="","",'DF raw data'!G136) -> 9.62319e-05 | D131: =IF('DF raw data'!H136="","",'DF raw data'!H136) -> -4.24096e-05 | F131: -2.792694024e-05 | G131: 9.665532036e-05 | H131: -4.259620224e-05 | J131: -0.001215334075 | K131: -0.02196467548 | L131: 0.003031711594 | M131: 0.05192854223 | N131: 0.0001215412442
A132: =IF('DF raw data'!E137="","",'DF raw data'!E137) -> -265 | B132: =IF('DF raw data'!F137="","",'DF raw data'!F137) -> -3.14692e-05 | C132: =IF('DF raw data'!G137="","",'DF raw data'!G137) -> 8.52297e-05 | D132: =IF('DF raw data'!H137="","",'DF raw data'!H137) -> -2.5421e-05 | F132: -3.160766448e-05 | G132: 8.560471068e-05 | H132: -2.55328524e-05 | J132: -0.001231137907 | K132: -0.02258024443 | L132: 0.00307451395 | M132: 0.0534657992 | N132: 0.0001270254125
A133: =IF('DF raw data'!E138="","",'DF raw data'!E138) -> -264.5 | B133: =IF('DF raw data'!F138="","",'DF raw data'!F138) -> -3.55026e-05 | C133: =IF('DF raw data'!G138="","",'DF raw data'!G138) -> 8.41817e-05 | D133: =IF('DF raw data'!H138="","",'DF raw data'!H138) -> -2.67121e-05 | F133: -3.565881144e-05 | G133: 8.455209948e-05 | H133: -2.682963324e-05 | J133: -0.001248967313 | K133: -0.02320472809 | L133: 0.003116789999 | M133: 0.0550241942 | N133: 0.0001326625621
A134: =IF('DF raw data'!E139="","",'DF raw data'!E139) -> -264 | B134: =IF('DF raw data'!F139="","",'DF raw data'!F139) -> -4.45357e-05 | C134: =IF('DF raw data'!G139="","",'DF raw data'!G139) -> 9.25554e-05 | D134: =IF('DF raw data'!H139="","",'DF raw data'!H139) -> -3.09459e-05 | F134: -4.473165708e-05 | G134: 9.296264376e-05 | H134: -3.108206196e-05 | J134: -0.001271333141 | K134: -0.02384039466 | L134: 0.003163271321 | M134: 0.05660582986 | N134: 0.0001384738489
A135: =IF('DF raw data'!E140="","",'DF raw data'!E140) -> -263.5 | B135: =IF('DF raw data'!F140="","",'DF raw data'!F140) -> -3.81934e-05 | C135: =IF('DF raw data'!G140="","",'DF raw data'!G140) -> 8.90267e-05 | D135: =IF('DF raw data'!H140="","",'DF raw data'!H140) -> -2.62445e-05 | F135: -3.836145096e-05 | G135: 8.941841748e-05 | H135: -2.63599758e-05 | J135: -0.001290513867 | K135: -0.02448565159 | L135: 0.00320798053 | M135: 0.05820982013 | N135: 0.0001444521314
A136: =IF('DF raw data'!E141="","",'DF raw data'!E141) -> -263 | B136: =IF('DF raw data'!F141="","",'DF raw data'!F141) -> -3.93483e-05 | C136: =IF('DF raw data'!G141="","",'DF raw data'!G141) -> 8.41962e-05 | D136: =IF('DF raw data'!H141="","",'DF raw data'!H141) -> -2.76962e-05 | F136: -3.952143252e-05 | G136: 8.456666328e-05 | H136: -2.781806328e-05 | J136: -0.001310274583 | K136: -0.02514078888 | L136: 0.003250263862 | M136: 0.05983495206 | N136: 0.0001505926487
A137: =IF('DF raw data'!E142="","",'DF raw data'!E142) -> -262.5 | B137: =IF('DF raw data'!F142="","",'DF raw data'!F142) -> -4.00428e-05 | C137: =IF('DF raw data'!G142="","",'DF raw data'!G142) -> 8.5329e-05 | D137: =IF('DF raw data'!H142="","",'DF raw data'!H142) -> -3.9243e-05 | F137: -4.021898832e-05 | G137: 8.57044476e-05 | H137: -3.94156692e-05 | J137: -0.001330384077 | K137: -0.02580598092 | L137: 0.003293116085 | M137: 0.0614815101 | N137: 0.0001568999164
A138: =IF('DF raw data'!E143="","",'DF raw data'!E143) -> -262 | B138: =IF('DF raw data'!F143="","",'DF raw data'!F143) -> -4.87008e-05 | C138: =IF('DF raw data'!G143="","",'DF raw data'!G143) -> 8.96447e-05 | D138: =IF('DF raw data'!H143="","",'DF raw data'!H143) -> -3.0124e-05 | F138: -4.891508352e-05 | G138: 9.003913668e-05 | H138: -3.02565456e-05 | J138: -0.001354841619 | K138: -0.02648340173 | L138: 0.003338135654 | M138: 0.06315057793 | N138: 0.0001633892891
A139: =IF('DF raw data'!E144="","",'DF raw data'!E144) -> -261.5 | B139: =IF('DF raw data'!F144="","",'DF raw data'!F144) -> -4.3577e-05 | C139: =IF('DF raw data'!G144="","",'DF raw data'!G144) -> 9.16485e-05 | D139: =IF('DF raw data'!H144="","",'DF raw data'!H144) -> -2.28156e-05 | F139: -4.37687388e-05 | G139: 9.20517534e-05 | H139: -2.291598864e-05 | J139: -0.001376725988 | K139: -0.02717176473 | L139: 0.00338416153 | M139: 0.06484265869 | N139: 0.000170063251
A140: =IF('DF raw data'!E145="","",'DF raw data'!E145) -> -261 | B140: =IF('DF raw data'!F145="","",'DF raw data'!F145) -> -3.35858e-05 | C140: =IF('DF raw data'!G145="","",'DF raw data'!G145) -> 8.41766e-05 | D140: =IF('DF raw data'!H145="","",'DF raw data'!H145) -> -2.20834e-05 | F140: -3.373357752e-05 | G140: 8.454697704e-05 | H140: -2.218056696e-05 | J140: -0.001393592777 | K140: -0.02786856111 | L140: 0.003426435019 | M140: 0.0665558762 | N140: 0.0001769045299
A141: =IF('DF raw data'!E146="","",'DF raw data'!E146) -> -260.5 | B141: =IF('DF raw data'!F146="","",'DF raw data'!F146) -> -3.80019e-05 | C141: =IF('DF raw data'!G146="","",'DF raw data'!G146) -> 8.72465e-05 | D141: =IF('DF raw data'!H146="","",'DF raw data'!H146) -> -2.51324e-05 | F141: -3.816910836e-05 | G141: 8.76303846e-05 | H141: -2.524298256e-05 | J141: -0.001412677331 | K141: -0.02857489978 | L141: 0.003470250211 | M141: 0.06829100131 | N141: 0.0001839236768
A142: =IF('DF raw data'!E147="","",'DF raw data'!E147) -> -260 | B142: =IF('DF raw data'!F147="","",'DF raw data'!F147) -> -2.69804e-05 | C142: =IF('DF raw data'!G147="","",'DF raw data'!G147) -> 8.85848e-05 | D142: =IF('DF raw data'!H147="","",'DF raw data'!H147) -> -3.15983e-05 | F142: -2.709911376e-05 | G142: 8.897457312e-05 | H142: -3.173733252e-05 | J142: -0.001426226888 | K142: -0.02928801322 | L142: 0.003514737498 | M142: 0.07004837006 | N142: 0.0001911174282
A143: =IF('DF raw data'!E148="","",'DF raw data'!E148) -> -259.5 | B143: =IF('DF raw data'!F148="","",'DF raw data'!F148) -> -3.9345e-05 | C143: =IF('DF raw data'!G148="","",'DF raw data'!G148) -> 8.45614e-05 | D143: =IF('DF raw data'!H148="","",'DF raw data'!H148) -> -2.87639e-05 | F143: -3.9518118e-05 | G143: 8.493347016e-05 | H143: -2.889046116e-05 | J143: -0.001445985947 | K143: -0.0300110062 | L143: 0.003557204233 | M143: 0.07182697217 | N143: 0.0001984897168
A144: =IF('DF raw data'!E149="","",'DF raw data'!E149) -> -259 | B144: =IF('DF raw data'!F149="","",'DF raw data'!F149) -> -4.51167e-05 | C144: =IF('DF raw data'!G149="","",'DF raw data'!G149) -> 8.76503e-05 | D144: =IF('DF raw data'!H149="","",'DF raw data'!H149) -> -2.44949e-05 | F144: -4.531521348e-05 | G144: 8.803596132e-05 | H144: -2.460267756e-05 | J144: -0.001468643554 | K144: -0.03074532797 | L144: 0.003601222214 | M144: 0.07362758328 | N144: 0.0002060525745
A145: =IF('DF raw data'!E150="","",'DF raw data'!E150) -> -258.5 | B145: =IF('DF raw data'!F150="","",'DF raw data'!F150) -> -4.31209e-05 | C145: =IF('DF raw data'!G150="","",'DF raw data'!G150) -> 9.0068e-05 | D145: =IF('DF raw data'!H150="","",'DF raw data'!H150) -> -3.483e-05 | F145: -4.331063196e-05 | G145: 9.04642992e-05 | H145: -3.4983252e-05 | J145: -0.00149029887 | K145: -0.03149047741 | L145: 0.003646454363 | M145: 0.07545081046 | N145: 0.0002138113846
A146: =IF('DF raw data'!E151="","",'DF raw data'!E151) -> -258 | B146: =IF('DF raw data'!F151="","",'DF raw data'!F151) -> -4.47987e-05 | C146: =IF('DF raw data'!G151="","",'DF raw data'!G151) -> 9.56021e-05 | D146: =IF('DF raw data'!H151="","",'DF raw data'!H151) -> -2.03758e-05 | F146: -4.499581428e-05 | G146: 9.602274924e-05 | H146: -2.046545352e-05 | J146: -0.001512796777 | K146: -0.0322468758 | L146: 0.003694465738 | M146: 0.07729804333 | N146: 0.0002217802001
A147: =IF('DF raw data'!E152="","",'DF raw data'!E152) -> -257.5 | B147: =IF('DF raw data'!F152="","",'DF raw data'!F152) -> -2.78755e-05 | C147: =IF('DF raw data'!G152="","",'DF raw data'!G152) -> 9.14679e-05 | D147: =IF('DF raw data'!H152="","",'DF raw data'!H152) -> -3.15632e-05 | F147: -2.79981522e-05 | G147: 9.187035876e-05 | H147: -3.170207808e-05 | J147: -0.001526795853 | K147: -0.03301027372 | L147: 0.003740400917 | M147: 0.07916824379 | N147: 0.0002299410524
A148: =IF('DF raw data'!E153="","",'DF raw data'!E153) -> -257 | B148: =IF('DF raw data'!F153="","",'DF raw data'!F153) -> -3.87709e-05 | C148: =IF('DF raw data'!G153="","",'DF raw data'!G153) -> 8.48422e-05 | D148: =IF('DF raw data'!H153="","",'DF raw data'!H153) -> -2.86128e-05 | F148: -3.894149196e-05 | G148: 8.521550568e-05 | H148: -2.873869632e-05 | J148: -0.001546266599 | K148: -0.03378340702 | L148: 0.00378300867 | M148: 0.08105974812 | N148: 0.0002382920999
A149: =IF('DF raw data'!E154="","",'DF raw data'!E154) -> -256.5 | B149: =IF('DF raw data'!F154="","",'DF raw data'!F154) -> -3.44808e-05 | C149: =IF('DF raw data'!G154="","",'DF raw data'!G154) -> 8.65171e-05 | D149: =IF('DF raw data'!H154="","",'DF raw data'!H154) -> -2.17179e-05 | F149: -3.463251552e-05 | G149: 8.689777524e-05 | H149: -2.181345876e-05 | J149: -0.001563582857 | K149: -0.03456519845 | L149: 0.003826457558 | M149: 0.0829729769 | N149: 0.0002468353843
A150: =IF('DF raw data'!E155="","",'DF raw data'!E155) -> -256 | B150: =IF('DF raw data'!F155="","",'DF raw data'!F155) -> -4.2359e-05 | C150: =IF('DF raw data'!G155="","",'DF raw data'!G155) -> 8.40246e-05 | D150: =IF('DF raw data'!H155="","",'DF raw data'!H155) -> -2.81728e-05 | F150: -4.25453796e-05 | G150: 8.439430824e-05 | H150: -2.829676032e-05 | J150: -0.001584855547 | K150: -0.03535762623 | L150: 0.003868654712 | M150: 0.08490730426 | N150: 0.0002555745125
A151: =IF('DF raw data'!E156="","",'DF raw data'!E156) -> -255.5 | B151: =IF('DF raw data'!F156="","",'DF raw data'!F156) -> -2.95502e-05 | C151: =IF('DF raw data'!G156="","",'DF raw data'!G156) -> 8.39743e-05 | D151: =IF('DF raw data'!H156="","",'DF raw data'!H156) -> -1.8231e-05 | F151: -2.968022088e-05 | G151: 8.434378692e-05 | H151: -1.83112164e-05 | J151: -0.001599695657 | K151: -0.03615747405 | L151: 0.003910826605 | M151: 0.08686271756 | N151: 0.000264501308
A152: =IF('DF raw data'!E157="","",'DF raw data'!E157) -> -255 | B152: =IF('DF raw data'!F157="","",'DF raw data'!F157) -> -4.13972e-05 | C152: =IF('DF raw data'!G157="","",'DF raw data'!G157) -> 8.67414e-05 | D152: =IF('DF raw data'!H157="","",'DF raw data'!H157) -> -2.906e-05 | F152: -4.157934768e-05 | G152: 8.712306216e-05 | H152: -2.9187864e-05 | J152: -0.001620485331 | K152: -0.03696771672 | L152: 0.003954388136 | M152: 0.08883991163 | N152: 0.0002736328871
A153: =IF('DF raw data'!E158="","",'DF raw data'!E158) -> -254.5 | B153: =IF('DF raw data'!F158="","",'DF raw data'!F158) -> -4.4665e-05 | C153: =IF('DF raw data'!G158="","",'DF raw data'!G158) -> 9.93284e-05 | D153: =IF('DF raw data'!H158="","",'DF raw data'!H158) -> -2.51534e-05 | F153: -4.4861526e-05 | G153: 9.976544496e-05 | H153: -2.526407496e-05 | J153: -0.001642916094 | K153: -0.03778917477 | L153: 0.004004270859 | M153: 0.09084204706 | N153: 0.0002829995663
A154: =IF('DF raw data'!E159="","",'DF raw data'!E159) -> -254 | B154: =IF('DF raw data'!F159="","",'DF raw data'!F159) -> -2.72379e-05 | C154: =IF('DF raw data'!G159="","",'DF raw data'!G159) -> 0.000102176 | D154: =IF('DF raw data'!H159="","",'DF raw data'!H159) -> -2.91673e-05 | F154: -2.735774676e-05 | G154: 0.0001026255744 | H154: -2.929563612e-05 | J154: -0.001656594967 | K154: -0.03861747225 | L154: 0.004055583646 | M154: 0.09286983888 | N154: 0.0002925955991
A155: =IF('DF raw data'!E160="","",'DF raw data'!E160) -> -253.5 | B155: =IF('DF raw data'!F160="","",'DF raw data'!F160) -> -3.53759e-05 | C155: =IF('DF raw data'!G160="","",'DF raw data'!G160) -> 9.62004e-05 | D155: =IF('DF raw data'!H160="","",'DF raw data'!H160) -> -2.45869e-05 | F155: -3.553155396e-05 | G155: 9.662368176e-05 | H155: -2.469508236e-05 | J155: -0.001674360744 | K155: -0.03945465262 | L155: 0.004103895487 | M155: 0.09492178663 | N155: 0.0003024183201
A156: =IF('DF raw data'!E161="","",'DF raw data'!E161) -> -253 | B156: =IF('DF raw data'!F161="","",'DF raw data'!F161) -> -5.14574e-05 | C156: =IF('DF raw data'!G161="","",'DF raw data'!G161) -> 9.17502e-05 | D156: =IF('DF raw data'!H161="","",'DF raw data'!H161) -> -2.67549e-05 | F156: -5.168381256e-05 | G156: 9.215390088e-05 | H156: -2.687262156e-05 | J156: -0.001700202651 | K156: -0.04030475395 | L156: 0.004149972437 | M156: 0.09699677284 | N156: 0.0003124748003
A157: =IF('DF raw data'!E162="","",'DF raw data'!E162) -> -252.5 | B157: =IF('DF raw data'!F162="","",'DF raw data'!F162) -> -3.0057e-05 | C157: =IF('DF raw data'!G162="","",'DF raw data'!G162) -> 8.78908e-05 | D157: =IF('DF raw data'!H162="","",'DF raw data'!H162) -> -2.70232e-05 | F157: -3.01892508e-05 | G157: 8.827751952e-05 | H157: -2.714210208e-05 | J157: -0.001715297276 | K157: -0.04116240259 | L157: 0.004194111197 | M157: 0.09909382844 | N157: 0.000322741207
A158: =IF('DF raw data'!E163="","",'DF raw data'!E163) -> -252 | B158: =IF('DF raw data'!F163="","",'DF raw data'!F163) -> -2.78884e-05 | C158: =IF('DF raw data'!G163="","",'DF raw data'!G163) -> 9.47856e-05 | D158: =IF('DF raw data'!H163="","",'DF raw data'!H163) -> -1.39801e-05 | F158: -2.801110896e-05 | G158: 9.520265664e-05 | H158: -1.404161244e-05 | J158: -0.001729302831 | K158: -0.042027054 | L158: 0.004241712525 | M158: 0.1012146847 | N158: 0.0003332325137
A159: =IF('DF raw data'!E164="","",'DF raw data'!E164) -> -251.5 | B159: =IF('DF raw data'!F164="","",'DF raw data'!F164) -> -3.80032e-05 | C159: =IF('DF raw data'!G164="","",'DF raw data'!G164) -> 9.27394e-05 | D159: =IF('DF raw data'!H164="","",'DF raw data'!H164) -> -2.35114e-05 | F159: -3.817041408e-05 | G159: 9.314745336e-05 | H159: -2.361485016e-05 | J159: -0.001748388038 | K159: -0.04290124802 | L159: 0.004288286252 | M159: 0.1033588278 | N159: 0.0003439556436
A160: =IF('DF raw data'!E165="","",'DF raw data'!E165) -> -251 | B160: =IF('DF raw data'!F165="","",'DF raw data'!F165) -> -4.30682e-05 | C160: =IF('DF raw data'!G165="","",'DF raw data'!G165) -> 9.21208e-05 | D160: =IF('DF raw data'!H165="","",'DF raw data'!H165) -> -2.09757e-05 | F160: -4.325770008e-05 | G160: 9.252613152e-05 | H160: -2.106799308e-05 | J160: -0.001770016888 | K160: -0.04378625646 | L160: 0.004334549318 | M160: 0.1055261025 | N160: 0.0003549162824
A161: =IF('DF raw data'!E166="","",'DF raw data'!E166) -> -250.5 | B161: =IF('DF raw data'!F166="","",'DF raw data'!F166) -> -2.95473e-05 | C161: =IF('DF raw data'!G166="","",'DF raw data'!G166) -> 8.95227e-05 | D161: =IF('DF raw data'!H166="","",'DF raw data'!H166) -> -2.2684e-05 | F161: -2.967730812e-05 | G161: 8.991659988e-05 | H161: -2.27838096e-05 | J161: -0.001784855542 | K161: -0.04467868424 | L161: 0.004379507618 | M161: 0.1077158563 | N161: 0.0003660991805
A162: =IF('DF raw data'!E167="","",'DF raw data'!E167) -> -250 | B162: =IF('DF raw data'!F167="","",'DF raw data'!F167) -> -3.70427e-05 | C162: =IF('DF raw data'!G167="","",'DF raw data'!G167) -> 9.50112e-05 | D162: =IF('DF raw data'!H167="","",'DF raw data'!H167) -> -2.57192e-05 | F162: -3.720568788e-05 | G162: 9.542924928e-05 | H162: -2.583236448e-05 | J162: -0.001803458386 | K162: -0.04558041343 | L162: 0.004427222242 | M162: 0.1099294674 | N162: 0.00037752556
A163: =IF('DF raw data'!E168="","",'DF raw data'!E168) -> -249.5 | B163: =IF('DF raw data'!F168="","",'DF raw data'!F168) -> -2.66651e-05 | C163: =IF('DF raw data'!G168="","",'DF raw data'!G168) -> 8.93001e-05 | D163: =IF('DF raw data'!H168="","",'DF raw data'!H168) -> -2.13228e-05 | F163: -2.678242644e-05 | G163: 8.969302044e-05 | H163: -2.141662032e-05 | J163: -0.001816849599 | K163: -0.04648883823 | L163: 0.004472068753 | M163: 0.1121655018 | N163: 0.0003891757307
A164: =IF('DF raw data'!E169="","",'DF raw data'!E169) -> -249 | B164: =IF('DF raw data'!F169="","",'DF raw data'!F169) -> -3.33279e-05 | C164: =IF('DF raw data'!G169="","",'DF raw data'!G169) -> 8.86991e-05 | D164: =IF('DF raw data'!H169="","",'DF raw data'!H169) -> -2.40784e-05 | F164: -3.347454276e-05 | G164: 8.908937604e-05 | H164: -2.418434496e-05 | J164: -0.00183358687 | K164: -0.04740563166 | L164: 0.004516613441 | M164: 0.1144238085 | N164: 0.0004010566496
A165: =IF('DF raw data'!E170="","",'DF raw data'!E170) -> -248.5 | B165: =IF('DF raw data'!F170="","",'DF raw data'!F170) -> -3.57557e-05 | C165: =IF('DF raw data'!G170="","",'DF raw data'!G170) -> 9.58975e-05 | D165: =IF('DF raw data'!H170="","",'DF raw data'!H170) -> -3.13166e-05 | F165: -3.591302508e-05 | G165: 9.6319449e-05 | H165: -3.145439304e-05 | J165: -0.001851543383 | K165: -0.04833140335 | L165: 0.004564773165 | M165: 0.1167061951 | N165: 0.000413189333
A166: =IF('DF raw data'!E171="","",'DF raw data'!E171) -> -248 | B166: =IF('DF raw data'!F171="","",'DF raw data'!F171) -> -3.90394e-05 | C166: =IF('DF raw data'!G171="","",'DF raw data'!G171) -> 9.35646e-05 | D166: =IF('DF raw data'!H171="","",'DF raw data'!H171) -> -9.76462e-06 | F166: -3.921117336e-05 | G166: 9.397628424e-05 | H166: -9.807584328e-06 | J166: -0.00187114897 | K166: -0.04926697784 | L166: 0.004611761307 | M166: 0.1190120758 | N166: 0.0004255741035
A167: =IF('DF raw data'!E172="","",'DF raw data'!E172) -> -247.5 | B167: =IF('DF raw data'!F172="","",'DF raw data'!F172) -> -2.83323e-05 | C167: =IF('DF raw data'!G172="","",'DF raw data'!G172) -> 9.23458e-05 | D167: =IF('DF raw data'!H172="","",'DF raw data'!H172) -> -1.86683e-05 | F167: -2.845696212e-05 | G167: 9.275212152e-05 | H167: -1.875044052e-05 | J167: -0.001885377451 | K167: -0.05020966656 | L167: 0.004658137368 | M167: 0.1213411444 | N167: 0.0004382005494
A168: =IF('DF raw data'!E173="","",'DF raw data'!E173) -> -247 | B168: =IF('DF raw data'!F173="","",'DF raw data'!F173) -> -3.10226e-05 | C168: =IF('DF raw data'!G173="","",'DF raw data'!G173) -> 9.45721e-05 | D168: =IF('DF raw data'!H173="","",'DF raw data'!H173) -> -2.23201e-05 | F168: -3.115909944e-05 | G168: 9.498821724e-05 | H168: -2.241830844e-05 | J168: -0.001900957 | K168: -0.05116014506 | L168: 0.004705631477 | M168: 0.1236939602 | N168: 0.0004510788519
A169: =IF('DF raw data'!E174="","",'DF raw data'!E174) -> -246.5 | B169: =IF('DF raw data'!F174="","",'DF raw data'!F174) -> -2.9931e-05 | C169: =IF('DF raw data'!G174="","",'DF raw data'!G174) -> 9.10206e-05 | D169: =IF('DF raw data'!H174="","",'DF raw data'!H174) -> -2.33398e-05 | F169: -3.00626964e-05 | G169: 9.142109064e-05 | H169: -2.344249512e-05 | J169: -0.001915988348 | K169: -0.05211813924 | L169: 0.004751342022 | M169: 0.1260696312 | N169: 0.0004642019831
A170: =IF('DF raw data'!E175="","",'DF raw data'!E175) -> -246 | B170: =IF('DF raw data'!F175="","",'DF raw data'!F175) -> -4.12048e-05 | C170: =IF('DF raw data'!G175="","",'DF raw data'!G175) -> 8.66671e-05 | D170: =IF('DF raw data'!H175="","",'DF raw data'!H175) -> -2.96224e-05 | F170: -4.138610112e-05 | G170: 8.704843524e-05 | H170: -2.975273856e-05 | J170: -0.001936681399 | K170: -0.05308647994 | L170: 0.00479486624 | M170: 0.1284670643 | N170: 0.0004775727217
A171: =IF('DF raw data'!E176="","",'DF raw data'!E176) -> -245.5 | B171: =IF('DF raw data'!F176="","",'DF raw data'!F176) -> -4.14621e-05 | C171: =IF('DF raw data'!G176="","",'DF raw data'!G176) -> 9.01727e-05 | D171: =IF('DF raw data'!H176="","",'DF raw data'!H176) -> -2.42892e-05 | F171: -4.164453324e-05 | G171: 9.056945988e-05 | H171: -2.439607248e-05 | J171: -0.001957503666 | K171: -0.05406523177 | L171: 0.004840150969 | M171: 0.1308871398 | N171: 0.0004912021627
A172: =IF('DF raw data'!E177="","",'DF raw data'!E177) -> -245 | B172: =IF('DF raw data'!F177="","",'DF raw data'!F177) -> -4.44068e-05 | C172: =IF('DF raw data'!G177="","",'DF raw data'!G177) -> 9.0285e-05 | D172: =IF('DF raw data'!H177="","",'DF raw data'!H177) -> -3.21436e-05 | F172: -4.460218992e-05 | G172: 9.0682254e-05 | H172: -3.228503184e-05 | J172: -0.001979804761 | K172: -0.05505513415 | L172: 0.004885492096 | M172: 0.1333298858 | N172: 0.0005050959926
A173: =IF('DF raw data'!E178="","",'DF raw data'!E178) -> -244.5 | B173: =IF('DF raw data'!F178="","",'DF raw data'!F178) -> -5.5943e-05 | C173: =IF('DF raw data'!G178="","",'DF raw data'!G178) -> 8.4784e-05 | D173: =IF('DF raw data'!H178="","",'DF raw data'!H178) -> -2.06971e-05 | F173: -5.61891492e-05 | G173: 8.51570496e-05 | H173: -2.078816724e-05 | J173: -0.002007899335 | K173: -0.05605908382 | L173: 0.004928070621 | M173: 0.1357939211 | N173: 0.0005192547625
A174: =IF('DF raw data'!E179="","",'DF raw data'!E179) -> -244 | B174: =IF('DF raw data'!F179="","",'DF raw data'!F179) -> -3.62129e-05 | C174: =IF('DF raw data'!G179="","",'DF raw data'!G179) -> 8.87562e-05 | D174: =IF('DF raw data'!H179="","",'DF raw data'!H179) -> -2.13355e-05 | F174: -3.637223676e-05 | G174: 8.914672728e-05 | H174: -2.14293762e-05 | J174: -0.002026085454 | K174: -0.05707212655 | L174: 0.004972643985 | M174: 0.1382802431 | N174: 0.0005336708678
A175: =IF('DF raw data'!E180="","",'DF raw data'!E180) -> -243.5 | B175: =IF('DF raw data'!F180="","",'DF raw data'!F180) -> -3.42842e-05 | C175: =IF('DF raw data'!G180="","",'DF raw data'!G180) -> 9.07858e-05 | D175: =IF('DF raw data'!H180="","",'DF raw data'!H180) -> -2.81742e-05 | F175: -3.443505048e-05 | G175: 9.118525752e-05 | H175: -2.829816648e-05 | J175: -0.002043302979 | K175: -0.05809377804 | L175: 0.005018236614 | M175: 0.1407893614 | N175: 0.0005483497607
A176: =IF('DF raw data'!E181="","",'DF raw data'!E181) -> -243 | B176: =IF('DF raw data'!F181="","",'DF raw data'!F181) -> -4.6715e-05 | C176: =IF('DF raw data'!G181="","",'DF raw data'!G181) -> 9.75376e-05 | D176: =IF('DF raw data'!H181="","",'DF raw data'!H181) -> -2.88359e-05 | F176: -4.6920546e-05 | G176: 9.796676544e-05 | H176: -2.896277796e-05 | J176: -0.002066763252 | K176: -0.05912715966 | L176: 0.005067219996 | M176: 0.1433229714 | N176: 0.0005633238751
A177: =IF('DF raw data'!E182="","",'DF raw data'!E182) -> -242.5 | B177: =IF('DF raw data'!F182="","",'DF raw data'!F182) -> -3.86444e-05 | C177: =IF('DF raw data'!G182="","",'DF raw data'!G182) -> 9.85935e-05 | D177: =IF('DF raw data'!H182="","",'DF raw data'!H182) -> -2.26147e-05 | F177: -3.881443536e-05 | G177: 9.90273114e-05 | H177: -2.271420468e-05 | J177: -0.00208617047 | K177: -0.0601702449 | L177: 0.005116733652 | M177: 0.1458813383 | N177: 0.0005785904103
A178: =IF('DF raw data'!E183="","",'DF raw data'!E183) -> -242 | B178: =IF('DF raw data'!F183="","",'DF raw data'!F183) -> -3.4924e-05 | C178: =IF('DF raw data'!G183="","",'DF raw data'!G183) -> 9.90895e-05 | D178: =IF('DF raw data'!H183="","",'DF raw data'!H183) -> -3.24024e-05 | F178: -3.50776656e-05 | G178: 9.95254938e-05 | H178: -3.254497056e-05 | J178: -0.002103709302 | K178: -0.06122209955 | L178: 0.005166496399 | M178: 0.1484645865 | N178: 0.0005941495492
A179: =IF('DF raw data'!E184="","",'DF raw data'!E184) -> -241.5 | B179: =IF('DF raw data'!F184="","",'DF raw data'!F184) -> -4.21658e-05 | C179: =IF('DF raw data'!G184="","",'DF raw data'!G184) -> 9.72251e-05 | D179: =IF('DF raw data'!H184="","",'DF raw data'!H184) -> -2.58235e-05 | F179: -4.235132952e-05 | G179: 9.765289044e-05 | H179: -2.59371234e-05 | J179: -0.002124884967 | K179: -0.06228454203 | L179: 0.005215322844 | M179: 0.1510722479 | N179: 0.0006100069135
A180: =IF('DF raw data'!E185="","",'DF raw data'!E185) -> -241 | B180: =IF('DF raw data'!F185="","",'DF raw data'!F185) -> -3.19877e-05 | C180: =IF('DF raw data'!G185="","",'DF raw data'!G185) -> 9.69813e-05 | D180: =IF('DF raw data'!H185="","",'DF raw data'!H185) -> -1.57822e-05 | F180: -3.212844588e-05 | G180: 9.740801772e-05 | H180: -1.585164168e-05 | J180: -0.00214094919 | K180: -0.06335501663 | L180: 0.005264026853 | M180: 0.1537042613 | N180: 0.0006261537346
A181: =IF('DF raw data'!E186="","",'DF raw data'!E186) -> -240.5 | B181: =IF('DF raw data'!F186="","",'DF raw data'!F186) -> -2.82675e-05 | C181: =IF('DF raw data'!G186="","",'DF raw data'!G186) -> 9.96952e-05 | D181: =IF('DF raw data'!H186="","",'DF raw data'!H186) -> -2.0011e-05 | F181: -2.8391877e-05 | G181: 0.0001001338589 | H181: -2.00990484e-05 | J181: -0.002155145129 | K181: -0.06443258919 | L181: 0.005314093782 | M181: 0.1563613082 | N181: 0.0006425958562
A182: =IF('DF raw data'!E187="","",'DF raw data'!E187) -> -240 | B182: =IF('DF raw data'!F187="","",'DF raw data'!F187) -> -4.19723e-05 | C182: =IF('DF raw data'!G187="","",'DF raw data'!G187) -> 0.000101589 | D182: =IF('DF raw data'!H187="","",'DF raw data'!H187) -> -3.14475e-05 | F182: -4.215697812e-05 | G182: 0.0001020359916 | H182: -3.1585869e-05 | J182: -0.002176223618 | K182: -0.065520701 | L182: 0.005365111778 | M182: 0.1590438641 | N182: 0.000659356043
A183: =IF('DF raw data'!E188="","",'DF raw data'!E188) -> -239.5 | B183: =IF('DF raw data'!F188="","",'DF raw data'!F188) -> -4.12104e-05 | C183: =IF('DF raw data'!G188="","",'DF raw data'!G188) -> 9.12192e-05 | D183: =IF('DF raw data'!H188="","",'DF raw data'!H188) -> -1.72613e-05 | F183: -4.139172576e-05 | G183: 9.162056448e-05 | H183: -1.733724972e-05 | J183: -0.00219691948 | K183: -0.06661916074 | L183: 0.005410922061 | M183: 0.1617493251 | N183: 0.0006764083094
A184: =IF('DF raw data'!E189="","",'DF raw data'!E189) -> -239 | B184: =IF('DF raw data'!F189="","",'DF raw data'!F189) -> -3.5505e-05 | C184: =IF('DF raw data'!G189="","",'DF raw data'!G189) -> 9.31804e-05 | D184: =IF('DF raw data'!H189="","",'DF raw data'!H189) -> -2.5708e-05 | F184: -3.5661222e-05 | G184: 9.359039376e-05 | H184: -2.58211152e-05 | J184: -0.002214750091 | K184: -0.06772653579 | L184: 0.005457717257 | M184: 0.1644781838 | N184: 0.0006937542072
A185: =IF('DF raw data'!E190="","",'DF raw data'!E190) -> -238.5 | B185: =IF('DF raw data'!F190="","",'DF raw data'!F190) -> -3.22979e-05 | C185: =IF('DF raw data'!G190="","",'DF raw data'!G190) -> 0.000101507 | D185: =IF('DF raw data'!H190="","",'DF raw data'!H190) -> -2.92385e-05 | F185: -3.244001076e-05 | G185: 0.0001019536308 | H185: -2.93671494e-05 | J185: -0.002230970097 | K185: -0.06884202083 | L185: 0.005508694073 | M185: 0.1672325308 | N185: 0.0007114156762
A186: =IF('DF raw data'!E191="","",'DF raw data'!E191) -> -238 | B186: =IF('DF raw data'!F191="","",'DF raw data'!F191) -> -3.12093e-05 | C186: =IF('DF raw data'!G191="","",'DF raw data'!G191) -> 0.000111152 | D186: =IF('DF raw data'!H191="","",'DF raw data'!H191) -> -3.04371e-05 | F186: -3.134662092e-05 | G186: 0.0001116410688 | H186: -3.057102324e-05 | J186: -0.002246643407 | K186: -0.06996534254 | L186: 0.005564514607 | M186: 0.1700147881 | N186: 0.0007294212909
A187: =IF('DF raw data'!E192="","",'DF raw data'!E192) -> -237.5 | B187: =IF('DF raw data'!F192="","",'DF raw data'!F192) -> -3.96066e-05 | C187: =IF('DF raw data'!G192="","",'DF raw data'!G192) -> 0.000106751 | D187: =IF('DF raw data'!H192="","",'DF raw data'!H192) -> -2.09822e-05 | F187: -3.978086904e-05 | G187: 0.0001072207044 | H187: -2.107452168e-05 | J187: -0.002266533842 | K187: -0.07109860946 | L187: 0.005618124959 | M187: 0.1728238506 | N187: 0.0007477715427
A188: =IF('DF raw data'!E193="","",'DF raw data'!E193) -> -237 | B188: =IF('DF raw data'!F193="","",'DF raw data'!F193) -> -4.36403e-05 | C188: =IF('DF raw data'!G193="","",'DF raw data'!G193) -> 0.000100733 | D188: =IF('DF raw data'!H193="","",'DF raw data'!H193) -> -2.79778e-05 | F188: -4.383231732e-05 | G188: 0.0001011762252 | H188: -2.810090232e-05 | J188: -0.002288450001 | K188: -0.07224283446 | L188: 0.005668713072 | M188: 0.1756582071 | N188: 0.0007664571984
A189: =IF('DF raw data'!E194="","",'DF raw data'!E194) -> -236.5 | B189: =IF('DF raw data'!F194="","",'DF raw data'!F194) -> -4.86961e-05 | C189: =IF('DF raw data'!G194="","",'DF raw data'!G194) -> 0.000100816 | D189: =IF('DF raw data'!H194="","",'DF raw data'!H194) -> -3.28392e-05 | F189: -4.891036284e-05 | G189: 0.0001012595904 | H189: -3.298369248e-05 | J189: -0.002312905182 | K189: -0.07339928705 | L189: 0.005719342867 | M189: 0.1785178785 | N189: 0.000785487405
A190: =IF('DF raw data'!E195="","",'DF raw data'!E195) -> -236 | B190: =IF('DF raw data'!F195="","",'DF raw data'!F195) -> -3.9857e-05 | C190: =IF('DF raw data'!G195="","",'DF raw data'!G195) -> 0.000107056 | D190: =IF('DF raw data'!H195="","",'DF raw data'!H195) -> -3.28739e-05 | F190: -4.00323708e-05 | G190: 0.0001075270464 | H190: -3.301854516e-05 | J190: -0.002332921367 | K190: -0.07456574773 | L190: 0.00577310639 | M190: 0.1814044317 | N190: 0.0008048730447
A191: =IF('DF raw data'!E196="","",'DF raw data'!E196) -> -235.5 | B191: =IF('DF raw data'!F196="","",'DF raw data'!F196) -> -4.76085e-05 | C191: =IF('DF raw data'!G196="","",'DF raw data'!G196) -> 0.000110321 | D191: =IF('DF raw data'!H196="","",'DF raw data'!H196) -> -3.06583e-05 | F191: -4.78179774e-05 | G191: 0.0001108064124 | H191: -3.079319652e-05 | J191: -0.002356830356 | K191: -0.07574416291 | L191: 0.005828509597 | M191: 0.1843186865 | N191: 0.0008246361315
A192: =IF('DF raw data'!E197="","",'DF raw data'!E197) -> -235 | B192: =IF('DF raw data'!F197="","",'DF raw data'!F197) -> -4.44685e-05 | C192: =IF('DF raw data'!G197="","",'DF raw data'!G197) -> 9.79358e-05 | D192: =IF('DF raw data'!H197="","",'DF raw data'!H197) -> -3.4891e-05 | F192: =(1-$G$1*($B$49-$G$2))*B192 -> -4.46641614e-05 | G192: 9.836671752e-05 | H192: -3.50445204e-05 | J192: =F192*$G$3+J191 -> -0.002379162437 | K192: =J192*$G$3+K191 -> -0.07693374413 | L192: =G192*$G$3+L191 -> 0.005877692955 | M192: =L192*$G$3+M191 -> 0.187257533 | N192: =(J192^2+L192^2)*$G$3+N191 -> 0.0008447399757
A193: =IF('DF raw data'!E198="","",'DF raw data'!E198) -> -234.5 | B193: =IF('DF raw data'!F198="","",'DF raw data'!F198) -> -2.87144e-05 | C193: =IF('DF raw data'!G198="","",'DF raw data'!G198) -> 0.000102864 | D193: =IF('DF raw data'!H198="","",'DF raw data'!H198) -> -2.24714e-05 | F193: -2.884074336e-05 | G193: 0.0001033166016 | H193: -2.257027416e-05 | J193: -0.002393582808 | K193: -0.07813053553 | L193: 0.005929351256 | M193: 0.1902222086 | N193: 0.0008651831981
A194: =IF('DF raw data'!E199="","",'DF raw data'!E199) -> -234 | B194: =IF('DF raw data'!F199="","",'DF raw data'!F199) -> -3.78121e-05 | C194: =IF('DF raw data'!G199="","",'DF raw data'!G199) -> 0.000104098 | D194: =IF('DF raw data'!H199="","",'DF raw data'!H199) -> -2.45095e-05 | F194: -3.797847324e-05 | G194: 0.0001045560312 | H194: -2.46173418e-05 | J194: -0.002412572045 | K194: -0.07933682156 | L194: 0.005981629272 | M194: 0.1932130233 | N194: 0.0008859833945
A195: =IF('DF raw data'!E200="","",'DF raw data'!E200) -> -233.5 | B195: =IF('DF raw data'!F200="","",'DF raw data'!F200) -> -3.79956e-05 | C195: =IF('DF raw data'!G200="","",'DF raw data'!G200) -> 0.000108921 | D195: =IF('DF raw data'!H200="","",'DF raw data'!H200) -> -3.50275e-05 | F195: -3.816278064e-05 | G195: 0.0001094002524 | H195: -3.5181621e-05 | J195: -0.002431653435 | K195: -0.08055264827 | L195: 0.006036329398 | M195: 0.196231188 | N195: 0.0009071585
A196: =IF('DF raw data'!E201="","",'DF raw data'!E201) -> -233 | B196: =IF('DF raw data'!F201="","",'DF raw data'!F201) -> -3.78751e-05 | C196: =IF('DF raw data'!G201="","",'DF raw data'!G201) -> 0.000115683 | D196: =IF('DF raw data'!H201="","",'DF raw data'!H201) -> -2.66465e-05 | F196: -3.804175044e-05 | G196: 0.0001161920052 | H196: -2.67637446e-05 | J196: -0.002450674311 | K196: -0.08177798543 | L196: 0.006094425401 | M196: 0.1992784007 | N196: 0.0009287324127
A197: =IF('DF raw data'!E202="","",'DF raw data'!E202) -> -232.5 | B197: =IF('DF raw data'!F202="","",'DF raw data'!F202) -> -3.98625e-05 | C197: =IF('DF raw data'!G202="","",'DF raw data'!G202) -> 0.000105755 | D197: =IF('DF raw data'!H202="","",'DF raw data'!H202) -> -2.10816e-05 | F197: -4.0037895e-05 | G197: 0.000106220322 | H197: -2.117435904e-05 | J197: -0.002470693258 | K197: -0.08301333206 | L197: 0.006147535562 | M197: 0.2023521685 | N197: 0.0009506806721
A198: =IF('DF raw data'!E203="","",'DF raw data'!E203) -> -232 | B198: =IF('DF raw data'!F203="","",'DF raw data'!F203) -> -3.9021e-05 | C198: =IF('DF raw data'!G203="","",'DF raw data'!G203) -> 0.000106142 | D198: =IF('DF raw data'!H203="","",'DF raw data'!H203) -> -3.77719e-05 | F198: -3.91926924e-05 | G198: 0.0001066090248 | H198: -3.793809636e-05 | J198: -0.002490289604 | K198: -0.08425847686 | L198: 0.006200840074 | M198: 0.2054525885 | N198: 0.000973006652
A199: =IF('DF raw data'!E204="","",'DF raw data'!E204) -> -231.5 | B199: =IF('DF raw data'!F204="","",'DF raw data'!F204) -> -3.44048e-05 | C199: =IF('DF raw data'!G204="","",'DF raw data'!G204) -> 0.000103373 | D199: =IF('DF raw data'!H204="","",'DF raw data'!H204) -> -3.97878e-05 | F199: -3.455618112e-05 | G199: 0.0001038278412 | H199: -3.996286632e-05 | J199: -0.002507567695 | K199: -0.08551226071 | L199: 0.006252753995 | M199: 0.2085789655 | N199: 0.0009956990662
A200: =IF('DF raw data'!E205="","",'DF raw data'!E205) -> -231 | B200: =IF('DF raw data'!F205="","",'DF raw data'!F205) -> -3.85071e-05 | C200: =IF('DF raw data'!G205="","",'DF raw data'!G205) -> 0.000100755 | D200: =IF('DF raw data'!H205="","",'DF raw data'!H205) -> -3.99328e-05 | F200: -3.867653124e-05 | G200: 0.000101198322 | H200: -4.010850432e-05 | J200: -0.00252690596 | K200: -0.08677571369 | L200: 0.006303353156 | M200: 0.2117306421 | N200: 0.001018757824
A201: =IF('DF raw data'!E206="","",'DF raw data'!E206) -> -230.5 | B201: =IF('DF raw data'!F206="","",'DF raw data'!F206) -> -3.8572e-05 | C201: =IF('DF raw data'!G206="","",'DF raw data'!G206) -> 0.000110576 | D201: =IF('DF raw data'!H206="","",'DF raw data'!H206) -> -3.54586e-05 | F201: -3.87417168e-05 | G201: 0.0001110625344 | H201: -3.561461784e-05 | J201: -0.002546276819 | K201: -0.0880488521 | L201: 0.006358884423 | M201: 0.2149100843 | N201: 0.001042217292
... 1061 more rows

Sheet 10 y=0
A1: =IF('DF raw data'!I1="","",'DF raw data'!I1) -> Number of header lines | B1: =IF('DF raw data'!J1="","",'DF raw data'!J1) -> 54 | C1: =IF('DF raw data'!K1="","",'DF raw data'!K1) ->  | D1: =IF('DF raw data'!L1="","",'DF raw data'!L1) ->  | F1: T_coeff | G1: -0.001 | H1: /degC | J1: IBy total | K1: =J1262*1000 -> -17.04066502 | L1: muTm | M1: =L1262*1000 -> -11.49197164 | R1: DF ref | S1: ='10 y=-0.2'!S1 -> 1
A2: =IF('DF raw data'!I2="","",'DF raw data'!I2) -> Measured by | B2: =IF('DF raw data'!J2="","",'DF raw data'!J2) -> Danfysik | C2: =IF('DF raw data'!K2="","",'DF raw data'!K2) ->  | D2: =IF('DF raw data'!L2="","",'DF raw data'!L2) ->  | F2: Tcorr | G2: 20 | H2: degC | J2: JBy total | K2: =K1262 -> -10.49534879 | L2: muTm^2 | M2: =M1262 -> 0.3716852433
A3: =IF('DF raw data'!I3="","",'DF raw data'!I3) -> Operator | B3: =IF('DF raw data'!J3="","",'DF raw data'!J3) -> PMHA | C3: =IF('DF raw data'!K3="","",'DF raw data'!K3) ->  | D3: =IF('DF raw data'!L3="","",'DF raw data'!L3) ->  | F3: Step | G3: =A63-A62 -> 0.5 | H3: mm | J3: PI total | K3: =N1262 -> 10496.9643 | L3: T^2mm^3
A4: =IF('DF raw data'!I4="","",'DF raw data'!I4) -> Data-time | B4: =IF('DF raw data'!J4="","",'DF raw data'!J4) -> 27-09-2024, 14:23:11 | C4: =IF('DF raw data'!K4="","",'DF raw data'!K4) ->  | D4: =IF('DF raw data'!L4="","",'DF raw data'!L4) -> 
A5: =IF('DF raw data'!I5="","",'DF raw data'!I5) -> Project | B5: =IF('DF raw data'!J5="","",'DF raw data'!J5) -> 504314 | C5: =IF('DF raw data'!K5="","",'DF raw data'!K5) ->  | D5: =IF('DF raw data'!L5="","",'DF raw data'!L5) -> 
A6: =IF('DF raw data'!I6="","",'DF raw data'!I6) -> Magnet type | B6: =IF('DF raw data'!J6="","",'DF raw data'!J6) -> Dipole | C6: =IF('DF raw data'!K6="","",'DF raw data'!K6) ->  | D6: =IF('DF raw data'!L6="","",'DF raw data'!L6) -> 
A7: =IF('DF raw data'!I7="","",'DF raw data'!I7) -> Magnet nr. | B7: =IF('DF raw data'!J7="","",'DF raw data'!J7) -> 2410104 | C7: =IF('DF raw data'!K7="","",'DF raw data'!K7) ->  | D7: =IF('DF raw data'!L7="","",'DF raw data'!L7) -> 
A8: =IF('DF raw data'!I8="","",'DF raw data'!I8) -> Meas. number | B8: =IF('DF raw data'!J8="","",'DF raw data'!J8) -> 776 | C8: =IF('DF raw data'!K8="","",'DF raw data'!K8) ->  | D8: =IF('DF raw data'!L8="","",'DF raw data'!L8) -> 
A9: =IF('DF raw data'!I9="","",'DF raw data'!I9) -> Add. info | B9: =IF('DF raw data'!J9="","",'DF raw data'!J9) -> Y-alignment scan 3) | C9: =IF('DF raw data'!K9="","",'DF raw data'!K9) ->  | D9: =IF('DF raw data'!L9="","",'DF raw data'!L9) -> 
A10: =IF('DF raw data'!I10="","",'DF raw data'!I10) -> Device | B10: =IF('DF raw data'!J10="","",'DF raw data'!J10) -> (HAL) HALL-PROBE | C10: =IF('DF raw data'!K10="","",'DF raw data'!K10) ->  | D10: =IF('DF raw data'!L10="","",'DF raw data'!L10) -> 
A11: =IF('DF raw data'!I11="","",'DF raw data'!I11) -> Goal | B11: =IF('DF raw data'!J11="","",'DF raw data'!J11) -> (AXI) AXis Integral (Line, EFB) | C11: =IF('DF raw data'!K11="","",'DF raw data'!K11) ->  | D11: =IF('DF raw data'!L11="","",'DF raw data'!L11) -> 
A12: =IF('DF raw data'!I12="","",'DF raw data'!I12) -> Power supply mode | B12: =IF('DF raw data'!J12="","",'DF raw data'!J12) -> (PM) Permanent Magnet (no MPS in use) | C12: =IF('DF raw data'!K12="","",'DF raw data'!K12) ->  | D12: =IF('DF raw data'!L12="","",'DF raw data'!L12) -> 
A13: =IF('DF raw data'!I13="","",'DF raw data'!I13) -> Data format | B13: =IF('DF raw data'!J13="","",'DF raw data'!J13) -> Raw data text file | C13: =IF('DF raw data'!K13="","",'DF raw data'!K13) ->  | D13: =IF('DF raw data'!L13="","",'DF raw data'!L13) -> 
A14: =IF('DF raw data'!I14="","",'DF raw data'!I14) -> Direction of the pos. x-axis | B14: =IF('DF raw data'!J14="","",'DF raw data'!J14) -> See test program | C14: =IF('DF raw data'!K14="","",'DF raw data'!K14) ->  | D14: =IF('DF raw data'!L14="","",'DF raw data'!L14) -> 
A15: =IF('DF raw data'!I15="","",'DF raw data'!I15) -> Direction of the pos. y-axis | B15: =IF('DF raw data'!J15="","",'DF raw data'!J15) -> Vertical up | C15: =IF('DF raw data'!K15="","",'DF raw data'!K15) ->  | D15: =IF('DF raw data'!L15="","",'DF raw data'!L15) -> 
A16: =IF('DF raw data'!I16="","",'DF raw data'!I16) -> Direction of the pos. z-axis | B16: =IF('DF raw data'!J16="","",'DF raw data'!J16) -> See test program | C16: =IF('DF raw data'!K16="","",'DF raw data'!K16) ->  | D16: =IF('DF raw data'!L16="","",'DF raw data'!L16) -> 
A17: =IF('DF raw data'!I17="","",'DF raw data'!I17) -> Mapper type | B17: =IF('DF raw data'!J17="","",'DF raw data'!J17) -> Precision Hall Mapper | C17: =IF('DF raw data'!K17="","",'DF raw data'!K17) ->  | D17: =IF('DF raw data'!L17="","",'DF raw data'!L17) -> 
A18: =IF('DF raw data'!I18="","",'DF raw data'!I18) -> Mapper Danfysik Reg. Number | B18: =IF('DF raw data'!J18="","",'DF raw data'!J18) -> 2033-D (mapper 1) | C18: =IF('DF raw data'!K18="","",'DF raw data'!K18) ->  | D18: =IF('DF raw data'!L18="","",'DF raw data'!L18) -> 
A19: =IF('DF raw data'!I19="","",'DF raw data'!I19) -> Measurement consept | B19: =IF('DF raw data'!J19="","",'DF raw data'!J19) -> Square line grid | C19: =IF('DF raw data'!K19="","",'DF raw data'!K19) ->  | D19: =IF('DF raw data'!L19="","",'DF raw data'!L19) -> 
A20: =IF('DF raw data'!I20="","",'DF raw data'!I20) -> Mode | B20: =IF('DF raw data'!J20="","",'DF raw data'!J20) -> On-the-fly measurement | C20: =IF('DF raw data'!K20="","",'DF raw data'!K20) ->  | D20: =IF('DF raw data'!L20="","",'DF raw data'!L20) -> 
A21: =IF('DF raw data'!I21="","",'DF raw data'!I21) ->  | B21: =IF('DF raw data'!J21="","",'DF raw data'!J21) ->  | C21: =IF('DF raw data'!K21="","",'DF raw data'!K21) ->  | D21: =IF('DF raw data'!L21="","",'DF raw data'!L21) -> 
A22: =IF('DF raw data'!I22="","",'DF raw data'!I22) -> Probe Name | B22: =IF('DF raw data'!J22="","",'DF raw data'!J22) -> ID12_By | C22: =IF('DF raw data'!K22="","",'DF raw data'!K22) ->  | D22: =IF('DF raw data'!L22="","",'DF raw data'!L22) -> 
A23: =IF('DF raw data'!I23="","",'DF raw data'!I23) -> Probe Type | B23: =IF('DF raw data'!J23="","",'DF raw data'!J23) -> DF_ID_3D_Bxyz | C23: =IF('DF raw data'!K23="","",'DF raw data'!K23) ->  | D23: =IF('DF raw data'!L23="","",'DF raw data'!L23) -> 
A24: =IF('DF raw data'!I24="","",'DF raw data'!I24) -> Probe Danfysik Reg. Number | B24: =IF('DF raw data'!J24="","",'DF raw data'!J24) -> 2277 | C24: =IF('DF raw data'!K24="","",'DF raw data'!K24) ->  | D24: =IF('DF raw data'!L24="","",'DF raw data'!L24) -> 
A25: =IF('DF raw data'!I25="","",'DF raw data'!I25) -> Probe Axis | B25: =IF('DF raw data'!J25="","",'DF raw data'!J25) -> By | C25: =IF('DF raw data'!K25="","",'DF raw data'!K25) ->  | D25: =IF('DF raw data'!L25="","",'DF raw data'!L25) -> 
A26: =IF('DF raw data'!I26="","",'DF raw data'!I26) -> Probe Current Supply | B26: =IF('DF raw data'!J26="","",'DF raw data'!J26) -> 1825-D | C26: =IF('DF raw data'!K26="","",'DF raw data'!K26) ->  | D26: =IF('DF raw data'!L26="","",'DF raw data'!L26) -> 
A27: =IF('DF raw data'!I27="","",'DF raw data'!I27) -> Probe Gain Correction | B27: =IF('DF raw data'!J27="","",'DF raw data'!J27) -> 0.99606 | C27: =IF('DF raw data'!K27="","",'DF raw data'!K27) ->  | D27: =IF('DF raw data'!L27="","",'DF raw data'!L27) -> 
A28: =IF('DF raw data'!I28="","",'DF raw data'!I28) -> Probe Offset Correction | B28: =IF('DF raw data'!J28="","",'DF raw data'!J28) -> 0.0027746 | C28: =IF('DF raw data'!K28="","",'DF raw data'!K28) ->  | D28: =IF('DF raw data'!L28="","",'DF raw data'!L28) -> 
A29: =IF('DF raw data'!I29="","",'DF raw data'!I29) -> DVM Number | B29: =IF('DF raw data'!J29="","",'DF raw data'!J29) -> 2 | C29: =IF('DF raw data'!K29="","",'DF raw data'!K29) ->  | D29: =IF('DF raw data'!L29="","",'DF raw data'!L29) -> 
A30: =IF('DF raw data'!I30="","",'DF raw data'!I30) -> DVM Type | B30: =IF('DF raw data'!J30="","",'DF raw data'!J30) -> K2701 | C30: =IF('DF raw data'!K30="","",'DF raw data'!K30) ->  | D30: =IF('DF raw data'!L30="","",'DF raw data'!L30) -> 
A31: =IF('DF raw data'!I31="","",'DF raw data'!I31) -> DVM Danfysik Reg. Number | B31: =IF('DF raw data'!J31="","",'DF raw data'!J31) -> 1743-D | C31: =IF('DF raw data'!K31="","",'DF raw data'!K31) ->  | D31: =IF('DF raw data'!L31="","",'DF raw data'!L31) -> 
A32: =IF('DF raw data'!I32="","",'DF raw data'!I32) -> Probe Name | B32: =IF('DF raw data'!J32="","",'DF raw data'!J32) -> ID12_Bx | C32: =IF('DF raw data'!K32="","",'DF raw data'!K32) ->  | D32: =IF('DF raw data'!L32="","",'DF raw data'!L32) -> 
A33: =IF('DF raw data'!I33="","",'DF raw data'!I33) -> Probe Type | B33: =IF('DF raw data'!J33="","",'DF raw data'!J33) -> DF_ID_3D_Bxyz | C33: =IF('DF raw data'!K33="","",'DF raw data'!K33) ->  | D33: =IF('DF raw data'!L33="","",'DF raw data'!L33) -> 
A34: =IF('DF raw data'!I34="","",'DF raw data'!I34) -> Probe Danfysik Reg. Number | B34: =IF('DF raw data'!J34="","",'DF raw data'!J34) -> 2277 | C34: =IF('DF raw data'!K34="","",'DF raw data'!K34) ->  | D34: =IF('DF raw data'!L34="","",'DF raw data'!L34) -> 
A35: =IF('DF raw data'!I35="","",'DF raw data'!I35) -> Probe Axis | B35: =IF('DF raw data'!J35="","",'DF raw data'!J35) -> Bx | C35: =IF('DF raw data'!K35="","",'DF raw data'!K35) ->  | D35: =IF('DF raw data'!L35="","",'DF raw data'!L35) -> 
A36: =IF('DF raw data'!I36="","",'DF raw data'!I36) -> Probe Current Supply | B36: =IF('DF raw data'!J36="","",'DF raw data'!J36) -> 1825-D | C36: =IF('DF raw data'!K36="","",'DF raw data'!K36) ->  | D36: =IF('DF raw data'!L36="","",'DF raw data'!L36) -> 
A37: =IF('DF raw data'!I37="","",'DF raw data'!I37) -> Probe Gain Correction | B37: =IF('DF raw data'!J37="","",'DF raw data'!J37) -> 1 | C37: =IF('DF raw data'!K37="","",'DF raw data'!K37) ->  | D37: =IF('DF raw data'!L37="","",'DF raw data'!L37) -> 
A38: =IF('DF raw data'!I38="","",'DF raw data'!I38) -> Probe Offset Correction | B38: =IF('DF raw data'!J38="","",'DF raw data'!J38) -> -0.1754 | C38: =IF('DF raw data'!K38="","",'DF raw data'!K38) ->  | D38: =IF('DF raw data'!L38="","",'DF raw data'!L38) -> 
A39: =IF('DF raw data'!I39="","",'DF raw data'!I39) -> DVM Number | B39: =IF('DF raw data'!J39="","",'DF raw data'!J39) -> 3 | C39: =IF('DF raw data'!K39="","",'DF raw data'!K39) ->  | D39: =IF('DF raw data'!L39="","",'DF raw data'!L39) -> 
A40: =IF('DF raw data'!I40="","",'DF raw data'!I40) -> DVM Type | B40: =IF('DF raw data'!J40="","",'DF raw data'!J40) -> K2701 | C40: =IF('DF raw data'!K40="","",'DF raw data'!K40) ->  | D40: =IF('DF raw data'!L40="","",'DF raw data'!L40) -> 
A41: =IF('DF raw data'!I41="","",'DF raw data'!I41) -> DVM Danfysik Reg. Number | B41: =IF('DF raw data'!J41="","",'DF raw data'!J41) -> 1744-D | C41: =IF('DF raw data'!K41="","",'DF raw data'!K41) ->  | D41: =IF('DF raw data'!L41="","",'DF raw data'!L41) -> 
A42: =IF('DF raw data'!I42="","",'DF raw data'!I42) -> Probe Name | B42: =IF('DF raw data'!J42="","",'DF raw data'!J42) -> ID12_Bz | C42: =IF('DF raw data'!K42="","",'DF raw data'!K42) ->  | D42: =IF('DF raw data'!L42="","",'DF raw data'!L42) -> 
A43: =IF('DF raw data'!I43="","",'DF raw data'!I43) -> Probe Type | B43: =IF('DF raw data'!J43="","",'DF raw data'!J43) -> DF_ID_3D_Bxyz | C43: =IF('DF raw data'!K43="","",'DF raw data'!K43) ->  | D43: =IF('DF raw data'!L43="","",'DF raw data'!L43) -> 
A44: =IF('DF raw data'!I44="","",'DF raw data'!I44) -> Probe Danfysik Reg. Number | B44: =IF('DF raw data'!J44="","",'DF raw data'!J44) -> 2277 | C44: =IF('DF raw data'!K44="","",'DF raw data'!K44) ->  | D44: =IF('DF raw data'!L44="","",'DF raw data'!L44) -> 
A45: =IF('DF raw data'!I45="","",'DF raw data'!I45) -> Probe Axis | B45: =IF('DF raw data'!J45="","",'DF raw data'!J45) -> Bz | C45: =IF('DF raw data'!K45="","",'DF raw data'!K45) ->  | D45: =IF('DF raw data'!L45="","",'DF raw data'!L45) -> 
A46: =IF('DF raw data'!I46="","",'DF raw data'!I46) -> Probe Current Supply | B46: =IF('DF raw data'!J46="","",'DF raw data'!J46) -> 1825-D | C46: =IF('DF raw data'!K46="","",'DF raw data'!K46) ->  | D46: =IF('DF raw data'!L46="","",'DF raw data'!L46) -> 
A47: =IF('DF raw data'!I47="","",'DF raw data'!I47) -> Probe Gain Correction | B47: =IF('DF raw data'!J47="","",'DF raw data'!J47) -> 1 | C47: =IF('DF raw data'!K47="","",'DF raw data'!K47) ->  | D47: =IF('DF raw data'!L47="","",'DF raw data'!L47) -> 
A48: =IF('DF raw data'!I53="","",'DF raw data'!I53) -> PS-Gap: | B48: =IF('DF raw data'!J53="","",'DF raw data'!J53) -> 10 | C48: =IF('DF raw data'!K53="","",'DF raw data'!K53) ->  | D48: =IF('DF raw data'!L53="","",'DF raw data'!L53) -> 
A49: =IF('DF raw data'!I54="","",'DF raw data'!I54) -> PS-Temperature: | B49: =IF('DF raw data'!J54="","",'DF raw data'!J54) -> 24.4 | C49: =IF('DF raw data'!K54="","",'DF raw data'!K54) ->  | D49: =IF('DF raw data'!L54="","",'DF raw data'!L54) -> 
A50: =IF('DF raw data'!I55="","",'DF raw data'!I55) -> PS-Encoder: | B50: =IF('DF raw data'!J55="","",'DF raw data'!J55) -> 19.8945 | C50: =IF('DF raw data'!K55="","",'DF raw data'!K55) ->  | D50: =IF('DF raw data'!L55="","",'DF raw data'!L55) -> 
A51: =IF('DF raw data'!I56="","",'DF raw data'!I56) ->  | B51: =IF('DF raw data'!J56="","",'DF raw data'!J56) ->  | C51: =IF('DF raw data'!K56="","",'DF raw data'!K56) ->  | D51: =IF('DF raw data'!L56="","",'DF raw data'!L56) -> 
A52: =IF('DF raw data'!I57="","",'DF raw data'!I57) -> Monitor-Index | B52: =IF('DF raw data'!J57="","",'DF raw data'!J57) -> [1,1,4] | C52: =IF('DF raw data'!K57="","",'DF raw data'!K57) ->  | D52: =IF('DF raw data'!L57="","",'DF raw data'!L57) -> 
A53: =IF('DF raw data'!I58="","",'DF raw data'!I58) ->  | B53: =IF('DF raw data'!J58="","",'DF raw data'!J58) ->  | C53: =IF('DF raw data'!K58="","",'DF raw data'!K58) ->  | D53: =IF('DF raw data'!L58="","",'DF raw data'!L58) -> 
A54: =IF('DF raw data'!I59="","",'DF raw data'!I59) -> Time [s] | B54: =IF('DF raw data'!J59="","",'DF raw data'!J59) -> Y [mm] | C54: =IF('DF raw data'!K59="","",'DF raw data'!K59) -> X [mm] | D54: =IF('DF raw data'!L59="","",'DF raw data'!L59) -> Nominal current [A]
A55: =IF('DF raw data'!I60="","",'DF raw data'!I60) ->  | B55: =IF('DF raw data'!J60="","",'DF raw data'!J60) ->  | C55: =IF('DF raw data'!K60="","",'DF raw data'!K60) ->  | D55: =IF('DF raw data'!L60="","",'DF raw data'!L60) -> 
A56: =IF('DF raw data'!I61="","",'DF raw data'!I61) -> 209.5 | B56: =IF('DF raw data'!J61="","",'DF raw data'!J61) -> 31.73 | C56: =IF('DF raw data'!K61="","",'DF raw data'!K61) -> 302.3 | D56: =IF('DF raw data'!L61="","",'DF raw data'!L61) -> 0
A57: =IF('DF raw data'!I62="","",'DF raw data'!I62) ->  | B57: =IF('DF raw data'!J62="","",'DF raw data'!J62) ->  | C57: =IF('DF raw data'!K62="","",'DF raw data'!K62) ->  | D57: =IF('DF raw data'!L62="","",'DF raw data'!L62) -> 
A58: =IF('DF raw data'!I63="","",'DF raw data'!I63) -> Measurement-Index | B58: =IF('DF raw data'!J63="","",'DF raw data'!J63) -> [1,1,1201,2] | C58: =IF('DF raw data'!K63="","",'DF raw data'!K63) ->  | D58: =IF('DF raw data'!L63="","",'DF raw data'!L63) -> 
A59: =IF('DF raw data'!I64="","",'DF raw data'!I64) ->  | B59: =IF('DF raw data'!J64="","",'DF raw data'!J64) ->  | C59: =IF('DF raw data'!K64="","",'DF raw data'!K64) ->  | D59: =IF('DF raw data'!L64="","",'DF raw data'!L64) -> 
A60: =IF('DF raw data'!I65="","",'DF raw data'!I65) -> Z [mm] | B60: By [T] | C60: Bx [T] | D60: Bz [T] | F60: By_corr | G60: Bx_corr | H60: Bz_corr | J60: Iy | K60: Jy | L60: Ix | M60: Jx | N60: PI
A62: =IF('DF raw data'!I67="","",'DF raw data'!I67) -> -300 | B62: =IF('DF raw data'!J67="","",'DF raw data'!J67) -> -2.6793e-05 | C62: =IF('DF raw data'!K67="","",'DF raw data'!K67) -> 1.91324e-05 | D62: =IF('DF raw data'!L67="","",'DF raw data'!L67) -> -2.09235e-05 | F62: =(1-$G$1*($B$49))*B62 -> -2.74467492e-05 | G62: =(1-$G$1*($B$49-$G$2))*C62 -> 1.921658256e-05 | H62: =(1-$G$1*($B$49-$G$2))*D62 -> -2.10155634e-05 | J62: =F62*$G$3 -> -1.37233746e-05 | K62: =J62*$G$3 -> -6.8616873e-06 | L62: =G62*$G$3 -> 9.60829128e-06 | M62: =L62*$G$3 -> 4.80414564e-06 | N62: =(J62^2+L62^2)*$G$3 -> 1.403251359e-10
A63: =IF('DF raw data'!I68="","",'DF raw data'!I68) -> -299.5 | B63: =IF('DF raw data'!J68="","",'DF raw data'!J68) -> -2.78179e-05 | C63: =IF('DF raw data'!K68="","",'DF raw data'!K68) -> 2.18962e-05 | D63: =IF('DF raw data'!L68="","",'DF raw data'!L68) -> -2.06239e-05 | F63: =(1-$G$1*($B$49-$G$2))*B63 -> -2.794029876e-05 | G63: =(1-$G$1*($B$49-$G$2))*C63 -> 2.199254328e-05 | H63: -2.071464516e-05 | J63: =F63*$G$3+J62 -> -2.769352398e-05 | K63: =J63*$G$3+K62 -> -2.070844929e-05 | L63: =G63*$G$3+L62 -> 2.060456292e-05 | M63: =L63*$G$3+M62 -> 1.51064271e-05 | N63: =(J63^2+L63^2)*$G$3+N62 -> 7.360647776e-10
A64: =IF('DF raw data'!I69="","",'DF raw data'!I69) -> -299 | B64: =IF('DF raw data'!J69="","",'DF raw data'!J69) -> -4.88314e-05 | C64: =IF('DF raw data'!K69="","",'DF raw data'!K69) -> 2.72547e-05 | D64: =IF('DF raw data'!L69="","",'DF raw data'!L69) -> -1.97219e-05 | F64: =(1-$G$1*($B$49-$G$2))*B64 -> -4.904625816e-05 | G64: 2.737462068e-05 | H64: -1.980867636e-05 | J64: =F64*$G$3+J63 -> -5.221665306e-05 | K64: =J64*$G$3+K63 -> -4.681677582e-05 | L64: =G64*$G$3+L63 -> 3.429187326e-05 | M64: =L64*$G$3+M63 -> 3.225236373e-05 | N64: =(J64^2+L64^2)*$G$3+N63 -> 2.687320492e-09
A65: =IF('DF raw data'!I70="","",'DF raw data'!I70) -> -298.5 | B65: =IF('DF raw data'!J70="","",'DF raw data'!J70) -> -2.85886e-05 | C65: =IF('DF raw data'!K70="","",'DF raw data'!K70) -> 3.61047e-05 | D65: =IF('DF raw data'!L70="","",'DF raw data'!L70) -> -1.90064e-05 | F65: -2.871438984e-05 | G65: 3.626356068e-05 | H65: -1.909002816e-05 | J65: -6.657384798e-05 | K65: -8.010369981e-05 | L65: 5.24236536e-05 | M65: 5.846419053e-05 | N65: 6.277478838e-09
A66: =IF('DF raw data'!I71="","",'DF raw data'!I71) -> -298 | B66: =IF('DF raw data'!J71="","",'DF raw data'!J71) -> -4.39636e-05 | C66: =IF('DF raw data'!K71="","",'DF raw data'!K71) -> 3.75441e-05 | D66: =IF('DF raw data'!L71="","",'DF raw data'!L71) -> -1.86684e-05 | F66: -4.415703984e-05 | G66: 3.770929404e-05 | H66: -1.875054096e-05 | J66: -8.86523679e-05 | K66: -0.0001244298838 | L66: 7.127830062e-05 | M66: 9.410334084e-05 | N66: 1.274739807e-08
A67: =IF('DF raw data'!I72="","",'DF raw data'!I72) -> -297.5 | B67: =IF('DF raw data'!J72="","",'DF raw data'!J72) -> -3.07676e-05 | C67: =IF('DF raw data'!K72="","",'DF raw data'!K72) -> 2.91998e-05 | D67: =IF('DF raw data'!L72="","",'DF raw data'!L72) -> -1.84124e-05 | F67: -3.090297744e-05 | G67: 2.932827912e-05 | H67: -1.849341456e-05 | J67: -0.0001041038566 | K67: -0.0001764818121 | L67: 8.594244018e-05 | M67: 0.0001370745609 | N67: 2.185925607e-08
A68: =IF('DF raw data'!I73="","",'DF raw data'!I73) -> -297 | B68: =IF('DF raw data'!J73="","",'DF raw data'!J73) -> -3.94791e-05 | C68: =IF('DF raw data'!K73="","",'DF raw data'!K73) -> 3.38148e-05 | D68: =IF('DF raw data'!L73="","",'DF raw data'!L73) -> -1.80243e-05 | F68: -3.965280804e-05 | G68: 3.396358512e-05 | H68: -1.810360692e-05 | J68: -0.0001239302606 | K68: -0.0002384469424 | L68: 0.0001029242327 | M68: 0.0001885366773 | N68: 3.483530966e-08
A69: =IF('DF raw data'!I74="","",'DF raw data'!I74) -> -296.5 | B69: =IF('DF raw data'!J74="","",'DF raw data'!J74) -> -2.5642e-05 | C69: =IF('DF raw data'!K74="","",'DF raw data'!K74) -> 4.35437e-05 | D69: =IF('DF raw data'!L74="","",'DF raw data'!L74) -> -1.84381e-05 | F69: -2.57548248e-05 | G69: 4.373529228e-05 | H69: -1.851922764e-05 | J69: -0.000136807673 | K69: -0.0003068507789 | L69: 0.0001247918789 | M69: 0.0002509326167 | N69: 5.197998588e-08
A70: =IF('DF raw data'!I75="","",'DF raw data'!I75) -> -296 | B70: =IF('DF raw data'!J75="","",'DF raw data'!J75) -> -2.48074e-05 | C70: =IF('DF raw data'!K75="","",'DF raw data'!K75) -> 3.77283e-05 | D70: =IF('DF raw data'!L75="","",'DF raw data'!L75) -> -1.95609e-05 | F70: -2.491655256e-05 | G70: 3.789430452e-05 | H70: -1.964696796e-05 | J70: -0.0001492659493 | K70: -0.0003814837536 | L70: 0.0001437390311 | M70: 0.0003228021323 | N70: 7.345060223e-08
A71: =IF('DF raw data'!I76="","",'DF raw data'!I76) -> -295.5 | B71: =IF('DF raw data'!J76="","",'DF raw data'!J76) -> -3.67245e-05 | C71: =IF('DF raw data'!K76="","",'DF raw data'!K76) -> 3.95994e-05 | D71: =IF('DF raw data'!L76="","",'DF raw data'!L76) -> -2.02514e-05 | F71: -3.68860878e-05 | G71: 3.977363736e-05 | H71: -2.034050616e-05 | J71: -0.0001677089932 | K71: -0.0004653382502 | L71: 0.0001636258498 | M71: 0.0004046150572 | N71: 1.009004648e-07
A72: =IF('DF raw data'!I77="","",'DF raw data'!I77) -> -295 | B72: =IF('DF raw data'!J77="","",'DF raw data'!J77) -> -3.62108e-05 | C72: =IF('DF raw data'!K77="","",'DF raw data'!K77) -> 4.40358e-05 | D72: =IF('DF raw data'!L77="","",'DF raw data'!L77) -> -2.00087e-05 | F72: -3.637012752e-05 | G72: 4.422955752e-05 | H72: -2.009673828e-05 | J72: -0.000185894057 | K72: -0.0005582852787 | L72: 0.0001857406286 | M72: 0.0004974853715 | N72: 1.354285556e-07
A73: =IF('DF raw data'!I78="","",'DF raw data'!I78) -> -294.5 | B73: =IF('DF raw data'!J78="","",'DF raw data'!J78) -> -4.24906e-05 | C73: =IF('DF raw data'!K78="","",'DF raw data'!K78) -> 4.46879e-05 | D73: =IF('DF raw data'!L78="","",'DF raw data'!L78) -> -1.91641e-05 | F73: -4.267755864e-05 | G73: 4.488452676e-05 | H73: -1.924842204e-05 | J73: -0.0002072328363 | K73: -0.0006619016968 | L73: 0.000208182892 | M73: 0.0006015768175 | N73: 1.78571338e-07
A74: =IF('DF raw data'!I79="","",'DF raw data'!I79) -> -294 | B74: =IF('DF raw data'!J79="","",'DF raw data'!J79) -> -4.14657e-05 | C74: =IF('DF raw data'!K79="","",'DF raw data'!K79) -> 4.17783e-05 | D74: =IF('DF raw data'!L79="","",'DF raw data'!L79) -> -1.82385e-05 | F74: -4.164814908e-05 | G74: 4.196212452e-05 | H74: -1.83187494e-05 | J74: -0.0002280569108 | K74: -0.0007759301522 | L74: 0.0002291639542 | M74: 0.0007161587946 | N74: 2.308343743e-07
A75: =IF('DF raw data'!I80="","",'DF raw data'!I80) -> -293.5 | B75: =IF('DF raw data'!J80="","",'DF raw data'!J80) -> -3.23053e-05 | C75: =IF('DF raw data'!K80="","",'DF raw data'!K80) -> 3.91088e-05 | D75: =IF('DF raw data'!L80="","",'DF raw data'!L80) -> -1.7669e-05 | F75: -3.244744332e-05 | G75: 3.928087872e-05 | H75: -1.77467436e-05 | J75: -0.0002442806325 | K75: -0.0008980704685 | L75: 0.0002488043936 | M75: 0.0008405609914 | N75: 2.916227011e-07
A76: =IF('DF raw data'!I81="","",'DF raw data'!I81) -> -293 | B76: =IF('DF raw data'!J81="","",'DF raw data'!J81) -> -3.63405e-05 | C76: =IF('DF raw data'!K81="","",'DF raw data'!K81) -> 3.30466e-05 | D76: =IF('DF raw data'!L81="","",'DF raw data'!L81) -> -1.78742e-05 | F76: -3.65003982e-05 | G76: 3.319200504e-05 | H76: -1.795284648e-05 | J76: -0.0002625308316 | K76: -0.001029335884 | L76: 0.0002654003961 | M76: 0.0009732611894 | N76: 3.61302605e-07
A77: =IF('DF raw data'!I82="","",'DF raw data'!I82) -> -292.5 | B77: =IF('DF raw data'!J82="","",'DF raw data'!J82) -> -1.49421e-05 | C77: =IF('DF raw data'!K82="","",'DF raw data'!K82) -> 2.38752e-05 | D77: =IF('DF raw data'!L82="","",'DF raw data'!L82) -> -1.89258e-05 | F77: -1.500784524e-05 | G77: 2.398025088e-05 | H77: -1.900907352e-05 | J77: -0.0002700347542 | K77: -0.001164353261 | L77: 0.0002773905215 | M77: 0.00111195645 | N77: 4.3623474e-07
A78: =IF('DF raw data'!I83="","",'DF raw data'!I83) -> -292 | B78: =IF('DF raw data'!J83="","",'DF raw data'!J83) -> -4.03753e-05 | C78: =IF('DF raw data'!K83="","",'DF raw data'!K83) -> 1.86114e-05 | D78: =IF('DF raw data'!L83="","",'DF raw data'!L83) -> -1.96902e-05 | F78: -4.055295132e-05 | G78: 1.869329016e-05 | H78: -1.977683688e-05 | J78: -0.0002903112299 | K78: -0.001309508876 | L78: 0.0002867371666 | M78: 0.001255325034 | N78: 5.194841464e-07
A79: =IF('DF raw data'!I84="","",'DF raw data'!I84) -> -291.5 | B79: =IF('DF raw data'!J84="","",'DF raw data'!J84) -> -2.36499e-05 | C79: =IF('DF raw data'!K84="","",'DF raw data'!K84) -> 1.94287e-05 | D79: =IF('DF raw data'!L84="","",'DF raw data'!L84) -> -2.75918e-05 | F79: -2.375395956e-05 | G79: 1.951418628e-05 | H79: -2.771320392e-05 | J79: -0.0003021882097 | K79: -0.001460602981 | L79: 0.0002964942598 | M79: 0.001403572163 | N79: 6.090974265e-07
A80: =IF('DF raw data'!I85="","",'DF raw data'!I85) -> -291 | B80: =IF('DF raw data'!J85="","",'DF raw data'!J85) -> -4.37685e-05 | C80: =IF('DF raw data'!K85="","",'DF raw data'!K85) -> 1.89386e-05 | D80: =IF('DF raw data'!L85="","",'DF raw data'!L85) -> -2.30425e-05 | F80: -4.39610814e-05 | G80: 1.902192984e-05 | H80: -2.3143887e-05 | J80: -0.0003241687504 | K80: -0.001622687356 | L80: 0.0003060052247 | M80: 0.001556574776 | N80: 7.084597146e-07
A81: =IF('DF raw data'!I86="","",'DF raw data'!I86) -> -290.5 | B81: =IF('DF raw data'!J86="","",'DF raw data'!J86) -> -3.07643e-05 | C81: =IF('DF raw data'!K86="","",'DF raw data'!K86) -> 3.54182e-05 | D81: =IF('DF raw data'!L86="","",'DF raw data'!L86) -> -2.31269e-05 | F81: -3.089966292e-05 | G81: 3.557404008e-05 | H81: -2.322865836e-05 | J81: -0.0003396185818 | K81: -0.001792496647 | L81: 0.0003237922447 | M81: 0.001718470898 | N81: 8.185508141e-07
A82: =IF('DF raw data'!I87="","",'DF raw data'!I87) -> -290 | B82: =IF('DF raw data'!J87="","",'DF raw data'!J87) -> -3.60775e-05 | C82: =IF('DF raw data'!K87="","",'DF raw data'!K87) -> 5.02703e-05 | D82: =IF('DF raw data'!L87="","",'DF raw data'!L87) -> -2.79151e-05 | F82: -3.6236241e-05 | G82: 5.049148932e-05 | H82: -2.803792644e-05 | J82: -0.0003577367023 | K82: -0.001971364998 | L82: 0.0003490379894 | M82: 0.001892989893 | N82: 9.434523472e-07
A83: =IF('DF raw data'!I88="","",'DF raw data'!I88) -> -289.5 | B83: =IF('DF raw data'!J88="","",'DF raw data'!J88) -> -3.64008e-05 | C83: =IF('DF raw data'!K88="","",'DF raw data'!K88) -> 4.41366e-05 | D83: =IF('DF raw data'!L88="","",'DF raw data'!L88) -> -2.50494e-05 | F83: -3.656096352e-05 | G83: 4.433080104e-05 | H83: -2.515961736e-05 | J83: -0.0003760171841 | K83: -0.00215937359 | L83: 0.0003712033899 | M83: 0.002078591588 | N83: 1.083042787e-06
A84: =IF('DF raw data'!I89="","",'DF raw data'!I89) -> -289 | B84: =IF('DF raw data'!J89="","",'DF raw data'!J89) -> -3.94074e-05 | C84: =IF('DF raw data'!K89="","",'DF raw data'!K89) -> 2.8166e-05 | D84: =IF('DF raw data'!L89="","",'DF raw data'!L89) -> -3.00363e-05 | F84: -3.958079256e-05 | G84: 2.82899304e-05 | H84: -3.016845972e-05 | J84: -0.0003958075804 | K84: -0.002357277381 | L84: 0.0003853483551 | M84: 0.002271265765 | N84: 1.235621285e-06
A85: =IF('DF raw data'!I90="","",'DF raw data'!I90) -> -288.5 | B85: =IF('DF raw data'!J90="","",'DF raw data'!J90) -> -2.76244e-05 | C85: =IF('DF raw data'!K90="","",'DF raw data'!K90) -> 3.01806e-05 | D85: =IF('DF raw data'!L90="","",'DF raw data'!L90) -> -2.40627e-05 | F85: -2.774594736e-05 | G85: 3.031339464e-05 | H85: -2.416857588e-05 | J85: -0.000409680554 | K85: -0.002562117658 | L85: 0.0004005050524 | M85: 0.002471518292 | N85: 1.399742511e-06
A86: =IF('DF raw data'!I91="","",'DF raw data'!I91) -> -288 | B86: =IF('DF raw data'!J91="","",'DF raw data'!J91) -> -3.92807e-05 | C86: =IF('DF raw data'!K91="","",'DF raw data'!K91) -> 3.13493e-05 | D86: =IF('DF raw data'!L91="","",'DF raw data'!L91) -> -2.77583e-05 | F86: -3.945353508e-05 | G86: 3.148723692e-05 | H86: -2.788043652e-05 | J86: -0.0004294073216 | K86: -0.002776821318 | L86: 0.0004162486709 | M86: 0.002679642627 | N86: 1.578569313e-06
A87: =IF('DF raw data'!I92="","",'DF raw data'!I92) -> -287.5 | B87: =IF('DF raw data'!J92="","",'DF raw data'!J92) -> -2.7366e-05 | C87: =IF('DF raw data'!K92="","",'DF raw data'!K92) -> 3.24585e-05 | D87: =IF('DF raw data'!L92="","",'DF raw data'!L92) -> -2.6957e-05 | F87: -2.74864104e-05 | G87: 3.26013174e-05 | H87: -2.70756108e-05 | J87: -0.0004431505268 | K87: -0.002998396582 | L87: 0.0004325493296 | M87: 0.002895917292 | N87: 1.770309969e-06
A88: =IF('DF raw data'!I93="","",'DF raw data'!I93) -> -287 | B88: =IF('DF raw data'!J93="","",'DF raw data'!J93) -> -3.00488e-05 | C88: =IF('DF raw data'!K93="","",'DF raw data'!K93) -> 3.99859e-05 | D88: =IF('DF raw data'!L93="","",'DF raw data'!L93) -> -3.8276e-05 | F88: -3.018101472e-05 | G88: 4.016183796e-05 | H88: -3.84444144e-05 | J88: -0.0004582410341 | K88: -0.003227517099 | L88: 0.0004526302486 | M88: 0.003122232416 | N88: 1.977739463e-06
A89: =IF('DF raw data'!I94="","",'DF raw data'!I94) -> -286.5 | B89: =IF('DF raw data'!J94="","",'DF raw data'!J94) -> -3.98608e-05 | C89: =IF('DF raw data'!K94="","",'DF raw data'!K94) -> 3.96163e-05 | D89: =IF('DF raw data'!L94="","",'DF raw data'!L94) -> -2.44685e-05 | F89: -4.003618752e-05 | G89: 3.979061172e-05 | H89: -2.45761614e-05 | J89: -0.0004782591279 | K89: -0.003466646663 | L89: 0.0004725255544 | M89: 0.003358495193 | N89: 2.203745559e-06
A90: =IF('DF raw data'!I95="","",'DF raw data'!I95) -> -286 | B90: =IF('DF raw data'!J95="","",'DF raw data'!J95) -> -2.94796e-05 | C90: =IF('DF raw data'!K95="","",'DF raw data'!K95) -> 3.58649e-05 | D90: =IF('DF raw data'!L95="","",'DF raw data'!L95) -> -2.66684e-05 | F90: -2.960931024e-05 | G90: 3.602270556e-05 | H90: -2.678574096e-05 | J90: -0.000493063783 | K90: -0.003713178554 | L90: 0.0004905369072 | M90: 0.003603763647 | N90: 2.445614735e-06
A91: =IF('DF raw data'!I96="","",'DF raw data'!I96) -> -285.5 | B91: =IF('DF raw data'!J96="","",'DF raw data'!J96) -> -2.99238e-05 | C91: =IF('DF raw data'!K96="","",'DF raw data'!K96) -> 3.66827e-05 | D91: =IF('DF raw data'!L96="","",'DF raw data'!L96) -> -3.48567e-05 | F91: -3.005546472e-05 | G91: 3.684410388e-05 | H91: -3.501006948e-05 | J91: -0.0005080915154 | K91: -0.003967224312 | L91: 0.0005089589591 | M91: 0.003858243126 | N91: 2.70421284e-06
A92: =IF('DF raw data'!I97="","",'DF raw data'!I97) -> -285 | B92: =IF('DF raw data'!J97="","",'DF raw data'!J97) -> -2.88985e-05 | C92: =IF('DF raw data'!K97="","",'DF raw data'!K97) -> 3.42879e-05 | D92: =IF('DF raw data'!L97="","",'DF raw data'!L97) -> -3.39036e-05 | F92: -2.90256534e-05 | G92: 3.443876676e-05 | H92: -3.405277584e-05 | J92: -0.0005226043421 | K92: -0.004228526483 | L92: 0.0005261783425 | M92: 0.004121332298 | N92: 2.979202313e-06
A93: =IF('DF raw data'!I98="","",'DF raw data'!I98) -> -284.5 | B93: =IF('DF raw data'!J98="","",'DF raw data'!J98) -> -3.10811e-05 | C93: =IF('DF raw data'!K98="","",'DF raw data'!K98) -> 2.74326e-05 | D93: =IF('DF raw data'!L98="","",'DF raw data'!L98) -> -2.84052e-05 | F93: -3.121785684e-05 | G93: 2.755330344e-05 | H93: -2.853018288e-05 | J93: -0.0005382132705 | K93: -0.004497633118 | L93: 0.0005399549942 | M93: 0.004391309795 | N93: 3.269814773e-06
A94: =IF('DF raw data'!I99="","",'DF raw data'!I99) -> -284 | B94: =IF('DF raw data'!J99="","",'DF raw data'!J99) -> -4.64571e-05 | C94: =IF('DF raw data'!K99="","",'DF raw data'!K99) -> 3.37776e-05 | D94: =IF('DF raw data'!L99="","",'DF raw data'!L99) -> -2.67975e-05 | F94: -4.666151124e-05 | G94: 3.392622144e-05 | H94: -2.6915409e-05 | J94: -0.0005615440261 | K94: -0.004778405131 | L94: 0.000556918105 | M94: 0.004669768847 | N94: 3.582559508e-06
A95: =IF('DF raw data'!I100="","",'DF raw data'!I100) -> -283.5 | B95: =IF('DF raw data'!J100="","",'DF raw data'!J100) -> -4.13992e-05 | C95: =IF('DF raw data'!K100="","",'DF raw data'!K100) -> 3.91391e-05 | D95: =IF('DF raw data'!L100="","",'DF raw data'!L100) -> -2.32274e-05 | F95: -4.158135648e-05 | G95: 3.931131204e-05 | H95: -2.332960056e-05 | J95: -0.0005823347044 | K95: -0.005069572484 | L95: 0.000576573761 | M95: 0.004958055728 | N95: 3.918335013e-06
A96: =IF('DF raw data'!I101="","",'DF raw data'!I101) -> -283 | B96: =IF('DF raw data'!J101="","",'DF raw data'!J101) -> -4.54974e-05 | C96: =IF('DF raw data'!K101="","",'DF raw data'!K101) -> 3.40971e-05 | D96: =IF('DF raw data'!L101="","",'DF raw data'!L101) -> -2.46088e-05 | F96: -4.569758856e-05 | G96: 3.424712724e-05 | H96: -2.471707872e-05 | J96: -0.0006051834986 | K96: -0.005372164233 | L96: 0.0005936973246 | M96: 0.00525490439 | N96: 4.277696803e-06
A97: =IF('DF raw data'!I102="","",'DF raw data'!I102) -> -282.5 | B97: =IF('DF raw data'!J102="","",'DF raw data'!J102) -> -3.49936e-05 | C97: =IF('DF raw data'!K102="","",'DF raw data'!K102) -> 3.99944e-05 | D97: =IF('DF raw data'!L102="","",'DF raw data'!L102) -> -2.16932e-05 | F97: -3.514757184e-05 | G97: 4.017037536e-05 | H97: -2.178865008e-05 | J97: -0.0006227572846 | K97: -0.005683542875 | L97: 0.0006137825123 | M97: 0.005561795646 | N97: 4.659974607e-06
A98: =IF('DF raw data'!I103="","",'DF raw data'!I103) -> -282 | B98: =IF('DF raw data'!J103="","",'DF raw data'!J103) -> -4.01827e-05 | C98: =IF('DF raw data'!K103="","",'DF raw data'!K103) -> 3.69329e-05 | D98: =IF('DF raw data'!L103="","",'DF raw data'!L103) -> -2.04941e-05 | F98: -4.035950388e-05 | G98: 3.709540476e-05 | H98: -2.058427404e-05 | J98: -0.0006429370365 | K98: -0.006005011393 | L98: 0.0006323302147 | M98: 0.005877960754 | N98: 5.066579373e-06
A99: =IF('DF raw data'!I104="","",'DF raw data'!I104) -> -281.5 | B99: =IF('DF raw data'!J104="","",'DF raw data'!J104) -> -3.96748e-05 | C99: =IF('DF raw data'!K104="","",'DF raw data'!K104) -> 3.92616e-05 | D99: =IF('DF raw data'!L104="","",'DF raw data'!L104) -> -1.51383e-05 | F99: -3.984936912e-05 | G99: 3.943435104e-05 | H99: -1.520490852e-05 | J99: -0.0006628617211 | K99: -0.006336442254 | L99: 0.0006520473902 | M99: 0.006203984449 | N99: 5.498855104e-06
A100: =IF('DF raw data'!I105="","",'DF raw data'!I105) -> -281 | B100: =IF('DF raw data'!J105="","",'DF raw data'!J105) -> -4.20301e-05 | C100: =IF('DF raw data'!K105="","",'DF raw data'!K105) -> 5.42866e-05 | D100: =IF('DF raw data'!L105="","",'DF raw data'!L105) -> -3.60352e-05 | F100: -4.221503244e-05 | G100: 5.452546104e-05 | H100: -3.619375488e-05 | J100: -0.0006839692373 | K100: -0.006678426873 | L100: 0.0006793101207 | M100: 0.006543639509 | N100: 5.963493182e-06
A101: =IF('DF raw data'!I106="","",'DF raw data'!I106) -> -280.5 | B101: =IF('DF raw data'!J106="","",'DF raw data'!J106) -> -3.75512e-05 | C101: =IF('DF raw data'!K106="","",'DF raw data'!K106) -> 5.48766e-05 | D101: =IF('DF raw data'!L106="","",'DF raw data'!L106) -> -3.00808e-05 | F101: -3.771642528e-05 | G101: 5.511805704e-05 | H101: -3.021315552e-05 | J101: -0.0007028274499 | K101: -0.007029840598 | L101: 0.0007068691492 | M101: 0.006897074084 | N101: 6.460308392e-06
A102: =IF('DF raw data'!I107="","",'DF raw data'!I107) -> -280 | B102: =IF('DF raw data'!J107="","",'DF raw data'!J107) -> -4.26156e-05 | C102: =IF('DF raw data'!K107="","",'DF raw data'!K107) -> 4.91736e-05 | D102: =IF('DF raw data'!L107="","",'DF raw data'!L107) -> -2.21995e-05 | F102: -4.280310864e-05 | G102: 4.938996384e-05 | H102: -2.22971778e-05 | J102: -0.0007242290042 | K102: -0.0073919551 | L102: 0.0007315641311 | M102: 0.007262856149 | N102: 6.990155256e-06
A103: =IF('DF raw data'!I108="","",'DF raw data'!I108) -> -279.5 | B103: =IF('DF raw data'!J108="","",'DF raw data'!J108) -> -3.08293e-05 | C103: =IF('DF raw data'!K108="","",'DF raw data'!K108) -> 3.65255e-05 | D103: =IF('DF raw data'!L108="","",'DF raw data'!L108) -> -2.21231e-05 | F103: -3.096494892e-05 | G103: 3.66862122e-05 | H103: -2.222044164e-05 | J103: -0.0007397114787 | K103: -0.007761810839 | L103: 0.0007499072372 | M103: 0.007637809768 | N103: 7.544922224e-06
A104: =IF('DF raw data'!I109="","",'DF raw data'!I109) -> -279 | B104: =IF('DF raw data'!J109="","",'DF raw data'!J109) -> -3.64699e-05 | C104: =IF('DF raw data'!K109="","",'DF raw data'!K109) -> 2.68977e-05 | D104: =IF('DF raw data'!L109="","",'DF raw data'!L109) -> -1.51015e-05 | F104: -3.663036756e-05 | G104: 2.701604988e-05 | H104: -1.51679466e-05 | J104: -0.0007580266625 | K104: -0.00814082417 | L104: 0.0007634152622 | M104: 0.008019517399 | N104: 8.123625866e-06
A105: =IF('DF raw data'!I110="","",'DF raw data'!I110) -> -278.5 | B105: =IF('DF raw data'!J110="","",'DF raw data'!J110) -> -3.42191e-05 | C105: =IF('DF raw data'!K110="","",'DF raw data'!K110) -> 3.06836e-05 | D105: =IF('DF raw data'!L110="","",'DF raw data'!L110) -> -3.11823e-05 | F105: -3.436966404e-05 | G105: 3.081860784e-05 | H105: -3.131950212e-05 | J105: -0.0007752114945 | K105: -0.008528429918 | L105: 0.0007788245661 | M105: 0.008408929682 | N105: 8.727386149e-06
A106: =IF('DF raw data'!I111="","",'DF raw data'!I111) -> -278 | B106: =IF('DF raw data'!J111="","",'DF raw data'!J111) -> -5.02378e-05 | C106: =IF('DF raw data'!K111="","",'DF raw data'!K111) -> 3.01119e-05 | D106: =IF('DF raw data'!L111="","",'DF raw data'!L111) -> -2.42428e-05 | F106: -5.045884632e-05 | G106: 3.024439236e-05 | H106: -2.434946832e-05 | J106: -0.0008004409177 | K106: -0.008928650376 | L106: 0.0007939467623 | M106: 0.008805903063 | N106: 9.362914711e-06
A107: =IF('DF raw data'!I112="","",'DF raw data'!I112) -> -277.5 | B107: =IF('DF raw data'!J112="","",'DF raw data'!J112) -> -3.50541e-05 | C107: =IF('DF raw data'!K112="","",'DF raw data'!K112) -> 3.47587e-05 | D107: =IF('DF raw data'!L112="","",'DF raw data'!L112) -> -2.83146e-05 | F107: -3.520833804e-05 | G107: 3.491163828e-05 | H107: -2.843918424e-05 | J107: -0.0008180450867 | K107: -0.00933767292 | L107: 0.0008114025814 | M107: 0.009211604354 | N107: 1.002670067e-05
A108: =IF('DF raw data'!I113="","",'DF raw data'!I113) -> -277 | B108: =IF('DF raw data'!J113="","",'DF raw data'!J113) -> -4.47864e-05 | C108: =IF('DF raw data'!K113="","",'DF raw data'!K113) -> 2.99708e-05 | D108: =IF('DF raw data'!L113="","",'DF raw data'!L113) -> -3.28495e-05 | F108: -4.498346016e-05 | G108: 3.010267152e-05 | H108: -3.29940378e-05 | J108: -0.0008405368168 | K108: -0.009757941328 | L108: 0.0008264539172 | M108: 0.009624831312 | N108: 1.072146478e-05
A109: =IF('DF raw data'!I114="","",'DF raw data'!I114) -> -276.5 | B109: =IF('DF raw data'!J114="","",'DF raw data'!J114) -> -4.12046e-05 | C109: =IF('DF raw data'!K114="","",'DF raw data'!K114) -> 3.32478e-05 | D109: =IF('DF raw data'!L114="","",'DF raw data'!L114) -> -2.85045e-05 | F109: -4.138590024e-05 | G109: 3.339409032e-05 | H109: -2.86299198e-05 | J109: -0.0008612297669 | K109: -0.01018855621 | L109: 0.0008431509623 | M109: 0.01004640679 | N109: 1.14477749e-05
A110: =IF('DF raw data'!I115="","",'DF raw data'!I115) -> -276 | B110: =IF('DF raw data'!J115="","",'DF raw data'!J115) -> -4.1783e-05 | C110: =IF('DF raw data'!K115="","",'DF raw data'!K115) -> 3.51644e-05 | D110: =IF('DF raw data'!L115="","",'DF raw data'!L115) -> -2.11449e-05 | F110: -4.19668452e-05 | G110: 3.531912336e-05 | H110: -2.123793756e-05 | J110: -0.0008822131895 | K110: -0.01062966281 | L110: 0.000860810524 | M110: 0.01047681206 | N110: 1.220742234e-05
A111: =IF('DF raw data'!I116="","",'DF raw data'!I116) -> -275.5 | B111: =IF('DF raw data'!J116="","",'DF raw data'!J116) -> -3.39079e-05 | C111: =IF('DF raw data'!K116="","",'DF raw data'!K116) -> 2.33256e-05 | D111: =IF('DF raw data'!L116="","",'DF raw data'!L116) -> -1.76058e-05 | F111: -3.405709476e-05 | G111: 2.342823264e-05 | H111: -1.768326552e-05 | J111: -0.0008992417369 | K111: -0.01107928367 | L111: 0.0008725246403 | M111: 0.01091307438 | N111: 1.299238981e-05
A112: =IF('DF raw data'!I117="","",'DF raw data'!I117) -> -275 | B112: =IF('DF raw data'!J117="","",'DF raw data'!J117) -> -3.94074e-05 | C112: =IF('DF raw data'!K117="","",'DF raw data'!K117) -> 2.52921e-05 | D112: =IF('DF raw data'!L117="","",'DF raw data'!L117) -> -2.89937e-05 | F112: -3.958079256e-05 | G112: 2.540338524e-05 | H112: -2.912127228e-05 | J112: -0.0009190321331 | K112: -0.01153879974 | L112: 0.000885226333 | M112: 0.01135568754 | N112: 1.380651268e-05
A113: =IF('DF raw data'!I118="","",'DF raw data'!I118) -> -274.5 | B113: =IF('DF raw data'!J118="","",'DF raw data'!J118) -> -3.44089e-05 | C113: =IF('DF raw data'!K118="","",'DF raw data'!K118) -> 2.91814e-05 | D113: =IF('DF raw data'!L118="","",'DF raw data'!L118) -> -3.55417e-05 | F113: -3.456029916e-05 | G113: 2.930979816e-05 | H113: -3.569808348e-05 | J113: -0.0009363122827 | K113: -0.01200695588 | L113: 0.000899881232 | M113: 0.01180562816 | N113: 1.464974614e-05
A114: =IF('DF raw data'!I119="","",'DF raw data'!I119) -> -274 | B114: =IF('DF raw data'!J119="","",'DF raw data'!J119) -> -4.19699e-05 | C114: =IF('DF raw data'!K119="","",'DF raw data'!K119) -> 2.57437e-05 | D114: =IF('DF raw data'!L119="","",'DF raw data'!L119) -> -2.92396e-05 | F114: -4.215456756e-05 | G114: 2.585697228e-05 | H114: -2.936825424e-05 | J114: -0.0009573895665 | K114: -0.01248565067 | L114: 0.0009128097182 | M114: 0.01226203302 | N114: 1.552465432e-05
A115: =IF('DF raw data'!I120="","",'DF raw data'!I120) -> -273.5 | B115: =IF('DF raw data'!J120="","",'DF raw data'!J120) -> -2.58898e-05 | C115: =IF('DF raw data'!K120="","",'DF raw data'!K120) -> 2.42757e-05 | D115: =IF('DF raw data'!L120="","",'DF raw data'!L120) -> -3.22597e-05 | F115: -2.600371512e-05 | G115: 2.438251308e-05 | H115: -3.240164268e-05 | J115: -0.0009703914241 | K115: -0.01297084638 | L115: 0.0009250009747 | M115: 0.0127245335 | N115: 1.642329748e-05
A116: =IF('DF raw data'!I121="","",'DF raw data'!I121) -> -273 | B116: =IF('DF raw data'!J121="","",'DF raw data'!J121) -> -2.9163e-05 | C116: =IF('DF raw data'!K121="","",'DF raw data'!K121) -> 2.92421e-05 | D116: =IF('DF raw data'!L121="","",'DF raw data'!L121) -> -2.01765e-05 | F116: -2.92913172e-05 | G116: 2.937076524e-05 | H116: -2.02652766e-05 | J116: -0.0009850370827 | K116: -0.01346336492 | L116: 0.0009396863573 | M116: 0.01319437668 | N116: 1.734995173e-05
A117: =IF('DF raw data'!I122="","",'DF raw data'!I122) -> -272.5 | B117: =IF('DF raw data'!J122="","",'DF raw data'!J122) -> -4.22923e-05 | C117: =IF('DF raw data'!K122="","",'DF raw data'!K122) -> 2.61371e-05 | D117: =IF('DF raw data'!L122="","",'DF raw data'!L122) -> -3.06786e-05 | F117: -4.247838612e-05 | G117: 2.625210324e-05 | H117: -3.081358584e-05 | J117: -0.001006276276 | K117: -0.01396650306 | L117: 0.000952812409 | M117: 0.01367078289 | N117: 1.831017344e-05
A118: =IF('DF raw data'!I123="","",'DF raw data'!I123) -> -272 | B118: =IF('DF raw data'!J123="","",'DF raw data'!J123) -> -3.82581e-05 | C118: =IF('DF raw data'!K123="","",'DF raw data'!K123) -> 1.18482e-05 | D118: =IF('DF raw data'!L123="","",'DF raw data'!L123) -> -2.29881e-05 | F118: -3.842643564e-05 | G118: 1.190033208e-05 | H118: -2.308924764e-05 | J118: -0.001025489494 | K118: -0.0144792478 | L118: 0.000958762575 | M118: 0.01415016418 | N118: 1.929560063e-05
A119: =IF('DF raw data'!I124="","",'DF raw data'!I124) -> -271.5 | B119: =IF('DF raw data'!J124="","",'DF raw data'!J124) -> -3.10207e-05 | C119: =IF('DF raw data'!K124="","",'DF raw data'!K124) -> 2.16437e-05 | D119: =IF('DF raw data'!L124="","",'DF raw data'!L124) -> -2.40269e-05 | F119: -3.115719108e-05 | G119: 2.173893228e-05 | H119: -2.413261836e-05 | J119: -0.001041068089 | K119: -0.01499978185 | L119: 0.0009696320411 | M119: 0.0146349802 | N119: 2.030760516e-05
A120: =IF('DF raw data'!I125="","",'DF raw data'!I125) -> -271 | B120: =IF('DF raw data'!J125="","",'DF raw data'!J125) -> -4.58128e-05 | C120: =IF('DF raw data'!K125="","",'DF raw data'!K125) -> 2.24461e-05 | D120: =IF('DF raw data'!L125="","",'DF raw data'!L125) -> -3.08125e-05 | F120: -4.601437632e-05 | G120: 2.254486284e-05 | H120: -3.0948075e-05 | J120: -0.001064075277 | K120: -0.01553181949 | L120: 0.0009809044726 | M120: 0.01512543243 | N120: 2.135482005e-05
A121: =IF('DF raw data'!I126="","",'DF raw data'!I126) -> -270.5 | B121: =IF('DF raw data'!J126="","",'DF raw data'!J126) -> -2.61456e-05 | C121: =IF('DF raw data'!K126="","",'DF raw data'!K126) -> 2.51343e-05 | D121: =IF('DF raw data'!L126="","",'DF raw data'!L126) -> -3.29459e-05 | F121: -2.626064064e-05 | G121: 2.524489092e-05 | H121: -3.309086196e-05 | J121: -0.001077205598 | K121: -0.01607042229 | L121: 0.000993526918 | M121: 0.01562219589 | N121: 2.242855387e-05
A122: =IF('DF raw data'!I127="","",'DF raw data'!I127) -> -270 | B122: =IF('DF raw data'!J127="","",'DF raw data'!J127) -> -3.5177e-05 | C122: =IF('DF raw data'!K127="","",'DF raw data'!K127) -> 2.1425e-05 | D122: =IF('DF raw data'!L127="","",'DF raw data'!L127) -> -3.25993e-05 | F122: -3.53317788e-05 | G122: 2.151927e-05 | H122: -3.274273692e-05 | J122: -0.001094871487 | K122: -0.01661785803 | L122: 0.001004286553 | M122: 0.01612433917 | N122: 2.35322214e-05
A123: =IF('DF raw data'!I128="","",'DF raw data'!I128) -> -269.5 | B123: =IF('DF raw data'!J128="","",'DF raw data'!J128) -> -2.81343e-05 | C123: =IF('DF raw data'!K128="","",'DF raw data'!K128) -> 2.99598e-05 | D123: =IF('DF raw data'!L128="","",'DF raw data'!L128) -> -2.90369e-05 | F123: -2.825809092e-05 | G123: 3.009162312e-05 | H123: -2.916466236e-05 | J123: -0.001109000532 | K123: -0.0171723583 | L123: 0.001019332365 | M123: 0.01663400535 | N123: 2.466668172e-05
A124: =IF('DF raw data'!I129="","",'DF raw data'!I129) -> -269 | B124: =IF('DF raw data'!J129="","",'DF raw data'!J129) -> -3.03849e-05 | C124: =IF('DF raw data'!K129="","",'DF raw data'!K129) -> 3.55985e-05 | D124: =IF('DF raw data'!L129="","",'DF raw data'!L129) -> -1.27831e-05 | F124: -3.051859356e-05 | G124: 3.57551334e-05 | H124: -1.283934564e-05 | J124: -0.001124259829 | K124: -0.01773448821 | L124: 0.001037209931 | M124: 0.01715261032 | N124: 2.583656403e-05
A125: =IF('DF raw data'!I130="","",'DF raw data'!I130) -> -268.5 | B125: =IF('DF raw data'!J130="","",'DF raw data'!J130) -> -3.03143e-05 | C125: =IF('DF raw data'!K130="","",'DF raw data'!K130) -> 3.03129e-05 | D125: =IF('DF raw data'!L130="","",'DF raw data'!L130) -> -2.63676e-05 | F125: -3.044768292e-05 | G125: 3.044627676e-05 | H125: -2.648361744e-05 | J125: -0.001139483671 | K125: -0.01830423005 | L125: 0.00105243307 | M125: 0.01767882685 | N125: 2.703958323e-05
A126: =IF('DF raw data'!I131="","",'DF raw data'!I131) -> -268 | B126: =IF('DF raw data'!J131="","",'DF raw data'!J131) -> -3.74917e-05 | C126: =IF('DF raw data'!K131="","",'DF raw data'!K131) -> 3.98856e-05 | D126: =IF('DF raw data'!L131="","",'DF raw data'!L131) -> -1.96625e-05 | F126: -3.765666348e-05 | G126: 4.006109664e-05 | H126: -1.9749015e-05 | J126: -0.001158312002 | K126: -0.01888338605 | L126: 0.001072463618 | M126: 0.01821505866 | N126: 2.828551568e-05
A127: =IF('DF raw data'!I132="","",'DF raw data'!I132) -> -267.5 | B127: =IF('DF raw data'!J132="","",'DF raw data'!J132) -> -3.31939e-05 | C127: =IF('DF raw data'!K132="","",'DF raw data'!K132) -> 4.03439e-05 | D127: =IF('DF raw data'!L132="","",'DF raw data'!L132) -> -3.18599e-05 | F127: -3.333995316e-05 | G127: 4.052141316e-05 | H127: -3.200008356e-05 | J127: -0.001174981979 | K127: -0.01947087704 | L127: 0.001092724325 | M127: 0.01876142082 | N127: 2.957283023e-05
A128: =IF('DF raw data'!I133="","",'DF raw data'!I133) -> -267 | B128: =IF('DF raw data'!J133="","",'DF raw data'!J133) -> -2.87176e-05 | C128: =IF('DF raw data'!K133="","",'DF raw data'!K133) -> 3.00859e-05 | D128: =IF('DF raw data'!L133="","",'DF raw data'!L133) -> -1.52733e-05 | F128: =(1-$G$1*($B$49-$G$2))*B128 -> -2.884395744e-05 | G128: 3.021827796e-05 | H128: -1.534050252e-05 | J128: =F128*$G$3+J127 -> -0.001189403958 | K128: =J128*$G$3+K127 -> -0.02006557901 | L128: =G128*$G$3+L127 -> 0.001107833464 | M128: =L128*$G$3+M127 -> 0.01931533755 | N128: =(J128^2+L128^2)*$G$3+N127 -> 3.089381861e-05
A129: =IF('DF raw data'!I134="","",'DF raw data'!I134) -> -266.5 | B129: =IF('DF raw data'!J134="","",'DF raw data'!J134) -> -2.69153e-05 | C129: =IF('DF raw data'!K134="","",'DF raw data'!K134) -> 3.2115e-05 | D129: =IF('DF raw data'!L134="","",'DF raw data'!L134) -> -3.16497e-05 | F129: -2.703372732e-05 | G129: 3.2256306e-05 | H129: -3.178895868e-05 | J129: -0.001202920821 | K129: -0.02066703943 | L129: 0.001123961617 | M129: 0.01987731836 | N129: 3.224897272e-05
A130: =IF('DF raw data'!I135="","",'DF raw data'!I135) -> -266 | B130: =IF('DF raw data'!J135="","",'DF raw data'!J135) -> -4.26751e-05 | C130: =IF('DF raw data'!K135="","",'DF raw data'!K135) -> 3.63399e-05 | D130: =IF('DF raw data'!L135="","",'DF raw data'!L135) -> -2.81839e-05 | F130: -4.286287044e-05 | G130: 3.649979556e-05 | H130: -2.830790916e-05 | J130: -0.001224352257 | K130: -0.02127921555 | L130: 0.001142211514 | M130: 0.02044842412 | N130: 3.365081551e-05
A131: =IF('DF raw data'!I136="","",'DF raw data'!I136) -> -265.5 | B131: =IF('DF raw data'!J136="","",'DF raw data'!J136) -> -4.39576e-05 | C131: =IF('DF raw data'!K136="","",'DF raw data'!K136) -> 3.24076e-05 | D131: =IF('DF raw data'!L136="","",'DF raw data'!L136) -> -3.19661e-05 | F131: -4.415101344e-05 | G131: 3.255019344e-05 | H131: -3.210675084e-05 | J131: -0.001246427763 | K131: -0.02190242944 | L131: 0.001158486611 | M131: 0.02102766742 | N131: 3.509865221e-05
A132: =IF('DF raw data'!I137="","",'DF raw data'!I137) -> -265 | B132: =IF('DF raw data'!J137="","",'DF raw data'!J137) -> -4.58826e-05 | C132: =IF('DF raw data'!K137="","",'DF raw data'!K137) -> 1.97223e-05 | D132: =IF('DF raw data'!L137="","",'DF raw data'!L137) -> -2.15646e-05 | F132: -4.608448344e-05 | G132: 1.980907812e-05 | H132: -2.165948424e-05 | J132: -0.001269470005 | K132: -0.02253716444 | L132: 0.00116839115 | M132: 0.021611863 | N132: 3.65869982e-05
A133: =IF('DF raw data'!I138="","",'DF raw data'!I138) -> -264.5 | B133: =IF('DF raw data'!J138="","",'DF raw data'!J138) -> -3.1403e-05 | C133: =IF('DF raw data'!K138="","",'DF raw data'!K138) -> 2.48004e-05 | D133: =IF('DF raw data'!L138="","",'DF raw data'!L138) -> -2.7609e-05 | F133: -3.15411732e-05 | G133: 2.490952176e-05 | H133: -2.77304796e-05 | J133: -0.001285240592 | K133: -0.02317978473 | L133: 0.001180845911 | M133: 0.02220228595 | N133: 3.811011842e-05
A134: =IF('DF raw data'!I139="","",'DF raw data'!I139) -> -264 | B134: =IF('DF raw data'!J139="","",'DF raw data'!J139) -> -2.77521e-05 | C134: =IF('DF raw data'!K139="","",'DF raw data'!K139) -> 2.54014e-05 | D134: =IF('DF raw data'!L139="","",'DF raw data'!L139) -> -2.22724e-05 | F134: -2.787420924e-05 | G134: 2.551316616e-05 | H134: -2.237039856e-05 | J134: -0.001299177696 | K134: -0.02382937358 | L134: 0.001193602494 | M134: 0.0227990872 | N134: 3.966639322e-05
A135: =IF('DF raw data'!I140="","",'DF raw data'!I140) -> -263.5 | B135: =IF('DF raw data'!J140="","",'DF raw data'!J140) -> -3.6078e-05 | C135: =IF('DF raw data'!K140="","",'DF raw data'!K140) -> 2.16283e-05 | D135: =IF('DF raw data'!L140="","",'DF raw data'!L140) -> -3.10494e-05 | F135: -3.62367432e-05 | G135: 2.172346452e-05 | H135: -3.118601736e-05 | J135: -0.001317296068 | K135: -0.02448802162 | L135: 0.001204464226 | M135: 0.02340131932 | N135: 4.125939472e-05
A136: =IF('DF raw data'!I141="","",'DF raw data'!I141) -> -263 | B136: =IF('DF raw data'!J141="","",'DF raw data'!J141) -> -4.32606e-05 | C136: =IF('DF raw data'!K141="","",'DF raw data'!K141) -> 2.00425e-05 | D136: =IF('DF raw data'!L141="","",'DF raw data'!L141) -> -1.39777e-05 | F136: -4.345094664e-05 | G136: 2.0130687e-05 | H136: -1.403920188e-05 | J136: -0.001339021541 | K136: -0.02515753239 | L136: 0.00121452957 | M136: 0.0240085841 | N136: 4.28934251e-05
A137: =IF('DF raw data'!I142="","",'DF raw data'!I142) -> -262.5 | B137: =IF('DF raw data'!J142="","",'DF raw data'!J142) -> -2.89682e-05 | C137: =IF('DF raw data'!K142="","",'DF raw data'!K142) -> 2.31932e-05 | D137: =IF('DF raw data'!L142="","",'DF raw data'!L142) -> -2.80353e-05 | F137: -2.909566008e-05 | G137: 2.329525008e-05 | H137: -2.815865532e-05 | J137: -0.001353569371 | K137: -0.02583431707 | L137: 0.001226177195 | M137: 0.0246216727 | N137: 4.456125538e-05
A138: =IF('DF raw data'!I143="","",'DF raw data'!I143) -> -262 | B138: =IF('DF raw data'!J143="","",'DF raw data'!J143) -> -4.51765e-05 | C138: =IF('DF raw data'!K143="","",'DF raw data'!K143) -> 2.10672e-05 | D138: =IF('DF raw data'!L143="","",'DF raw data'!L143) -> -2.31517e-05 | F138: -4.53752766e-05 | G138: 2.115989568e-05 | H138: -2.325356748e-05 | J138: -0.001376257009 | K138: -0.02652244558 | L138: 0.001236757143 | M138: 0.02524005127 | N138: 4.627308118e-05
A139: =IF('DF raw data'!I144="","",'DF raw data'!I144) -> -261.5 | B139: =IF('DF raw data'!J144="","",'DF raw data'!J144) -> -2.96048e-05 | C139: =IF('DF raw data'!K144="","",'DF raw data'!K144) -> 2.67906e-05 | D139: =IF('DF raw data'!L144="","",'DF raw data'!L144) -> -3.42384e-05 | F139: -2.973506112e-05 | G139: 2.690847864e-05 | H139: -3.438904896e-05 | J139: -0.00139112454 | K139: -0.02721800785 | L139: 0.001250211382 | M139: 0.02586515696 | N139: 4.802220917e-05
A140: =IF('DF raw data'!I145="","",'DF raw data'!I145) -> -261 | B140: =IF('DF raw data'!J145="","",'DF raw data'!J145) -> -3.67905e-05 | C140: =IF('DF raw data'!K145="","",'DF raw data'!K145) -> 2.16996e-05 | D140: =IF('DF raw data'!L145="","",'DF raw data'!L145) -> -1.31527e-05 | F140: -3.69523782e-05 | G140: 2.179507824e-05 | H140: -1.321057188e-05 | J140: -0.001409600729 | K140: -0.02792280821 | L140: 0.001261108921 | M140: 0.02649571142 | N140: 4.981089413e-05
A141: =IF('DF raw data'!I146="","",'DF raw data'!I146) -> -260.5 | B141: =IF('DF raw data'!J146="","",'DF raw data'!J146) -> -2.83354e-05 | C141: =IF('DF raw data'!K146="","",'DF raw data'!K146) -> 2.01227e-05 | D141: =IF('DF raw data'!L146="","",'DF raw data'!L146) -> -1.58883e-05 | F141: -2.846007576e-05 | G141: 2.021123988e-05 | H141: -1.595820852e-05 | J141: -0.001423830767 | K141: -0.02863472359 | L141: 0.001271214541 | M141: 0.02713131869 | N141: 5.163253436e-05
A142: =IF('DF raw data'!I147="","",'DF raw data'!I147) -> -260 | B142: =IF('DF raw data'!J147="","",'DF raw data'!J147) -> -3.77498e-05 | C142: =IF('DF raw data'!K147="","",'DF raw data'!K147) -> 1.67986e-05 | D142: =IF('DF raw data'!L147="","",'DF raw data'!L147) -> -1.58286e-05 | F142: -3.791589912e-05 | G142: 1.687251384e-05 | H142: -1.589824584e-05 | J142: -0.001442788717 | K142: -0.02935611795 | L142: 0.001279650798 | M142: 0.02777114409 | N142: 5.349210709e-05
A143: =IF('DF raw data'!I148="","",'DF raw data'!I148) -> -259.5 | B143: =IF('DF raw data'!J148="","",'DF raw data'!J148) -> -4.24901e-05 | C143: =IF('DF raw data'!K148="","",'DF raw data'!K148) -> 2.21228e-05 | D143: =IF('DF raw data'!L148="","",'DF raw data'!L148) -> -2.33421e-05 | F143: -4.267705644e-05 | G143: 2.222014032e-05 | H143: -2.344480524e-05 | J143: -0.001464127245 | K143: -0.03008818158 | L143: 0.001290760868 | M143: 0.02841652452 | N143: 5.539697319e-05
A144: =IF('DF raw data'!I149="","",'DF raw data'!I149) -> -259 | B144: =IF('DF raw data'!J149="","",'DF raw data'!J149) -> -4.3447e-05 | C144: =IF('DF raw data'!K149="","",'DF raw data'!K149) -> 1.59269e-05 | D144: =IF('DF raw data'!L149="","",'DF raw data'!L149) -> -2.28836e-05 | F144: -4.36381668e-05 | G144: 1.599697836e-05 | H144: -2.298428784e-05 | J144: -0.001485946328 | K144: -0.03083115474 | L144: 0.001298759357 | M144: 0.0290659042 | N144: 5.734437937e-05
A145: =IF('DF raw data'!I150="","",'DF raw data'!I150) -> -258.5 | B145: =IF('DF raw data'!J150="","",'DF raw data'!J150) -> -4.16529e-05 | C145: =IF('DF raw data'!K150="","",'DF raw data'!K150) -> 1.33588e-05 | D145: =IF('DF raw data'!L150="","",'DF raw data'!L150) -> -2.98965e-05 | F145: -4.183617276e-05 | G145: 1.341757872e-05 | H145: -3.00280446e-05 | J145: -0.001506864415 | K145: -0.03158458695 | L145: 0.001305468147 | M145: 0.02971863828 | N145: 5.933182309e-05
A146: =IF('DF raw data'!I151="","",'DF raw data'!I151) -> -258 | B146: =IF('DF raw data'!J151="","",'DF raw data'!J151) -> -4.03699e-05 | C146: =IF('DF raw data'!K151="","",'DF raw data'!K151) -> 1.62136e-05 | D146: =IF('DF raw data'!L151="","",'DF raw data'!L151) -> -2.58677e-05 | F146: -4.054752756e-05 | G146: 1.628493984e-05 | H146: -2.598151788e-05 | J146: -0.001527138178 | K146: -0.03234815604 | L146: 0.001313610617 | M146: 0.03037544358 | N146: 6.136068503e-05
A147: =IF('DF raw data'!I152="","",'DF raw data'!I152) -> -257.5 | B147: =IF('DF raw data'!J152="","",'DF raw data'!J152) -> -3.81377e-05 | C147: =IF('DF raw data'!K152="","",'DF raw data'!K152) -> 2.4631e-05 | D147: =IF('DF raw data'!L152="","",'DF raw data'!L152) -> -1.66873e-05 | F147: -3.830550588e-05 | G147: 2.47393764e-05 | H147: -1.676072412e-05 | J147: -0.001546290931 | K147: -0.0331213015 | L147: 0.001325980305 | M147: 0.03103843374 | N147: 6.343530473e-05
A148: =IF('DF raw data'!I153="","",'DF raw data'!I153) -> -257 | B148: =IF('DF raw data'!J153="","",'DF raw data'!J153) -> -3.62127e-05 | C148: =IF('DF raw data'!K153="","",'DF raw data'!K153) -> 3.17337e-05 | D148: =IF('DF raw data'!L153="","",'DF raw data'!L153) -> -1.51827e-05 | F148: -3.637203588e-05 | G148: 3.187332828e-05 | H148: -1.524950388e-05 | J148: -0.001564476949 | K148: -0.03390353998 | L148: 0.001341916969 | M148: 0.03170939222 | N148: 6.555946937e-05
A149: =IF('DF raw data'!I154="","",'DF raw data'!I154) -> -256.5 | B149: =IF('DF raw data'!J154="","",'DF raw data'!J154) -> -3.81991e-05 | C149: =IF('DF raw data'!K154="","",'DF raw data'!K154) -> 2.02222e-05 | D149: =IF('DF raw data'!L154="","",'DF raw data'!L154) -> -2.09919e-05 | F149: -3.836717604e-05 | G149: 2.031117768e-05 | H149: -2.108426436e-05 | J149: -0.001583660537 | K149: -0.03469537025 | L149: 0.001352072558 | M149: 0.0323854285 | N149: 6.772750982e-05
A150: =IF('DF raw data'!I155="","",'DF raw data'!I155) -> -256 | B150: =IF('DF raw data'!J155="","",'DF raw data'!J155) -> -3.75533e-05 | C150: =IF('DF raw data'!K155="","",'DF raw data'!K155) -> 2.22806e-05 | D150: =IF('DF raw data'!L155="","",'DF raw data'!L155) -> -2.26563e-05 | F150: -3.771853452e-05 | G150: 2.237863464e-05 | H150: -2.275598772e-05 | J150: -0.001602519805 | K150: -0.03549663015 | L150: 0.001363261875 | M150: 0.03306705944 | N150: 6.994078615e-05
A151: =IF('DF raw data'!I156="","",'DF raw data'!I156) -> -255.5 | B151: =IF('DF raw data'!J156="","",'DF raw data'!J156) -> -4.50545e-05 | C151: =IF('DF raw data'!K156="","",'DF raw data'!K156) -> 2.70115e-05 | D151: =IF('DF raw data'!L156="","",'DF raw data'!L156) -> -2.09574e-05 | F151: -4.52527398e-05 | G151: 2.71303506e-05 | H151: -2.104961256e-05 | J151: -0.001625146174 | K151: -0.03630920323 | L151: 0.00137682705 | M151: 0.03375547296 | N151: 7.220916256e-05
A152: =IF('DF raw data'!I157="","",'DF raw data'!I157) -> -255 | B152: =IF('DF raw data'!J157="","",'DF raw data'!J157) -> -3.31929e-05 | C152: =IF('DF raw data'!K157="","",'DF raw data'!K157) -> 3.32481e-05 | D152: =IF('DF raw data'!L157="","",'DF raw data'!L157) -> -2.89653e-05 | F152: -3.333894876e-05 | G152: 3.339439164e-05 | H152: -2.909274732e-05 | J152: -0.001641815649 | K152: -0.03713011106 | L152: 0.001393524246 | M152: 0.03445223509 | N152: 7.452789678e-05
A153: =IF('DF raw data'!I158="","",'DF raw data'!I158) -> -254.5 | B153: =IF('DF raw data'!J158="","",'DF raw data'!J158) -> -4.89509e-05 | C153: =IF('DF raw data'!K158="","",'DF raw data'!K158) -> 3.5458e-05 | D153: =IF('DF raw data'!L158="","",'DF raw data'!L158) -> -3.92373e-05 | F153: -4.916628396e-05 | G153: 3.56140152e-05 | H153: -3.940994412e-05 | J153: -0.001666398791 | K153: -0.03796331045 | L153: 0.001411331254 | M153: 0.03515790071 | N153: 7.69122672e-05
A154: =IF('DF raw data'!I159="","",'DF raw data'!I159) -> -254 | B154: =IF('DF raw data'!J159="","",'DF raw data'!J159) -> -3.5438e-05 | C154: =IF('DF raw data'!K159="","",'DF raw data'!K159) -> 4.27655e-05 | D154: =IF('DF raw data'!L159="","",'DF raw data'!L159) -> -2.45239e-05 | F154: -3.55939272e-05 | G154: 4.29536682e-05 | H154: -2.463180516e-05 | J154: -0.001684195754 | K154: -0.03880540833 | L154: 0.001432808088 | M154: 0.03587430476 | N154: 7.935699438e-05
A155: =IF('DF raw data'!I160="","",'DF raw data'!I160) -> -253.5 | B155: =IF('DF raw data'!J160="","",'DF raw data'!J160) -> -3.28037e-05 | C155: =IF('DF raw data'!K160="","",'DF raw data'!K160) -> 4.4366e-05 | D155: =IF('DF raw data'!L160="","",'DF raw data'!L160) -> -4.18333e-05 | F155: -3.294803628e-05 | G155: 4.45612104e-05 | H155: -4.201736652e-05 | J155: -0.001700669773 | K155: -0.03965574322 | L155: 0.001455088693 | M155: 0.0366018491 | N155: 8.186177477e-05
A156: =IF('DF raw data'!I161="","",'DF raw data'!I161) -> -253 | B156: =IF('DF raw data'!J161="","",'DF raw data'!J161) -> -4.06191e-05 | C156: =IF('DF raw data'!K161="","",'DF raw data'!K161) -> 3.74641e-05 | D156: =IF('DF raw data'!L161="","",'DF raw data'!L161) -> -3.67358e-05 | F156: -4.079782404e-05 | G156: 3.762894204e-05 | H156: -3.689743752e-05 | J156: -0.001721068685 | K156: -0.04051627756 | L156: 0.001473903164 | M156: 0.03733880069 | N156: 8.442900875e-05
A157: =IF('DF raw data'!I162="","",'DF raw data'!I162) -> -252.5 | B157: =IF('DF raw data'!J162="","",'DF raw data'!J162) -> -3.51091e-05 | C157: =IF('DF raw data'!K162="","",'DF raw data'!K162) -> 3.74586e-05 | D157: =IF('DF raw data'!L162="","",'DF raw data'!L162) -> -4.34242e-05 | F157: -3.526358004e-05 | G157: 3.762341784e-05 | H157: -4.361526648e-05 | J157: -0.001738700475 | K157: -0.0413856278 | L157: 0.001492714873 | M157: 0.03808515812 | N157: 8.705464727e-05
A158: =IF('DF raw data'!I163="","",'DF raw data'!I163) -> -252 | B158: =IF('DF raw data'!J163="","",'DF raw data'!J163) -> -4.2286e-05 | C158: =IF('DF raw data'!K163="","",'DF raw data'!K163) -> 3.50104e-05 | D158: =IF('DF raw data'!L163="","",'DF raw data'!L163) -> -3.46085e-05 | F158: -4.24720584e-05 | G158: 3.516444576e-05 | H158: -3.47607774e-05 | J158: -0.001759936504 | K158: -0.04226559605 | L158: 0.001510297096 | M158: 0.03884030667 | N158: 8.974383417e-05
A159: =IF('DF raw data'!I164="","",'DF raw data'!I164) -> -251.5 | B159: =IF('DF raw data'!J164="","",'DF raw data'!J164) -> -4.30642e-05 | C159: =IF('DF raw data'!K164="","",'DF raw data'!K164) -> 3.35645e-05 | D159: =IF('DF raw data'!L164="","",'DF raw data'!L164) -> -2.78608e-05 | F159: -4.325368248e-05 | G159: 3.37121838e-05 | H159: -2.798338752e-05 | J159: -0.001781563345 | K159: -0.04315637772 | L159: 0.001527153188 | M159: 0.03960388326 | N159: 9.249691658e-05
A160: =IF('DF raw data'!I165="","",'DF raw data'!I165) -> -251 | B160: =IF('DF raw data'!J165="","",'DF raw data'!J165) -> -3.76114e-05 | C160: =IF('DF raw data'!K165="","",'DF raw data'!K165) -> 3.55427e-05 | D160: =IF('DF raw data'!L165="","",'DF raw data'!L165) -> -3.14675e-05 | F160: -3.777689016e-05 | G160: 3.569908788e-05 | H160: -3.1605957e-05 | J160: -0.00180045179 | K160: -0.04405660362 | L160: 0.001545002732 | M160: 0.04037638463 | N160: 9.531124662e-05
A161: =IF('DF raw data'!I166="","",'DF raw data'!I166) -> -250.5 | B161: =IF('DF raw data'!J166="","",'DF raw data'!J166) -> -2.96002e-05 | C161: =IF('DF raw data'!K166="","",'DF raw data'!K166) -> 3.42209e-05 | D161: =IF('DF raw data'!L166="","",'DF raw data'!L166) -> -4.1643e-05 | F161: -2.973044088e-05 | G161: 3.437147196e-05 | H161: -4.18262292e-05 | J161: -0.001815317011 | K161: -0.04496426212 | L161: 0.001562188468 | M161: 0.04115747886 | N161: 9.817915095e-05
A162: =IF('DF raw data'!I167="","",'DF raw data'!I167) -> -250 | B162: =IF('DF raw data'!J167="","",'DF raw data'!J167) -> -4.65126e-05 | C162: =IF('DF raw data'!K167="","",'DF raw data'!K167) -> 3.5574e-05 | D162: =IF('DF raw data'!L167="","",'DF raw data'!L167) -> -3.71615e-05 | F162: -4.671725544e-05 | G162: 3.57305256e-05 | H162: -3.73250106e-05 | J162: -0.001838675638 | K162: -0.04588359994 | L162: 0.001580053731 | M162: 0.04194750573 | N162: 0.0001011177999
A163: =IF('DF raw data'!I168="","",'DF raw data'!I168) -> -249.5 | B163: =IF('DF raw data'!J168="","",'DF raw data'!J168) -> -3.98627e-05 | C163: =IF('DF raw data'!K168="","",'DF raw data'!K168) -> 3.56136e-05 | D163: =IF('DF raw data'!L168="","",'DF raw data'!L168) -> -2.43585e-05 | F163: -4.003809588e-05 | G163: 3.577029984e-05 | H163: -2.44656774e-05 | J163: -0.001858694686 | K163: -0.04681294728 | L163: 0.00159793888 | M163: 0.04274647517 | N163: 0.0001041218772
A164: =IF('DF raw data'!I169="","",'DF raw data'!I169) -> -249 | B164: =IF('DF raw data'!J169="","",'DF raw data'!J169) -> -4.06209e-05 | C164: =IF('DF raw data'!K169="","",'DF raw data'!K169) -> 3.299e-05 | D164: =IF('DF raw data'!L169="","",'DF raw data'!L169) -> -3.41865e-05 | F164: -4.079963196e-05 | G164: 3.3135156e-05 | H164: -3.43369206e-05 | J164: -0.001879094502 | K164: -0.04775249454 | L164: 0.001614506458 | M164: 0.0435537284 | N164: 0.0001071906908
A165: =IF('DF raw data'!I170="","",'DF raw data'!I170) -> -248.5 | B165: =IF('DF raw data'!J170="","",'DF raw data'!J170) -> -3.62742e-05 | C165: =IF('DF raw data'!K170="","",'DF raw data'!K170) -> 2.68718e-05 | D165: =IF('DF raw data'!L170="","",'DF raw data'!L170) -> -2.50168e-05 | F165: -3.643380648e-05 | G165: 2.699003592e-05 | H165: -2.512687392e-05 | J165: -0.001897311405 | K165: -0.04870115024 | L165: 0.001628001476 | M165: 0.04436772914 | N165: 0.0001103157805
A166: =IF('DF raw data'!I171="","",'DF raw data'!I171) -> -248 | B166: =IF('DF raw data'!J171="","",'DF raw data'!J171) -> -4.80578e-05 | C166: =IF('DF raw data'!K171="","",'DF raw data'!K171) -> 2.67255e-05 | D166: =IF('DF raw data'!L171="","",'DF raw data'!L171) -> -2.54823e-05 | F166: -4.826925432e-05 | G166: 2.68430922e-05 | H166: -2.559442212e-05 | J166: -0.001921446033 | K166: -0.04966187325 | L166: 0.001641423023 | M166: 0.04518844065 | N166: 0.0001135088927
A167: =IF('DF raw data'!I172="","",'DF raw data'!I172) -> -247.5 | B167: =IF('DF raw data'!J172="","",'DF raw data'!J172) -> -5.13265e-05 | C167: =IF('DF raw data'!K172="","",'DF raw data'!K172) -> 2.90437e-05 | D167: =IF('DF raw data'!L172="","",'DF raw data'!L172) -> -3.11495e-05 | F167: -5.15523366e-05 | G167: 2.917149228e-05 | H167: -3.12865578e-05 | J167: -0.001947222201 | K167: -0.05063548436 | L167: 0.001656008769 | M167: 0.04601644503 | N167: 0.0001167759124
A168: =IF('DF raw data'!I173="","",'DF raw data'!I173) -> -247 | B168: =IF('DF raw data'!J173="","",'DF raw data'!J173) -> -3.87634e-05 | C168: =IF('DF raw data'!K173="","",'DF raw data'!K173) -> 2.66367e-05 | D168: =IF('DF raw data'!L173="","",'DF raw data'!L173) -> -3.38064e-05 | F168: -3.893395896e-05 | G168: 2.675390148e-05 | H168: -3.395514816e-05 | J168: -0.00196668918 | K168: -0.05161882895 | L168: 0.001669385719 | M168: 0.04685113789 | N168: 0.0001201032699
A169: =IF('DF raw data'!I174="","",'DF raw data'!I174) -> -246.5 | B169: =IF('DF raw data'!J174="","",'DF raw data'!J174) -> -4.15904e-05 | C169: =IF('DF raw data'!K174="","",'DF raw data'!K174) -> 2.65642e-05 | D169: =IF('DF raw data'!L174="","",'DF raw data'!L174) -> -2.73246e-05 | F169: -4.177339776e-05 | G169: 2.668108248e-05 | H169: -2.744482824e-05 | J169: -0.001987575879 | K169: -0.05261261688 | L169: 0.001682726261 | M169: 0.04769250102 | N169: 0.0001234942827
A170: =IF('DF raw data'!I175="","",'DF raw data'!I175) -> -246 | B170: =IF('DF raw data'!J175="","",'DF raw data'!J175) -> -3.47993e-05 | C170: =IF('DF raw data'!K175="","",'DF raw data'!K175) -> 3.06613e-05 | D170: =IF('DF raw data'!L175="","",'DF raw data'!L175) -> -2.20177e-05 | F170: -3.495241692e-05 | G170: 3.079620972e-05 | H170: -2.211457788e-05 | J170: -0.002005052088 | K170: -0.05361514293 | L170: 0.001698124366 | M170: 0.04854156321 | N170: 0.0001269462128
A171: =IF('DF raw data'!I176="","",'DF raw data'!I176) -> -245.5 | B171: =IF('DF raw data'!J176="","",'DF raw data'!J176) -> -3.81906e-05 | C171: =IF('DF raw data'!K176="","",'DF raw data'!K176) -> 2.99521e-05 | D171: =IF('DF raw data'!L176="","",'DF raw data'!L176) -> -3.35721e-05 | F171: -3.835863864e-05 | G171: 3.008388924e-05 | H171: -3.371981724e-05 | J171: -0.002024231407 | K171: -0.05462725863 | L171: 0.00171316631 | M171: 0.04939814636 | N171: 0.0001304624386
A172: =IF('DF raw data'!I177="","",'DF raw data'!I177) -> -245 | B172: =IF('DF raw data'!J177="","",'DF raw data'!J177) -> -4.24808e-05 | C172: =IF('DF raw data'!K177="","",'DF raw data'!K177) -> 3.06317e-05 | D172: =IF('DF raw data'!L177="","",'DF raw data'!L177) -> -3.16679e-05 | F172: -4.266771552e-05 | G172: 3.076647948e-05 | H172: -3.180723876e-05 | J172: -0.002045565265 | K172: -0.05565004126 | L172: 0.00172854955 | M172: 0.05026242114 | N172: 0.000134048549
A173: =IF('DF raw data'!I178="","",'DF raw data'!I178) -> -244.5 | B173: =IF('DF raw data'!J178="","",'DF raw data'!J178) -> -4.43359e-05 | C173: =IF('DF raw data'!K178="","",'DF raw data'!K178) -> 3.39733e-05 | D173: =IF('DF raw data'!L178="","",'DF raw data'!L178) -> -4.18632e-05 | F173: -4.453097796e-05 | G173: 3.412278252e-05 | H173: -4.204739808e-05 | J173: -0.002067830754 | K173: -0.05668395664 | L173: 0.001745610941 | M173: 0.05113522661 | N173: 0.0001377100898
A174: =IF('DF raw data'!I179="","",'DF raw data'!I179) -> -244 | B174: =IF('DF raw data'!J179="","",'DF raw data'!J179) -> -3.5307e-05 | C174: =IF('DF raw data'!K179="","",'DF raw data'!K179) -> 3.43278e-05 | D174: =IF('DF raw data'!L179="","",'DF raw data'!L179) -> -2.95961e-05 | F174: -3.54623508e-05 | G174: 3.447884232e-05 | H174: -2.972632284e-05 | J174: -0.002085561929 | K174: -0.05772673761 | L174: 0.001762850362 | M174: 0.05201665179 | N174: 0.0001414386947
A175: =IF('DF raw data'!I180="","",'DF raw data'!I180) -> -243.5 | B175: =IF('DF raw data'!J180="","",'DF raw data'!J180) -> -5.0948e-05 | C175: =IF('DF raw data'!K180="","",'DF raw data'!K180) -> 4.27879e-05 | D175: =IF('DF raw data'!L180="","",'DF raw data'!L180) -> -2.16095e-05 | F175: -5.11721712e-05 | G175: 4.297616676e-05 | H175: -2.17045818e-05 | J175: -0.002111148015 | K175: -0.05878231161 | L175: 0.001784338446 | M175: 0.05290882101 | N175: 0.0001452590996
A176: =IF('DF raw data'!I181="","",'DF raw data'!I181) -> -243 | B176: =IF('DF raw data'!J181="","",'DF raw data'!J181) -> -3.10793e-05 | C176: =IF('DF raw data'!K181="","",'DF raw data'!K181) -> 4.14058e-05 | D176: =IF('DF raw data'!L181="","",'DF raw data'!L181) -> -2.88589e-05 | F176: -3.121604892e-05 | G176: 4.158798552e-05 | H176: -2.898587916e-05 | J176: -0.002126756039 | K176: -0.05984568963 | L176: 0.001805132438 | M176: 0.05381138723 | N176: 0.0001491498967
A177: =IF('DF raw data'!I182="","",'DF raw data'!I182) -> -242.5 | B177: =IF('DF raw data'!J182="","",'DF raw data'!J182) -> -3.31994e-05 | C177: =IF('DF raw data'!K182="","",'DF raw data'!K182) -> 3.65389e-05 | D177: =IF('DF raw data'!L182="","",'DF raw data'!L182) -> -2.38921e-05 | F177: -3.334547736e-05 | G177: 3.669967116e-05 | H177: -2.399722524e-05 | J177: -0.002143428778 | K177: -0.06091740402 | L177: 0.001823482274 | M177: 0.05472312837 | N177: 0.000153109584
A178: =IF('DF raw data'!I183="","",'DF raw data'!I183) -> -242 | B178: =IF('DF raw data'!J183="","",'DF raw data'!J183) -> -3.80055e-05 | C178: =IF('DF raw data'!K183="","",'DF raw data'!K183) -> 3.08817e-05 | D178: =IF('DF raw data'!L183="","",'DF raw data'!L183) -> -1.75649e-05 | F178: -3.81727242e-05 | G178: 3.101757948e-05 | H178: -1.764218556e-05 | J178: -0.00216251514 | K178: -0.06199866159 | L178: 0.001838991064 | M178: 0.0556426239 | N178: 0.0001571387639
A179: =IF('DF raw data'!I184="","",'DF raw data'!I184) -> -241.5 | B179: =IF('DF raw data'!J184="","",'DF raw data'!J184) -> -4.49839e-05 | C179: =IF('DF raw data'!K184="","",'DF raw data'!K184) -> 2.40633e-05 | D179: =IF('DF raw data'!L184="","",'DF raw data'!L184) -> -3.04072e-05 | F179: -4.518182916e-05 | G179: 2.416917852e-05 | H179: -3.054099168e-05 | J179: -0.002185106055 | K179: -0.06309121462 | L179: 0.001851075653 | M179: 0.05656816172 | N179: 0.0001612393487
A180: =IF('DF raw data'!I185="","",'DF raw data'!I185) -> -241 | B180: =IF('DF raw data'!J185="","",'DF raw data'!J185) -> -4.00414e-05 | C180: =IF('DF raw data'!K185="","",'DF raw data'!K185) -> 2.34732e-05 | D180: =IF('DF raw data'!L185="","",'DF raw data'!L185) -> -3.96946e-05 | F180: -4.021758216e-05 | G180: 2.357648208e-05 | H180: -3.986925624e-05 | J180: -0.002205214846 | K180: -0.06419382204 | L180: 0.001862863894 | M180: 0.05749959367 | N180: 0.0001654059659
A181: =IF('DF raw data'!I186="","",'DF raw data'!I186) -> -240.5 | B181: =IF('DF raw data'!J186="","",'DF raw data'!J186) -> -4.39606e-05 | C181: =IF('DF raw data'!K186="","",'DF raw data'!K186) -> 3.09909e-05 | D181: =IF('DF raw data'!L186="","",'DF raw data'!L186) -> -2.76992e-05 | F181: -4.415402664e-05 | G181: 3.112725996e-05 | H181: -2.782107648e-05 | J181: -0.002227291859 | K181: -0.06530746797 | L181: 0.001878427524 | M181: 0.05843880743 | N181: 0.0001696506254
A182: =IF('DF raw data'!I187="","",'DF raw data'!I187) -> -240 | B182: =IF('DF raw data'!J187="","",'DF raw data'!J187) -> -4.80625e-05 | C182: =IF('DF raw data'!K187="","",'DF raw data'!K187) -> 3.73891e-05 | D182: =IF('DF raw data'!L187="","",'DF raw data'!L187) -> -1.91044e-05 | F182: -4.8273975e-05 | G182: 3.755361204e-05 | H182: -1.918845936e-05 | J182: -0.002251428846 | K182: -0.06643318239 | L182: 0.00189720433 | M182: 0.0593874096 | N182: 0.0001739847835
A183: =IF('DF raw data'!I188="","",'DF raw data'!I188) -> -239.5 | B183: =IF('DF raw data'!J188="","",'DF raw data'!J188) -> -3.95349e-05 | C183: =IF('DF raw data'!K188="","",'DF raw data'!K188) -> 3.68946e-05 | D183: =IF('DF raw data'!L188="","",'DF raw data'!L188) -> -3.50113e-05 | F183: -3.970885356e-05 | G183: 3.705693624e-05 | H183: -3.516534972e-05 | J183: -0.002271283273 | K183: -0.06756882403 | L183: 0.001915732798 | M183: 0.060345276 | N183: 0.0001783991634
A184: =IF('DF raw data'!I189="","",'DF raw data'!I189) -> -239 | B184: =IF('DF raw data'!J189="","",'DF raw data'!J189) -> -4.16425e-05 | C184: =IF('DF raw data'!K189="","",'DF raw data'!K189) -> 4.16155e-05 | D184: =IF('DF raw data'!L189="","",'DF raw data'!L189) -> -4.00017e-05 | F184: -4.1825727e-05 | G184: 4.17986082e-05 | H184: -4.017770748e-05 | J184: -0.002292196137 | K184: -0.0687149221 | L184: 0.001936632102 | M184: 0.06131359205 | N184: 0.0001829015169
A185: =IF('DF raw data'!I190="","",'DF raw data'!I190) -> -238.5 | B185: =IF('DF raw data'!J190="","",'DF raw data'!J190) -> -3.36435e-05 | C185: =IF('DF raw data'!K190="","",'DF raw data'!K190) -> 3.87848e-05 | D185: =IF('DF raw data'!L190="","",'DF raw data'!L190) -> -3.03258e-05 | F185: -3.37915314e-05 | G185: 3.895545312e-05 | H185: -3.045923352e-05 | J185: -0.002309091902 | K185: -0.06986946805 | L185: 0.001956109829 | M185: 0.06229164696 | N185: 0.0001874806525
A186: =IF('DF raw data'!I191="","",'DF raw data'!I191) -> -238 | B186: =IF('DF raw data'!J191="","",'DF raw data'!J191) -> -3.62657e-05 | C186: =IF('DF raw data'!K191="","",'DF raw data'!K191) -> 2.90344e-05 | D186: =IF('DF raw data'!L191="","",'DF raw data'!L191) -> -3.29058e-05 | F186: -3.642526908e-05 | G186: 2.916215136e-05 | H186: -3.305058552e-05 | J186: -0.002327304537 | K186: -0.07103312032 | L186: 0.001970690905 | M186: 0.06327699242 | N186: 0.000192130637
A187: =IF('DF raw data'!I192="","",'DF raw data'!I192) -> -237.5 | B187: =IF('DF raw data'!J192="","",'DF raw data'!J192) -> -4.8512e-05 | C187: =IF('DF raw data'!K192="","",'DF raw data'!K192) -> 2.922e-05 | D187: =IF('DF raw data'!L192="","",'DF raw data'!L192) -> -2.36083e-05 | F187: -4.87254528e-05 | G187: 2.9348568e-05 | H187: -2.371217652e-05 | J187: -0.002351667263 | K187: -0.07220895395 | L187: 0.001985365189 | M187: 0.06426967501 | N187: 0.0001968666439
A188: =IF('DF raw data'!I193="","",'DF raw data'!I193) -> -237 | B188: =IF('DF raw data'!J193="","",'DF raw data'!J193) -> -3.31325e-05 | C188: =IF('DF raw data'!K193="","",'DF raw data'!K193) -> 2.64274e-05 | D188: =IF('DF raw data'!L193="","",'DF raw data'!L193) -> -2.39283e-05 | F188: -3.3278283e-05 | G188: 2.654368056e-05 | H188: -2.403358452e-05 | J188: -0.002368306405 | K188: -0.07339310715 | L188: 0.001998637029 | M188: 0.06526899352 | N188: 0.0002016683565
A189: =IF('DF raw data'!I194="","",'DF raw data'!I194) -> -236.5 | B189: =IF('DF raw data'!J194="","",'DF raw data'!J194) -> -3.28139e-05 | C189: =IF('DF raw data'!K194="","",'DF raw data'!K194) -> 2.57586e-05 | D189: =IF('DF raw data'!L194="","",'DF raw data'!L194) -> -2.52337e-05 | F189: -3.295828116e-05 | G189: 2.587193784e-05 | H189: -2.534472828e-05 | J189: -0.002384785545 | K189: -0.07458549993 | L189: 0.002011572998 | M189: 0.06627478002 | N189: 0.0002065351705
A190: =IF('DF raw data'!I195="","",'DF raw data'!I195) -> -236 | B190: =IF('DF raw data'!J195="","",'DF raw data'!J195) -> -4.76694e-05 | C190: =IF('DF raw data'!K195="","",'DF raw data'!K195) -> 2.296e-05 | D190: =IF('DF raw data'!L195="","",'DF raw data'!L195) -> -3.3252e-05 | F190: -4.787914536e-05 | G190: 2.3061024e-05 | H190: -3.33983088e-05 | J190: -0.002408725118 | K190: -0.07578986249 | L190: 0.00202310351 | M190: 0.06728633178 | N190: 0.0002114826228
A191: =IF('DF raw data'!I196="","",'DF raw data'!I196) -> -235.5 | B191: =IF('DF raw data'!J196="","",'DF raw data'!J196) -> -4.31951e-05 | C191: =IF('DF raw data'!K196="","",'DF raw data'!K196) -> 2.68966e-05 | D191: =IF('DF raw data'!L196="","",'DF raw data'!L196) -> -2.19339e-05 | F191: -4.338515844e-05 | G191: 2.701494504e-05 | H191: -2.203040916e-05 | J191: -0.002430417697 | K191: -0.07700507133 | L191: 0.002036610982 | M191: 0.06830463727 | N191: 0.00021650998
A192: =IF('DF raw data'!I197="","",'DF raw data'!I197) -> -235 | B192: =IF('DF raw data'!J197="","",'DF raw data'!J197) -> -3.78127e-05 | C192: =IF('DF raw data'!K197="","",'DF raw data'!K197) -> 3.13734e-05 | D192: =IF('DF raw data'!L197="","",'DF raw data'!L197) -> -1.92742e-05 | F192: =(1-$G$1*($B$49-$G$2))*B192 -> -3.797907588e-05 | G192: 3.151144296e-05 | H192: -1.935900648e-05 | J192: =F192*$G$3+J191 -> -0.002449407235 | K192: =J192*$G$3+K191 -> -0.07822977495 | L192: =G192*$G$3+L191 -> 0.002052366704 | M192: =L192*$G$3+M191 -> 0.06933082062 | N192: =(J192^2+L192^2)*$G$3+N191 -> 0.0002216158825
A193: =IF('DF raw data'!I198="","",'DF raw data'!I198) -> -234.5 | B193: =IF('DF raw data'!J198="","",'DF raw data'!J198) -> -3.42873e-05 | C193: =IF('DF raw data'!K198="","",'DF raw data'!K198) -> 3.62006e-05 | D193: =IF('DF raw data'!L198="","",'DF raw data'!L198) -> -2.52972e-05 | F193: -3.443816412e-05 | G193: 3.635988264e-05 | H193: -2.540850768e-05 | J193: -0.002466626317 | K193: -0.07946308811 | L193: 0.002070546645 | M193: 0.07036609394 | N193: 0.0002268015869
A194: =IF('DF raw data'!I199="","",'DF raw data'!I199) -> -234 | B194: =IF('DF raw data'!J199="","",'DF raw data'!J199) -> -4.32545e-05 | C194: =IF('DF raw data'!K199="","",'DF raw data'!K199) -> 4.29053e-05 | D194: =IF('DF raw data'!L199="","",'DF raw data'!L199) -> -2.50383e-05 | F194: -4.34448198e-05 | G194: 4.309408332e-05 | H194: -2.514846852e-05 | J194: -0.002488348727 | K194: -0.08070726247 | L194: 0.002092093687 | M194: 0.07141214079 | N194: 0.0002320859545
A195: =IF('DF raw data'!I200="","",'DF raw data'!I200) -> -233.5 | B195: =IF('DF raw data'!J200="","",'DF raw data'!J200) -> -3.87755e-05 | C195: =IF('DF raw data'!K200="","",'DF raw data'!K200) -> 3.56563e-05 | D195: =IF('DF raw data'!L200="","",'DF raw data'!L200) -> -1.97688e-05 | F195: -3.89461122e-05 | G195: 3.581318772e-05 | H195: -1.985578272e-05 | J195: -0.002507821783 | K195: -0.08196117337 | L195: 0.002110000281 | M195: 0.07246714093 | N195: 0.0002374565902
A196: =IF('DF raw data'!I201="","",'DF raw data'!I201) -> -233 | B196: =IF('DF raw data'!J201="","",'DF raw data'!J201) -> -3.93399e-05 | C196: =IF('DF raw data'!K201="","",'DF raw data'!K201) -> 2.8602e-05 | D196: =IF('DF raw data'!L201="","",'DF raw data'!L201) -> -3.54715e-05 | F196: -3.951299556e-05 | G196: 2.87278488e-05 | H196: -3.56275746e-05 | J196: -0.002527578281 | K196: -0.08322496251 | L196: 0.002124364205 | M196: 0.07352932303 | N196: 0.0002429073778
A197: =IF('DF raw data'!I202="","",'DF raw data'!I202) -> -232.5 | B197: =IF('DF raw data'!J202="","",'DF raw data'!J202) -> -3.66428e-05 | C197: =IF('DF raw data'!K202="","",'DF raw data'!K202) -> 2.51417e-05 | D197: =IF('DF raw data'!L202="","",'DF raw data'!L202) -> -4.78439e-05 | F197: -3.680402832e-05 | G197: 2.525232348e-05 | H197: -4.805441316e-05 | J197: -0.002545980295 | K197: -0.08449795265 | L197: 0.002136990367 | M197: 0.07459781821 | N197: 0.0002484317496
A198: =IF('DF raw data'!I203="","",'DF raw data'!I203) -> -232 | B198: =IF('DF raw data'!J203="","",'DF raw data'!J203) -> -3.19069e-05 | C198: =IF('DF raw data'!K203="","",'DF raw data'!K203) -> 2.0106e-05 | D198: =IF('DF raw data'!L203="","",'DF raw data'!L203) -> -3.78426e-05 | F198: -3.204729036e-05 | G198: 2.01944664e-05 | H198: -3.800910744e-05 | J198: -0.00256200394 | K198: -0.08577895462 | L198: 0.0021470876 | M198: 0.07567136201 | N198: 0.0002540186742
A199: =IF('DF raw data'!I204="","",'DF raw data'!I204) -> -231.5 | B199: =IF('DF raw data'!J204="","",'DF raw data'!J204) -> -4.31256e-05 | C199: =IF('DF raw data'!K204="","",'DF raw data'!K204) -> 1.45568e-05 | D199: =IF('DF raw data'!L204="","",'DF raw data'!L204) -> -2.95385e-05 | F199: -4.331535264e-05 | G199: 1.462084992e-05 | H199: -2.96684694e-05 | J199: -0.002583661617 | K199: -0.08707078543 | L199: 0.002154398025 | M199: 0.07674856103 | N199: 0.0002596770433
A200: =IF('DF raw data'!I205="","",'DF raw data'!I205) -> -231 | B200: =IF('DF raw data'!J205="","",'DF raw data'!J205) -> -4.2157e-05 | C200: =IF('DF raw data'!K205="","",'DF raw data'!K205) -> 1.77091e-05 | D200: =IF('DF raw data'!L205="","",'DF raw data'!L205) -> -3.83876e-05 | F200: -4.23424908e-05 | G200: 1.778702004e-05 | H200: -3.855650544e-05 | J200: -0.002604832862 | K200: -0.08837320186 | L200: 0.002163291535 | M200: 0.07783020679 | N200: 0.0002654095356
A201: =IF('DF raw data'!I206="","",'DF raw data'!I206) -> -230.5 | B201: =IF('DF raw data'!J206="","",'DF raw data'!J206) -> -3.05061e-05 | C201: =IF('DF raw data'!K206="","",'DF raw data'!K206) -> 2.71892e-05 | D201: =IF('DF raw data'!L206="","",'DF raw data'!L206) -> -2.61883e-05 | F201: -3.064032684e-05 | G201: 2.730883248e-05 | H201: -2.630352852e-05 | J201: -0.002620153026 | K201: -0.08968327838 | L201: 0.002176945951 | M201: 0.07891867977 | N201: 0.0002712116834
... 1061 more rows

Sheet 10 y=0.1
A1: =IF('DF raw data'!M1="","",'DF raw data'!M1) -> Number of header lines | B1: =IF('DF raw data'!N1="","",'DF raw data'!N1) -> 54 | C1: =IF('DF raw data'!O1="","",'DF raw data'!O1) ->  | D1: =IF('DF raw data'!P1="","",'DF raw data'!P1) ->  | F1: T_coeff | G1: -0.001 | H1: /degC | J1: ='10 y=-0.2'!J1 -> IBy total | K1: ='10 y=-0.2'!K1 -> -15.54979969 | L1: ='10 y=-0.2'!L1 -> muTm | R1: ='10 y=-0.2'!R1 -> DF ref | S1: ='10 y=-0.2'!S1 -> 1
A2: =IF('DF raw data'!M2="","",'DF raw data'!M2) -> Measured by | B2: =IF('DF raw data'!N2="","",'DF raw data'!N2) -> Danfysik | C2: =IF('DF raw data'!O2="","",'DF raw data'!O2) ->  | D2: =IF('DF raw data'!P2="","",'DF raw data'!P2) ->  | F2: Tcorr | G2: 20 | H2: degC | J2: JBy total | K2: =K1262 -> -10.09561032 | L2: muTm^2 | M2: =M1262 -> 7.93406645
A3: =IF('DF raw data'!M3="","",'DF raw data'!M3) -> Operator | B3: =IF('DF raw data'!N3="","",'DF raw data'!N3) -> PMHA | C3: =IF('DF raw data'!O3="","",'DF raw data'!O3) ->  | D3: =IF('DF raw data'!P3="","",'DF raw data'!P3) ->  | F3: Step | G3: =A63-A62 -> 0.5 | H3: mm | J3: PI total | K3: =N1262 -> 10497.52929 | L3: T^2mm^3
A4: =IF('DF raw data'!M4="","",'DF raw data'!M4) -> Data-time | B4: =IF('DF raw data'!N4="","",'DF raw data'!N4) -> 27-09-2024, 14:26:40 | C4: =IF('DF raw data'!O4="","",'DF raw data'!O4) ->  | D4: =IF('DF raw data'!P4="","",'DF raw data'!P4) -> 
A5: =IF('DF raw data'!M5="","",'DF raw data'!M5) -> Project | B5: =IF('DF raw data'!N5="","",'DF raw data'!N5) -> 504314 | C5: =IF('DF raw data'!O5="","",'DF raw data'!O5) ->  | D5: =IF('DF raw data'!P5="","",'DF raw data'!P5) -> 
A6: =IF('DF raw data'!M6="","",'DF raw data'!M6) -> Magnet type | B6: =IF('DF raw data'!N6="","",'DF raw data'!N6) -> Dipole | C6: =IF('DF raw data'!O6="","",'DF raw data'!O6) ->  | D6: =IF('DF raw data'!P6="","",'DF raw data'!P6) -> 
A7: =IF('DF raw data'!M7="","",'DF raw data'!M7) -> Magnet nr. | B7: =IF('DF raw data'!N7="","",'DF raw data'!N7) -> 2410104 | C7: =IF('DF raw data'!O7="","",'DF raw data'!O7) ->  | D7: =IF('DF raw data'!P7="","",'DF raw data'!P7) -> 
A8: =IF('DF raw data'!M8="","",'DF raw data'!M8) -> Meas. number | B8: =IF('DF raw data'!N8="","",'DF raw data'!N8) -> 777 | C8: =IF('DF raw data'!O8="","",'DF raw data'!O8) ->  | D8: =IF('DF raw data'!P8="","",'DF raw data'!P8) -> 
A9: =IF('DF raw data'!M9="","",'DF raw data'!M9) -> Add. info | B9: =IF('DF raw data'!N9="","",'DF raw data'!N9) -> Y-alignment scan 4) | C9: =IF('DF raw data'!O9="","",'DF raw data'!O9) ->  | D9: =IF('DF raw data'!P9="","",'DF raw data'!P9) -> 
A10: =IF('DF raw data'!M10="","",'DF raw data'!M10) -> Device | B10: =IF('DF raw data'!N10="","",'DF raw data'!N10) -> (HAL) HALL-PROBE | C10: =IF('DF raw data'!O10="","",'DF raw data'!O10) ->  | D10: =IF('DF raw data'!P10="","",'DF raw data'!P10) -> 
A11: =IF('DF raw data'!M11="","",'DF raw data'!M11) -> Goal | B11: =IF('DF raw data'!N11="","",'DF raw data'!N11) -> (AXI) AXis Integral (Line, EFB) | C11: =IF('DF raw data'!O11="","",'DF raw data'!O11) ->  | D11: =IF('DF raw data'!P11="","",'DF raw data'!P11) -> 
A12: =IF('DF raw data'!M12="","",'DF raw data'!M12) -> Power supply mode | B12: =IF('DF raw data'!N12="","",'DF raw data'!N12) -> (PM) Permanent Magnet (no MPS in use) | C12: =IF('DF raw data'!O12="","",'DF raw data'!O12) ->  | D12: =IF('DF raw data'!P12="","",'DF raw data'!P12) -> 
A13: =IF('DF raw data'!M13="","",'DF raw data'!M13) -> Data format | B13: =IF('DF raw data'!N13="","",'DF raw data'!N13) -> Raw data text file | C13: =IF('DF raw data'!O13="","",'DF raw data'!O13) ->  | D13: =IF('DF raw data'!P13="","",'DF raw data'!P13) -> 
A14: =IF('DF raw data'!M14="","",'DF raw data'!M14) -> Direction of the pos. x-axis | B14: =IF('DF raw data'!N14="","",'DF raw data'!N14) -> See test program | C14: =IF('DF raw data'!O14="","",'DF raw data'!O14) ->  | D14: =IF('DF raw data'!P14="","",'DF raw data'!P14) -> 
A15: =IF('DF raw data'!M15="","",'DF raw data'!M15) -> Direction of the pos. y-axis | B15: =IF('DF raw data'!N15="","",'DF raw data'!N15) -> Vertical up | C15: =IF('DF raw data'!O15="","",'DF raw data'!O15) ->  | D15: =IF('DF raw data'!P15="","",'DF raw data'!P15) -> 
A16: =IF('DF raw data'!M16="","",'DF raw data'!M16) -> Direction of the pos. z-axis | B16: =IF('DF raw data'!N16="","",'DF raw data'!N16) -> See test program | C16: =IF('DF raw data'!O16="","",'DF raw data'!O16) ->  | D16: =IF('DF raw data'!P16="","",'DF raw data'!P16) -> 
A17: =IF('DF raw data'!M17="","",'DF raw data'!M17) -> Mapper type | B17: =IF('DF raw data'!N17="","",'DF raw data'!N17) -> Precision Hall Mapper | C17: =IF('DF raw data'!O17="","",'DF raw data'!O17) ->  | D17: =IF('DF raw data'!P17="","",'DF raw data'!P17) -> 
A18: =IF('DF raw data'!M18="","",'DF raw data'!M18) -> Mapper Danfysik Reg. Number | B18: =IF('DF raw data'!N18="","",'DF raw data'!N18) -> 2033-D (mapper 1) | C18: =IF('DF raw data'!O18="","",'DF raw data'!O18) ->  | D18: =IF('DF raw data'!P18="","",'DF raw data'!P18) -> 
A19: =IF('DF raw data'!M19="","",'DF raw data'!M19) -> Measurement consept | B19: =IF('DF raw data'!N19="","",'DF raw data'!N19) -> Square line grid | C19: =IF('DF raw data'!O19="","",'DF raw data'!O19) ->  | D19: =IF('DF raw data'!P19="","",'DF raw data'!P19) -> 
A20: =IF('DF raw data'!M20="","",'DF raw data'!M20) -> Mode | B20: =IF('DF raw data'!N20="","",'DF raw data'!N20) -> On-the-fly measurement | C20: =IF('DF raw data'!O20="","",'DF raw data'!O20) ->  | D20: =IF('DF raw data'!P20="","",'DF raw data'!P20) -> 
A21: =IF('DF raw data'!M21="","",'DF raw data'!M21) ->  | B21: =IF('DF raw data'!N21="","",'DF raw data'!N21) ->  | C21: =IF('DF raw data'!O21="","",'DF raw data'!O21) ->  | D21: =IF('DF raw data'!P21="","",'DF raw data'!P21) -> 
A22: =IF('DF raw data'!M22="","",'DF raw data'!M22) -> Probe Name | B22: =IF('DF raw data'!N22="","",'DF raw data'!N22) -> ID12_By | C22: =IF('DF raw data'!O22="","",'DF raw data'!O22) ->  | D22: =IF('DF raw data'!P22="","",'DF raw data'!P22) -> 
A23: =IF('DF raw data'!M23="","",'DF raw data'!M23) -> Probe Type | B23: =IF('DF raw data'!N23="","",'DF raw data'!N23) -> DF_ID_3D_Bxyz | C23: =IF('DF raw data'!O23="","",'DF raw data'!O23) ->  | D23: =IF('DF raw data'!P23="","",'DF raw data'!P23) -> 
A24: =IF('DF raw data'!M24="","",'DF raw data'!M24) -> Probe Danfysik Reg. Number | B24: =IF('DF raw data'!N24="","",'DF raw data'!N24) -> 2277 | C24: =IF('DF raw data'!O24="","",'DF raw data'!O24) ->  | D24: =IF('DF raw data'!P24="","",'DF raw data'!P24) -> 
A25: =IF('DF raw data'!M25="","",'DF raw data'!M25) -> Probe Axis | B25: =IF('DF raw data'!N25="","",'DF raw data'!N25) -> By | C25: =IF('DF raw data'!O25="","",'DF raw data'!O25) ->  | D25: =IF('DF raw data'!P25="","",'DF raw data'!P25) -> 
A26: =IF('DF raw data'!M26="","",'DF raw data'!M26) -> Probe Current Supply | B26: =IF('DF raw data'!N26="","",'DF raw data'!N26) -> 1825-D | C26: =IF('DF raw data'!O26="","",'DF raw data'!O26) ->  | D26: =IF('DF raw data'!P26="","",'DF raw data'!P26) -> 
A27: =IF('DF raw data'!M27="","",'DF raw data'!M27) -> Probe Gain Correction | B27: =IF('DF raw data'!N27="","",'DF raw data'!N27) -> 0.99606 | C27: =IF('DF raw data'!O27="","",'DF raw data'!O27) ->  | D27: =IF('DF raw data'!P27="","",'DF raw data'!P27) -> 
A28: =IF('DF raw data'!M28="","",'DF raw data'!M28) -> Probe Offset Correction | B28: =IF('DF raw data'!N28="","",'DF raw data'!N28) -> 0.0027746 | C28: =IF('DF raw data'!O28="","",'DF raw data'!O28) ->  | D28: =IF('DF raw data'!P28="","",'DF raw data'!P28) -> 
A29: =IF('DF raw data'!M29="","",'DF raw data'!M29) -> DVM Number | B29: =IF('DF raw data'!N29="","",'DF raw data'!N29) -> 2 | C29: =IF('DF raw data'!O29="","",'DF raw data'!O29) ->  | D29: =IF('DF raw data'!P29="","",'DF raw data'!P29) -> 
A30: =IF('DF raw data'!M30="","",'DF raw data'!M30) -> DVM Type | B30: =IF('DF raw data'!N30="","",'DF raw data'!N30) -> K2701 | C30: =IF('DF raw data'!O30="","",'DF raw data'!O30) ->  | D30: =IF('DF raw data'!P30="","",'DF raw data'!P30) -> 
A31: =IF('DF raw data'!M31="","",'DF raw data'!M31) -> DVM Danfysik Reg. Number | B31: =IF('DF raw data'!N31="","",'DF raw data'!N31) -> 1743-D | C31: =IF('DF raw data'!O31="","",'DF raw data'!O31) ->  | D31: =IF('DF raw data'!P31="","",'DF raw data'!P31) -> 
A32: =IF('DF raw data'!M32="","",'DF raw data'!M32) -> Probe Name | B32: =IF('DF raw data'!N32="","",'DF raw data'!N32) -> ID12_Bx | C32: =IF('DF raw data'!O32="","",'DF raw data'!O32) ->  | D32: =IF('DF raw data'!P32="","",'DF raw data'!P32) -> 
A33: =IF('DF raw data'!M33="","",'DF raw data'!M33) -> Probe Type | B33: =IF('DF raw data'!N33="","",'DF raw data'!N33) -> DF_ID_3D_Bxyz | C33: =IF('DF raw data'!O33="","",'DF raw data'!O33) ->  | D33: =IF('DF raw data'!P33="","",'DF raw data'!P33) -> 
A34: =IF('DF raw data'!M34="","",'DF raw data'!M34) -> Probe Danfysik Reg. Number | B34: =IF('DF raw data'!N34="","",'DF raw data'!N34) -> 2277 | C34: =IF('DF raw data'!O34="","",'DF raw data'!O34) ->  | D34: =IF('DF raw data'!P34="","",'DF raw data'!P34) -> 
A35: =IF('DF raw data'!M35="","",'DF raw data'!M35) -> Probe Axis | B35: =IF('DF raw data'!N35="","",'DF raw data'!N35) -> Bx | C35: =IF('DF raw data'!O35="","",'DF raw data'!O35) ->  | D35: =IF('DF raw data'!P35="","",'DF raw data'!P35) -> 
A36: =IF('DF raw data'!M36="","",'DF raw data'!M36) -> Probe Current Supply | B36: =IF('DF raw data'!N36="","",'DF raw data'!N36) -> 1825-D | C36: =IF('DF raw data'!O36="","",'DF raw data'!O36) ->  | D36: =IF('DF raw data'!P36="","",'DF raw data'!P36) -> 
A37: =IF('DF raw data'!M37="","",'DF raw data'!M37) -> Probe Gain Correction | B37: =IF('DF raw data'!N37="","",'DF raw data'!N37) -> 1 | C37: =IF('DF raw data'!O37="","",'DF raw data'!O37) ->  | D37: =IF('DF raw data'!P37="","",'DF raw data'!P37) -> 
A38: =IF('DF raw data'!M38="","",'DF raw data'!M38) -> Probe Offset Correction | B38: =IF('DF raw data'!N38="","",'DF raw data'!N38) -> -0.1754 | C38: =IF('DF raw data'!O38="","",'DF raw data'!O38) ->  | D38: =IF('DF raw data'!P38="","",'DF raw data'!P38) -> 
A39: =IF('DF raw data'!M39="","",'DF raw data'!M39) -> DVM Number | B39: =IF('DF raw data'!N39="","",'DF raw data'!N39) -> 3 | C39: =IF('DF raw data'!O39="","",'DF raw data'!O39) ->  | D39: =IF('DF raw data'!P39="","",'DF raw data'!P39) -> 
A40: =IF('DF raw data'!M40="","",'DF raw data'!M40) -> DVM Type | B40: =IF('DF raw data'!N40="","",'DF raw data'!N40) -> K2701 | C40: =IF('DF raw data'!O40="","",'DF raw data'!O40) ->  | D40: =IF('DF raw data'!P40="","",'DF raw data'!P40) -> 
A41: =IF('DF raw data'!M41="","",'DF raw data'!M41) -> DVM Danfysik Reg. Number | B41: =IF('DF raw data'!N41="","",'DF raw data'!N41) -> 1744-D | C41: =IF('DF raw data'!O41="","",'DF raw data'!O41) ->  | D41: =IF('DF raw data'!P41="","",'DF raw data'!P41) -> 
A42: =IF('DF raw data'!M42="","",'DF raw data'!M42) -> Probe Name | B42: =IF('DF raw data'!N42="","",'DF raw data'!N42) -> ID12_Bz | C42: =IF('DF raw data'!O42="","",'DF raw data'!O42) ->  | D42: =IF('DF raw data'!P42="","",'DF raw data'!P42) -> 
A43: =IF('DF raw data'!M43="","",'DF raw data'!M43) -> Probe Type | B43: =IF('DF raw data'!N43="","",'DF raw data'!N43) -> DF_ID_3D_Bxyz | C43: =IF('DF raw data'!O43="","",'DF raw data'!O43) ->  | D43: =IF('DF raw data'!P43="","",'DF raw data'!P43) -> 
A44: =IF('DF raw data'!M44="","",'DF raw data'!M44) -> Probe Danfysik Reg. Number | B44: =IF('DF raw data'!N44="","",'DF raw data'!N44) -> 2277 | C44: =IF('DF raw data'!O44="","",'DF raw data'!O44) ->  | D44: =IF('DF raw data'!P44="","",'DF raw data'!P44) -> 
A45: =IF('DF raw data'!M45="","",'DF raw data'!M45) -> Probe Axis | B45: =IF('DF raw data'!N45="","",'DF raw data'!N45) -> Bz | C45: =IF('DF raw data'!O45="","",'DF raw data'!O45) ->  | D45: =IF('DF raw data'!P45="","",'DF raw data'!P45) -> 
A46: =IF('DF raw data'!M46="","",'DF raw data'!M46) -> Probe Current Supply | B46: =IF('DF raw data'!N46="","",'DF raw data'!N46) -> 1825-D | C46: =IF('DF raw data'!O46="","",'DF raw data'!O46) ->  | D46: =IF('DF raw data'!P46="","",'DF raw data'!P46) -> 
A47: =IF('DF raw data'!M47="","",'DF raw data'!M47) -> Probe Gain Correction | B47: =IF('DF raw data'!N47="","",'DF raw data'!N47) -> 1 | C47: =IF('DF raw data'!O47="","",'DF raw data'!O47) ->  | D47: =IF('DF raw data'!P47="","",'DF raw data'!P47) -> 
A48: =IF('DF raw data'!M53="","",'DF raw data'!M53) -> PS-Gap: | B48: =IF('DF raw data'!N53="","",'DF raw data'!N53) -> 10 | C48: =IF('DF raw data'!O53="","",'DF raw data'!O53) ->  | D48: =IF('DF raw data'!P53="","",'DF raw data'!P53) -> 
A49: =IF('DF raw data'!M54="","",'DF raw data'!M54) -> PS-Temperature: | B49: =IF('DF raw data'!N54="","",'DF raw data'!N54) -> 24.4 | C49: =IF('DF raw data'!O54="","",'DF raw data'!O54) ->  | D49: =IF('DF raw data'!P54="","",'DF raw data'!P54) -> 
A50: =IF('DF raw data'!M55="","",'DF raw data'!M55) -> PS-Encoder: | B50: =IF('DF raw data'!N55="","",'DF raw data'!N55) -> 19.8945 | C50: =IF('DF raw data'!O55="","",'DF raw data'!O55) ->  | D50: =IF('DF raw data'!P55="","",'DF raw data'!P55) -> 
A51: =IF('DF raw data'!M56="","",'DF raw data'!M56) ->  | B51: =IF('DF raw data'!N56="","",'DF raw data'!N56) ->  | C51: =IF('DF raw data'!O56="","",'DF raw data'!O56) ->  | D51: =IF('DF raw data'!P56="","",'DF raw data'!P56) -> 
A52: =IF('DF raw data'!M57="","",'DF raw data'!M57) -> Monitor-Index | B52: =IF('DF raw data'!N57="","",'DF raw data'!N57) -> [1,1,4] | C52: =IF('DF raw data'!O57="","",'DF raw data'!O57) ->  | D52: =IF('DF raw data'!P57="","",'DF raw data'!P57) -> 
A53: =IF('DF raw data'!M58="","",'DF raw data'!M58) ->  | B53: =IF('DF raw data'!N58="","",'DF raw data'!N58) ->  | C53: =IF('DF raw data'!O58="","",'DF raw data'!O58) ->  | D53: =IF('DF raw data'!P58="","",'DF raw data'!P58) -> 
A54: =IF('DF raw data'!M59="","",'DF raw data'!M59) -> Time [s] | B54: =IF('DF raw data'!N59="","",'DF raw data'!N59) -> Y [mm] | C54: =IF('DF raw data'!O59="","",'DF raw data'!O59) -> X [mm] | D54: =IF('DF raw data'!P59="","",'DF raw data'!P59) -> Nominal current [A]
A55: =IF('DF raw data'!M60="","",'DF raw data'!M60) ->  | B55: =IF('DF raw data'!N60="","",'DF raw data'!N60) ->  | C55: =IF('DF raw data'!O60="","",'DF raw data'!O60) ->  | D55: =IF('DF raw data'!P60="","",'DF raw data'!P60) -> 
A56: =IF('DF raw data'!M61="","",'DF raw data'!M61) -> 209.2 | B56: =IF('DF raw data'!N61="","",'DF raw data'!N61) -> 31.83 | C56: =IF('DF raw data'!O61="","",'DF raw data'!O61) -> 302.3 | D56: =IF('DF raw data'!P61="","",'DF raw data'!P61) -> 0
A57: =IF('DF raw data'!M62="","",'DF raw data'!M62) ->  | B57: =IF('DF raw data'!N62="","",'DF raw data'!N62) ->  | C57: =IF('DF raw data'!O62="","",'DF raw data'!O62) ->  | D57: =IF('DF raw data'!P62="","",'DF raw data'!P62) -> 
A58: =IF('DF raw data'!M63="","",'DF raw data'!M63) -> Measurement-Index | B58: =IF('DF raw data'!N63="","",'DF raw data'!N63) -> [1,1,1201,2] | C58: =IF('DF raw data'!O63="","",'DF raw data'!O63) ->  | D58: =IF('DF raw data'!P63="","",'DF raw data'!P63) -> 
A59: =IF('DF raw data'!M64="","",'DF raw data'!M64) ->  | B59: =IF('DF raw data'!N64="","",'DF raw data'!N64) ->  | C59: =IF('DF raw data'!O64="","",'DF raw data'!O64) ->  | D59: =IF('DF raw data'!P64="","",'DF raw data'!P64) -> 
A60: =IF('DF raw data'!M65="","",'DF raw data'!M65) -> Z [mm] | B60: By [T] | C60: Bx [T] | D60: Bz [T] | F60: By_corr | G60: Bx_corr | H60: Bz_corr | J60: Iy | K60: Jy | L60: Ix | M60: Jx | N60: PI
A62: =IF('DF raw data'!M67="","",'DF raw data'!M67) -> -300 | B62: =IF('DF raw data'!N67="","",'DF raw data'!N67) -> -3.0547e-05 | C62: =IF('DF raw data'!O67="","",'DF raw data'!O67) -> 8.24472e-05 | D62: =IF('DF raw data'!P67="","",'DF raw data'!P67) -> -2.15367e-05 | F62: =(1-$G$1*($B$49))*B62 -> -3.12923468e-05 | G62: =(1-$G$1*($B$49-$G$2))*C62 -> 8.280996768e-05 | H62: =(1-$G$1*($B$49-$G$2))*D62 -> -2.163146148e-05 | J62: =F62*$G$3 -> -1.56461734e-05 | K62: =J62*$G$3 -> -7.8230867e-06 | L62: =G62*$G$3 -> 4.140498384e-05 | M62: =L62*$G$3 -> 2.070249192e-05 | N62: =(J62^2+L62^2)*$G$3 -> 9.795877144e-10
A63: =IF('DF raw data'!M68="","",'DF raw data'!M68) -> -299.5 | B63: =IF('DF raw data'!N68="","",'DF raw data'!N68) -> -2.92675e-05 | C63: =IF('DF raw data'!O68="","",'DF raw data'!O68) -> 7.65614e-05 | D63: =IF('DF raw data'!P68="","",'DF raw data'!P68) -> -2.12531e-05 | F63: =(1-$G$1*($B$49-$G$2))*B63 -> -2.9396277e-05 | G63: =(1-$G$1*($B$49-$G$2))*C63 -> 7.689827016e-05 | H63: -2.134661364e-05 | J63: =F63*$G$3+J62 -> -3.03443119e-05 | K63: =J63*$G$3+K62 -> -2.299524265e-05 | L63: =G63*$G$3+L62 -> 7.985411892e-05 | M63: =L63*$G$3+M62 -> 6.062955138e-05 | N63: =(J63^2+L63^2)*$G$3+N62 -> 4.628316501e-09
A64: =IF('DF raw data'!M69="","",'DF raw data'!M69) -> -299 | B64: =IF('DF raw data'!N69="","",'DF raw data'!N69) -> -3.89415e-05 | C64: =IF('DF raw data'!O69="","",'DF raw data'!O69) -> 8.63341e-05 | D64: =IF('DF raw data'!P69="","",'DF raw data'!P69) -> -2.0608e-05 | F64: =(1-$G$1*($B$49-$G$2))*B64 -> -3.91128426e-05 | G64: 8.671397004e-05 | H64: -2.06986752e-05 | J64: =F64*$G$3+J63 -> -4.99007332e-05 | K64: =J64*$G$3+K63 -> -4.794560925e-05 | L64: =G64*$G$3+L63 -> 0.0001232111039 | M64: =L64*$G$3+M63 -> 0.0001222351033 | N64: =(J64^2+L64^2)*$G$3+N63 -> 1.346384616e-08
A65: =IF('DF raw data'!M70="","",'DF raw data'!M70) -> -298.5 | B65: =IF('DF raw data'!N70="","",'DF raw data'!N70) -> -2.22208e-05 | C65: =IF('DF raw data'!O70="","",'DF raw data'!O70) -> 0.000103409 | D65: =IF('DF raw data'!P70="","",'DF raw data'!P70) -> -2.06233e-05 | F65: -2.231857152e-05 | G65: 0.0001038639996 | H65: -2.071404252e-05 | J65: -6.106001896e-05 | K65: -7.847561873e-05 | L65: 0.0001751431037 | M65: 0.0002098066552 | N65: 3.066556251e-08
A66: =IF('DF raw data'!M71="","",'DF raw data'!M71) -> -298 | B66: =IF('DF raw data'!N71="","",'DF raw data'!N71) -> -2.77296e-05 | C66: =IF('DF raw data'!O71="","",'DF raw data'!O71) -> 9.61516e-05 | D66: =IF('DF raw data'!P71="","",'DF raw data'!P71) -> -2.16437e-05 | F66: -2.785161024e-05 | G66: 9.657466704e-05 | H66: -2.173893228e-05 | J66: -7.498582408e-05 | K66: -0.0001159685308 | L66: 0.0002234304373 | M66: 0.0003215218738 | N66: 5.843757956e-08
A67: =IF('DF raw data'!M72="","",'DF raw data'!M72) -> -297.5 | B67: =IF('DF raw data'!N72="","",'DF raw data'!N72) -> -2.63196e-05 | C67: =IF('DF raw data'!O72="","",'DF raw data'!O72) -> 0.000102733 | D67: =IF('DF raw data'!P72="","",'DF raw data'!P72) -> -2.26368e-05 | F67: -2.643540624e-05 | G67: 0.0001031850252 | H67: -2.273640192e-05 | J67: -8.82035272e-05 | K67: -0.0001600702944 | L67: 0.0002750229499 | M67: 0.0004590333488 | N67: 1.001463221e-07
A68: =IF('DF raw data'!M73="","",'DF raw data'!M73) -> -297 | B68: =IF('DF raw data'!N73="","",'DF raw data'!N73) -> -4.27202e-05 | C68: =IF('DF raw data'!O73="","",'DF raw data'!O73) -> 0.000102057 | D68: =IF('DF raw data'!P73="","",'DF raw data'!P73) -> -2.2179e-05 | F68: -4.290816888e-05 | G68: 0.0001025060508 | H68: -2.22765876e-05 | J68: -0.0001096576116 | K68: -0.0002148991002 | L68: 0.0003262759753 | M68: 0.0006221713364 | N68: 1.593867241e-07
A69: =IF('DF raw data'!M74="","",'DF raw data'!M74) -> -296.5 | B69: =IF('DF raw data'!N74="","",'DF raw data'!N74) -> -4.11195e-05 | C69: =IF('DF raw data'!O74="","",'DF raw data'!O74) -> 0.000106608 | D69: =IF('DF raw data'!P74="","",'DF raw data'!P74) -> -2.07674e-05 | F69: -4.13004258e-05 | G69: 0.0001070770752 | H69: -2.085877656e-05 | J69: -0.0001303078245 | K69: -0.0002800530125 | L69: 0.0003798145129 | M69: 0.0008120785928 | N69: 2.400063207e-07
A70: =IF('DF raw data'!M75="","",'DF raw data'!M75) -> -296 | B70: =IF('DF raw data'!N75="","",'DF raw data'!N75) -> -3.41373e-05 | C70: =IF('DF raw data'!O75="","",'DF raw data'!O75) -> 9.61809e-05 | D70: =IF('DF raw data'!P75="","",'DF raw data'!P75) -> -1.98765e-05 | F70: -3.428750412e-05 | G70: 9.660409596e-05 | H70: -1.99639566e-05 | J70: -0.0001474515766 | K70: -0.0003537788008 | L70: 0.0004281165608 | M70: 0.001026136873 | N70: 3.425191993e-07
A71: =IF('DF raw data'!M76="","",'DF raw data'!M76) -> -295.5 | B71: =IF('DF raw data'!N76="","",'DF raw data'!N76) -> -2.79229e-05 | C71: =IF('DF raw data'!O76="","",'DF raw data'!O76) -> 9.16507e-05 | D71: =IF('DF raw data'!P76="","",'DF raw data'!P76) -> -2.00312e-05 | F71: -2.804576076e-05 | G71: 9.205396308e-05 | H71: -2.011933728e-05 | J71: -0.000161474457 | K71: -0.0004345160293 | L71: 0.0004741435424 | M71: 0.001263208644 | N71: 4.679622488e-07
A72: =IF('DF raw data'!M77="","",'DF raw data'!M77) -> -295 | B72: =IF('DF raw data'!N77="","",'DF raw data'!N77) -> -2.87554e-05 | C72: =IF('DF raw data'!O77="","",'DF raw data'!O77) -> 9.26398e-05 | D72: =IF('DF raw data'!P77="","",'DF raw data'!P77) -> -2.07737e-05 | F72: -2.888192376e-05 | G72: 9.304741512e-05 | H72: -2.086510428e-05 | J72: -0.0001759154189 | K72: -0.0005224737387 | L72: 0.0005206672499 | M72: 0.001523542269 | N72: 6.189825587e-07
A73: =IF('DF raw data'!M78="","",'DF raw data'!M78) -> -294.5 | B73: =IF('DF raw data'!N78="","",'DF raw data'!N78) -> -2.19638e-05 | C73: =IF('DF raw data'!O78="","",'DF raw data'!O78) -> 8.7552e-05 | D73: =IF('DF raw data'!P78="","",'DF raw data'!P78) -> -2.17275e-05 | F73: -2.206044072e-05 | G73: 8.79372288e-05 | H73: -2.1823101e-05 | J73: -0.0001869456392 | K73: -0.0006159465583 | L73: 0.0005646358643 | M73: 0.001805860202 | N73: 7.958637243e-07
A74: =IF('DF raw data'!M79="","",'DF raw data'!M79) -> -294 | B74: =IF('DF raw data'!N79="","",'DF raw data'!N79) -> -3.34952e-05 | C74: =IF('DF raw data'!O79="","",'DF raw data'!O79) -> 8.8996e-05 | D74: =IF('DF raw data'!P79="","",'DF raw data'!P79) -> -2.21581e-05 | F74: -3.364257888e-05 | G74: 8.93875824e-05 | H74: -2.225559564e-05 | J74: -0.0002037669287 | K74: -0.0007178300226 | L74: 0.0006093296555 | M74: 0.002110525029 | N74: 1.002265519e-06
A75: =IF('DF raw data'!M80="","",'DF raw data'!M80) -> -293.5 | B75: =IF('DF raw data'!N80="","",'DF raw data'!N80) -> -3.47767e-05 | C75: =IF('DF raw data'!O80="","",'DF raw data'!O80) -> 9.05771e-05 | D75: =IF('DF raw data'!P80="","",'DF raw data'!P80) -> -2.17545e-05 | F75: -3.492971748e-05 | G75: 9.097563924e-05 | H75: -2.18502198e-05 | J75: -0.0002212317874 | K75: -0.0008284459163 | L75: 0.0006548174752 | M75: 0.002437933767 | N75: 1.241130234e-06
A76: =IF('DF raw data'!M81="","",'DF raw data'!M81) -> -293 | B76: =IF('DF raw data'!N81="","",'DF raw data'!N81) -> -3.70193e-05 | C76: =IF('DF raw data'!O81="","",'DF raw data'!O81) -> 9.32839e-05 | D76: =IF('DF raw data'!P81="","",'DF raw data'!P81) -> -2.10992e-05 | F76: -3.718218492e-05 | G76: 9.369434916e-05 | H76: -2.119203648e-05 | J76: -0.0002398228799 | K76: -0.0009483573563 | L76: 0.0007016646497 | M76: 0.002788766092 | N76: 1.516054381e-06
A77: =IF('DF raw data'!M82="","",'DF raw data'!M82) -> -292.5 | B77: =IF('DF raw data'!N82="","",'DF raw data'!N82) -> -3.11897e-05 | C77: =IF('DF raw data'!O82="","",'DF raw data'!O82) -> 9.5451e-05 | D77: =IF('DF raw data'!P82="","",'DF raw data'!P82) -> -2.08376e-05 | F77: -3.132693468e-05 | G77: 9.58709844e-05 | H77: -2.092928544e-05 | J77: -0.0002554863472 | K77: -0.00107610053 | L77: 0.0007496001419 | M77: 0.003163566163 | N77: 1.829641205e-06
A78: =IF('DF raw data'!M83="","",'DF raw data'!M83) -> -292 | B78: =IF('DF raw data'!N83="","",'DF raw data'!N83) -> -3.49054e-05 | C78: =IF('DF raw data'!O83="","",'DF raw data'!O83) -> 8.81185e-05 | D78: =IF('DF raw data'!P83="","",'DF raw data'!P83) -> -2.07796e-05 | F78: -3.505898376e-05 | G78: 8.85062214e-05 | H78: -2.087103024e-05 | J78: -0.0002730158391 | K78: -0.001212608449 | L78: 0.0007938532526 | M78: 0.003560492789 | N78: 2.182011522e-06
A79: =IF('DF raw data'!M84="","",'DF raw data'!M84) -> -291.5 | B79: =IF('DF raw data'!N84="","",'DF raw data'!N84) -> -3.04824e-05 | C79: =IF('DF raw data'!O84="","",'DF raw data'!O84) -> 7.95189e-05 | D79: =IF('DF raw data'!P84="","",'DF raw data'!P84) -> -2.46646e-05 | F79: -3.061652256e-05 | G79: 7.986878316e-05 | H79: -2.477312424e-05 | J79: -0.0002883241004 | K79: -0.0013567705 | L79: 0.0008337876442 | M79: 0.003977386611 | N79: 2.571177833e-06
A80: =IF('DF raw data'!M85="","",'DF raw data'!M85) -> -291 | B80: =IF('DF raw data'!N85="","",'DF raw data'!N85) -> -2.9641e-05 | C80: =IF('DF raw data'!O85="","",'DF raw data'!O85) -> 8.55027e-05 | D80: =IF('DF raw data'!P85="","",'DF raw data'!P85) -> -3.81116e-05 | F80: -2.97714204e-05 | G80: 8.587891188e-05 | H80: -3.827929104e-05 | J80: -0.0003032098106 | K80: -0.001508375405 | L80: 0.0008767271002 | M80: 0.004415750161 | N80: 3.001471132e-06
A81: =IF('DF raw data'!M86="","",'DF raw data'!M86) -> -290.5 | B81: =IF('DF raw data'!N86="","",'DF raw data'!N86) -> -3.15737e-05 | C81: =IF('DF raw data'!O86="","",'DF raw data'!O86) -> 9.12822e-05 | D81: =IF('DF raw data'!P86="","",'DF raw data'!P86) -> -2.13562e-05 | F81: -3.171262428e-05 | G81: 9.168384168e-05 | H81: -2.145016728e-05 | J81: -0.0003190661227 | K81: -0.001667908466 | L81: 0.000922569021 | M81: 0.004877034672 | N81: 3.477939527e-06
A82: =IF('DF raw data'!M87="","",'DF raw data'!M87) -> -290 | B82: =IF('DF raw data'!N87="","",'DF raw data'!N87) -> -3.87486e-05 | C82: =IF('DF raw data'!O87="","",'DF raw data'!O87) -> 9.13868e-05 | D82: =IF('DF raw data'!P87="","",'DF raw data'!P87) -> -2.15008e-05 | F82: -3.891909384e-05 | G82: 9.178890192e-05 | H82: -2.159540352e-05 | J82: -0.0003385256696 | K82: -0.001837171301 | L82: 0.000968463472 | M82: 0.005361266408 | N82: 4.004200089e-06
A83: =IF('DF raw data'!M88="","",'DF raw data'!M88) -> -289.5 | B83: =IF('DF raw data'!N88="","",'DF raw data'!N88) -> -3.88073e-05 | C83: =IF('DF raw data'!O88="","",'DF raw data'!O88) -> 8.67067e-05 | D83: =IF('DF raw data'!P88="","",'DF raw data'!P88) -> -2.99416e-05 | F83: -3.897805212e-05 | G83: 8.708820948e-05 | H83: -3.007334304e-05 | J83: -0.0003580146957 | K83: -0.002016178649 | L83: 0.001012007577 | M83: 0.005867270196 | N83: 4.580367018e-06
A84: =IF('DF raw data'!M89="","",'DF raw data'!M89) -> -289 | B84: =IF('DF raw data'!N89="","",'DF raw data'!N89) -> -2.70849e-05 | C84: =IF('DF raw data'!O89="","",'DF raw data'!O89) -> 8.95276e-05 | D84: =IF('DF raw data'!P89="","",'DF raw data'!P89) -> -2.79034e-05 | F84: -2.720407356e-05 | G84: 8.992152144e-05 | H84: -2.802617496e-05 | J84: -0.0003716167325 | K84: -0.002201987015 | L84: 0.001056968337 | M84: 0.006395754365 | N84: 5.208007549e-06
A85: =IF('DF raw data'!M90="","",'DF raw data'!M90) -> -288.5 | B85: =IF('DF raw data'!N90="","",'DF raw data'!N90) -> -2.90087e-05 | C85: =IF('DF raw data'!O90="","",'DF raw data'!O90) -> 9.51394e-05 | D85: =IF('DF raw data'!P90="","",'DF raw data'!P90) -> -2.52085e-05 | F85: -2.913633828e-05 | G85: 9.555801336e-05 | H85: -2.53194174e-05 | J85: -0.0003861849016 | K85: -0.002395079466 | L85: 0.001104747344 | M85: 0.006948128037 | N85: 5.892810286e-06
A86: =IF('DF raw data'!M91="","",'DF raw data'!M91) -> -288 | B86: =IF('DF raw data'!N91="","",'DF raw data'!N91) -> -3.772e-05 | C86: =IF('DF raw data'!O91="","",'DF raw data'!O91) -> 9.51193e-05 | D86: =IF('DF raw data'!P91="","",'DF raw data'!P91) -> -2.70508e-05 | F86: -3.7885968e-05 | G86: 9.553782492e-05 | H86: -2.716982352e-05 | J86: -0.0004051278856 | K86: -0.002597643409 | L86: 0.001152516257 | M86: 0.007524386165 | N86: 6.639021448e-06
A87: =IF('DF raw data'!M92="","",'DF raw data'!M92) -> -287.5 | B87: =IF('DF raw data'!N92="","",'DF raw data'!N92) -> -3.42647e-05 | C87: =IF('DF raw data'!O92="","",'DF raw data'!O92) -> 9.08377e-05 | D87: =IF('DF raw data'!P92="","",'DF raw data'!P92) -> -2.09141e-05 | F87: -3.441546468e-05 | G87: 9.123738588e-05 | H87: -2.100612204e-05 | J87: -0.0004223356179 | K87: -0.002808811218 | L87: 0.001198134949 | M87: 0.00812345364 | N87: 7.445968814e-06
A88: =IF('DF raw data'!M93="","",'DF raw data'!M93) -> -287 | B88: =IF('DF raw data'!N93="","",'DF raw data'!N93) -> -3.59894e-05 | C88: =IF('DF raw data'!O93="","",'DF raw data'!O93) -> 8.73994e-05 | D88: =IF('DF raw data'!P93="","",'DF raw data'!P93) -> -2.83427e-05 | F88: -3.614775336e-05 | G88: 8.778395736e-05 | H88: -2.846740788e-05 | J88: -0.0004404094946 | K88: -0.003029015965 | L88: 0.001242026928 | M88: 0.008744467104 | N88: 8.314264521e-06
A89: =IF('DF raw data'!M94="","",'DF raw data'!M94) -> -286.5 | B89: =IF('DF raw data'!N94="","",'DF raw data'!N94) -> -3.76627e-05 | C89: =IF('DF raw data'!O94="","",'DF raw data'!O94) -> 8.81581e-05 | D89: =IF('DF raw data'!P94="","",'DF raw data'!P94) -> -1.6906e-05 | F89: -3.782841588e-05 | G89: 8.854599564e-05 | H89: -1.69803864e-05 | J89: -0.0004593237026 | K89: -0.003258677816 | L89: 0.001286299926 | M89: 0.009387617067 | N89: 9.247037402e-06
A90: =IF('DF raw data'!M95="","",'DF raw data'!M95) -> -286 | B90: =IF('DF raw data'!N95="","",'DF raw data'!N95) -> -3.63703e-05 | C90: =IF('DF raw data'!O95="","",'DF raw data'!O95) -> 8.91651e-05 | D90: =IF('DF raw data'!P95="","",'DF raw data'!P95) -> -3.40664e-05 | F90: -3.653032932e-05 | G90: 8.955742644e-05 | H90: -3.421629216e-05 | J90: -0.0004775888672 | K90: -0.00349747225 | L90: 0.001331078639 | M90: 0.01005315639 | N90: 1.024696814e-05
A91: =IF('DF raw data'!M96="","",'DF raw data'!M96) -> -285.5 | B91: =IF('DF raw data'!N96="","",'DF raw data'!N96) -> -3.14423e-05 | C91: =IF('DF raw data'!O96="","",'DF raw data'!O96) -> 9.99794e-05 | D91: =IF('DF raw data'!P96="","",'DF raw data'!P96) -> -2.62688e-05 | F91: -3.158064612e-05 | G91: 0.0001004193094 | H91: -2.638438272e-05 | J91: -0.0004933791903 | K91: -0.003744161845 | L91: 0.001381288294 | M91: 0.01074380053 | N91: 1.132265833e-05
A92: =IF('DF raw data'!M97="","",'DF raw data'!M97) -> -285 | B92: =IF('DF raw data'!N97="","",'DF raw data'!N97) -> -2.50962e-05 | C92: =IF('DF raw data'!O97="","",'DF raw data'!O97) -> 9.72436e-05 | D92: =IF('DF raw data'!P97="","",'DF raw data'!P97) -> -3.20278e-05 | F92: -2.520662328e-05 | G92: 9.767147184e-05 | H92: -3.216872232e-05 | J92: -0.0005059825019 | K92: -0.003997153096 | L92: 0.00143012403 | M92: 0.01145886255 | N92: 1.247329484e-05
A93: =IF('DF raw data'!M98="","",'DF raw data'!M98) -> -284.5 | B93: =IF('DF raw data'!N98="","",'DF raw data'!N98) -> -3.70772e-05 | C93: =IF('DF raw data'!O98="","",'DF raw data'!O98) -> 9.2413e-05 | D93: =IF('DF raw data'!P98="","",'DF raw data'!P98) -> -3.05274e-05 | F93: -3.724033968e-05 | G93: 9.28196172e-05 | H93: -3.066172056e-05 | J93: -0.0005246026718 | K93: -0.004259454432 | L93: 0.001476533838 | M93: 0.01219712947 | N93: 1.370097491e-05
A94: =IF('DF raw data'!M99="","",'DF raw data'!M99) -> -284 | B94: =IF('DF raw data'!N99="","",'DF raw data'!N99) -> -3.79071e-05 | C94: =IF('DF raw data'!O99="","",'DF raw data'!O99) -> 9.80184e-05 | D94: =IF('DF raw data'!P99="","",'DF raw data'!P99) -> -3.51111e-05 | F94: -3.807389124e-05 | G94: 9.844968096e-05 | H94: -3.526558884e-05 | J94: -0.0005436396174 | K94: -0.004531274241 | L94: 0.001525758679 | M94: 0.01296000881 | N94: 1.50127167e-05
A95: =IF('DF raw data'!M100="","",'DF raw data'!M100) -> -283.5 | B95: =IF('DF raw data'!N100="","",'DF raw data'!N100) -> -2.83032e-05 | C95: =IF('DF raw data'!O100="","",'DF raw data'!O100) -> 9.65734e-05 | D95: =IF('DF raw data'!P100="","",'DF raw data'!P100) -> -2.63352e-05 | F95: -2.842773408e-05 | G95: 9.699832296e-05 | H95: -2.645107488e-05 | J95: -0.0005578534844 | K95: -0.004810200983 | L95: 0.00157425784 | M95: 0.01374713773 | N95: 1.640746083e-05
A96: =IF('DF raw data'!M101="","",'DF raw data'!M101) -> -283 | B96: =IF('DF raw data'!N101="","",'DF raw data'!N101) -> -2.40814e-05 | C96: =IF('DF raw data'!O101="","",'DF raw data'!O101) -> 9.25776e-05 | D96: =IF('DF raw data'!P101="","",'DF raw data'!P101) -> -1.63317e-05 | F96: -2.418735816e-05 | G96: 9.298494144e-05 | H96: -1.640355948e-05 | J96: -0.0005699471635 | K96: -0.005095174564 | L96: 0.001620750311 | M96: 0.01455751288 | N96: 1.78832965e-05
A97: =IF('DF raw data'!M102="","",'DF raw data'!M102) -> -282.5 | B97: =IF('DF raw data'!N102="","",'DF raw data'!N102) -> -1.92068e-05 | C97: =IF('DF raw data'!O102="","",'DF raw data'!O102) -> 8.89723e-05 | D97: =IF('DF raw data'!P102="","",'DF raw data'!P102) -> -2.52591e-05 | F97: -1.929130992e-05 | G97: 8.936377812e-05 | H97: -2.537024004e-05 | J97: -0.0005795928185 | K97: -0.005384970974 | L97: 0.0016654322 | M97: 0.01539022898 | N97: 1.943809262e-05
A98: =IF('DF raw data'!M103="","",'DF raw data'!M103) -> -282 | B98: =IF('DF raw data'!N103="","",'DF raw data'!N103) -> -2.72134e-05 | C98: =IF('DF raw data'!O103="","",'DF raw data'!O103) -> 9.08618e-05 | D98: =IF('DF raw data'!P103="","",'DF raw data'!P103) -> -2.72813e-05 | F98: -2.733313896e-05 | G98: 9.126159192e-05 | H98: -2.740133772e-05 | J98: -0.0005932593879 | K98: -0.005681600668 | L98: 0.001711062996 | M98: 0.01624576048 | N98: 2.107793926e-05
A99: =IF('DF raw data'!M104="","",'DF raw data'!M104) -> -281.5 | B99: =IF('DF raw data'!N104="","",'DF raw data'!N104) -> -2.91918e-05 | C99: =IF('DF raw data'!O104="","",'DF raw data'!O104) -> 9.46587e-05 | D99: =IF('DF raw data'!P104="","",'DF raw data'!P104) -> -3.90153e-05 | F99: -2.932024392e-05 | G99: 9.507519828e-05 | H99: -3.918696732e-05 | J99: -0.0006079195099 | K99: -0.005985560423 | L99: 0.001758600595 | M99: 0.01712506078 | N99: 2.280906036e-05
A100: =IF('DF raw data'!M105="","",'DF raw data'!M105) -> -281 | B100: =IF('DF raw data'!N105="","",'DF raw data'!N105) -> -3.95746e-05 | C100: =IF('DF raw data'!O105="","",'DF raw data'!O105) -> 9.38374e-05 | D100: =IF('DF raw data'!P105="","",'DF raw data'!P105) -> -3.21322e-05 | F100: -3.974872824e-05 | G100: 9.425028456e-05 | H100: -3.227358168e-05 | J100: -0.000627793874 | K100: -0.00629945736 | L100: 0.001805725738 | M100: 0.01802792365 | N100: 2.463644565e-05
A101: =IF('DF raw data'!M106="","",'DF raw data'!M106) -> -280.5 | B101: =IF('DF raw data'!N106="","",'DF raw data'!N106) -> -4.29775e-05 | C101: =IF('DF raw data'!O106="","",'DF raw data'!O106) -> 8.96557e-05 | D101: =IF('DF raw data'!P106="","",'DF raw data'!P106) -> -2.04213e-05 | F101: -4.3166601e-05 | G101: 9.005018508e-05 | H101: -2.051115372e-05 | J101: -0.0006493771745 | K101: -0.006624145947 | L101: 0.00185075083 | M101: 0.01895329906 | N101: 2.655993032e-05
A102: =IF('DF raw data'!M107="","",'DF raw data'!M107) -> -280 | B102: =IF('DF raw data'!N107="","",'DF raw data'!N107) -> -2.61895e-05 | C102: =IF('DF raw data'!O107="","",'DF raw data'!O107) -> 9.56076e-05 | D102: =IF('DF raw data'!P107="","",'DF raw data'!P107) -> -2.56875e-05 | F102: -2.63047338e-05 | G102: 9.602827344e-05 | H102: -2.5800525e-05 | J102: -0.0006625295414 | K102: -0.006955410718 | L102: 0.001898764967 | M102: 0.01990268155 | N102: 2.858205722e-05
A103: =IF('DF raw data'!M108="","",'DF raw data'!M108) -> -279.5 | B103: =IF('DF raw data'!N108="","",'DF raw data'!N108) -> -3.41957e-05 | C103: =IF('DF raw data'!O108="","",'DF raw data'!O108) -> 8.86688e-05 | D103: =IF('DF raw data'!P108="","",'DF raw data'!P108) -> -2.83785e-05 | F103: -3.434616108e-05 | G103: 8.905894272e-05 | H103: -2.85033654e-05 | J103: -0.000679702622 | K103: -0.007295262029 | L103: 0.001943294438 | M103: 0.02087432876 | N103: 3.070125168e-05
A104: =IF('DF raw data'!M109="","",'DF raw data'!M109) -> -279 | B104: =IF('DF raw data'!N109="","",'DF raw data'!N109) -> -3.57335e-05 | C104: =IF('DF raw data'!O109="","",'DF raw data'!O109) -> 8.50192e-05 | D104: =IF('DF raw data'!P109="","",'DF raw data'!P109) -> -2.79337e-05 | F104: -3.58907274e-05 | G104: 8.539328448e-05 | H104: -2.805660828e-05 | J104: -0.0006976479857 | K104: -0.007644086021 | L104: 0.00198599108 | M104: 0.02186732431 | N104: 3.291668833e-05
A105: =IF('DF raw data'!M110="","",'DF raw data'!M110) -> -278.5 | B105: =IF('DF raw data'!N110="","",'DF raw data'!N110) -> -3.86827e-05 | C105: =IF('DF raw data'!O110="","",'DF raw data'!O110) -> 9.74203e-05 | D105: =IF('DF raw data'!P110="","",'DF raw data'!P110) -> -2.45405e-05 | F105: -3.885290388e-05 | G105: 9.784894932e-05 | H105: -2.46484782e-05 | J105: -0.0007170744376 | K105: -0.00800262324 | L105: 0.002034915555 | M105: 0.02288478208 | N105: 3.524422686e-05
A106: =IF('DF raw data'!M111="","",'DF raw data'!M111) -> -278 | B106: =IF('DF raw data'!N111="","",'DF raw data'!N111) -> -3.73947e-05 | C106: =IF('DF raw data'!O111="","",'DF raw data'!O111) -> 0.000100469 | D106: =IF('DF raw data'!P111="","",'DF raw data'!P111) -> -3.50306e-05 | F106: -3.755923668e-05 | G106: 0.0001009110636 | H106: -3.518473464e-05 | J106: -0.0007358540559 | K106: -0.008370550268 | L106: 0.002085371087 | M106: 0.02392746763 | N106: 3.768935374e-05
A107: =IF('DF raw data'!M112="","",'DF raw data'!M112) -> -277.5 | B107: =IF('DF raw data'!N112="","",'DF raw data'!N112) -> -3.70856e-05 | C107: =IF('DF raw data'!O112="","",'DF raw data'!O112) -> 8.92223e-05 | D107: =IF('DF raw data'!P112="","",'DF raw data'!P112) -> -1.74129e-05 | F107: -3.724877664e-05 | G107: 8.961487812e-05 | H107: -1.748951676e-05 | J107: -0.0007544784443 | K107: -0.00874778949 | L107: 0.002130178526 | M107: 0.02499255689 | N107: 4.024280288e-05
A108: =IF('DF raw data'!M113="","",'DF raw data'!M113) -> -277 | B108: =IF('DF raw data'!N113="","",'DF raw data'!N113) -> -2.75404e-05 | C108: =IF('DF raw data'!O113="","",'DF raw data'!O113) -> 8.04799e-05 | D108: =IF('DF raw data'!P113="","",'DF raw data'!P113) -> -1.71599e-05 | F108: -2.766157776e-05 | G108: 8.083401156e-05 | H108: -1.723540356e-05 | J108: -0.0007683092331 | K108: -0.009131944107 | L108: 0.002170595532 | M108: 0.02607785465 | N108: 4.28936949e-05
A109: =IF('DF raw data'!M114="","",'DF raw data'!M114) -> -276.5 | B109: =IF('DF raw data'!N114="","",'DF raw data'!N114) -> -4.39428e-05 | C109: =IF('DF raw data'!O114="","",'DF raw data'!O114) -> 7.21452e-05 | D109: =IF('DF raw data'!P114="","",'DF raw data'!P114) -> -1.39395e-05 | F109: -4.413614832e-05 | G109: 7.246263888e-05 | H109: -1.40008338e-05 | J109: -0.0007903773073 | K109: -0.009527132761 | L109: 0.002206826851 | M109: 0.02718126808 | N109: 4.564108542e-05
A110: =IF('DF raw data'!M115="","",'DF raw data'!M115) -> -276 | B110: =IF('DF raw data'!N115="","",'DF raw data'!N115) -> -2.80527e-05 | C110: =IF('DF raw data'!O115="","",'DF raw data'!O115) -> 7.45918e-05 | D110: =IF('DF raw data'!P115="","",'DF raw data'!P115) -> -1.7428e-05 | F110: -2.817613188e-05 | G110: 7.492000392e-05 | H110: -1.75046832e-05 | J110: -0.0008044653732 | K110: -0.009929365447 | L110: 0.002244286853 | M110: 0.02830341151 | N110: 4.848307942e-05
A111: =IF('DF raw data'!M116="","",'DF raw data'!M116) -> -275.5 | B111: =IF('DF raw data'!N116="","",'DF raw data'!N116) -> -3.84902e-05 | C111: =IF('DF raw data'!O116="","",'DF raw data'!O116) -> 7.43872e-05 | D111: =IF('DF raw data'!P116="","",'DF raw data'!P116) -> -2.47925e-05 | F111: -3.865955688e-05 | G111: 7.471450368e-05 | H111: -2.4901587e-05 | J111: -0.0008237951517 | K111: -0.01034126302 | L111: 0.002281644105 | M111: 0.02944423356 | N111: 5.142534856e-05
A112: =IF('DF raw data'!M117="","",'DF raw data'!M117) -> -275 | B112: =IF('DF raw data'!N117="","",'DF raw data'!N117) -> -3.15e-05 | C112: =IF('DF raw data'!O117="","",'DF raw data'!O117) -> 7.1241e-05 | D112: =IF('DF raw data'!P117="","",'DF raw data'!P117) -> -3.64132e-05 | F112: -3.16386e-05 | G112: 7.15544604e-05 | H112: -3.657341808e-05 | J112: -0.0008396144517 | K112: -0.01076107025 | L112: 0.002317421335 | M112: 0.03060294423 | N112: 5.44630456e-05
A113: =IF('DF raw data'!M118="","",'DF raw data'!M118) -> -274.5 | B113: =IF('DF raw data'!N118="","",'DF raw data'!N118) -> -3.75285e-05 | C113: =IF('DF raw data'!O118="","",'DF raw data'!O118) -> 7.1195e-05 | D113: =IF('DF raw data'!P118="","",'DF raw data'!P118) -> -2.62484e-05 | F113: -3.76936254e-05 | G113: 7.1508258e-05 | H113: -2.636389296e-05 | J113: -0.0008584612644 | K113: -0.01119030088 | L113: 0.002353175464 | M113: 0.03177953196 | N113: 5.760024085e-05
A114: =IF('DF raw data'!M119="","",'DF raw data'!M119) -> -274 | B114: =IF('DF raw data'!N119="","",'DF raw data'!N119) -> -4.36753e-05 | C114: =IF('DF raw data'!O119="","",'DF raw data'!O119) -> 7.90196e-05 | D114: =IF('DF raw data'!P119="","",'DF raw data'!P119) -> -3.12367e-05 | F114: -4.386747132e-05 | G114: 7.936728624e-05 | H114: -3.137414148e-05 | J114: -0.000880395 | K114: -0.01163049838 | L114: 0.002392859107 | M114: 0.03297596151 | N114: 6.085067588e-05
A115: =IF('DF raw data'!M120="","",'DF raw data'!M120) -> -273.5 | B115: =IF('DF raw data'!N120="","",'DF raw data'!N120) -> -3.75312e-05 | C115: =IF('DF raw data'!O120="","",'DF raw data'!O120) -> 8.01904e-05 | D115: =IF('DF raw data'!P120="","",'DF raw data'!P120) -> -2.20445e-05 | F115: -3.769633728e-05 | G115: 8.054323776e-05 | H115: -2.21414958e-05 | J115: -0.0008992431687 | K115: -0.01208011997 | L115: 0.002433130726 | M115: 0.03419252688 | N115: 6.421505759e-05
A116: =IF('DF raw data'!M121="","",'DF raw data'!M121) -> -273 | B116: =IF('DF raw data'!N121="","",'DF raw data'!N121) -> -3.24648e-05 | C116: =IF('DF raw data'!O121="","",'DF raw data'!O121) -> 7.03267e-05 | D116: =IF('DF raw data'!P121="","",'DF raw data'!P121) -> -3.00755e-05 | F116: -3.260764512e-05 | G116: 7.063613748e-05 | H116: -3.02078322e-05 | J116: -0.0009155469912 | K116: -0.01253789346 | L116: 0.002468448795 | M116: 0.03542675127 | N116: 6.768079046e-05
A117: =IF('DF raw data'!M122="","",'DF raw data'!M122) -> -272.5 | B117: =IF('DF raw data'!N122="","",'DF raw data'!N122) -> -4.15661e-05 | C117: =IF('DF raw data'!O122="","",'DF raw data'!O122) -> 7.29558e-05 | D117: =IF('DF raw data'!P122="","",'DF raw data'!P122) -> -2.35605e-05 | F117: -4.174899084e-05 | G117: 7.327680552e-05 | H117: -2.36641662e-05 | J117: -0.0009364214867 | K117: -0.0130061042 | L117: 0.002505087198 | M117: 0.03667929487 | N117: 7.125696399e-05
A118: =IF('DF raw data'!M123="","",'DF raw data'!M123) -> -272 | B118: =IF('DF raw data'!N123="","",'DF raw data'!N123) -> -3.69503e-05 | C118: =IF('DF raw data'!O123="","",'DF raw data'!O123) -> 8.76656e-05 | D118: =IF('DF raw data'!P123="","",'DF raw data'!P123) -> -2.85967e-05 | F118: -3.711288132e-05 | G118: 8.805132864e-05 | H118: -2.872252548e-05 | J118: -0.0009549779273 | K118: -0.01348359317 | L118: 0.002549112862 | M118: 0.0379538513 | N118: 7.496194361e-05
A119: =IF('DF raw data'!M124="","",'DF raw data'!M124) -> -271.5 | B119: =IF('DF raw data'!N124="","",'DF raw data'!N124) -> -3.33694e-05 | C119: =IF('DF raw data'!O124="","",'DF raw data'!O124) -> 8.34928e-05 | D119: =IF('DF raw data'!P124="","",'DF raw data'!P124) -> -1.80549e-05 | F119: -3.351622536e-05 | G119: 8.386016832e-05 | H119: -1.813434156e-05 | J119: -0.00097173604 | K119: -0.01396946119 | L119: 0.002591042946 | M119: 0.03924937278 | N119: 7.879083085e-05
A120: =IF('DF raw data'!M125="","",'DF raw data'!M125) -> -271 | B120: =IF('DF raw data'!N125="","",'DF raw data'!N125) -> -4.48392e-05 | C120: =IF('DF raw data'!O125="","",'DF raw data'!O125) -> 7.83739e-05 | D120: =IF('DF raw data'!P125="","",'DF raw data'!P125) -> -1.45236e-05 | F120: -4.503649248e-05 | G120: 7.871874516e-05 | H120: -1.458750384e-05 | J120: -0.0009942542862 | K120: -0.01446658833 | L120: 0.002630402319 | M120: 0.04056457394 | N120: 8.274460982e-05
A121: =IF('DF raw data'!M126="","",'DF raw data'!M126) -> -270.5 | B121: =IF('DF raw data'!N126="","",'DF raw data'!N126) -> -3.29843e-05 | C121: =IF('DF raw data'!O126="","",'DF raw data'!O126) -> 8.44133e-05 | D121: =IF('DF raw data'!P126="","",'DF raw data'!P126) -> -1.91662e-05 | F121: -3.312943092e-05 | G121: 8.478471852e-05 | H121: -1.925053128e-05 | J121: -0.001010819002 | K121: -0.01497199783 | L121: 0.002672794678 | M121: 0.04190097127 | N121: 8.682740304e-05
A122: =IF('DF raw data'!M127="","",'DF raw data'!M127) -> -270 | B122: =IF('DF raw data'!N127="","",'DF raw data'!N127) -> -2.42745e-05 | C122: =IF('DF raw data'!O127="","",'DF raw data'!O127) -> 8.80708e-05 | D122: =IF('DF raw data'!P127="","",'DF raw data'!P127) -> -1.51254e-05 | F122: -2.43813078e-05 | G122: 8.845831152e-05 | H122: -1.519195176e-05 | J122: -0.001023009656 | K122: -0.01548350266 | L122: 0.002717023834 | M122: 0.04325948319 | N122: 9.104178667e-05
A123: =IF('DF raw data'!M128="","",'DF raw data'!M128) -> -269.5 | B123: =IF('DF raw data'!N128="","",'DF raw data'!N128) -> -3.221e-05 | C123: =IF('DF raw data'!O128="","",'DF raw data'!O128) -> 8.95643e-05 | D123: =IF('DF raw data'!P128="","",'DF raw data'!P128) -> -2.78304e-05 | F123: -3.2351724e-05 | G123: 8.995838292e-05 | H123: -2.795285376e-05 | J123: -0.001039185518 | K123: -0.01600309542 | L123: 0.002762003025 | M123: 0.0446404847 | N123: 9.53960703e-05
A124: =IF('DF raw data'!M129="","",'DF raw data'!M129) -> -269 | B124: =IF('DF raw data'!N129="","",'DF raw data'!N129) -> -3.823e-05 | C124: =IF('DF raw data'!O129="","",'DF raw data'!O129) -> 8.88743e-05 | D124: =IF('DF raw data'!P129="","",'DF raw data'!P129) -> -3.0932e-05 | F124: -3.8398212e-05 | G124: 8.926534692e-05 | H124: -3.10681008e-05 | J124: -0.001058384624 | K124: -0.01653228773 | L124: 0.002806635699 | M124: 0.04604380255 | N124: 9.989476128e-05
A125: =IF('DF raw data'!M130="","",'DF raw data'!M130) -> -268.5 | B125: =IF('DF raw data'!N130="","",'DF raw data'!N130) -> -3.43996e-05 | C125: =IF('DF raw data'!O130="","",'DF raw data'!O130) -> 7.97398e-05 | D125: =IF('DF raw data'!P130="","",'DF raw data'!P130) -> -1.04303e-05 | F125: -3.455095824e-05 | G125: 8.009065512e-05 | H125: -1.047619332e-05 | J125: -0.001075660103 | K125: -0.01707011778 | L125: 0.002846681026 | M125: 0.04746714307 | N125: 0.00010452508
A126: =IF('DF raw data'!M131="","",'DF raw data'!M131) -> -268 | B126: =IF('DF raw data'!N131="","",'DF raw data'!N131) -> -4.50988e-05 | C126: =IF('DF raw data'!O131="","",'DF raw data'!O131) -> 9.30803e-05 | D126: =IF('DF raw data'!P131="","",'DF raw data'!P131) -> -9.33878e-06 | F126: -4.529723472e-05 | G126: 9.348985332e-05 | H126: -9.379870632e-06 | J126: -0.00109830872 | K126: -0.01761927214 | L126: 0.002893425953 | M126: 0.04891385604 | N126: 0.0001093141779
A127: =IF('DF raw data'!M132="","",'DF raw data'!M132) -> -267.5 | B127: =IF('DF raw data'!N132="","",'DF raw data'!N132) -> -2.81847e-05 | C127: =IF('DF raw data'!O132="","",'DF raw data'!O132) -> 9.72197e-05 | D127: =IF('DF raw data'!P132="","",'DF raw data'!P132) -> -1.13836e-05 | F127: -2.830871268e-05 | G127: 9.764746668e-05 | H127: -1.143368784e-05 | J127: -0.001112463076 | K127: -0.01817550368 | L127: 0.002942249686 | M127: 0.05038498089 | N127: 0.0001142613816
A128: =IF('DF raw data'!M133="","",'DF raw data'!M133) -> -267 | B128: =IF('DF raw data'!N133="","",'DF raw data'!N133) -> -3.26559e-05 | C128: =IF('DF raw data'!O133="","",'DF raw data'!O133) -> 9.35403e-05 | D128: =IF('DF raw data'!P133="","",'DF raw data'!P133) -> -3.19324e-05 | F128: =(1-$G$1*($B$49-$G$2))*B128 -> -3.279958596e-05 | G128: 9.395187732e-05 | H128: -3.207290256e-05 | J128: =F128*$G$3+J127 -> -0.001128862869 | K128: =J128*$G$3+K127 -> -0.01873993511 | L128: =G128*$G$3+L127 -> 0.002989225625 | M128: =L128*$G$3+M127 -> 0.0518795937 | N128: =(J128^2+L128^2)*$G$3+N127 -> 0.0001193662822
A129: =IF('DF raw data'!M134="","",'DF raw data'!M134) -> -266.5 | B129: =IF('DF raw data'!N134="","",'DF raw data'!N134) -> -3.27861e-05 | C129: =IF('DF raw data'!O134="","",'DF raw data'!O134) -> 9.51038e-05 | D129: =IF('DF raw data'!P134="","",'DF raw data'!P134) -> -2.86308e-05 | F129: -3.293035884e-05 | G129: 9.552225672e-05 | H129: -2.875677552e-05 | J129: -0.001145328049 | K129: -0.01931259914 | L129: 0.003036986753 | M129: 0.05339808707 | N129: 0.0001246338146
A130: =IF('DF raw data'!M135="","",'DF raw data'!M135) -> -266 | B130: =IF('DF raw data'!N135="","",'DF raw data'!N135) -> -4.13116e-05 | C130: =IF('DF raw data'!O135="","",'DF raw data'!O135) -> 9.67326e-05 | D130: =IF('DF raw data'!P135="","",'DF raw data'!P135) -> -2.09856e-05 | F130: -4.149337104e-05 | G130: 9.715822344e-05 | H130: -2.107793664e-05 | J130: -0.001166074734 | K130: -0.01989563651 | L130: 0.003085565865 | M130: 0.05494087001 | N130: 0.0001300740381
A131: =IF('DF raw data'!M136="","",'DF raw data'!M136) -> -265.5 | B131: =IF('DF raw data'!N136="","",'DF raw data'!N136) -> -2.91412e-05 | C131: =IF('DF raw data'!O136="","",'DF raw data'!O136) -> 9.98291e-05 | D131: =IF('DF raw data'!P136="","",'DF raw data'!P136) -> -1.83608e-05 | F131: -2.926942128e-05 | G131: 0.000100268348 | H131: -1.844158752e-05 | J131: -0.001180709445 | K131: -0.02048599123 | L131: 0.003135700039 | M131: 0.05650872003 | N131: 0.0001356873829
A132: =IF('DF raw data'!M137="","",'DF raw data'!M137) -> -265 | B132: =IF('DF raw data'!N137="","",'DF raw data'!N137) -> -2.01675e-05 | C132: =IF('DF raw data'!O137="","",'DF raw data'!O137) -> 9.16357e-05 | D132: =IF('DF raw data'!P137="","",'DF raw data'!P137) -> -2.57652e-05 | F132: -2.0256237e-05 | G132: 9.203889708e-05 | H132: -2.587856688e-05 | J132: -0.001190837563 | K132: -0.02108141001 | L132: 0.003181719487 | M132: 0.05809957977 | N132: 0.0001414580994
A133: =IF('DF raw data'!M138="","",'DF raw data'!M138) -> -264.5 | B133: =IF('DF raw data'!N138="","",'DF raw data'!N138) -> -2.68921e-05 | C133: =IF('DF raw data'!O138="","",'DF raw data'!O138) -> 9.10032e-05 | D133: =IF('DF raw data'!P138="","",'DF raw data'!P138) -> -2.89449e-05 | F133: -2.701042524e-05 | G133: 9.140361408e-05 | H133: -2.907225756e-05 | J133: -0.001204342776 | K133: -0.0216835814 | L133: 0.003227421295 | M133: 0.05971329042 | N133: 0.0001473914443
A134: =IF('DF raw data'!M139="","",'DF raw data'!M139) -> -264 | B134: =IF('DF raw data'!N139="","",'DF raw data'!N139) -> -3.35552e-05 | C134: =IF('DF raw data'!O139="","",'DF raw data'!O139) -> 9.41513e-05 | D134: =IF('DF raw data'!P139="","",'DF raw data'!P139) -> -2.82608e-05 | F134: -3.370284288e-05 | G134: 9.456556572e-05 | H134: -2.838514752e-05 | J134: -0.001221194198 | K134: -0.0222941785 | L134: 0.003274704077 | M134: 0.06135064246 | N134: 0.0001534989453
A135: =IF('DF raw data'!M140="","",'DF raw data'!M140) -> -263.5 | B135: =IF('DF raw data'!N140="","",'DF raw data'!N140) -> -4.08589e-05 | C135: =IF('DF raw data'!O140="","",'DF raw data'!O140) -> 8.80662e-05 | D135: =IF('DF raw data'!P140="","",'DF raw data'!P140) -> -2.72975e-05 | F135: -4.103867916e-05 | G135: 8.845369128e-05 | H135: -2.7417609e-05 | J135: -0.001241713537 | K135: -0.02291503527 | L135: 0.003318930923 | M135: 0.06301010792 | N135: 0.0001597775228
A136: =IF('DF raw data'!M141="","",'DF raw data'!M141) -> -263 | B136: =IF('DF raw data'!N141="","",'DF raw data'!N141) -> -3.34949e-05 | C136: =IF('DF raw data'!O141="","",'DF raw data'!O141) -> 8.34587e-05 | D136: =IF('DF raw data'!P141="","",'DF raw data'!P141) -> -2.25931e-05 | F136: -3.364227756e-05 | G136: 8.382591828e-05 | H136: -2.269250964e-05 | J136: -0.001258534676 | K136: -0.0235443026 | L136: 0.003360843882 | M136: 0.06469052986 | N136: 0.0001662171134
A137: =IF('DF raw data'!M142="","",'DF raw data'!M142) -> -262.5 | B137: =IF('DF raw data'!N142="","",'DF raw data'!N142) -> -3.56678e-05 | C137: =IF('DF raw data'!O142="","",'DF raw data'!O142) -> 8.71376e-05 | D137: =IF('DF raw data'!P142="","",'DF raw data'!P142) -> -3.04676e-05 | F137: -3.582473832e-05 | G137: 8.752100544e-05 | H137: -3.060165744e-05 | J137: -0.001276447045 | K137: -0.02418252613 | L137: 0.003404604385 | M137: 0.06639283205 | N137: 0.0001728274374
A138: =IF('DF raw data'!M143="","",'DF raw data'!M143) -> -262 | B138: =IF('DF raw data'!N143="","",'DF raw data'!N143) -> -2.82986e-05 | C138: =IF('DF raw data'!O143="","",'DF raw data'!O143) -> 8.57458e-05 | D138: =IF('DF raw data'!P143="","",'DF raw data'!P143) -> -3.33369e-05 | F138: -2.842311384e-05 | G138: 8.612308152e-05 | H138: -3.348358236e-05 | J138: -0.001290658602 | K138: -0.02482785543 | L138: 0.003447665926 | M138: 0.06811666501 | N138: 0.0001796035374
A139: =IF('DF raw data'!M144="","",'DF raw data'!M144) -> -261.5 | B139: =IF('DF raw data'!N144="","",'DF raw data'!N144) -> -3.57301e-05 | C139: =IF('DF raw data'!O144="","",'DF raw data'!O144) -> 8.41817e-05 | D139: =IF('DF raw data'!P144="","",'DF raw data'!P144) -> -3.29104e-05 | F139: -3.588731244e-05 | G139: 8.455209948e-05 | H139: -3.305520576e-05 | J139: -0.001308602258 | K139: -0.02548215656 | L139: 0.003489941975 | M139: 0.069861636 | N139: 0.0001865496048
A140: =IF('DF raw data'!M145="","",'DF raw data'!M145) -> -261 | B140: =IF('DF raw data'!N145="","",'DF raw data'!N145) -> -3.34948e-05 | C140: =IF('DF raw data'!O145="","",'DF raw data'!O145) -> 7.98364e-05 | D140: =IF('DF raw data'!P145="","",'DF raw data'!P145) -> -2.26823e-05 | F140: -3.364217712e-05 | G140: 8.018768016e-05 | H140: -2.278210212e-05 | J140: -0.001325423347 | K140: -0.02614486823 | L140: 0.003530035815 | M140: 0.07162665391 | N140: 0.0001936585548
A141: =IF('DF raw data'!M146="","",'DF raw data'!M146) -> -260.5 | B141: =IF('DF raw data'!N146="","",'DF raw data'!N146) -> -4.10509e-05 | C141: =IF('DF raw data'!O146="","",'DF raw data'!O146) -> 7.52268e-05 | D141: =IF('DF raw data'!P146="","",'DF raw data'!P146) -> -2.76662e-05 | F141: -4.123152396e-05 | G141: 7.555779792e-05 | H141: -2.778793128e-05 | J141: -0.001346039109 | K141: -0.02681788778 | L141: 0.003567814714 | M141: 0.07341056127 | N141: 0.0002009291163
A142: =IF('DF raw data'!M147="","",'DF raw data'!M147) -> -260 | B142: =IF('DF raw data'!N147="","",'DF raw data'!N147) -> -3.27937e-05 | C142: =IF('DF raw data'!O147="","",'DF raw data'!O147) -> 7.78852e-05 | D142: =IF('DF raw data'!P147="","",'DF raw data'!P147) -> -1.70777e-05 | F142: -3.293799228e-05 | G142: 7.822789488e-05 | H142: -1.715284188e-05 | J142: -0.001362508105 | K142: -0.02749914184 | L142: 0.003606928662 | M142: 0.0752140256 | N142: 0.0002083622977
A143: =IF('DF raw data'!M148="","",'DF raw data'!M148) -> -259.5 | B143: =IF('DF raw data'!N148="","",'DF raw data'!N148) -> -3.72787e-05 | C143: =IF('DF raw data'!O148="","",'DF raw data'!O148) -> 8.07271e-05 | D143: =IF('DF raw data'!P148="","",'DF raw data'!P148) -> -1.61161e-05 | F143: -3.744272628e-05 | G143: 8.108229924e-05 | H143: -1.618701084e-05 | J143: -0.001381229468 | K143: -0.02818975657 | L143: 0.003647469811 | M143: 0.0770377605 | N143: 0.0002159682131
A144: =IF('DF raw data'!M149="","",'DF raw data'!M149) -> -259 | B144: =IF('DF raw data'!N149="","",'DF raw data'!N149) -> -2.91436e-05 | C144: =IF('DF raw data'!O149="","",'DF raw data'!O149) -> 8.13069e-05 | D144: =IF('DF raw data'!P149="","",'DF raw data'!P149) -> -1.46865e-05 | F144: -2.927183184e-05 | G144: 8.166465036e-05 | H144: -1.47511206e-05 | J144: -0.001395865384 | K144: -0.02888768926 | L144: 0.003688302137 | M144: 0.07888191157 | N144: 0.0002237442195
